Workbook

Sheet Simulation Inputs (hidden)
A1: Input Label* | B1: Input List Index | C1: Energy Price Trends | D1: # of Trials | E1: Start Year (options) | F1: Product Class | H1: Eff Scenario
A2: Input Choice* | C2: AEO 2012 Reference | D2: 10000 | E2: 2018 | F2: OTT | H2: 100% E*3, Fast Improvement
A3: Input Choice Index | C3: =MATCH(choice_PriceTrend,list_PriceTrend,0) -> 1 | F3: =MATCH(choice_PC,list_PC,0) -> 16 | H3: =MATCH(choice_Eff,list_Eff,0) -> 5
A4: Default Choice Index* | C4: AEO 2012 Reference | D4: 10000 | E4: 2018 | F4: Cable Base | H4: 1
A5: Input List | B5: 1 | C5: AEO 2012 Reference | D5: 100 | E5: 2017 | F5: =OFFSET('Engineering Data'!$D$5, 12*(G5-1),) -> Cable Base | G5: 1 | H5: =OFFSET('Base Case Distribution'!$J$30,27*('Simulation Inputs'!G5-1 ),) -> 90% E*3, No Improvement
B6: 2 | C6: AEO 2012 High Growth | D6: 1000 | E6: 2018 | F6: =OFFSET('Engineering Data'!$D$5, 12*(G6-1),) -> Cable Video Client | G6: 2 | H6: =OFFSET('Base Case Distribution'!$J$30,27*('Simulation Inputs'!G6-1 ),) -> 100% E*3, No Improvement
B7: 3 | C7: AEO 2012 Low Growth | D7: 2000 | E7: 2019 | F7: =OFFSET('Engineering Data'!$D$5, 12*(G7-1),) -> Cable Video Server | G7: 3 | H7: =OFFSET('Base Case Distribution'!$J$30,27*('Simulation Inputs'!G7-1 ),) -> 90% E*3, Avg. Improvement
B8: 4 | D8: 5000 | F8: =OFFSET('Engineering Data'!$D$5, 12*(G8-1),) -> Cable with DVR | G8: 4 | H8: =OFFSET('Base Case Distribution'!$J$30,27*('Simulation Inputs'!G8-1 ),) -> 100% E*3, Avg. Improvement
B9: 5 | D9: 10000 | F9: =OFFSET('Engineering Data'!$D$5, 12*(G9-1),) -> Cable with DVR & Video Server | G9: 5 | H9: =OFFSET('Base Case Distribution'!$J$30,27*('Simulation Inputs'!G9-1 ),) -> 100% E*3, Fast Improvement
B10: 6 | D10: 50000 | F10: =OFFSET('Engineering Data'!$D$5, 12*(G10-1),) -> Satellite Base | G10: 6
B11: 7 | F11: =OFFSET('Engineering Data'!$D$5, 12*(G11-1),) -> Satellite Video Client | G11: 7
B12: 8 | F12: =OFFSET('Engineering Data'!$D$5, 12*(G12-1),) -> Satellite Video Server | G12: 8
B13: 9 | F13: =OFFSET('Engineering Data'!$D$5, 12*(G13-1),) -> Satellite with DVR | G13: 9
B14: 10 | F14: =OFFSET('Engineering Data'!$D$5, 12*(G14-1),) -> Satellite with DVR & Video Server | G14: 10
B15: 11 | F15: =OFFSET('Engineering Data'!$D$5, 12*(G15-1),) -> IP Base | G15: 11
B16: 12 | F16: =OFFSET('Engineering Data'!$D$5, 12*(G16-1),) -> IP Video Client | G16: 12
B17: 13 | F17: =OFFSET('Engineering Data'!$D$5, 12*(G17-1),) -> IP Video Server | G17: 13
B18: 14 | F18: =OFFSET('Engineering Data'!$D$5, 12*(G18-1),) -> IP with DVR | G18: 14
B19: 15 | F19: =OFFSET('Engineering Data'!$D$5, 12*(G19-1),) -> IP with DVR & Video Server | G19: 15
B20: 16 | F20: =OFFSET('Engineering Data'!$D$5, 12*(G20-1),) -> OTT | G20: 16
B21: 17 | F21: =OFFSET('Engineering Data'!$D$5, 12*(G21-1),) -> Thin-client | G21: 17
B22: 18
B23: 19
B24: 20
B25: 21
B26: 22
B27: 23
B28: 24
B29: 25
B30: 26
B31: 27
B32: 28
B33: 29
B34: 30
B35: 31
B36: 32
B37: 33
B38: 34
B39: 35
B40: 36
B41: 37
B42: 38
B43: 39
B44: 40
B45: 41
B46: 42
B47: 43
B48: 44
B49: 45
B50: 46
B51: 47
B52: 48
B53: 49
B54: 50

Sheet Introduction
B1: Introduction
B3: This spreadsheet is the Life-Cycle Cost (LCC) of potential standards for set-top boxes. The LCC primarily analyzes the impact to consumers in the first year of a potential standard (default is 2018). The LCC analyzes each product group separately, and considers the distribution of consumer characteristics by running a Monte Carlo simulation over 10,000 households for each product group. The main results are the fraction of households that experience a net benefit or cost under potential standards. The various worksheets are as described below.
B8: Summary | D8: Summary results for all product groups, including fraction of households with net benefit or cost. The user can adjust various parameters and re-run the LCC simulations from this worksheet.
B10: Statistics | D10: Summary statistics for the LCC calculations.
B11: LCC & Payback | D11: Calculation worksheet for the LCC and payback.
B12: Household Sample | D12: Sample of households with data on STB usage, used in Monte Carlo simulation.
B13: Adjustment Factors | D13: Usage adjustment factors to correct for various effects impacting total usage.
B14: Equipment Price | D14: Calculation worksheet for equipment price, taking into account state taxes.
B15: Model Info | D15: Collection of engineering data linked from engineering input worksheet.
B16: Base Case Distribution | D16: Efficiency distribution in the base case (see NIA spreadsheet for more details).
B17: Electricity Prices | D17: Current electricity prices.
B18: Electricity Price Trends | D18: Trends in national electricity prices.
B19: Discount Rate | D19: Distribution of household interest rates, used to discount future costs/savings in simulation.
B20: Lifetime | D20: Set-top box lifetime distribution assumed in NIA.
B21: LCC Box Plots | D21: Box and whisker plots for the distribution of LCC by product group.
B22: PBP Box Plots | D22: Box and whisker plots for the distribution of payback period by product group.
B23: Frequency Charts | D23: Frequency charts showing the distribution of household impacts for each product group.
B24: INPUT - Engineering Data | D24: Input engineering data from the MIA spreadsheet.
B25: OUTPUT - NIA Data | D25: Output data used in the NIA spreadsheet.
B28: Instructions for Operating LCC Spreadsheet
B29: This LCC spreadsheet requires Microsoft Excel 2000 or later installed under the Windows operating system. Because certain variables inside the spreadsheet are defined as distributions, the user’s computer also requires a copy of Crystal Ball (a commercially available add-on program). Basic instructions for operating the LCC spreadsheet are as follows: 1. Click “Enable Macro” when prompted and then click on the tab for the Summary worksheet. 2. Use Excel's View/Zoom commands at the top menu bar to change the size of the display to fit your monitor. 3. The user can change the parameters listed under USER INPUT on the Summary worksheet. There are four drop-down boxes and two command buttons. 4. To run the Crystal Ball simulation, click the “run” button (you must re-run after changing any parameters). The spreadsheet will then be minimized. You can monitor the progress of the simulation by watching the count of iterations in the left bottom corner of the screen. When the simulation is finished, the spreadsheet will re-open. 5. Additional information can be found in the Statistics and Summary worksheets. Note that, as described in the Household Sample worksheet, only 10% of the full Nielsen household sample is available in this public version of the LCC analytical tool. The current results presented here, however, were generated with the full household sample. As a result, re-running this LCC tool with only 10% of the full household sample will result in very minor differences from the results using the full sample. These differences are not very significant, however. When this LCC is re-run for a given product group, the result table in the "Summary" worksheet specific to that product group will be overwritten with new results. Similarly, all figures specific to that product group in the "LCC Box Plots", "PBP Box Plots", and "Frequency Charts" worksheets are replaced with updated versions. Results and figures for other product groups will remain unchanged.

Sheet Summary
B1: Summary
B3: User Input: | F3: Cable Base (2011$) | P3: AEO 2012 Reference
F4: Efficiency | I4: Average Life-Cycle Cost | L4: Life-Cycle Cost Savings | O4: Payback | P4: Period
B5: Energy Price Trend | F5: Level | G5: Efficiency Level Description | H5: Installed | I5: Lifetime | J5: Life-Cycle | K5: Average | M5: Households that Experience | O5: Median | P5: Undefined
H6: Price | I6: Operating Cost | J6: Cost | K6: Savings | L6: Net Cost | M6: No Impact | N6: Net Benefit
B7: Start Year | F7: 0 | G7: Cable Base EL0: Baseline | H7: 113.5015708 | I7: 98.30020351 | J7: 211.8017743
F8: 1 | G8: Cable Base EL1: More Efficient Model | H8: 119.0850235 | I8: 62.55395173 | J8: 181.6389752 | K8: 14.90271042 | L8: 0 | M8: 0.5063 | N8: 0.4937 | O8: 0.7729511814 | P8: 0
B9: # of Trials | F9: 2 | G9: Cable Base EL2: Improved PSU | H9: 120.2160305 | I9: 55.66862215 | J9: 175.8846527 | K9: 20.05083867 | L9: 0 | M9: 0.1039 | N9: 0.8961 | O9: 0.8011011644 | P9: 0
F10: 3 | G10: Cable Base EL3: Power Management + Max Tech PSU | H10: 124.2046272 | I10: 44.34663476 | J10: 168.551262 | K10: 27.38422939 | L10: 0.0126 | M10: 0 | N10: 0.9874 | O10: 1.113416793 | P10: 0.0024
B11: Product Group
F12: Cable Video Client (2011$) | P12: AEO 2012 Reference
B13: Efficiency Scenario* | F13: Efficiency | I13: Average Life-Cycle Cost | L13: Life-Cycle Cost Savings | O13: Payback | P13: Period
F14: Level | G14: Efficiency Level Description | H14: Installed | I14: Lifetime | J14: Life-Cycle | K14: Average | M14: Households that Experience | O14: Median | P14: Undefined
H15: Price | I15: Operating Cost | J15: Cost | K15: Savings | L15: Net Cost | M15: No Impact | N15: Net Benefit
F16: 0 | G16: Cable Video Client EL0: Baseline | H16: 121.8051671 | I16: 111.7145452 | J16: 233.5197123
F17: 1 | G17: Cable Video Client EL1: Scaled from Cable Base | H17: 127.3886197 | I17: 76.00047718 | J17: 203.3890969 | K17: 14.88695865 | L17: 0 | M17: 0.5063 | N17: 0.4937 | O17: 0.773546665 | P17: 0
F18: 2 | G18: Cable Video Client EL2: Improved PSU + Moca 2.0 | H18: 134.5325758 | I18: 58.66023788 | J18: 193.1928137 | K18: 24.0027874 | L18: 0.0114 | M18: 0.1039 | N18: 0.8847 | O18: 1.438978749 | P18: 0
B19: *Efficiency Scenarios are described in more detail | F19: 3 | G19: Cable Video Client EL3: Power Management + Max Tech PSU | H19: 135.9614227 | I19: 47.26645172 | J19: 183.2278744 | K19: 33.9677267 | L19: 0.0041 | M19: 0 | N19: 0.9959 | O19: 1.155288991 | P19: 0.0024
B20: in the National Impacts Analysis spreadsheet
F21: Cable Video Server (2011$) | P21: AEO 2012 Reference
F22: Efficiency | I22: Average Life-Cycle Cost | L22: Life-Cycle Cost Savings | O22: Payback | P22: Period
F23: Level | G23: Efficiency Level Description | H23: Installed | I23: Lifetime | J23: Life-Cycle | K23: Average | M23: Households that Experience | O23: Median | P23: Undefined
H24: Price | I24: Operating Cost | J24: Cost | K24: Savings | L24: Net Cost | M24: No Impact | N24: Net Benefit
F25: 0 | G25: Cable Video Server EL0: Baseline | H25: 227.7562634 | I25: 126.0013151 | J25: 353.7575785
F26: 1 | G26: Cable Video Server EL1: More efficient PSU + Full-band Tuner | H26: 235.5882038 | I26: 105.5927043 | J26: 341.1809082 | K26: 6.192098479 | L26: 0.0093 | M26: 0.5063 | N26: 0.4844 | O26: 1.915059294 | P26: 0
F27: 2 | G27: Cable Video Server EL2: MocA 2.0 + More efficient processor | H27: 249.4623359 | I27: 92.10853964 | J27: 341.5708756 | K27: 5.851861936 | L27: 0.32 | M27: 0.1039 | N27: 0.5761 | O27: 3.615892514 | P27: 0.006
F28: 3 | G28: Cable Video Server EL3: Power Management + Max Tech PSU | H28: 251.749676 | I28: 75.57886973 | J28: 327.3285458 | K28: 20.09419173 | L28: 0.1277 | M28: 0 | N28: 0.8723 | O28: 2.278348692 | P28: 0
F30: Cable with DVR (2011$) | P30: AEO 2012 Reference
F31: Efficiency | I31: Average Life-Cycle Cost | L31: Life-Cycle Cost Savings | O31: Payback | P31: Period
F32: Level | G32: Efficiency Level Description | H32: Installed | I32: Lifetime | J32: Life-Cycle | K32: Average | M32: Households that Experience | O32: Median | P32: Undefined
H33: Price | I33: Operating Cost | J33: Cost | K33: Savings | L33: Net Cost | M33: No Impact | N33: Net Benefit
F34: 0 | G34: Cable with DVR EL0: Baseline | H34: 170.9901581 | I34: 141.7964892 | J34: 312.7866472
F35: 1 | G35: Cable with DVR EL1: Mid Range HDD + Improved PSU | H35: 185.2703715 | I35: 106.2014115 | J35: 291.471783 | K35: 10.44678585 | L35: 0.0108 | M35: 0.5063 | N35: 0.4829 | O35: 1.988736064 | P35: 0
F36: 2 | G36: Cable with DVR EL2: High efficient HDD + More efficient processor | H36: 210.3072953 | I36: 84.2208856 | J36: 294.5281809 | K36: 7.689987506 | L36: 0.3796 | M36: 0.1039 | N36: 0.5165 | O36: 4.085014968 | P36: 0
F37: 3 | G37: Cable with DVR EL3: Power Management + Max Tech PSU | H37: 212.7723584 | I37: 67.90536283 | J37: 280.6777213 | K37: 21.54044709 | L37: 0.1692 | M37: 0 | N37: 0.8308 | O37: 2.916378992 | P37: 0.0011
F39: Cable with DVR & Video Server (2011$) | P39: AEO 2012 Reference
F40: Efficiency | I40: Average Life-Cycle Cost | L40: Life-Cycle Cost Savings | O40: Payback | P40: Period
F41: Level | G41: Efficiency Level Description | H41: Installed | I41: Lifetime | J41: Life-Cycle | K41: Average | M41: Households that Experience | O41: Median | P41: Undefined
H42: Price | I42: Operating Cost | J42: Cost | K42: Savings | L42: Net Cost | M42: No Impact | N42: Net Benefit
F43: 0 | G43: Cable with DVR & Video Server EL0: Baseline | H43: 298.6530488 | I43: 161.4554301 | J43: 460.1084789
F44: 1 | G44: Cable with DVR & Video Server EL1: Mid Range HDD + MoCA 2.0 + PSU + Full Band | H44: 318.943185 | I44: 129.4613425 | J44: 448.4045275 | K44: 5.749503212 | L44: 0.0855 | M44: 0.5063 | N44: 0.4082 | O44: 3.084548434 | P44: 0
F45: 2 | G45: Cable with DVR & Video Server EL2: High efficient HDD + More efficient processor | H45: 343.9729366 | I45: 107.6660344 | J45: 451.638971 | K45: 2.864891026 | L45: 0.4685 | M45: 0.1039 | N45: 0.4276 | O45: 4.699401521 | P45: 0
F46: 3 | G46: Cable with DVR & Video Server EL3: Power Management + Max Tech PSU | H46: 346.3533141 | I46: 96.85041992 | J46: 443.203734 | K46: 11.30012799 | L46: 0.3143 | M46: 0 | N46: 0.6857 | O46: 3.703721548 | P46: 0
F48: Satellite Base (2011$) | P48: AEO 2012 Reference
F49: Efficiency | I49: Average Life-Cycle Cost | L49: Life-Cycle Cost Savings | O49: Payback | P49: Period
F50: Level | G50: Efficiency Level Description | H50: Installed | I50: Lifetime | J50: Life-Cycle | K50: Average | M50: Households that Experience | O50: Median | P50: Undefined
H51: Price | I51: Operating Cost | J51: Cost | K51: Savings | L51: Net Cost | M51: No Impact | N51: Net Benefit
F52: 0 | G52: Satellite Base EL0: Baseline | H52: 69.59568941 | I52: 69.52073652 | J52: 139.1164259
F53: 1 | G53: Satellite Base EL1: Improved Media Processor | H53: 75.11801843 | I53: 51.50890335 | J53: 126.6269218 | K53: 6.136785638 | L53: 0.002 | M53: 0.5063 | N53: 0.4917 | O53: 1.53815415 | P53: 0
F54: 2 | G54: Satellite Base EL2: Best in Market + PSU | H54: 79.23466371 | I54: 35.37540503 | J54: 114.6100687 | K54: 16.88695611 | L54: 0.0016 | M54: 0.1039 | N54: 0.8945 | O54: 1.332754091 | P54: 0
F55: 3 | G55: Satellite Base EL3: Power Management + Max Tech PSU | H55: 80.57005863 | I55: 27.57019359 | J55: 108.1402522 | K55: 23.35677263 | L55: 0.0028 | M55: 0 | N55: 0.9972 | O55: 1.192756131 | P55: 0.0047
F57: Satellite Video Client (2011$) | P57: AEO 2012 Reference
F58: Efficiency | I58: Average Life-Cycle Cost | L58: Life-Cycle Cost Savings | O58: Payback | P58: Period
F59: Level | G59: Efficiency Level Description | H59: Installed | I59: Lifetime | J59: Life-Cycle | K59: Average | M59: Households that Experience | O59: Median | P59: Undefined
H60: Price | I60: Operating Cost | J60: Cost | K60: Savings | L60: Net Cost | M60: No Impact | N60: Net Benefit
F61: 0 | G61: Satellite Video Client EL0: Baseline | H61: 77.91504223 | I61: 73.14180463 | J61: 151.0568469
F62: 1 | G62: Satellite Video Client EL1: Media Processor + PSU | H62: 83.43737125 | I62: 54.09774002 | J62: 137.5351113 | K62: 6.654808512 | L62: 0.0013 | M62: 0.5063 | N62: 0.4924 | O62: 1.471631759 | P62: 0
F63: 2 | G63: Satellite Video Client EL2: MoCA 2.0 | H63: 89.46173018 | I63: 45.39992786 | J63: 134.861658 | K63: 9.041030223 | L63: 0.0949 | M63: 0.1039 | N63: 0.8012 | O63: 2.463193193 | P63: 0
F64: 3 | G64: Satellite Video Client EL3: Power Management + Max Tech PSU | H64: 90.23971423 | I64: 36.29127059 | J64: 126.5309848 | K64: 17.37170345 | L64: 0.0153 | M64: 0 | N64: 0.9847 | O64: 1.661706694 | P64: 0.0026
F66: Satellite Video Server (2011$) | P66: AEO 2012 Reference
F67: Efficiency | I67: Average Life-Cycle Cost | L67: Life-Cycle Cost Savings | O67: Payback | P67: Period
F68: Level | G68: Efficiency Level Description | H68: Installed | I68: Lifetime | J68: Life-Cycle | K68: Average | M68: Households that Experience | O68: Median | P68: Undefined
H69: Price | I69: Operating Cost | J69: Cost | K69: Savings | L69: Net Cost | M69: No Impact | N69: Net Benefit
F70: 0 | G70: Satellite Video Server EL0: Baseline | H70: 127.7156398 | I70: 106.4996493 | J70: 234.2152892
F71: 1 | G71: Satellite Video Server EL1: Full Band Tuner | H71: 133.2953101 | I71: 89.91668055 | J71: 223.2119906 | K71: 5.404156489 | L71: 0.0038 | M71: 0.5063 | N71: 0.4899 | O71: 1.674406679 | P71: 0
F72: 2 | G72: Satellite Video Server EL2: Media Processor + MoCA 2.0 + PSU | H72: 145.9750749 | I72: 75.59182632 | J72: 221.5669012 | K72: 6.886088585 | L72: 0.2519 | M72: 0.1039 | N72: 0.6442 | O72: 3.295780101 | P72: 0.0011
F73: 3 | G73: Satellite Video Server EL3: Power Management + Max Tech PSU | H73: 147.9513925 | I73: 62.30454332 | J73: 210.2559358 | K73: 18.19705398 | L73: 0.1093 | M73: 0 | N73: 0.8907 | O73: 2.247581147 | P73: 0.0005
F75: Satellite with DVR (2011$) | P75: AEO 2012 Reference
F76: Efficiency | I76: Average Life-Cycle Cost | L76: Life-Cycle Cost Savings | O76: Payback | P76: Period
F77: Level | G77: Efficiency Level Description | H77: Installed | I77: Lifetime | J77: Life-Cycle | K77: Average | M77: Households that Experience | O77: Median | P77: Undefined
H78: Price | I78: Operating Cost | J78: Cost | K78: Savings | L78: Net Cost | M78: No Impact | N78: Net Benefit
F79: 0 | G79: Satellite with DVR EL0: Baseline | H79: 140.6267995 | I79: 122.9669779 | J79: 263.5937774
F80: 1 | G80: Satellite with DVR EL1: Full Band Tuner + Mid Range HDD + PSU | H80: 154.9305048 | I80: 88.67651313 | J80: 243.6070179 | K80: 9.830152848 | L80: 0.0124 | M80: 0.5063 | N80: 0.4813 | O80: 2.052219819 | P80: 0
F81: 2 | G81: Satellite with DVR EL2: Media Processor + High End HDD | H81: 176.5223568 | I81: 69.0245278 | J81: 245.5468846 | K81: 8.085701042 | L81: 0.3501 | M81: 0.1039 | N81: 0.546 | O81: 3.882088229 | P81: 0
F82: 3 | G82: Satellite with DVR EL3: Power Management + Max Tech PSU | H82: 178.5409475 | I82: 56.15145823 | J82: 234.6924057 | K82: 18.94017989 | L82: 0.1695 | M82: 0 | N82: 0.8305 | O82: 2.914551794 | P82: 0.0025
F84: Satellite with DVR & Video Server (2011$) | P84: AEO 2012 Reference
F85: Efficiency | I85: Average Life-Cycle Cost | L85: Life-Cycle Cost Savings | O85: Payback | P85: Period
F86: Level | G86: Efficiency Level Description | H86: Installed | I86: Lifetime | J86: Life-Cycle | K86: Average | M86: Households that Experience | O86: Median | P86: Undefined
H87: Price | I87: Operating Cost | J87: Cost | K87: Savings | L87: Net Cost | M87: No Impact | N87: Net Benefit
F88: 0 | G88: Satellite with DVR & Video Server EL0: Baseline | H88: 198.787269 | I88: 142.1169634 | J88: 340.9042324
F89: 1 | G89: Satellite with DVR & Video Server EL1: Full Band Tuner + Mid Range HDD + MoCA + PSU | H89: 219.1194157 | I89: 112.3847486 | J89: 331.5041642 | K89: 4.59360709 | L89: 0.1113 | M89: 0.5063 | N89: 0.3824 | O89: 3.322093494 | P89: 0
F90: 2 | G90: Satellite with DVR & Video Server EL2: High End HDD + Media Processor | H90: 240.7142504 | I90: 92.60076304 | J90: 333.3150134 | K90: 2.963183507 | L90: 0.4502 | M90: 0.1039 | N90: 0.4459 | O90: 4.599391181 | P90: 0
F91: 3 | G91: Satellite with DVR & Video Server EL3: Power Management + Max Tech PSU | H91: 242.7106637 | I91: 84.38248823 | J91: 327.0931519 | K91: 9.185045018 | L91: 0.3253 | M91: 0 | N91: 0.6747 | O91: 3.791293149 | P91: 0.002
F93: IP Base (2011$) | P93: AEO 2012 Reference
F94: Efficiency | I94: Average Life-Cycle Cost | L94: Life-Cycle Cost Savings | O94: Payback | P94: Period
F95: Level | G95: Efficiency Level Description | H95: Installed | I95: Lifetime | J95: Life-Cycle | K95: Average | M95: Households that Experience | O95: Median | P95: Undefined
H96: Price | I96: Operating Cost | J96: Cost | K96: Savings | L96: Net Cost | M96: No Impact | N96: Net Benefit
F97: 0 | G97: IP Base EL0: Baseline | H97: 66.64351819 | I97: 62.3287776 | J97: 128.9722958
F98: 1 | G98: IP Base EL1: PSU | H98: 67.77452526 | I98: 55.06441566 | J98: 122.8389409 | K98: 3.033570637 | L98: 0 | M98: 0.5063 | N98: 0.4937 | O98: 0.7851622053 | P98: 0
F99: 2 | G99: IP Base EL2: Media Processor | H99: 72.7853161 | I99: 41.3628156 | J99: 114.1481317 | K99: 10.80439989 | L99: 0.0074 | M99: 0.1039 | N99: 0.8887 | O99: 1.52648995 | P99: 0
F100: 3 | G100: IP Base EL3: Power Management + Max Tech PSU | H100: 75.24597194 | I100: 35.54121448 | J100: 110.7871864 | K100: 14.16534518 | L100: 0.0222 | M100: 0 | N100: 0.9778 | O100: 1.700678906 | P100: 0.0062
F102: IP Video Client (2011$) | P102: AEO 2012 Reference
F103: Efficiency | I103: Average Life-Cycle Cost | L103: Life-Cycle Cost Savings | O103: Payback | P103: Period
F104: Level | G104: Efficiency Level Description | H104: Installed | I104: Lifetime | J104: Life-Cycle | K104: Average | M104: Households that Experience | O104: Median | P104: Undefined
H105: Price | I105: Operating Cost | J105: Cost | K105: Savings | L105: Net Cost | M105: No Impact | N105: Net Benefit
F106: 0 | G106: IP Video Client EL0: Baseline | H106: 74.15970445 | I106: 66.92748931 | J106: 141.0871938
F107: 1 | G107: IP Video Client EL1: PSU | H107: 75.29071152 | I107: 59.15694599 | J107: 134.4476575 | K107: 3.283433597 | L107: 0 | M107: 0.5063 | N107: 0.4937 | O107: 0.7316600829 | P107: 0
F108: 2 | G108: IP Video Client EL2: Media Processing | H108: 80.30150236 | I108: 45.45534592 | J108: 125.7568483 | K108: 11.05426285 | L108: 0.0073 | M108: 0.1039 | N108: 0.8888 | O108: 1.517305424 | P108: 0
F109: 3 | G109: IP Video Client EL3: Power Management + Max Tech PSU | H109: 82.3727582 | I109: 38.1528554 | J109: 120.5256136 | K109: 16.28549754 | L109: 0.0112 | M109: 0 | N109: 0.9888 | O109: 1.475735903 | P109: 0.004
F111: IP Video Server (2011$) | P111: AEO 2012 Reference
F112: Efficiency | I112: Average Life-Cycle Cost | L112: Life-Cycle Cost Savings | O112: Payback | P112: Period
F113: Level | G113: Efficiency Level Description | H113: Installed | I113: Lifetime | J113: Life-Cycle | K113: Average | M113: Households that Experience | O113: Median | P113: Undefined
H114: Price | I114: Operating Cost | J114: Cost | K114: Savings | L114: Net Cost | M114: No Impact | N114: Net Benefit
F115: 0 | G115: IP Video Server EL0: Baseline | H115: 74.16718706 | I115: 67.58001922 | J115: 141.7472063
F116: 1 | G116: IP Video Server EL1: PSU | H116: 75.29830825 | I116: 59.51830486 | J116: 134.8166131 | K116: 3.420929907 | L116: 0 | M116: 0.5063 | N116: 0.4937 | O116: 0.719036579 | P116: 0
F117: 2 | G117: IP Video Server EL2: Media Processor | H117: 80.30960468 | I117: 45.83082233 | J117: 126.140427 | K117: 11.18988455 | L117: 0.0058 | M117: 0.1039 | N117: 0.8903 | O117: 1.517305424 | P117: 0
F118: 3 | G118: IP Video Server EL3: Power Management + Max Tech PSU | H118: 82.39184834 | I118: 40.13665954 | J118: 122.5285079 | K118: 14.80180368 | L118: 0.0229 | M118: 0 | N118: 0.9771 | O118: 1.59937573 | P118: 0.0148
F120: IP with DVR (2011$) | P120: AEO 2012 Reference
F121: Efficiency | I121: Average Life-Cycle Cost | L121: Life-Cycle Cost Savings | O121: Payback | P121: Period
F122: Level | G122: Efficiency Level Description | H122: Installed | I122: Lifetime | J122: Life-Cycle | K122: Average | M122: Households that Experience | O122: Median | P122: Undefined
H123: Price | I123: Operating Cost | J123: Cost | K123: Savings | L123: Net Cost | M123: No Impact | N123: Net Benefit
F124: 0 | G124: IP with DVR EL0: Baseline | H124: 114.9865127 | I124: 86.25634757 | J124: 201.2428603
F125: 1 | G125: IP with DVR EL1: Mid-Range HDD + PSU | H125: 123.695008 | I125: 72.24636121 | J125: 195.9413692 | K125: 2.636706964 | L125: 0.1662 | M125: 0.5063 | N125: 0.3275 | O125: 3.480038881 | P125: 0
F126: 2 | G126: IP with DVR EL2: High End HDD + Media Processor | H126: 145.8816183 | I126: 51.88873622 | J126: 197.7703546 | K126: 0.9769052698 | L126: 0.4975 | M126: 0.1039 | N126: 0.3986 | O126: 5.090457531 | P126: 0
F127: 3 | G127: IP with DVR EL3: Power Management + Max Tech PSU | H127: 149.4898643 | I127: 45.87479996 | J127: 195.3646643 | K127: 3.38259556 | L127: 0.4477 | M127: 0 | N127: 0.5523 | O127: 4.600296281 | P127: 0.008
F129: IP with DVR & Video Server (2011$) | P129: AEO 2012 Reference
F130: Efficiency | I130: Average Life-Cycle Cost | L130: Life-Cycle Cost Savings | O130: Payback | P130: Period
F131: Level | G131: Efficiency Level Description | H131: Installed | I131: Lifetime | J131: Life-Cycle | K131: Average | M131: Households that Experience | O131: Median | P131: Undefined
H132: Price | I132: Operating Cost | J132: Cost | K132: Savings | L132: Net Cost | M132: No Impact | N132: Net Benefit
F133: 0 | G133: IP with DVR & Video Server EL0: Baseline | H133: 137.5204431 | I133: 93.54425239 | J133: 231.0646955
F134: 1 | G134: IP with DVR & Video Server EL1: Mid-Range HDD + PSU | H134: 146.2264436 | I134: 77.71622342 | J134: 223.942667 | K134: 3.522066204 | L134: 0.0628 | M134: 0.5063 | N134: 0.4309 | O134: 2.624598888 | P134: 0
F135: 2 | G135: IP with DVR & Video Server EL2: Media Processor + High End HDD | H135: 168.4066984 | I135: 55.44388467 | J135: 223.850583 | K135: 3.623835245 | L135: 0.394 | M135: 0.1039 | N135: 0.5021 | O135: 4.469247759 | P135: 0
F136: 3 | G136: IP with DVR & Video Server EL3: Power Management + Max Tech PSU | H136: 172.984442 | I136: 51.76481435 | J136: 224.7492563 | K136: 2.725161948 | L136: 0.5025 | M136: 0 | N136: 0.4975 | O136: 4.656312957 | P136: 0.0336
F138: OTT (2011$) | P138: AEO 2012 Reference
F139: Efficiency | I139: Average Life-Cycle Cost | L139: Life-Cycle Cost Savings | O139: Payback | P139: Period
F140: Level | G140: Efficiency Level Description | H140: Installed | I140: Lifetime | J140: Life-Cycle | K140: Average | M140: Households that Experience | O140: Median | P140: Undefined
H141: Price | I141: Operating Cost | J141: Cost | K141: Savings | L141: Net Cost | M141: No Impact | N141: Net Benefit
F142: 0 | G142: OTT EL0: Baseline | H142: 82.56351651 | I142: 53.73411517 | J142: 136.2976317
F143: 1 | G143: OTT EL1: Mid-Range OTT Box | H143: 70.55193504 | I143: 12.8056752 | J143: 83.35761024 | K143: 5.127942447 | L143: 0 | M143: 0.903 | N143: 0.097 | O143: -1.426821428 | P143: 0
F144: 2 | G144: OTT EL2: Max Tech | H144: 74.96143098 | I144: 3.847909474 | J144: 78.80934046 | K144: 6.915169175 | L144: 0.107 | M144: 0.6076 | N144: 0.2854 | O144: 2.121173456 | P144: 0.0577
F147: Thin-client (2011$) | P147: AEO 2012 Reference
F148: Efficiency | I148: Average Life-Cycle Cost | L148: Life-Cycle Cost Savings | O148: Payback | P148: Period
F149: Level | G149: Efficiency Level Description | H149: Installed | I149: Lifetime | J149: Life-Cycle | K149: Average | M149: Households that Experience | O149: Median | P149: Undefined
H150: Price | I150: Operating Cost | J150: Cost | K150: Savings | L150: Net Cost | M150: No Impact | N150: Net Benefit
F151: 0 | G151: Thin-client EL0: Baseline | H151: 57.89610903 | I151: 46.60027862 | J151: 104.4963877
F152: 1 | G152: Thin-client EL1: Incremental Design Improvements | H152: 65.04006512 | I152: 39.59712377 | J152: 104.6371889 | K152: -0.07320545978 | L152: 0.2466 | M152: 0.5063 | N152: 0.2471 | O152: 3.632461599 | P152: 0.11
F153: 2 | G153: Thin-client EL2: Best-in-Market | H153: 68.40445325 | I153: 27.71564387 | J153: 96.12009712 | K153: 7.57354242 | L153: 0.0579 | M153: 0.1039 | N153: 0.8382 | O153: 2.337661294 | P153: 0
F154: 3 | G154: Thin-client EL3: Max Tech | H154: 69.03438124 | I154: 25.45486876 | J154: 94.48925 | K154: 9.204389536 | L154: 0.0468 | M154: 0 | N154: 0.9532 | O154: 2.049671645 | P154: 0.0526

Sheet Statistics
B1: Statistics
B3: Cable Base | G3: Percentile
B4: LCC Savings | D4: min | E4: max | F4: average | G4: 0.05 | H4: 0.25 | I4: 0.5 | J4: 0.75 | K4: 0.95
B5: 1 | C5: Cable Base EL1 | D5: 0 | E5: 108.870039 | F5: 14.90271042 | G5: 0 | H5: 0 | I5: 0 | J5: 28.27050124 | K5: 47.82616277
B6: 2 | C6: Cable Base EL2 | D6: 0 | E6: 128.4266495 | F6: 20.05083867 | G6: 0 | H6: 4.592966696 | I6: 10.68223865 | J6: 33.65718233 | K6: 56.93364332
B7: 3 | C7: Cable Base EL3 | D7: -3.156375002 | E7: 166.8159898 | F7: 27.38422939 | G7: 2.834745663 | H7: 10.35954509 | I7: 20.83484739 | J7: 40.56155636 | K7: 70.76618529
B8: Payback Periods
B9: 1 | C9: Cable Base EL1 | D9: 0.2753159919 | E9: 1.320997715 | F9: 0.7726642886 | G9: 0.5812387081 | H9: 0.6819506489 | I9: 0.7729511814 | J9: 0.8394560954 | K9: 1.019855041
B10: 2 | C10: Cable Base EL2 | D10: 0.2760078678 | E10: 1.329855134 | F10: 0.7972414848 | G10: 0.5903855715 | H10: 0.6864606041 | I10: 0.8010936504 | J10: 0.8553210674 | K10: 1.036311863
B11: 3 | C11: Cable Base EL3 | D11: 0.3320894093 | E11: 16.26309364 | F11: 1.299335551 | G11: 0.7633496349 | H11: 0.9524217744 | I11: 1.113286161 | J11: 1.400755637 | K11: 2.298764849
B12: Retail Price
B13: 0 | C13: Cable Base EL0 | D13: 106.2352 | E13: 116.2744264 | F13: 113.5015708 | G13: 111.54696 | H13: 112.9811352 | I13: 113.5123112 | J13: 114.8402512 | K13: 115.53078
B14: 1 | C14: Cable Base EL1 | D14: 111.4612 | E14: 121.9942834 | F14: 119.0850235 | G14: 117.03426 | H14: 118.5389862 | I14: 119.0962922 | J14: 120.4895572 | K14: 121.214055
B15: 2 | C15: Cable Base EL2 | D15: 112.5198 | E15: 123.1529211 | F15: 120.2160305 | G15: 118.14579 | H15: 119.6648073 | I15: 120.2274063 | J15: 121.6339038 | K15: 122.3652825
B16: 3 | C16: Cable Base EL3 | D16: 116.2530467 | E16: 127.2389596 | F16: 124.2046272 | G16: 122.065699 | H16: 123.6351152 | I16: 124.2163804 | J16: 125.6695435 | K16: 126.4251883
B17: Total Installed Price
B18: 0 | C18: Cable Base EL0 | D18: 106.2352 | E18: 116.2744264 | F18: 113.5015708 | G18: 111.54696 | H18: 112.9811352 | I18: 113.5123112 | J18: 114.8402512 | K18: 115.53078
B19: 1 | C19: Cable Base EL1 | D19: 111.4612 | E19: 121.9942834 | F19: 119.0850235 | G19: 117.03426 | H19: 118.5389862 | I19: 119.0962922 | J19: 120.4895572 | K19: 121.214055
B20: 2 | C20: Cable Base EL2 | D20: 112.5198 | E20: 123.1529211 | F20: 120.2160305 | G20: 118.14579 | H20: 119.6648073 | I20: 120.2274063 | J20: 121.6339038 | K20: 122.3652825
B21: 3 | C21: Cable Base EL3 | D21: 116.2530467 | E21: 127.2389596 | F21: 124.2046272 | G21: 122.065699 | H21: 123.6351152 | I21: 124.2163804 | J21: 125.6695435 | K21: 126.4251883
B22: Total Operating Cost (discounted)
B23: 0 | C23: Cable Base EL0 | D23: 17.27846386 | E23: 438.8696884 | F23: 98.30020351 | G23: 46.57155143 | H23: 71.5643045 | I23: 93.65958259 | J23: 119.4165867 | K23: 165.6477336
B24: 1 | C24: Cable Base EL1 | D24: 11.17941823 | E24: 282.7220536 | F24: 62.55395173 | G24: 29.72473238 | H24: 45.64588469 | I24: 59.7424123 | J24: 75.90677458 | K24: 105.3242384
B25: 2 | C25: Cable Base EL2 | D25: 9.948896781 | E25: 251.6027643 | F25: 55.66862215 | G25: 26.45292343 | H25: 40.6216304 | I25: 53.16654959 | J25: 67.55169635 | K25: 93.73117232
B26: 3 | C26: Cable Base EL3 | D26: 7.02807973 | E26: 192.3719956 | F26: 44.34663476 | G26: 20.4857545 | H26: 31.78027833 | I26: 41.95182442 | J26: 54.16033332 | K26: 76.23961817
B27: Annual Electricity Use (kWh)
B28: 0 | C28: Cable Base EL0 | D28: 163.8996 | E28: 172.6596 | F28: 168.4374735 | G28: 164.0185102 | H28: 164.8793761 | I28: 166.96699 | J28: 172.6596 | K28: 172.6596
B29: 1 | C29: Cable Base EL1 | D29: 106.0836 | E29: 109.5 | F29: 107.1889377 | G29: 106.129975 | H29: 106.4657127 | I29: 106.8210441 | J29: 107.70639 | K29: 108.9291765
B30: 2 | C30: Cable Base EL2 | D30: 94.40695082 | E30: 97.44730679 | F30: 95.39062369 | G30: 94.4482213 | H30: 94.74700427 | I30: 95.06322427 | J30: 95.85111991 | K30: 96.93931398
B31: 3 | C31: Cable Base EL3 | D31: 66.23775033 | E31: 95.10857143 | F31: 75.57857875 | G31: 66.62964943 | H31: 69.46685321 | I31: 72.46963681 | J31: 79.95139035 | K31: 90.2847384
B32: Household Characteristics | D32: min | E32: max | F32: average | G32: 0.05 | H32: 0.25 | I32: 0.5 | J32: 0.75 | K32: 0.95
B33: Lifetime | D33: 1.5 | E33: 12.5 | F33: 5.70315 | G33: 2.5 | H33: 4.5 | I33: 5.5 | J33: 7 | K33: 9
B34: Discount Rate | D34: 0 | E34: 0.3686809816 | F34: 0.05159175442 | G34: 0.0002701980711 | H34: 0.01938845301 | I34: 0.03937886741 | J34: 0.07775707814 | K34: 0.1350675308
B35: Avg Elec Price | D35: 0.07790415993 | E35: 0.3498082427 | F35: 0.120781244 | G35: 0.08780597647 | H35: 0.110751334 | I35: 0.1152217206 | J35: 0.1335124244 | K35: 0.1675603578
B36: Usage Check - Level 0 | D36: 24 | E36: 24 | F36: 24 | G36: 24 | H36: 24 | I36: 24 | J36: 24 | K36: 24
B37: Usage Check - Level 1 | D37: 24 | E37: 24 | F37: 24 | G37: 24 | H37: 24 | I37: 24 | J37: 24 | K37: 24
B38: Usage Check - Level 2 | D38: 24 | E38: 24 | F38: 24 | G38: 24 | H38: 24 | I38: 24 | J38: 24 | K38: 24
B39: Usage Check - Level 3 | D39: 24 | E39: 24 | F39: 24 | G39: 24 | H39: 24 | I39: 24 | J39: 24 | K39: 24
B40: Usage Check 2 - Level 0 | D40: 24 | E40: 24 | F40: 24 | G40: 24 | H40: 24 | I40: 24 | J40: 24 | K40: 24
B41: Usage Check 2 - Level 1 | D41: 24 | E41: 24 | F41: 24 | G41: 24 | H41: 24 | I41: 24 | J41: 24 | K41: 24
B42: Usage Check 2 - Level 2 | D42: 24 | E42: 24 | F42: 24 | G42: 24 | H42: 24 | I42: 24 | J42: 24 | K42: 24
B43: Usage Check 2 - Level 3 | D43: 24 | E43: 24 | F43: 24 | G43: 24 | H43: 24 | I43: 24 | J43: 24 | K43: 24
B44: On - 0 | D44: 0 | E44: 24 | F44: 12.43253021 | G44: 0.3257814645 | H44: 2.684318149 | I44: 8.403808156 | J44: 24 | K44: 24
B45: On - 1 | D45: 0 | E45: 24 | F45: 7.764929209 | G45: 0.3257814645 | H45: 2.684318149 | I45: 5.180499544 | J45: 11.4 | K45: 19.99
B46: On - 2 | D46: 0 | E46: 24 | F46: 7.764929209 | G46: 0.3257814645 | H46: 2.684318149 | I46: 5.180499544 | J46: 11.4 | K46: 19.99
B47: On - 3 | D47: 0 | E47: 24 | F47: 7.764929209 | G47: 0.3257814645 | H47: 2.684318149 | I47: 5.180499544 | J47: 11.4 | K47: 19.99
B48: Multi - 0 | D48: 0 | E48: 0 | F48: 0 | G48: 0 | H48: 0 | I48: 0 | J48: 0 | K48: 0
B49: Multi - 1 | D49: 0 | E49: 0 | F49: 0 | G49: 0 | H49: 0 | I49: 0 | J49: 0 | K49: 0
B50: Multi - 2 | D50: 0 | E50: 0 | F50: 0 | G50: 0 | H50: 0 | I50: 0 | J50: 0 | K50: 0
B51: Multi - 3 | D51: 0 | E51: 0 | F51: 0 | G51: 0 | H51: 0 | I51: 0 | J51: 0 | K51: 0
B52: Sleep - 0 | D52: 0 | E52: 24 | F52: 11.56746979 | G52: 0 | H52: 0 | I52: 15.58618177 | J52: 21.31390984 | K52: 23.67157774
B53: Sleep - 1 | D53: 0 | E53: 11.05983804 | F53: 4.605732791 | G53: 0 | H53: 0 | I53: 4.516319261 | J53: 9.057858329 | K53: 10.57130424
B54: Sleep - 2 | D54: 0 | E54: 11.05983804 | F54: 4.605732791 | G54: 0 | H54: 0 | I54: 4.516319261 | J54: 9.057858329 | K54: 10.57130424
B55: Sleep - 3 | D55: 0 | E55: 11.05983804 | F55: 4.605732791 | G55: 0 | H55: 0 | I55: 4.516319261 | J55: 9.057858329 | K55: 10.57130424
B56: APD - 0 | D56: 0 | E56: 0 | F56: 0 | G56: 0 | H56: 0 | I56: 0 | J56: 0 | K56: 0
B57: APD - 1 | D57: 0 | E57: 19.01 | F57: 11.629338 | G57: 2.01 | H57: 6.44 | I57: 12.6 | J57: 19.01 | K57: 19.01
B58: APD - 2 | D58: 0 | E58: 19.01 | F58: 11.629338 | G58: 2.01 | H58: 6.44 | I58: 12.6 | J58: 19.01 | K58: 19.01
B59: APD - 3 | D59: 0 | E59: 19.01 | F59: 11.629338 | G59: 2.01 | H59: 6.44 | I59: 12.6 | J59: 19.01 | K59: 19.01
B60: Server On | D60: 0 | E60: 24 | F60: 4.665998463 | G60: 0.1505149306 | H60: 1.427591819 | I60: 3.468811313 | J60: 6.558755217 | K60: 13.52042438
B61: Server Multi | D61: 0 | E61: 0 | F61: 0 | G61: 0 | H61: 0 | I61: 0 | J61: 0 | K61: 0
B64: Cable Video Client | G64: Percentile
B65: LCC Savings | D65: min | E65: max | F65: average | G65: 0.05 | H65: 0.25 | I65: 0.5 | J65: 0.75 | K65: 0.95
B66: 1 | C66: Cable Video Client EL1 | D66: 0 | E66: 108.8457947 | F66: 14.88695865 | G66: 0 | H66: 0 | I66: 0 | J66: 28.22116965 | K66: 47.75266332
B67: 2 | C67: Cable Video Client EL2 | D67: -4.15666174 | E67: 156.1465033 | F67: 24.0027874 | G67: 0 | H67: 7.009733596 | I67: 17.0270245 | J67: 37.58494541 | K67: 66.42532445
B68: 3 | C68: Cable Video Client EL3 | D68: -3.879819829 | E68: 197.5834227 | F68: 33.9677267 | G68: 5.18981226 | H68: 15.06298928 | I68: 27.80195535 | J68: 47.87519918 | K68: 83.12745749
B69: Payback Periods
B70: 1 | C70: Cable Video Client EL1 | D70: 0.2757079529 | E70: 1.323215924 | F70: 0.7734126532 | G70: 0.5814890835 | H70: 0.6830594052 | I70: 0.7735012165 | J70: 0.840681144 | K70: 1.021317067
B71: 2 | C71: Cable Video Client EL2 | D71: 0.4177014506 | E71: 3.31478442 | F71: 1.576334332 | G71: 0.9384105592 | H71: 1.174310975 | I71: 1.438798115 | J71: 2.031334355 | K71: 2.427065621
B72: 3 | C72: Cable Video Client EL3 | D72: 0.1798475205 | E72: 5.534677623 | F72: 1.221421743 | G72: 0.5406808109 | H72: 1.003216374 | I72: 1.155261932 | J72: 1.422205533 | K72: 1.93347951
B73: Retail Price
B74: 0 | C74: Cable Video Client EL0 | D74: 114.0072 | E74: 124.7808804 | F74: 121.8051671 | G74: 119.70756 | H74: 121.2466572 | I74: 121.8166932 | J74: 123.2417832 | K74: 123.98283
B75: 1 | C75: Cable Video Client EL1 | D75: 119.2332 | E75: 130.5007374 | F75: 127.3886197 | G75: 125.19486 | H75: 126.8045082 | I75: 127.4006742 | J75: 128.8910892 | K75: 129.666105
B76: 2 | C76: Cable Video Client EL2 | D76: 125.9198 | E76: 137.8192211 | F76: 134.5325758 | G76: 132.21579 | H76: 133.9157073 | I76: 134.5453063 | J76: 136.1193038 | K76: 136.9377825
B77: 3 | C77: Cable Video Client EL3 | D77: 127.2571721 | E77: 139.2829748 | F77: 135.9614227 | G77: 133.6200307 | H77: 135.3380025 | I77: 135.9742884 | J77: 137.565003 | K77: 138.3921746
B78: Total Installed Price
B79: 0 | C79: Cable Video Client EL0 | D79: 114.0072 | E79: 124.7808804 | F79: 121.8051671 | G79: 119.70756 | H79: 121.2466572 | I79: 121.8166932 | J79: 123.2417832 | K79: 123.98283
B80: 1 | C80: Cable Video Client EL1 | D80: 119.2332 | E80: 130.5007374 | F80: 127.3886197 | G80: 125.19486 | H80: 126.8045082 | I80: 127.4006742 | J80: 128.8910892 | K80: 129.666105
B81: 2 | C81: Cable Video Client EL2 | D81: 125.9198 | E81: 137.8192211 | F81: 134.5325758 | G81: 132.21579 | H81: 133.9157073 | I81: 134.5453063 | J81: 136.1193038 | K81: 136.9377825
B82: 3 | C82: Cable Video Client EL3 | D82: 127.2571721 | E82: 139.2829748 | F82: 135.9614227 | G82: 133.6200307 | H82: 135.3380025 | I82: 135.9742884 | J82: 137.565003 | K82: 138.3921746
B83: Total Operating Cost (discounted)
B84: 0 | C84: Cable Video Client EL0 | D84: 19.69596904 | E84: 499.6505897 | F84: 111.7145452 | G84: 52.92222438 | H84: 81.3982611 | I84: 106.4877174 | J84: 135.5747482 | K84: 188.4422883
B85: 1 | C85: Cable Video Client EL1 | D85: 13.60745034 | E85: 343.7194385 | F85: 76.00047718 | G85: 36.13958205 | H85: 55.46677684 | I85: 72.59319153 | J85: 92.22295815 | K85: 127.8739771
B86: 2 | C86: Cable Video Client EL2 | D86: 10.48909128 | E86: 265.1736111 | F86: 58.66023788 | G86: 27.88718617 | H86: 42.80363595 | I86: 56.02354962 | J86: 71.1838821 | K86: 98.74809312
B87: 3 | C87: Cable Video Client EL3 | D87: 7.555309561 | E87: 205.617142 | F87: 47.26645172 | G87: 21.92193603 | H87: 33.95414036 | I87: 44.74984683 | J87: 57.72518209 | K87: 80.97822531
B88: Annual Electricity Use (kWh)
B89: 0 | C89: Cable Video Client EL0 | D89: 186.8508 | E89: 195.6984 | F89: 191.4340523 | G89: 186.9708993 | H89: 187.8403739 | I89: 189.9488639 | J89: 195.6984 | K89: 195.6984
B90: 1 | C90: Cable Video Client EL1 | D90: 129.1362316 | E90: 132.5526316 | F90: 130.2415693 | G90: 129.1826066 | H90: 129.5183443 | I90: 129.8736757 | J90: 130.7590216 | K90: 131.9818081
B91: 2 | C91: Cable Video Client EL2 | D91: 99.53575644 | E91: 102.5761124 | F91: 100.5194293 | G91: 99.57702692 | H91: 99.87580989 | I91: 100.1920299 | J91: 100.9799255 | K91: 102.0681196
B92: 3 | C92: Cable Video Client EL3 | D92: 71.24346462 | E92: 100.1142857 | F92: 80.58429304 | G92: 71.63536372 | H92: 74.47256749 | I92: 77.4753511 | J92: 84.95710464 | K92: 95.29045269
B93: Household Characteristics | D93: min | E93: max | F93: average | G93: 0.05 | H93: 0.25 | I93: 0.5 | J93: 0.75 | K93: 0.95
B94: Lifetime | D94: 1.5 | E94: 12.5 | F94: 5.70315 | G94: 2.5 | H94: 4.5 | I94: 5.5 | J94: 7 | K94: 9
B95: Discount Rate | D95: 0 | E95: 0.3686809816 | F95: 0.05159175442 | G95: 0.0002701980711 | H95: 0.01938845301 | I95: 0.03937886741 | J95: 0.07775707814 | K95: 0.1350675308
B96: Avg Elec Price | D96: 0.07790415993 | E96: 0.3498082427 | F96: 0.120781244 | G96: 0.08780597647 | H96: 0.110751334 | I96: 0.1152217206 | J96: 0.1335124244 | K96: 0.1675603578
B97: Usage Check - Level 0 | D97: 24 | E97: 24 | F97: 24 | G97: 24 | H97: 24 | I97: 24 | J97: 24 | K97: 24
B98: Usage Check - Level 1 | D98: 24 | E98: 24 | F98: 24 | G98: 24 | H98: 24 | I98: 24 | J98: 24 | K98: 24
B99: Usage Check - Level 2 | D99: 24 | E99: 24 | F99: 24 | G99: 24 | H99: 24 | I99: 24 | J99: 24 | K99: 24
B100: Usage Check - Level 3 | D100: 24 | E100: 24 | F100: 24 | G100: 24 | H100: 24 | I100: 24 | J100: 24 | K100: 24
B101: Usage Check 2 - Level 0 | D101: 24 | E101: 24 | F101: 24 | G101: 24 | H101: 24 | I101: 24 | J101: 24 | K101: 24
B102: Usage Check 2 - Level 1 | D102: 24 | E102: 24 | F102: 24 | G102: 24 | H102: 24 | I102: 24 | J102: 24 | K102: 24
B103: Usage Check 2 - Level 2 | D103: 24 | E103: 24 | F103: 24 | G103: 24 | H103: 24 | I103: 24 | J103: 24 | K103: 24
B104: Usage Check 2 - Level 3 | D104: 24 | E104: 24 | F104: 24 | G104: 24 | H104: 24 | I104: 24 | J104: 24 | K104: 24
B105: On - 0 | D105: 0 | E105: 24 | F105: 12.43253021 | G105: 0.3257814645 | H105: 2.684318149 | I105: 8.403808156 | J105: 24 | K105: 24
B106: On - 1 | D106: 0 | E106: 24 | F106: 7.764929209 | G106: 0.3257814645 | H106: 2.684318149 | I106: 5.180499544 | J106: 11.4 | K106: 19.99
B107: On - 2 | D107: 0 | E107: 24 | F107: 7.764929209 | G107: 0.3257814645 | H107: 2.684318149 | I107: 5.180499544 | J107: 11.4 | K107: 19.99
B108: On - 3 | D108: 0 | E108: 24 | F108: 7.764929209 | G108: 0.3257814645 | H108: 2.684318149 | I108: 5.180499544 | J108: 11.4 | K108: 19.99
B109: Multi - 0 | D109: 0 | E109: 0 | F109: 0 | G109: 0 | H109: 0 | I109: 0 | J109: 0 | K109: 0
B110: Multi - 1 | D110: 0 | E110: 0 | F110: 0 | G110: 0 | H110: 0 | I110: 0 | J110: 0 | K110: 0
B111: Multi - 2 | D111: 0 | E111: 0 | F111: 0 | G111: 0 | H111: 0 | I111: 0 | J111: 0 | K111: 0
B112: Multi - 3 | D112: 0 | E112: 0 | F112: 0 | G112: 0 | H112: 0 | I112: 0 | J112: 0 | K112: 0
B113: Sleep - 0 | D113: 0 | E113: 24 | F113: 11.56746979 | G113: 0 | H113: 0 | I113: 15.58618177 | J113: 21.31390984 | K113: 23.67157774
B114: Sleep - 1 | D114: 0 | E114: 11.05983804 | F114: 4.605732791 | G114: 0 | H114: 0 | I114: 4.516319261 | J114: 9.057858329 | K114: 10.57130424
B115: Sleep - 2 | D115: 0 | E115: 11.05983804 | F115: 4.605732791 | G115: 0 | H115: 0 | I115: 4.516319261 | J115: 9.057858329 | K115: 10.57130424
B116: Sleep - 3 | D116: 0 | E116: 11.05983804 | F116: 4.605732791 | G116: 0 | H116: 0 | I116: 4.516319261 | J116: 9.057858329 | K116: 10.57130424
B117: APD - 0 | D117: 0 | E117: 0 | F117: 0 | G117: 0 | H117: 0 | I117: 0 | J117: 0 | K117: 0
B118: APD - 1 | D118: 0 | E118: 19.01 | F118: 11.629338 | G118: 2.01 | H118: 6.44 | I118: 12.6 | J118: 19.01 | K118: 19.01
B119: APD - 2 | D119: 0 | E119: 19.01 | F119: 11.629338 | G119: 2.01 | H119: 6.44 | I119: 12.6 | J119: 19.01 | K119: 19.01
B120: APD - 3 | D120: 0 | E120: 19.01 | F120: 11.629338 | G120: 2.01 | H120: 6.44 | I120: 12.6 | J120: 19.01 | K120: 19.01
B121: Server On | D121: 0 | E121: 24 | F121: 4.665998463 | G121: 0.1505149306 | H121: 1.427591819 | I121: 3.468811313 | J121: 6.558755217 | K121: 13.52042438
B122: Server Multi | D122: 0 | E122: 0 | F122: 0 | G122: 0 | H122: 0 | I122: 0 | J122: 0 | K122: 0
B125: Cable Video Server | G125: Percentile
B126: LCC Savings | D126: min | E126: max | F126: average | G126: 0.05 | H126: 0.25 | I126: 0.5 | J126: 0.75 | K126: 0.95
B127: 1 | C127: Cable Video Server EL1 | D127: -3.628871242 | E127: 69.34567014 | F127: 6.192098479 | G127: 0 | H127: 0 | I127: 0 | J127: 11.4292911 | K127: 22.68123748
B128: 2 | C128: Cable Video Server EL2 | D128: -15.55569821 | E128: 106.1016839 | F128: 5.851861936 | G128: -8.617707271 | H128: -2.003572108 | I128: 2.115778509 | J128: 11.4102178 | K128: 30.4343602
B129: 3 | C129: Cable Video Server EL3 | D129: -15.46527989 | E129: 173.4873563 | F129: 20.09419173 | G129: -5.626393302 | H129: 5.405314274 | I129: 15.96830543 | J129: 30.72269108 | K129: 58.8434222
B130: Payback Periods
B131: 1 | C131: Cable Video Server EL1 | D131: 0.6435862928 | E131: 3.110924804 | F131: 1.899058571 | G131: 1.394458624 | H131: 1.610410232 | I131: 1.915059294 | J131: 2.020201095 | K131: 2.414370407
B132: 2 | C132: Cable Video Server EL2 | D132: 1.066594912 | E132: 7111.06572 | F132: 5.349284728 | G132: 2.329954096 | H132: 2.967991099 | I132: 3.615791966 | J132: 4.701594381 | K132: 9.208883499
B133: 3 | C133: Cable Video Server EL3 | D133: 0.2711933604 | E133: 30.56406179 | F133: 2.652505726 | G133: 0.6371319025 | H133: 1.79914073 | I133: 2.278036674 | J133: 3.053031561 | K133: 5.219440584
B134: Retail Price
B135: 0 | C135: Cable Video Server EL0 | D135: 213.1538 | E135: 233.2968341 | F135: 227.7562634 | G135: 223.81149 | H135: 226.7956432 | I135: 227.7548353 | J135: 230.4192578 | K135: 231.1652961
B136: 1 | C136: Cable Video Server EL1 | D136: 220.4836 | E136: 241.3193002 | F136: 235.5882038 | G136: 231.50778 | H136: 234.5945504 | I136: 235.5867266 | J136: 238.3427716 | K136: 239.1144642
B137: 2 | C137: Cable Video Server EL2 | D137: 233.4682 | E137: 255.5309449 | F137: 249.4623359 | G137: 245.14161 | H137: 248.4101648 | I137: 249.4607717 | J137: 252.3791242 | K137: 253.1962629
B138: 3 | C138: Cable Video Server EL3 | D138: 235.6088886 | E138: 257.8739286 | F138: 251.749676 | G138: 247.389333 | H138: 250.6878575 | I138: 251.7480975 | J138: 254.6932086 | K138: 255.5178397
B139: Total Installed Price
B140: 0 | C140: Cable Video Server EL0 | D140: 213.1538 | E140: 233.2968341 | F140: 227.7562634 | G140: 223.81149 | H140: 226.7956432 | I140: 227.7548353 | J140: 230.4192578 | K140: 231.1652961
B141: 1 | C141: Cable Video Server EL1 | D141: 220.4836 | E141: 241.3193002 | F141: 235.5882038 | G141: 231.50778 | H141: 234.5945504 | I141: 235.5867266 | J141: 238.3427716 | K141: 239.1144642
B142: 2 | C142: Cable Video Server EL2 | D142: 233.4682 | E142: 255.5309449 | F142: 249.4623359 | G142: 245.14161 | H142: 248.4101648 | I142: 249.4607717 | J142: 252.3791242 | K142: 253.1962629
B143: 3 | C143: Cable Video Server EL3 | D143: 235.6088886 | E143: 257.8739286 | F143: 251.749676 | G143: 247.389333 | H143: 250.6878575 | I143: 251.7480975 | J143: 254.6932086 | K143: 255.5178397
B144: Total Operating Cost (discounted)
B145: 0 | C145: Cable Video Server EL0 | D145: 25.41996017 | E145: 475.027929 | F145: 126.0013151 | G145: 60.26958048 | H145: 92.19012963 | I145: 120.1144335 | J145: 153.5013507 | K145: 211.537589
B146: 1 | C146: Cable Video Server EL1 | D146: 21.33504418 | E146: 398.0336126 | F146: 105.5927043 | G146: 50.42803812 | H146: 77.25799537 | I146: 100.5710814 | J146: 128.6438561 | K146: 177.2940611
B147: 2 | C147: Cable Video Server EL2 | D147: 17.53595932 | E147: 347.7281687 | F147: 92.10853964 | G147: 43.76888969 | H147: 67.229328 | I147: 87.53457858 | J147: 111.8723085 | K147: 155.3057258
B148: 3 | C148: Cable Video Server EL3 | D148: 12.24721703 | E148: 318.562705 | F148: 75.57886973 | G148: 33.39453486 | H148: 53.24979137 | I148: 70.84496049 | J148: 92.65334301 | K148: 133.0464987
B149: Annual Electricity Use (kWh)
B150: 0 | C150: Cable Video Server EL0 | D150: 214.1047059 | E150: 217.5211059 | F150: 216.2081012 | G150: 214.2582302 | H150: 215.0394885 | I150: 216.2170297 | J150: 217.5211059 | K150: 217.5211059
B151: 1 | C151: Cable Video Server EL1 | D151: 179.5302273 | E151: 182.8301591 | F151: 181.1687258 | G151: 179.6785178 | H151: 180.3121336 | I151: 181.0976949 | J151: 182.0478986 | K151: 182.6679124
B152: 2 | C152: Cable Video Server EL2 | D152: 145.3861364 | E152: 183.5269773 | F152: 157.539143 | G152: 146.3334763 | H152: 150.7107464 | I152: 156.2802082 | J152: 163.161495 | K152: 172.9038906
B153: 3 | C153: Cable Video Server EL3 | D153: 93.30792476 | E153: 177.4766374 | F153: 128.5385958 | G153: 96.64122026 | H153: 111.2694411 | I153: 127.6109138 | J153: 145.6556458 | K153: 163.1035336
B154: Household Characteristics | D154: min | E154: max | F154: average | G154: 0.05 | H154: 0.25 | I154: 0.5 | J154: 0.75 | K154: 0.95
B155: Lifetime | D155: 1.5 | E155: 12.5 | F155: 5.70315 | G155: 2.5 | H155: 4.5 | I155: 5.5 | J155: 7 | K155: 9
B156: Discount Rate | D156: 0 | E156: 0.3686809816 | F156: 0.05159175442 | G156: 0.0002701980711 | H156: 0.01938845301 | I156: 0.03937886741 | J156: 0.07775707814 | K156: 0.1350675308
B157: Avg Elec Price | D157: 0.07790415993 | E157: 0.3498082427 | F157: 0.1204298173 | G157: 0.08780597647 | H157: 0.1112411455 | I157: 0.1152217206 | J157: 0.1334004922 | K157: 0.1653237091
B158: Usage Check - Level 0 | D158: 24 | E158: 24 | F158: 24 | G158: 24 | H158: 24 | I158: 24 | J158: 24 | K158: 24
B159: Usage Check - Level 1 | D159: 24 | E159: 24 | F159: 24 | G159: 24 | H159: 24 | I159: 24 | J159: 24 | K159: 24
B160: Usage Check - Level 2 | D160: 24 | E160: 24 | F160: 24 | G160: 24 | H160: 24 | I160: 24 | J160: 24 | K160: 24
B161: Usage Check - Level 3 | D161: 24 | E161: 24 | F161: 24 | G161: 24 | H161: 24 | I161: 24 | J161: 24 | K161: 24
B162: Usage Check 2 - Level 0 | D162: 24 | E162: 24 | F162: 24 | G162: 24 | H162: 24 | I162: 24 | J162: 24 | K162: 24
B163: Usage Check 2 - Level 1 | D163: 24 | E163: 24 | F163: 24 | G163: 24 | H163: 24 | I163: 24 | J163: 24 | K163: 24
B164: Usage Check 2 - Level 2 | D164: 24 | E164: 24 | F164: 24 | G164: 24 | H164: 24 | I164: 24 | J164: 24 | K164: 24
B165: Usage Check 2 - Level 3 | D165: 24 | E165: 24 | F165: 24 | G165: 24 | H165: 24 | I165: 24 | J165: 24 | K165: 24
B166: On - 0 | D166: 0 | E166: 23.99916037 | F166: 7.533352575 | G166: 0.2584532968 | H166: 1.242904778 | I166: 2.190896678 | J166: 15.73249682 | K166: 22.74254562
B167: On - 1 | D167: 0 | E167: 12.97087556 | F167: 4.673728575 | G167: 0.2584532968 | H167: 1.242904778 | I167: 2.190896678 | J167: 9.396138983 | K167: 12.20701977
B168: On - 2 | D168: 0 | E168: 12.97087556 | F168: 4.673728575 | G168: 0.2584532968 | H168: 1.242904778 | I168: 2.190896678 | J168: 9.396138983 | K168: 12.20701977
B169: On - 3 | D169: 0 | E169: 12.97087556 | F169: 4.673728575 | G169: 0.2584532968 | H169: 1.242904778 | I169: 2.190896678 | J169: 9.396138983 | K169: 12.20701977
B170: Multi - 0 | D170: 0 | E170: 24 | F170: 7.242870537 | G170: 0.4088982328 | H170: 2.942521286 | I170: 6.3126008 | J170: 10.55432746 | K170: 17.03691252
B171: Multi - 1 | D171: 0 | E171: 24 | F171: 7.242870537 | G171: 0.4088982328 | H171: 2.942521286 | I171: 6.3126008 | J171: 10.55432746 | K171: 17.03691252
B172: Multi - 2 | D172: 0 | E172: 24 | F172: 7.242870537 | G172: 0.4088982328 | H172: 2.942521286 | I172: 6.3126008 | J172: 10.55432746 | K172: 17.03691252
B173: Multi - 3 | D173: 0 | E173: 24 | F173: 7.242870537 | G173: 0.4088982328 | H173: 2.942521286 | I173: 6.3126008 | J173: 10.55432746 | K173: 17.03691252
B174: Sleep - 0 | D174: 0 | E174: 24 | F174: 9.223776888 | G174: 0 | H174: 0 | I174: 9.161054742 | J174: 17.42402253 | K174: 22.92043167
B175: Sleep - 1 | D175: 0 | E175: 11.05924861 | F175: 4.946393888 | G175: 0 | H175: 0 | I175: 5.779332938 | J175: 9.505869752 | K175: 10.61085796
B176: Sleep - 2 | D176: 0 | E176: 11.05924861 | F176: 4.946393888 | G176: 0 | H176: 0 | I176: 5.779332938 | J176: 9.505869752 | K176: 10.61085796
B177: Sleep - 3 | D177: 0 | E177: 11.05924861 | F177: 4.946393888 | G177: 0 | H177: 0 | I177: 5.779332938 | J177: 9.505869752 | K177: 10.61085796
B178: APD - 0 | D178: 0 | E178: 0 | F178: 0 | G178: 0 | H178: 0 | I178: 0 | J178: 0 | K178: 0
B179: APD - 1 | D179: 0 | E179: 19.01 | F179: 7.137007 | G179: 0.44 | H179: 2.46 | I179: 5.5 | J179: 10.52 | K179: 19.01
B180: APD - 2 | D180: 0 | E180: 19.01 | F180: 7.137007 | G180: 0.44 | H180: 2.46 | I180: 5.5 | J180: 10.52 | K180: 19.01
B181: APD - 3 | D181: 0 | E181: 19.01 | F181: 7.137007 | G181: 0.44 | H181: 2.46 | I181: 5.5 | J181: 10.52 | K181: 19.01
B182: Server On | D182: 0 | E182: 24 | F182: 4.036836935 | G182: 0.1855519225 | H182: 1.247766941 | I182: 2.926965892 | J182: 5.629456802 | K182: 11.60284452
B183: Server Multi | D183: 0 | E183: 0 | F183: 0 | G183: 0 | H183: 0 | I183: 0 | J183: 0 | K183: 0
B186: Cable with DVR | G186: Percentile
B187: LCC Savings | D187: min | E187: max | F187: average | G187: 0.05 | H187: 0.25 | I187: 0.5 | J187: 0.75 | K187: 0.95
B188: 1 | C188: Cable with DVR EL1 | D188: -6.245916219 | E188: 129.8010353 | F188: 10.44678585 | G188: 0 | H188: 0 | I188: 0 | J188: 18.93337325 | K188: 39.16350562
B189: 2 | C189: Cable with DVR EL2 | D189: -26.30796513 | E189: 194.1218866 | F189: 7.689987506 | G189: -13.53128536 | H189: -4.751351194 | I189: 0.5864054355 | J189: 15.71523643 | K189: 47.17987814
B190: 3 | C190: Cable with DVR EL3 | D190: -26.67572191 | E190: 220.2647886 | F190: 21.54044709 | G190: -9.308187439 | H190: 4.078699946 | I190: 16.17354669 | J190: 33.20789363 | K190: 70.75211543
B191: Payback Periods
B192: 1 | C192: Cable with DVR EL1 | D192: 0.6802702058 | E192: 3.218002779 | F192: 1.999442142 | G192: 1.438783728 | H192: 1.666160152 | I192: 1.988736064 | J192: 2.181423595 | K192: 2.604722226
B193: 2 | C193: Cable with DVR EL2 | D193: 1.157924081 | E193: 9.136598684 | F193: 4.418080715 | G193: 2.674534794 | H193: 3.385133377 | I193: 4.085014968 | J193: 5.646447364 | K193: 6.690948593
B194: 3 | C194: Cable with DVR EL3 | D194: 0.1783438363 | E194: 8.434051726 | F194: 2.976056632 | G194: 0.6714260584 | H194: 2.42660069 | I194: 2.916243666 | J194: 3.526190981 | K194: 4.913231298
B195: Retail Price
B196: 0 | C196: Cable with DVR EL0 | D196: 159.9692 | E196: 175.0862894 | F196: 170.9901581 | G196: 167.96766 | H196: 170.2072288 | I196: 170.9270902 | J196: 172.9267052 | K196: 173.966505
B197: 1 | C197: Cable with DVR EL1 | D197: 173.329 | E197: 189.7085905 | F197: 185.2703715 | G197: 181.99545 | H197: 184.422056 | I197: 185.2020365 | J197: 187.368649 | K197: 188.4952875
B198: 2 | C198: Cable with DVR EL2 | D198: 196.7522 | E198: 215.3452829 | F198: 210.3072953 | G198: 206.58981 | H198: 209.3443408 | I198: 210.2297257 | J198: 212.6891282 | K198: 213.9680175
B199: 3 | C199: Cable with DVR EL3 | D199: 199.0583806 | E199: 217.8693976 | F199: 212.7723584 | G199: 209.0112996 | H199: 211.798117 | I199: 212.6938797 | J199: 215.1821094 | K199: 216.4759889
B200: Total Installed Price
B201: 0 | C201: Cable with DVR EL0 | D201: 159.9692 | E201: 175.0862894 | F201: 170.9901581 | G201: 167.96766 | H201: 170.2072288 | I201: 170.9270902 | J201: 172.9267052 | K201: 173.966505
B202: 1 | C202: Cable with DVR EL1 | D202: 173.329 | E202: 189.7085905 | F202: 185.2703715 | G202: 181.99545 | H202: 184.422056 | I202: 185.2020365 | J202: 187.368649 | K202: 188.4952875
B203: 2 | C203: Cable with DVR EL2 | D203: 196.7522 | E203: 215.3452829 | F203: 210.3072953 | G203: 206.58981 | H203: 209.3443408 | I203: 210.2297257 | J203: 212.6891282 | K203: 213.9680175
B204: 3 | C204: Cable with DVR EL3 | D204: 199.0583806 | E204: 217.8693976 | F204: 212.7723584 | G204: 209.0112996 | H204: 211.798117 | I204: 212.6938797 | J204: 215.1821094 | K204: 216.4759889
B205: Total Operating Cost (discounted)
B206: 0 | C206: Cable with DVR EL0 | D206: 28.48182755 | E206: 572.6103272 | F206: 141.7964892 | G206: 67.42284362 | H206: 102.5506741 | I206: 134.3751605 | J206: 172.317804 | K206: 240.6506683
B207: 1 | C207: Cable with DVR EL1 | D207: 21.33205347 | E207: 428.8683406 | F207: 106.2014115 | G207: 50.49773237 | H207: 76.80744712 | I207: 100.643054 | J207: 129.0609812 | K207: 180.2402923
... 804 more rows

Sheet LCC & Payback
B1: LCC & PBP Calcs
B3: Import Parameters | G3: =choice_PC -> OTT | AK3: ANNUAL CASH FLOW CALCULATION :
B4: From: | C4: =INDEX(list_PC, iPC) -> OTT | I4: Installed | J4: AEU | K4: Annual | L4: Cumulative | M4: Life | N4: LCC | O4: Price Increase | P4: Oper. Cost | Q4: Payback | R4: Total | S4: Net | T4: No | U4: Net | V4: PB | AM4: =choice_PC -> OTT
B5: Household sample | G5: Level | H5: Efficiency Level | I5: Price | J5: Elec | K5: Operating Cost | L5: Cash Flow | M5: Cycle Cost | N5: Savings | P5: Saving | Q5: Period | R5: Oper.Cost | S5: Cost | T5: Impact | U5: Benefit | V5: undefined | AM5: Energy Price
B6: On-Mode Usage | C6: =IF(server=0, on_base, on_server) -> 9.559533025 | D6: hours per day | I6: $ | J6: kWh | K6: $ / year | L6: $ | M6: $ | N6: $ | P6: $ | Q6: year | R6: $ | AM6: Elec | AN6: Discount | AO6: Efficiency Level
B7: Multifunction Usage | C7: =IF(server=0, multi_base, multi_server) -> 0 | D7: hours per day | F7: =IF(effBase=G7, ">>", "") -> >> | G7: 0 | H7: =choice_PC & " EL" & G7 -> OTT EL0 | I7: =C21 -> 81.914468 | J7: =IF(C41>0, (on+apd_on)*C26 + multi*C31 + apd_sleep*C36 + apd*C41, (24-SUM($C$6:$C$8) + on)*C26 + sleep*C36 + multi*C31) * 365/1000 -> 67.31014202 | K7: =J7*AM$10 -> 9.589041522 | L7: =SUM(OFFSET(AO$9,0,level):OFFSET(AO$9,life,level)) + (life-INT(life))*OFFSET(AO$9,life+1,level) -> 152.371993 | M7: =SUMPRODUCT(OFFSET(AO$9,0,level):OFFSET(AO$9,life,level), OFFSET(pwf,0,0):OFFSET(pwf,life,0)) + (life-INT(life))*OFFSET(AO$9,life+1,level)*OFFSET(pwf,life+1,0) -> 135.8566763 | R7: =M7 - I7 -> 53.94220831 | X7: Scaled Usage | AK7: Age | AL7: Year | AM7: $/kWh | AN7: Factor | AO7: 0 | AP7: =AO7+1 -> 1 | AQ7: 2 | AR7: 3 | AS7: 4 | AT7: 5 | AU7: 6 | AV7: 7 | AW7: 8 | AX7: 9 | AY7: 10 | AZ7: 11 | BA7: 12 | BB7: 13 | BC7: 14 | BD7: 15 | BE7: 16 | BF7: 17 | BG7: 18 | BH7: 19 | BI7: 20
B8: Sleep Usage | C8: ='Household Sample'!C13 -> 14.44046697 | D8: hours per day | G8: =G7+1 -> 1 | H8: OTT EL1 | I8: 69.997312 | J8: =IF(C42>0, (on+apd_on)*C27 + multi*C32 + apd_sleep*C37 + apd*C42, (24-SUM($C$6:$C$8) + on)*C27 + sleep*C37 + multi*C32) * 365/1000 -> 25.51291474 | K8: =J8*AM$10 -> 3.634584499 | L8: =SUM(OFFSET(AO$9,0,level):OFFSET(AO$9,life,level)) + (life-INT(life))*OFFSET(AO$9,life+1,level) -> 97.6849562 | M8: =SUMPRODUCT(OFFSET(AO$9,0,level):OFFSET(AO$9,life,level), OFFSET(pwf,0,0):OFFSET(pwf,life,0)) + (life-INT(life))*OFFSET(AO$9,life+1,level)*OFFSET(pwf,life+1,0) -> 91.11664783 | N8: =IF(OR(effBase>=level, I8=0), 0, OFFSET($M$7, effBase, 0) - M8) -> 44.74002848 | O8: =IF(AND(G8<>0, I8<>0), IF(effBase>=level, 0, I8-OFFSET(I$7,effBase,0)), 0) -> -11.917156 | P8: =IF(AND(H8<>0, I8<>0), IF(effBase>=level, 0, OFFSET($K$7,effBase,0)-K8), 0) -> 5.954457023 | Q8: =IF(effBase>=level, "N/A", IF(P8>0, O8 / P8, "indef")) -> -2.001384165 | R8: 21.11933583 | S8: =IF(N8<0, 1, "") ->  | T8: =IF(N8=0, 1, "") ->  | U8: =IF(N8>0, 1, "") -> 1 | V8: =IF(effBase>=level, "", IF(ROUND(P8,0)>0, "", 1)) ->  | X8: On-Mode | Y8: On-Mode (non-server) [trended] | Z8: On-mode (server) | AA8: On factor | AB8: On Percent | AC8: Multifunction | AD8: Multi (non-server) [trended] | AE8: Multi (server) | AF8: Multi factor | AG8: Sleep | AH8: APD | AI8: APD On | AJ8: APD Sleep | AM8: =C17 -> 0.1334004922
B9: APD Usage | C9: ='Household Sample'!C17 -> 4.01 | D9: hours per day | G9: =G8+1 -> 2 | H9: OTT EL2 | I9: 74.372144 | J9: =IF(C43>0, (on+apd_on)*C28 + multi*C33 + apd_sleep*C38 + apd*C43, (24-SUM($C$6:$C$8) + on)*C28 + sleep*C38 + multi*C33) * 365/1000 -> 7.473597947 | K9: =J9*AM$10 -> 1.064693059 | L9: =SUM(OFFSET(AO$9,0,level):OFFSET(AO$9,life,level)) + (life-INT(life))*OFFSET(AO$9,life+1,level) -> 82.38394873 | M9: =SUMPRODUCT(OFFSET(AO$9,0,level):OFFSET(AO$9,life,level), OFFSET(pwf,0,0):OFFSET(pwf,life,0)) + (life-INT(life))*OFFSET(AO$9,life+1,level)*OFFSET(pwf,life+1,0) -> 80.48964917 | N9: =IF(OR(effBase>=level, I9=0), 0, OFFSET($M$7, effBase, 0) - M9) -> 55.36702714 | O9: -7.542324 | P9: 8.524348463 | Q9: =IF(effBase>=level, "N/A", IF(P9>0, O9 / P9, "indef")) -> -0.8847977101 | R9: 6.117505166 | S9: =IF(N9<0, 1, "") ->  | T9: =IF(N9=0, 1, "") ->  | U9: =IF(N9>0, 1, "") -> 1 | V9: =IF(effBase>=level, "", IF(ROUND(P9,0)>0, "", 1)) ->  | AK9: 0 | AN9: 1 | AO9: =OFFSET($I$7,AO7,0) -> 81.914468 | AP9: =OFFSET($I$7,AP7,0) -> 69.997312 | AQ9: =OFFSET($I$7,AQ7,0) -> 74.372144 | AR9: 0 | AS9: 0 | AT9: 0 | AU9: 0 | AV9: 0 | AW9: 0 | AX9: 0 | AY9: 0 | AZ9: 0 | BA9: 0 | BB9: 0 | BC9: 0 | BD9: 0 | BE9: 0 | BF9: 0 | BG9: 0 | BH9: 0 | BI9: 0
B10: APD On | C10: ='Household Sample'!C15 -> 0 | D10: hours per day | G10: 3 | H10: OTT EL3 | I10: 0 | J10: =IF(C44>0, (on+apd_on)*C29 + multi*C34 + apd_sleep*C39 + apd*C44, (24-SUM($C$6:$C$8) + on)*C29 + sleep*C39 + multi*C34) * 365/1000 -> 0 | K10: =J10*AM$10 -> 0 | L10: =SUM(OFFSET(AO$9,0,level):OFFSET(AO$9,life,level)) + (life-INT(life))*OFFSET(AO$9,life+1,level) -> 0 | M10: =SUMPRODUCT(OFFSET(AO$9,0,level):OFFSET(AO$9,life,level), OFFSET(pwf,0,0):OFFSET(pwf,life,0)) + (life-INT(life))*OFFSET(AO$9,life+1,level)*OFFSET(pwf,life+1,0) -> 0 | N10: =IF(OR(effBase>=level, I10=0), 0, OFFSET($M$7, effBase, 0) - M10) -> 0 | O10: 0 | P10: 0 | Q10: indef | R10: 0 | T10: 1 | V10: =IF(effBase>=level, "", IF(ROUND(P10,0)>0, "", 1)) -> 1 | X10: =CHOOSE(server+1, Y10, Z10) -> 9.559533025 | Y10: =MIN(on_base*VLOOKUP(AL10, 'Adjustment Factors'!$B$4:$D$43, 3,FALSE), 24) -> 9.559533025 | Z10: =MIN(Y10*AA10*AB10, 24) -> 2.150894931 | AA10: =IF(Y10>0, OFFSET('Adjustment Factors'!$I$7, MIN(num_TVs, 5), MAX(ROUND(Y10, 0), 1)), 0) -> 1.641 | AB10: =OFFSET('Adjustment Factors'!$I$15, MIN(num_TVs, 5), MAX(ROUND(Y10, 0), 1)) -> 0.1371115174 | AC10: =CHOOSE(server+1, AD10, AE10) -> 0 | AD10: =MIN(multi_base*VLOOKUP(AL10, 'Adjustment Factors'!$B$4:$D$43, 3,FALSE), 24-X10) -> 0 | AE10: =IF(Y10*AA10*(1-AB10) + AD10*AF10 + Z10 <= 24, Y10*AA10*(1-AB10) + AD10*AF10, 24-Z10) -> 13.53629876 | AF10: =IF(AD10>0, OFFSET('Adjustment Factors'!$I$7, MIN(num_TVs, 5), MAX(ROUND(AD10, 0), 1)), 0) -> 0 | AG10: =(24-SUM(X10, AC10))*sleep_dist -> 14.44046697 | AH10: =VLOOKUP(MAX(MIN(ROUND(SUM(X10, AC10), 0), 20), 1), 'Adjustment Factors'!$F$8:$G$27, 2, FALSE) -> 4.01 | AI10: =IF(sleep_dist=0,24-SUM(X10, AC10)-AH10, 0) -> 0 | AJ10: =IF(sleep_dist=1,24-SUM(X10, AC10)-AH10, 0) -> 10.43046697 | AK10: 1 | AL10: =INT(StartYear) -> 2018 | AM10: =AM$8 * VLOOKUP(yr, priceTrend_Energy, 2) -> 0.1424605748 | AN10: =(1+drate)^(-age) -> 0.9341555073 | AO10: =IF(INDEX(apd_power, AO$7+1)>0,(on_trend+apd_on_trend)*INDEX(on_power, AO$7+1) + multi_trend*INDEX(multi_power, AO$7+1) + apd_sleep_trend*INDEX(sleep_power, AO$7+1) + apd_trend*INDEX(apd_power, AO$7+1), (24-SUM($X10, $AC10, $AG10) + on_trend)*INDEX(on_power, AO$7+1) + sleep_trend*INDEX(sleep_power, AO$7+1) + multi_trend*INDEX(multi_power, AO$7+1)) * 365/1000 * elecSeries -> 9.589041522 | AP10: 3.634584499 | AQ10: 1.064693059 | AR10: 0 | AT10: =IF(INDEX(apd_power, AO$7+1)>0,(on_trend+apd_on_trend) + multi_trend + apd_sleep_trend + apd_trend, (24-SUM($X10, $AC10, $AG10) + on_trend) + sleep_trend + multi_trend) -> 24 | AU10: =IF(INDEX(apd_power, AP$7+1)>0,(on_trend+apd_on_trend) + multi_trend + apd_sleep_trend + apd_trend, (24-SUM($X10, $AC10, $AG10) + on_trend) + sleep_trend + multi_trend) -> 24 | AV10: =IF(INDEX(apd_power, AQ$7+1)>0,(on_trend+apd_on_trend) + multi_trend + apd_sleep_trend + apd_trend, (24-SUM($X10, $AC10, $AG10) + on_trend) + sleep_trend + multi_trend) -> 24 | AW10: =IF(INDEX(apd_power, AR$7+1)>0,(on_trend+apd_on_trend) + multi_trend + apd_sleep_trend + apd_trend, (24-SUM($X10, $AC10, $AG10) + on_trend) + sleep_trend + multi_trend) -> 24
B11: APD Sleep | C11: ='Household Sample'!C16 -> 10.43046697 | D11: hours per day | G11: 4 | H11: OTT EL4 | I11: 0 | J11: 0 | K11: 0 | L11: 0 | M11: 0 | N11: 0 | O11: 0 | P11: 0 | Q11: 0 | R11: 0 | S11: 0 | T11: 0 | U11: 0 | V11: 0 | X11: 9.840759671 | Y11: =MIN(on_base*VLOOKUP(AL11, 'Adjustment Factors'!$B$4:$D$43, 3,FALSE), 24) -> 9.840759671 | Z11: =MIN(Y11*AA11*AB11, 24) -> 2.214170926 | AA11: =IF(Y11>0, OFFSET('Adjustment Factors'!$I$7, MIN(num_TVs, 5), MAX(ROUND(Y11, 0), 1)), 0) -> 1.641 | AB11: =OFFSET('Adjustment Factors'!$I$15, MIN(num_TVs, 5), MAX(ROUND(Y11, 0), 1)) -> 0.1371115174 | AC11: 0 | AD11: =MIN(multi_base*VLOOKUP(AL11, 'Adjustment Factors'!$B$4:$D$43, 3,FALSE), 24-X11) -> 0 | AE11: =IF(Y11*AA11*(1-AB11) + AD11*AF11 + Z11 <= 24, Y11*AA11*(1-AB11) + AD11*AF11, 24-Z11) -> 13.93451569 | AF11: =IF(AD11>0, OFFSET('Adjustment Factors'!$I$7, MIN(num_TVs, 5), MAX(ROUND(AD11, 0), 1)), 0) -> 0 | AG11: 14.15924033 | AH11: =VLOOKUP(MAX(MIN(ROUND(SUM(X11, AC11), 0), 20), 1), 'Adjustment Factors'!$F$8:$G$27, 2, FALSE) -> 4.01 | AI11: 0 | AJ11: 10.14924033 | AK11: =AK10+1 -> 2 | AL11: =AL10+1 -> 2019 | AM11: 0.1424605748 | AN11: =(1+drate)^(-age) -> 0.8726465119 | AO11: 9.778558895 | AP11: 3.734900022 | AQ11: 1.089406359 | AR11: 0 | AT11: 24 | AU11: 24 | AV11: 24 | AW11: 24
B12: Lifetime | G12: 5 | H12: OTT EL5 | I12: 0 | J12: 0 | K12: 0 | L12: 0 | M12: 0 | N12: 0 | O12: 0 | P12: 0 | Q12: 0 | R12: 0 | S12: 0 | T12: 0 | U12: 0 | V12: 0 | X12: 10.12184706 | Y12: =MIN(on_base*VLOOKUP(AL12, 'Adjustment Factors'!$B$4:$D$43, 3,FALSE), 24) -> 10.12184706 | Z12: 2.277415589 | AA12: =IF(Y12>0, OFFSET('Adjustment Factors'!$I$7, MIN(num_TVs, 5), MAX(ROUND(Y12, 0), 1)), 0) -> 1.641 | AB12: =OFFSET('Adjustment Factors'!$I$15, MIN(num_TVs, 5), MAX(ROUND(Y12, 0), 1)) -> 0.1371115174 | AC12: 0 | AD12: =MIN(multi_base*VLOOKUP(AL12, 'Adjustment Factors'!$B$4:$D$43, 3,FALSE), 24-X12) -> 0 | AE12: 14.33253544 | AF12: =IF(AD12>0, OFFSET('Adjustment Factors'!$I$7, MIN(num_TVs, 5), MAX(ROUND(AD12, 0), 1)), 0) -> 0 | AG12: 13.87815294 | AH12: =VLOOKUP(MAX(MIN(ROUND(SUM(X12, AC12), 0), 20), 1), 'Adjustment Factors'!$F$8:$G$27, 2, FALSE) -> 4.01 | AI12: 0 | AJ12: 9.868152938 | AK12: 3 | AL12: 2020 | AM12: 0.1425835623 | AN12: 0.815187545 | AO12: 9.976587875 | AP12: 3.838476805 | AQ12: 1.11506924 | AR12: 0 | AT12: 24 | AU12: 24 | AV12: 24 | AW12: 24
B13: Lifetime (years) | C13: =life -> 7 | D13: years | G13: 6 | H13: OTT EL6 | I13: 0 | J13: 0 | K13: 0 | L13: 0 | M13: 0 | N13: 0 | O13: 0 | P13: 0 | Q13: 0 | R13: 0 | S13: 0 | T13: 0 | U13: 0 | V13: 0 | X13: 10.40279533 | Y13: =MIN(on_base*VLOOKUP(AL13, 'Adjustment Factors'!$B$4:$D$43, 3,FALSE), 24) -> 10.40279533 | Z13: 2.34062895 | AA13: =IF(Y13>0, OFFSET('Adjustment Factors'!$I$7, MIN(num_TVs, 5), MAX(ROUND(Y13, 0), 1)), 0) -> 1.641 | AB13: =OFFSET('Adjustment Factors'!$I$15, MIN(num_TVs, 5), MAX(ROUND(Y13, 0), 1)) -> 0.1371115174 | AC13: 0 | AD13: =MIN(multi_base*VLOOKUP(AL13, 'Adjustment Factors'!$B$4:$D$43, 3,FALSE), 24-X13) -> 0 | AE13: 14.73035819 | AF13: =IF(AD13>0, OFFSET('Adjustment Factors'!$I$7, MIN(num_TVs, 5), MAX(ROUND(AD13, 0), 1)), 0) -> 0 | AG13: 13.59720467 | AH13: =VLOOKUP(MAX(MIN(ROUND(SUM(X13, AC13), 0), 20), 1), 'Adjustment Factors'!$F$8:$G$27, 2, FALSE) -> 4.01 | AI13: 0 | AJ13: 9.587204665 | AK13: 4 | AL13: 2021 | AM13: 0.1428295374 | AN13: 0.7615119347 | AO13: 10.18361891 | AP13: 3.945574452 | AQ13: 1.141745658 | AR13: 0 | AT13: 24 | AU13: 24 | AV13: 24 | AW13: 24
B14: Discount Rate | G14: 7 | H14: OTT EL7 | I14: 0 | J14: 0 | K14: 0 | L14: 0 | M14: 0 | N14: 0 | O14: 0 | P14: 0 | Q14: 0 | R14: 0 | S14: 0 | T14: 0 | U14: 0 | V14: 0 | X14: 10.68360463 | Y14: =MIN(on_base*VLOOKUP(AL14, 'Adjustment Factors'!$B$4:$D$43, 3,FALSE), 24) -> 10.68360463 | Z14: 2.010460143 | AA14: =IF(Y14>0, OFFSET('Adjustment Factors'!$I$7, MIN(num_TVs, 5), MAX(ROUND(Y14, 0), 1)), 0) -> 1.562727273 | AB14: =OFFSET('Adjustment Factors'!$I$15, MIN(num_TVs, 5), MAX(ROUND(Y14, 0), 1)) -> 0.1204188482 | AC14: 0 | AD14: =MIN(multi_base*VLOOKUP(AL14, 'Adjustment Factors'!$B$4:$D$43, 3,FALSE), 24-X14) -> 0 | AE14: 14.68510018 | AF14: =IF(AD14>0, OFFSET('Adjustment Factors'!$I$7, MIN(num_TVs, 5), MAX(ROUND(AD14, 0), 1)), 0) -> 0 | AG14: 13.31639537 | AH14: =VLOOKUP(MAX(MIN(ROUND(SUM(X14, AC14), 0), 20), 1), 'Adjustment Factors'!$F$8:$G$27, 2, FALSE) -> 3.48 | AI14: 0 | AJ14: 9.836395373 | AK14: 5 | AL14: 2022 | AM14: 0.1432394959 | AN14: 0.7113705677 | AO14: 10.0711574 | AP14: 4.057613616 | AQ14: 1.169834315 | AR14: 0 | AT14: 24 | AU14: 24 | AV14: 24 | AW14: 24
B15: Discount rate | C15: =drate -> 0.07048557991 | G15: 8 | H15: OTT EL8 | I15: 0 | J15: 0 | K15: 0 | L15: 0 | M15: 0 | N15: 0 | O15: 0 | P15: 0 | Q15: 0 | R15: 0 | S15: 0 | T15: 0 | U15: 0 | V15: 0 | X15: 10.96427508 | Y15: =MIN(on_base*VLOOKUP(AL15, 'Adjustment Factors'!$B$4:$D$43, 3,FALSE), 24) -> 10.96427508 | Z15: 2.063277219 | AA15: =IF(Y15>0, OFFSET('Adjustment Factors'!$I$7, MIN(num_TVs, 5), MAX(ROUND(Y15, 0), 1)), 0) -> 1.562727273 | AB15: =OFFSET('Adjustment Factors'!$I$15, MIN(num_TVs, 5), MAX(ROUND(Y15, 0), 1)) -> 0.1204188482 | AC15: 0 | AD15: =MIN(multi_base*VLOOKUP(AL15, 'Adjustment Factors'!$B$4:$D$43, 3,FALSE), 24-X15) -> 0 | AE15: 15.07089447 | AF15: =IF(AD15>0, OFFSET('Adjustment Factors'!$I$7, MIN(num_TVs, 5), MAX(ROUND(AD15, 0), 1)), 0) -> 0 | AG15: 13.03572492 | AH15: =VLOOKUP(MAX(MIN(ROUND(SUM(X15, AC15), 0), 20), 1), 'Adjustment Factors'!$F$8:$G$27, 2, FALSE) -> 3.48 | AI15: 0 | AJ15: 9.555724923 | AK15: 6 | AL15: 2023 | AM15: 0.1438134378 | AN15: 0.6645307336 | AO15: 10.30244994 | AP15: 4.174939818 | AQ15: 1.199420334 | AR15: 0 | AT15: 24 | AU15: 24 | AV15: 24 | AW15: 24
B16: Electricity Price | G16: 9 | H16: OTT EL9 | I16: 0 | J16: 0 | K16: 0 | L16: 0 | M16: 0 | N16: 0 | O16: 0 | P16: 0 | Q16: 0 | R16: 0 | S16: 0 | T16: 0 | U16: 0 | V16: 0 | X16: 11.24480682 | Y16: =MIN(on_base*VLOOKUP(AL16, 'Adjustment Factors'!$B$4:$D$43, 3,FALSE), 24) -> 11.24480682 | Z16: 2.116068193 | AA16: =IF(Y16>0, OFFSET('Adjustment Factors'!$I$7, MIN(num_TVs, 5), MAX(ROUND(Y16, 0), 1)), 0) -> 1.562727273 | AB16: =OFFSET('Adjustment Factors'!$I$15, MIN(num_TVs, 5), MAX(ROUND(Y16, 0), 1)) -> 0.1204188482 | AC16: 0 | AD16: =MIN(multi_base*VLOOKUP(AL16, 'Adjustment Factors'!$B$4:$D$43, 3,FALSE), 24-X16) -> 0 | AE16: 15.4564981 | AF16: =IF(AD16>0, OFFSET('Adjustment Factors'!$I$7, MIN(num_TVs, 5), MAX(ROUND(AD16, 0), 1)), 0) -> 0 | AG16: 12.75519318 | AH16: =VLOOKUP(MAX(MIN(ROUND(SUM(X16, AC16), 0), 20), 1), 'Adjustment Factors'!$F$8:$G$27, 2, FALSE) -> 3.48 | AI16: 0 | AJ16: 9.275193178 | AK16: 7 | AL16: 2024 | AM16: 0.1446743506 | AN16: 0.6207750446 | AO16: 10.55611049 | AP16: 4.301554986 | AQ16: 1.231635763 | AR16: 0 | AT16: 24 | AU16: 24 | AV16: 24 | AW16: 24
B17: ='Electricity Prices'!B8 -> 2011 Elec Price | C17: =priceElec -> 0.1334004922 | D17: 2011 $/kWh | G17: 10 | H17: OTT EL10 | I17: 0 | J17: 0 | K17: 0 | L17: 0 | M17: 0 | N17: 0 | O17: 0 | P17: 0 | Q17: 0 | R17: 0 | S17: 0 | T17: 0 | U17: 0 | V17: 0 | X17: 11.5252 | Y17: =MIN(on_base*VLOOKUP(AL17, 'Adjustment Factors'!$B$4:$D$43, 3,FALSE), 24) -> 11.5252 | Z17: 1.834427666 | AA17: =IF(Y17>0, OFFSET('Adjustment Factors'!$I$7, MIN(num_TVs, 5), MAX(ROUND(Y17, 0), 1)), 0) -> 1.495 | AB17: =OFFSET('Adjustment Factors'!$I$15, MIN(num_TVs, 5), MAX(ROUND(Y17, 0), 1)) -> 0.1064659978 | AC17: 0 | AD17: =MIN(multi_base*VLOOKUP(AL17, 'Adjustment Factors'!$B$4:$D$43, 3,FALSE), 24-X17) -> 0 | AE17: 15.39574633 | AF17: =IF(AD17>0, OFFSET('Adjustment Factors'!$I$7, MIN(num_TVs, 5), MAX(ROUND(AD17, 0), 1)), 0) -> 0 | AG17: 12.4748 | AH17: =VLOOKUP(MAX(MIN(ROUND(SUM(X17, AC17), 0), 20), 1), 'Adjustment Factors'!$F$8:$G$27, 2, FALSE) -> 2.88 | AI17: 0 | AJ17: 9.594800002 | AK17: 8 | AL17: 2025 | AM17: 0.1458632303 | AN17: 0.5799004267 | AO17: 10.45363585 | AP17: 4.439310695 | AQ17: 1.266985466 | AR17: 0 | AT17: 24 | AU17: 24 | AV17: 24 | AW17: 24
B18: Base Case Eff Dist | G18: 11 | H18: OTT EL11 | I18: 0 | J18: 0 | K18: 0 | L18: 0 | M18: 0 | N18: 0 | O18: 0 | P18: 0 | Q18: 0 | R18: 0 | S18: 0 | T18: 0 | U18: 0 | V18: 0 | X18: 11.80545474 | Y18: =MIN(on_base*VLOOKUP(AL18, 'Adjustment Factors'!$B$4:$D$43, 3,FALSE), 24) -> 11.80545474 | Z18: 1.87903488 | AA18: =IF(Y18>0, OFFSET('Adjustment Factors'!$I$7, MIN(num_TVs, 5), MAX(ROUND(Y18, 0), 1)), 0) -> 1.495 | AB18: =OFFSET('Adjustment Factors'!$I$15, MIN(num_TVs, 5), MAX(ROUND(Y18, 0), 1)) -> 0.1064659978 | AC18: 0 | AD18: =MIN(multi_base*VLOOKUP(AL18, 'Adjustment Factors'!$B$4:$D$43, 3,FALSE), 24-X18) -> 0 | AE18: 15.77011996 | AF18: =IF(AD18>0, OFFSET('Adjustment Factors'!$I$7, MIN(num_TVs, 5), MAX(ROUND(AD18, 0), 1)), 0) -> 0 | AG18: 12.19454526 | AH18: =VLOOKUP(MAX(MIN(ROUND(SUM(X18, AC18), 0), 20), 1), 'Adjustment Factors'!$F$8:$G$27, 2, FALSE) -> 2.88 | AI18: 0 | AJ18: 9.314545258 | AK18: 9 | AL18: 2026 | AM18: 0.1470931057 | AN18: 0.5417171773 | AO18: 10.73678164 | AP18: 4.579961269 | AQ18: 1.303097053 | AR18: 0 | AT18: 24 | AU18: 24 | AV18: 24 | AW18: 24
B19: Base Level | C19: =effBase -> 0 | G19: 12 | H19: OTT EL12 | I19: 0 | J19: 0 | K19: 0 | L19: 0 | M19: 0 | N19: 0 | O19: 0 | P19: 0 | Q19: 0 | R19: 0 | S19: 0 | T19: 0 | U19: 0 | V19: 0 | X19: 12.08557119 | Y19: =MIN(on_base*VLOOKUP(AL19, 'Adjustment Factors'!$B$4:$D$43, 3,FALSE), 24) -> 12.08557119 | Z19: 1.923620081 | AA19: =IF(Y19>0, OFFSET('Adjustment Factors'!$I$7, MIN(num_TVs, 5), MAX(ROUND(Y19, 0), 1)), 0) -> 1.495 | AB19: =OFFSET('Adjustment Factors'!$I$15, MIN(num_TVs, 5), MAX(ROUND(Y19, 0), 1)) -> 0.1064659978 | AC19: 0 | AD19: =MIN(multi_base*VLOOKUP(AL19, 'Adjustment Factors'!$B$4:$D$43, 3,FALSE), 24-X19) -> 0 | AE19: 16.14430885 | AF19: =IF(AD19>0, OFFSET('Adjustment Factors'!$I$7, MIN(num_TVs, 5), MAX(ROUND(AD19, 0), 1)), 0) -> 0 | AG19: 11.91442881 | AH19: =VLOOKUP(MAX(MIN(ROUND(SUM(X19, AC19), 0), 20), 1), 'Adjustment Factors'!$F$8:$G$27, 2, FALSE) -> 2.88 | AI19: 0 | AJ19: 9.034428808 | AK19: 10 | AL19: 2027 | AM19: 0.1472570891 | AN19: 0.5060480846 | AO19: 10.9438762 | AP19: 4.688350839 | AQ19: 1.329994308 | AR19: 0 | AT19: 24 | AU19: 24 | AV19: 24 | AW19: 24
B20: Equipment Prices | D20: 2011$ | G20: 13 | H20: OTT EL13 | I20: 0 | J20: 0 | K20: 0 | L20: 0 | M20: 0 | N20: 0 | O20: 0 | P20: 0 | Q20: 0 | R20: 0 | S20: 0 | T20: 0 | U20: 0 | V20: 0 | X20: 12.36554948 | Y20: =MIN(on_base*VLOOKUP(AL20, 'Adjustment Factors'!$B$4:$D$43, 3,FALSE), 24) -> 12.36554948 | Z20: 1.968183293 | AA20: =IF(Y20>0, OFFSET('Adjustment Factors'!$I$7, MIN(num_TVs, 5), MAX(ROUND(Y20, 0), 1)), 0) -> 1.495 | AB20: =OFFSET('Adjustment Factors'!$I$15, MIN(num_TVs, 5), MAX(ROUND(Y20, 0), 1)) -> 0.1064659978 | AC20: 0 | AD20: =MIN(multi_base*VLOOKUP(AL20, 'Adjustment Factors'!$B$4:$D$43, 3,FALSE), 24-X20) -> 0 | AE20: 16.51831318 | AF20: =IF(AD20>0, OFFSET('Adjustment Factors'!$I$7, MIN(num_TVs, 5), MAX(ROUND(AD20, 0), 1)), 0) -> 0 | AG20: 11.63445052 | AH20: =VLOOKUP(MAX(MIN(ROUND(SUM(X20, AC20), 0), 20), 1), 'Adjustment Factors'!$F$8:$G$27, 2, FALSE) -> 2.88 | AI20: 0 | AJ20: 8.754450517 | AK20: 11 | AL20: 2028 | AM20: 0.1472160933 | AN20: 0.4727276052 | AO20: 11.13580383 | AP20: 4.790249642 | AQ20: 1.35504894 | AR20: 0 | AT20: 24 | AU20: 24 | AV20: 24 | AW20: 24
B21: 0 | C21: ='Equipment Price'!C11 -> 81.914468 | G21: 14 | H21: OTT EL14 | I21: 0 | J21: 0 | K21: 0 | L21: 0 | M21: 0 | N21: 0 | O21: 0 | P21: 0 | Q21: 0 | R21: 0 | S21: 0 | T21: 0 | U21: 0 | V21: 0 | X21: 12.64538975 | Y21: =MIN(on_base*VLOOKUP(AL21, 'Adjustment Factors'!$B$4:$D$43, 3,FALSE), 24) -> 12.64538975 | Z21: 1.750900119 | AA21: =IF(Y21>0, OFFSET('Adjustment Factors'!$I$7, MIN(num_TVs, 5), MAX(ROUND(Y21, 0), 1)), 0) -> 1.432307692 | AB21: =OFFSET('Adjustment Factors'!$I$15, MIN(num_TVs, 5), MAX(ROUND(Y21, 0), 1)) -> 0.09667024705 | AC21: 0 | AD21: =MIN(multi_base*VLOOKUP(AL21, 'Adjustment Factors'!$B$4:$D$43, 3,FALSE), 24-X21) -> 0 | AE21: 16.36118889 | AF21: =IF(AD21>0, OFFSET('Adjustment Factors'!$I$7, MIN(num_TVs, 5), MAX(ROUND(AD21, 0), 1)), 0) -> 0 | AG21: 11.35461025 | AH21: =VLOOKUP(MAX(MIN(ROUND(SUM(X21, AC21), 0), 20), 1), 'Adjustment Factors'!$F$8:$G$27, 2, FALSE) -> 2.46 | AI21: 0 | AJ21: 8.894610248 | AK21: 12 | AL21: 2029 | AM21: 0.1470521099 | AN21: 0.4416010959 | AO21: 11.04799468 | AP21: 4.887952047 | AQ21: 1.378923614 | AR21: 0 | AT21: 24 | AU21: 24 | AV21: 24 | AW21: 24
B22: =B21+1 -> 1 | C22: ='Equipment Price'!C12 -> 69.997312 | G22: 15 | H22: OTT EL15 | I22: 0 | J22: 0 | K22: 0 | L22: 0 | M22: 0 | N22: 0 | O22: 0 | P22: 0 | Q22: 0 | R22: 0 | S22: 0 | T22: 0 | U22: 0 | V22: 0 | X22: 12.92509213 | Y22: =MIN(on_base*VLOOKUP(AL22, 'Adjustment Factors'!$B$4:$D$43, 3,FALSE), 24) -> 12.92509213 | Z22: 1.789628142 | AA22: =IF(Y22>0, OFFSET('Adjustment Factors'!$I$7, MIN(num_TVs, 5), MAX(ROUND(Y22, 0), 1)), 0) -> 1.432307692 | AB22: =OFFSET('Adjustment Factors'!$I$15, MIN(num_TVs, 5), MAX(ROUND(Y22, 0), 1)) -> 0.09667024705 | AC22: 0 | AD22: =MIN(multi_base*VLOOKUP(AL22, 'Adjustment Factors'!$B$4:$D$43, 3,FALSE), 24-X22) -> 0 | AE22: 16.72308075 | AF22: =IF(AD22>0, OFFSET('Adjustment Factors'!$I$7, MIN(num_TVs, 5), MAX(ROUND(AD22, 0), 1)), 0) -> 0 | AG22: 11.07490787 | AH22: =VLOOKUP(MAX(MIN(ROUND(SUM(X22, AC22), 0), 20), 1), 'Adjustment Factors'!$F$8:$G$27, 2, FALSE) -> 2.46 | AI22: 0 | AJ22: 8.614907866 | AK22: 13 | AL22: 2030 | AM22: 0.1469291223 | AN22: 0.4125240958 | AO22: 11.23315718 | AP22: 4.986765331 | AQ22: 1.403120677 | AR22: 0 | AT22: 24 | AU22: 24 | AV22: 24 | AW22: 24
B23: =B22+1 -> 2 | C23: ='Equipment Price'!C13 -> 74.372144 | G23: 16 | H23: OTT EL16 | I23: 0 | J23: 0 | K23: 0 | L23: 0 | M23: 0 | N23: 0 | O23: 0 | P23: 0 | Q23: 0 | R23: 0 | S23: 0 | T23: 0 | U23: 0 | V23: 0 | X23: 13.20465677 | Y23: =MIN(on_base*VLOOKUP(AL23, 'Adjustment Factors'!$B$4:$D$43, 3,FALSE), 24) -> 13.20465677 | Z23: 1.828337091 | AA23: =IF(Y23>0, OFFSET('Adjustment Factors'!$I$7, MIN(num_TVs, 5), MAX(ROUND(Y23, 0), 1)), 0) -> 1.432307692 | AB23: =OFFSET('Adjustment Factors'!$I$15, MIN(num_TVs, 5), MAX(ROUND(Y23, 0), 1)) -> 0.09667024705 | AC23: 0 | AD23: =MIN(multi_base*VLOOKUP(AL23, 'Adjustment Factors'!$B$4:$D$43, 3,FALSE), 24-X23) -> 0 | AE23: 17.08479437 | AF23: =IF(AD23>0, OFFSET('Adjustment Factors'!$I$7, MIN(num_TVs, 5), MAX(ROUND(AD23, 0), 1)), 0) -> 0 | AG23: 10.79534323 | AH23: =VLOOKUP(MAX(MIN(ROUND(SUM(X23, AC23), 0), 20), 1), 'Adjustment Factors'!$F$8:$G$27, 2, FALSE) -> 2.46 | AI23: 0 | AJ23: 8.335343234 | AK23: 14 | AL23: 2031 | AM23: 0.1464371721 | AN23: 0.385361656 | AO23: 11.38920237 | AP23: 5.072574868 | AQ23: 1.423675737 | AR23: 0 | AT23: 24 | AU23: 24 | AV23: 24 | AW23: 24
B24: 3 | C24: ='Equipment Price'!C14 -> 0 | G24: 17 | H24: OTT EL17 | I24: 0 | J24: 0 | K24: 0 | L24: 0 | M24: 0 | N24: 0 | O24: 0 | P24: 0 | Q24: 0 | R24: 0 | S24: 0 | T24: 0 | U24: 0 | V24: 0 | X24: 13.48408378 | Y24: =MIN(on_base*VLOOKUP(AL24, 'Adjustment Factors'!$B$4:$D$43, 3,FALSE), 24) -> 13.48408378 | Z24: 1.867026985 | AA24: =IF(Y24>0, OFFSET('Adjustment Factors'!$I$7, MIN(num_TVs, 5), MAX(ROUND(Y24, 0), 1)), 0) -> 1.432307692 | AB24: =OFFSET('Adjustment Factors'!$I$15, MIN(num_TVs, 5), MAX(ROUND(Y24, 0), 1)) -> 0.09667024705 | AC24: 0 | AD24: =MIN(multi_base*VLOOKUP(AL24, 'Adjustment Factors'!$B$4:$D$43, 3,FALSE), 24-X24) -> 0 | AE24: 17.44632994 | AF24: =IF(AD24>0, OFFSET('Adjustment Factors'!$I$7, MIN(num_TVs, 5), MAX(ROUND(AD24, 0), 1)), 0) -> 0 | AG24: 10.51591622 | AH24: =VLOOKUP(MAX(MIN(ROUND(SUM(X24, AC24), 0), 20), 1), 'Adjustment Factors'!$F$8:$G$27, 2, FALSE) -> 2.46 | AI24: 0 | AJ24: 8.055916217 | AK24: 15 | AL24: 2032 | AM24: 0.1458222344 | AN24: 0.3599877132 | AO24: 11.53412343 | AP24: 5.153299054 | AQ24: 1.44283184 | AR24: 0 | AT24: 24 | AU24: 24 | AV24: 24 | AW24: 24
B25: On-Mode Power | D25: W | G25: 18 | H25: OTT EL18 | I25: 0 | J25: 0 | K25: 0 | L25: 0 | M25: 0 | N25: 0 | O25: 0 | P25: 0 | Q25: 0 | R25: 0 | S25: 0 | T25: 0 | U25: 0 | V25: 0 | X25: 13.76337332 | Y25: =MIN(on_base*VLOOKUP(AL25, 'Adjustment Factors'!$B$4:$D$43, 3,FALSE), 24) -> 13.76337332 | Z25: 1.602449894 | AA25: =IF(Y25>0, OFFSET('Adjustment Factors'!$I$7, MIN(num_TVs, 5), MAX(ROUND(Y25, 0), 1)), 0) -> 1.372857143 | AB25: =OFFSET('Adjustment Factors'!$I$15, MIN(num_TVs, 5), MAX(ROUND(Y25, 0), 1)) -> 0.0848074922 | AC25: 0 | AD25: =MIN(multi_base*VLOOKUP(AL25, 'Adjustment Factors'!$B$4:$D$43, 3,FALSE), 24-X25) -> 0 | AE25: 17.29269548 | AF25: =IF(AD25>0, OFFSET('Adjustment Factors'!$I$7, MIN(num_TVs, 5), MAX(ROUND(AD25, 0), 1)), 0) -> 0 | AG25: 10.23662668 | AH25: =VLOOKUP(MAX(MIN(ROUND(SUM(X25, AC25), 0), 20), 1), 'Adjustment Factors'!$F$8:$G$27, 2, FALSE) -> 2.01 | AI25: 0 | AJ25: 8.22662668 | AK25: 16 | AL25: 2033 | AM25: 0.1455762593 | AN25: 0.3362845049 | AO25: 11.42054316 | AP25: 5.246409774 | AQ25: 1.465477892 | AR25: 0 | AT25: 24 | AU25: 24 | AV25: 24 | AW25: 24
B26: 0 | C26: =OFFSET('Model Info'!$D$24, iPC, B26) -> 13.48 | G26: 19 | H26: OTT EL19 | I26: 0 | J26: 0 | K26: 0 | L26: 0 | M26: 0 | N26: 0 | O26: 0 | P26: 0 | Q26: 0 | R26: 0 | S26: 0 | T26: 0 | U26: 0 | V26: 0 | X26: 14.04252551 | Y26: =MIN(on_base*VLOOKUP(AL26, 'Adjustment Factors'!$B$4:$D$43, 3,FALSE), 24) -> 14.04252551 | Z26: 1.634951185 | AA26: =IF(Y26>0, OFFSET('Adjustment Factors'!$I$7, MIN(num_TVs, 5), MAX(ROUND(Y26, 0), 1)), 0) -> 1.372857143 | AB26: =OFFSET('Adjustment Factors'!$I$15, MIN(num_TVs, 5), MAX(ROUND(Y26, 0), 1)) -> 0.0848074922 | AC26: 0 | AD26: =MIN(multi_base*VLOOKUP(AL26, 'Adjustment Factors'!$B$4:$D$43, 3,FALSE), 24-X26) -> 0 | AE26: 17.64343027 | AF26: =IF(AD26>0, OFFSET('Adjustment Factors'!$I$7, MIN(num_TVs, 5), MAX(ROUND(AD26, 0), 1)), 0) -> 0 | AG26: 9.957474487 | AH26: =VLOOKUP(MAX(MIN(ROUND(SUM(X26, AC26), 0), 20), 1), 'Adjustment Factors'!$F$8:$G$27, 2, FALSE) -> 2.01 | AI26: 0 | AJ26: 7.947474487 | AK26: 17 | AL26: 2034 | AM26: 0.1457812386 | AN26: 0.3141420223 | AO26: 11.62912826 | AP26: 5.355693595 | AQ26: 1.492644168 | AR26: 0 | AT26: 24 | AU26: 24 | AV26: 24 | AW26: 24
B27: =B26+1 -> 1 | C27: =OFFSET('Model Info'!$D$24, iPC, B27) -> 7.04 | G27: 20 | H27: OTT EL20 | I27: 0 | J27: 0 | K27: 0 | L27: 0 | M27: 0 | N27: 0 | O27: 0 | P27: 0 | Q27: 0 | R27: 0 | S27: 0 | T27: 0 | U27: 0 | V27: 0 | X27: 14.3215405 | Y27: =MIN(on_base*VLOOKUP(AL27, 'Adjustment Factors'!$B$4:$D$43, 3,FALSE), 24) -> 14.3215405 | Z27: 1.667436501 | AA27: =IF(Y27>0, OFFSET('Adjustment Factors'!$I$7, MIN(num_TVs, 5), MAX(ROUND(Y27, 0), 1)), 0) -> 1.372857143 | AB27: =OFFSET('Adjustment Factors'!$I$15, MIN(num_TVs, 5), MAX(ROUND(Y27, 0), 1)) -> 0.0848074922 | AC27: 0 | AD27: =MIN(multi_base*VLOOKUP(AL27, 'Adjustment Factors'!$B$4:$D$43, 3,FALSE), 24-X27) -> 0 | AE27: 17.99399267 | AF27: =IF(AD27>0, OFFSET('Adjustment Factors'!$I$7, MIN(num_TVs, 5), MAX(ROUND(AD27, 0), 1)), 0) -> 0 | AG27: 9.678459503 | AH27: =VLOOKUP(MAX(MIN(ROUND(SUM(X27, AC27), 0), 20), 1), 'Adjustment Factors'!$F$8:$G$27, 2, FALSE) -> 2.01 | AI27: 0 | AJ27: 7.668459503 | AK27: 18 | AL27: 2035 | AM27: 0.1459042261 | AN27: 0.2934575002 | AO27: 11.83151116 | AP27: 5.462144327 | AQ27: 1.519015063 | AR27: 0 | AT27: 24 | AU27: 24 | AV27: 24 | AW27: 24
B28: =B27+1 -> 2 | C28: =OFFSET('Model Info'!$D$24, iPC, B28) -> 1.87 | X28: 14.60041841 | Y28: =MIN(on_base*VLOOKUP(AL28, 'Adjustment Factors'!$B$4:$D$43, 3,FALSE), 24) -> 14.60041841 | Z28: 1.421107392 | AA28: =IF(Y28>0, OFFSET('Adjustment Factors'!$I$7, MIN(num_TVs, 5), MAX(ROUND(Y28, 0), 1)), 0) -> 1.321333333 | AB28: =OFFSET('Adjustment Factors'!$I$15, MIN(num_TVs, 5), MAX(ROUND(Y28, 0), 1)) -> 0.0736629667 | AC28: 0 | AD28: =MIN(multi_base*VLOOKUP(AL28, 'Adjustment Factors'!$B$4:$D$43, 3,FALSE), 24-X28) -> 0 | AE28: 17.87091213 | AF28: =IF(AD28>0, OFFSET('Adjustment Factors'!$I$7, MIN(num_TVs, 5), MAX(ROUND(AD28, 0), 1)), 0) -> 0 | AG28: 9.399581593 | AH28: =VLOOKUP(MAX(MIN(ROUND(SUM(X28, AC28), 0), 20), 1), 'Adjustment Factors'!$F$8:$G$27, 2, FALSE) -> 1.58 | AI28: 0 | AJ28: 7.819581593 | AK28: =AK27+1 -> 19 | AL28: 2036 | AM28: 0.1461283337 | AN28: 0.27413494 | AO28: 11.76769794 | AP28: 5.572572975 | AQ28: 1.546486106 | AR28: 0 | AT28: 24 | AU28: 24 | AV28: 24 | AW28: 24
B29: 3 | C29: =OFFSET('Model Info'!$D$24, iPC, B29) -> 0 | X29: 14.87915938 | Y29: =MIN(on_base*VLOOKUP(AL29, 'Adjustment Factors'!$B$4:$D$43, 3,FALSE), 24) -> 14.87915938 | Z29: 1.448238179 | AA29: =IF(Y29>0, OFFSET('Adjustment Factors'!$I$7, MIN(num_TVs, 5), MAX(ROUND(Y29, 0), 1)), 0) -> 1.321333333 | AB29: =OFFSET('Adjustment Factors'!$I$15, MIN(num_TVs, 5), MAX(ROUND(Y29, 0), 1)) -> 0.0736629667 | AC29: 0 | AD29: =MIN(multi_base*VLOOKUP(AL29, 'Adjustment Factors'!$B$4:$D$43, 3,FALSE), 24-X29) -> 0 | AE29: 18.21209108 | AF29: =IF(AD29>0, OFFSET('Adjustment Factors'!$I$7, MIN(num_TVs, 5), MAX(ROUND(AD29, 0), 1)), 0) -> 0 | AG29: 9.120840623 | AH29: =VLOOKUP(MAX(MIN(ROUND(SUM(X29, AC29), 0), 20), 1), 'Adjustment Factors'!$F$8:$G$27, 2, FALSE) -> 1.58 | AI29: 0 | AJ29: 7.540840623 | AK29: 20 | AL29: 2037 | AM29: 0.1463527855 | AN29: 0.2560846639 | AO29: 11.97874741 | AP29: 5.68327779 | AQ29: 1.574025593 | AR29: 0 | AT29: 24 | AU29: 24 | AV29: 24 | AW29: 24
B30: Multifunction Power | D30: W | G30: Total hours check: | I30: =SUM(M30, M34, M38, M42) -> 24 | L30: On - 0 | M30: =IF(C41>0, (on+apd_on), (24-SUM($C$6:$C$8) + on)) -> 9.559533025 | X30: 15.15776354 | Y30: =MIN(on_base*VLOOKUP(AL30, 'Adjustment Factors'!$B$4:$D$43, 3,FALSE), 24) -> 15.15776354 | Z30: 1.475355651 | AA30: =IF(Y30>0, OFFSET('Adjustment Factors'!$I$7, MIN(num_TVs, 5), MAX(ROUND(Y30, 0), 1)), 0) -> 1.321333333 | AB30: =OFFSET('Adjustment Factors'!$I$15, MIN(num_TVs, 5), MAX(ROUND(Y30, 0), 1)) -> 0.0736629667 | AC30: 0 | AD30: =MIN(multi_base*VLOOKUP(AL30, 'Adjustment Factors'!$B$4:$D$43, 3,FALSE), 24-X30) -> 0 | AE30: 18.55310257 | AF30: =IF(AD30>0, OFFSET('Adjustment Factors'!$I$7, MIN(num_TVs, 5), MAX(ROUND(AD30, 0), 1)), 0) -> 0 | AG30: 8.842236459 | AH30: =VLOOKUP(MAX(MIN(ROUND(SUM(X30, AC30), 0), 20), 1), 'Adjustment Factors'!$F$8:$G$27, 2, FALSE) -> 1.58 | AI30: 0 | AJ30: 7.262236459 | AK30: 21 | AL30: 2038 | AM30: 0.1465775821 | AN30: 0.2392228991 | AO30: =IF(INDEX(apd_power, AO$7+1)>0,(on_trend+apd_on_trend)*INDEX(on_power, AO$7+1) + multi_trend*INDEX(multi_power, AO$7+1) + apd_sleep_trend*INDEX(sleep_power, AO$7+1) + apd_trend*INDEX(apd_power, AO$7+1), (24-SUM($X30, $AC30, $AG30) + on_trend)*INDEX(on_power, AO$7+1) + sleep_trend*INDEX(sleep_power, AO$7+1) + multi_trend*INDEX(multi_power, AO$7+1)) * 365/1000 * elecSeries -> 12.19032259 | AP30: 5.794259331 | AQ30: 1.601633663 | AR30: 0 | AT30: 24 | AU30: 24 | AV30: 24 | AW30: 24
B31: 0 | C31: =OFFSET('Model Info'!$K$44, iPC, B31) -> 0 | I31: =SUM(M31, M35, M39, M43) -> 24 | L31: On - 1 | M31: =IF(C42>0, (on+apd_on), (24-SUM($C$6:$C$8) + on)) -> 9.559533025 | X31: 15.43623103 | Y31: =MIN(on_base*VLOOKUP(AL31, 'Adjustment Factors'!$B$4:$D$43, 3,FALSE), 24) -> 15.43623103 | Z31: 1.502459821 | AA31: =IF(Y31>0, OFFSET('Adjustment Factors'!$I$7, MIN(num_TVs, 5), MAX(ROUND(Y31, 0), 1)), 0) -> 1.321333333 | AB31: =OFFSET('Adjustment Factors'!$I$15, MIN(num_TVs, 5), MAX(ROUND(Y31, 0), 1)) -> 0.0736629667 | AC31: 0 | AD31: =MIN(multi_base*VLOOKUP(AL31, 'Adjustment Factors'!$B$4:$D$43, 3,FALSE), 24-X31) -> 0 | AE31: 18.89394679 | AF31: =IF(AD31>0, OFFSET('Adjustment Factors'!$I$7, MIN(num_TVs, 5), MAX(ROUND(AD31, 0), 1)), 0) -> 0 | AG31: 8.563768966 | AH31: =VLOOKUP(MAX(MIN(ROUND(SUM(X31, AC31), 0), 20), 1), 'Adjustment Factors'!$F$8:$G$27, 2, FALSE) -> 1.58 | AI31: 0 | AJ31: 6.983768966 | AK31: 22 | AL31: 2039 | AM31: 0.146802724 | AN31: 0.2234713887 | AO31: 12.40242456 | AP31: 5.90551816 | AQ31: 1.629310454 | AR31: 0 | AT31: 24 | AU31: 24 | AV31: 24 | AW31: 24
B32: =B31+1 -> 1 | C32: =OFFSET('Model Info'!$K$44, iPC, B32) -> 0 | I32: 24 | L32: On - 2 | M32: =IF(C43>0, (on+apd_on), (24-SUM($C$6:$C$8) + on)) -> 9.559533025 | X32: 15.71456199 | Y32: =MIN(on_base*VLOOKUP(AL32, 'Adjustment Factors'!$B$4:$D$43, 3,FALSE), 24) -> 15.71456199 | Z32: 1.276808162 | AA32: =IF(Y32>0, OFFSET('Adjustment Factors'!$I$7, MIN(num_TVs, 5), MAX(ROUND(Y32, 0), 1)), 0) -> 1.273125 | AB32: =OFFSET('Adjustment Factors'!$I$15, MIN(num_TVs, 5), MAX(ROUND(Y32, 0), 1)) -> 0.06381934217 | AC32: 0 | AD32: =MIN(multi_base*VLOOKUP(AL32, 'Adjustment Factors'!$B$4:$D$43, 3,FALSE), 24-X32) -> 0 | AE32: 18.72979357 | AF32: =IF(AD32>0, OFFSET('Adjustment Factors'!$I$7, MIN(num_TVs, 5), MAX(ROUND(AD32, 0), 1)), 0) -> 0 | AG32: 8.28543801 | AH32: =VLOOKUP(MAX(MIN(ROUND(SUM(X32, AC32), 0), 20), 1), 'Adjustment Factors'!$F$8:$G$27, 2, FALSE) -> 1.18 | AI32: 0 | AJ32: 7.10543801 | AK32: 23 | AL32: 2040 | AM32: 0.1470282117 | AN32: 0.2087570285 | AO32: 12.35789028 | AP32: 6.017054838 | AQ32: 1.657056106 | AR32: 0 | AT32: 24 | AU32: 24 | AV32: 24 | AW32: 24
B33: =B32+1 -> 2 | C33: =OFFSET('Model Info'!$K$44, iPC, B33) -> 0 | I33: 24 | L33: On - 3 | M33: =IF(C44>0, (on+apd_on), (24-SUM($C$6:$C$8) + on)) -> 9.559533025 | X33: 15.99275654 | Y33: =MIN(on_base*VLOOKUP(AL33, 'Adjustment Factors'!$B$4:$D$43, 3,FALSE), 24) -> 15.99275654 | Z33: 1.299411469 | AA33: =IF(Y33>0, OFFSET('Adjustment Factors'!$I$7, MIN(num_TVs, 5), MAX(ROUND(Y33, 0), 1)), 0) -> 1.273125 | AB33: =OFFSET('Adjustment Factors'!$I$15, MIN(num_TVs, 5), MAX(ROUND(Y33, 0), 1)) -> 0.06381934217 | AC33: 0 | AD33: =MIN(multi_base*VLOOKUP(AL33, 'Adjustment Factors'!$B$4:$D$43, 3,FALSE), 24-X33) -> 0 | AE33: 19.0613667 | AF33: =IF(AD33>0, OFFSET('Adjustment Factors'!$I$7, MIN(num_TVs, 5), MAX(ROUND(AD33, 0), 1)), 0) -> 0 | AG33: 8.007243457 | AH33: =VLOOKUP(MAX(MIN(ROUND(SUM(X33, AC33), 0), 20), 1), 'Adjustment Factors'!$F$8:$G$27, 2, FALSE) -> 1.18 | AI33: 0 | AJ33: 6.827243457 | AK33: =AK32+1 -> 24 | AL33: 2041 | AM33: 0.1472540457 | AN33: 0.1950115279 | AO33: 12.57065402 | AP33: 6.128869929 | AQ33: 1.684870759 | AR33: 0 | AT33: 24 | AU33: 24 | AV33: 24 | AW33: 24
B34: 3 | C34: =OFFSET('Model Info'!$K$44, iPC, B34) -> 0 | L34: Multi - 0 | M34: =multi -> 0 | X34: 16.27081483 | Y34: =MIN(on_base*VLOOKUP(AL34, 'Adjustment Factors'!$B$4:$D$43, 3,FALSE), 24) -> 16.27081483 | Z34: 1.322003705 | AA34: =IF(Y34>0, OFFSET('Adjustment Factors'!$I$7, MIN(num_TVs, 5), MAX(ROUND(Y34, 0), 1)), 0) -> 1.273125 | AB34: =OFFSET('Adjustment Factors'!$I$15, MIN(num_TVs, 5), MAX(ROUND(Y34, 0), 1)) -> 0.06381934217 | AC34: 0 | AD34: =MIN(multi_base*VLOOKUP(AL34, 'Adjustment Factors'!$B$4:$D$43, 3,FALSE), 24-X34) -> 0 | AE34: 19.39277742 | AF34: =IF(AD34>0, OFFSET('Adjustment Factors'!$I$7, MIN(num_TVs, 5), MAX(ROUND(AD34, 0), 1)), 0) -> 0 | AG34: 7.729185174 | AH34: =VLOOKUP(MAX(MIN(ROUND(SUM(X34, AC34), 0), 20), 1), 'Adjustment Factors'!$F$8:$G$27, 2, FALSE) -> 1.18 | AI34: 0 | AJ34: 6.549185174 | AK34: 25 | AL34: 2042 | AM34: 0.1474802266 | AN34: 0.1821710928 | AO34: 12.78394714 | AP34: 6.240963996 | AQ34: 1.712754551 | AR34: 0 | AT34: 24 | AU34: 24 | AV34: 24 | AW34: 24
B35: Sleep Power | D35: W | G35: Server unscaled hours (for NIA): | L35: Multi - 1 | M35: =multi -> 0 | X35: 16.54873697 | Y35: =MIN(on_base*VLOOKUP(AL35, 'Adjustment Factors'!$B$4:$D$43, 3,FALSE), 24) -> 16.54873697 | Z35: 1.119473383 | AA35: =IF(Y35>0, OFFSET('Adjustment Factors'!$I$7, MIN(num_TVs, 5), MAX(ROUND(Y35, 0), 1)), 0) -> 1.230588235 | AB35: =OFFSET('Adjustment Factors'!$I$15, MIN(num_TVs, 5), MAX(ROUND(Y35, 0), 1)) -> 0.05497131931 | AC35: 0 | AD35: =MIN(multi_base*VLOOKUP(AL35, 'Adjustment Factors'!$B$4:$D$43, 3,FALSE), 24-X35) -> 0 | AE35: 19.24520764 | AF35: =IF(AD35>0, OFFSET('Adjustment Factors'!$I$7, MIN(num_TVs, 5), MAX(ROUND(AD35, 0), 1)), 0) -> 0 | AG35: 7.451263027 | AH35: =VLOOKUP(MAX(MIN(ROUND(SUM(X35, AC35), 0), 20), 1), 'Adjustment Factors'!$F$8:$G$27, 2, FALSE) -> 0.77 | AI35: 0 | AJ35: 6.681263027 | AK35: 26 | AL35: 2043 | AM35: 0.1477067549 | AN35: 0.1701761296 | AO35: 12.73296101 | AP35: 6.353337607 | AQ35: 1.740707623 | AR35: 0 | AT35: 24 | AU35: 24 | AV35: 24 | AW35: 24
B36: 0 | C36: =OFFSET('Model Info'!$K$24, iPC, B36) -> 0.52 | G36: On | I36: =on_base -> 9.559533025 | L36: Multi - 2 | M36: =multi -> 0 | X36: 16.82652312 | Y36: =MIN(on_base*VLOOKUP(AL36, 'Adjustment Factors'!$B$4:$D$43, 3,FALSE), 24) -> 16.82652312 | Z36: 1.138264799 | AA36: =IF(Y36>0, OFFSET('Adjustment Factors'!$I$7, MIN(num_TVs, 5), MAX(ROUND(Y36, 0), 1)), 0) -> 1.230588235 | AB36: =OFFSET('Adjustment Factors'!$I$15, MIN(num_TVs, 5), MAX(ROUND(Y36, 0), 1)) -> 0.05497131931 | AC36: 0 | AD36: =MIN(multi_base*VLOOKUP(AL36, 'Adjustment Factors'!$B$4:$D$43, 3,FALSE), 24-X36) -> 0 | AE36: 19.56825659 | AF36: =IF(AD36>0, OFFSET('Adjustment Factors'!$I$7, MIN(num_TVs, 5), MAX(ROUND(AD36, 0), 1)), 0) -> 0 | AG36: 7.173476883 | AH36: =VLOOKUP(MAX(MIN(ROUND(SUM(X36, AC36), 0), 20), 1), 'Adjustment Factors'!$F$8:$G$27, 2, FALSE) -> 0.77 | AI36: 0 | AJ36: 6.403476883 | AK36: 27 | AL36: 2044 | AM36: 0.1479336312 | AN36: 0.1589709687 | AO36: 12.94690937 | AP36: 6.465991326 | AQ36: 1.768730115 | AR36: 0 | AT36: 24 | AU36: 24 | AV36: 24 | AW36: 24
B37: =B36+1 -> 1 | C37: =OFFSET('Model Info'!$K$24, iPC, B37) -> 0.18 | G37: Multi | I37: =multi_base -> 0 | L37: Multi - 3 | M37: =multi -> 0 | X37: 17.10417339 | Y37: =MIN(on_base*VLOOKUP(AL37, 'Adjustment Factors'!$B$4:$D$43, 3,FALSE), 24) -> 17.10417339 | Z37: 1.157047023 | AA37: =IF(Y37>0, OFFSET('Adjustment Factors'!$I$7, MIN(num_TVs, 5), MAX(ROUND(Y37, 0), 1)), 0) -> 1.230588235 | AB37: =OFFSET('Adjustment Factors'!$I$15, MIN(num_TVs, 5), MAX(ROUND(Y37, 0), 1)) -> 0.05497131931 | AC37: 0 | AD37: =MIN(multi_base*VLOOKUP(AL37, 'Adjustment Factors'!$B$4:$D$43, 3,FALSE), 24-X37) -> 0 | AE37: 19.89114753 | AF37: =IF(AD37>0, OFFSET('Adjustment Factors'!$I$7, MIN(num_TVs, 5), MAX(ROUND(AD37, 0), 1)), 0) -> 0 | AG37: 6.895826609 | AH37: =VLOOKUP(MAX(MIN(ROUND(SUM(X37, AC37), 0), 20), 1), 'Adjustment Factors'!$F$8:$G$27, 2, FALSE) -> 0.77 | AI37: 0 | AJ37: 6.125826609 | AK37: 28 | AL37: 2045 | AM37: 0.1481608559 | AN37: 0.1485036059 | AO37: 13.16138971 | AP37: 6.57892572 | AQ37: 1.796822166 | AR37: 0 | AT37: 24 | AU37: 24 | AV37: 24 | AW37: 24
B38: =B37+1 -> 2 | C38: =OFFSET('Model Info'!$K$24, iPC, B38) -> 0.18 | L38: Sleep - 0 | M38: =IF(C41>0, apd_sleep, sleep) -> 10.43046697 | X38: 17.38168793 | Y38: =MIN(on_base*VLOOKUP(AL38, 'Adjustment Factors'!$B$4:$D$43, 3,FALSE), 24) -> 17.38168793 | Z38: 1.175820066 | AA38: =IF(Y38>0, OFFSET('Adjustment Factors'!$I$7, MIN(num_TVs, 5), MAX(ROUND(Y38, 0), 1)), 0) -> 1.230588235 | AB38: =OFFSET('Adjustment Factors'!$I$15, MIN(num_TVs, 5), MAX(ROUND(Y38, 0), 1)) -> 0.05497131931 | AC38: 0 | AD38: =MIN(multi_base*VLOOKUP(AL38, 'Adjustment Factors'!$B$4:$D$43, 3,FALSE), 24-X38) -> 0 | AE38: 20.21388061 | AF38: =IF(AD38>0, OFFSET('Adjustment Factors'!$I$7, MIN(num_TVs, 5), MAX(ROUND(AD38, 0), 1)), 0) -> 0 | AG38: 6.618312073 | AH38: =VLOOKUP(MAX(MIN(ROUND(SUM(X38, AC38), 0), 20), 1), 'Adjustment Factors'!$F$8:$G$27, 2, FALSE) -> 0.77 | AI38: 0 | AJ38: 5.848312073 | AK38: 29 | AL38: 2046 | AM38: 0.1483884297 | AN38: 0.1387254613 | AO38: 13.37640311 | AP38: 6.69214136 | AQ38: 1.824983919 | AR38: 0 | AT38: 24 | AU38: 24 | AV38: 24 | AW38: 24
B39: 3 | C39: =OFFSET('Model Info'!$K$24, iPC, B39) -> 0 | L39: Sleep - 1 | M39: =IF(C42>0, apd_sleep, sleep) -> 10.43046697 | X39: 17.65906686 | Y39: =MIN(on_base*VLOOKUP(AL39, 'Adjustment Factors'!$B$4:$D$43, 3,FALSE), 24) -> 17.65906686 | Z39: 1.020301641 | AA39: =IF(Y39>0, OFFSET('Adjustment Factors'!$I$7, MIN(num_TVs, 5), MAX(ROUND(Y39, 0), 1)), 0) -> 1.192222222 | AB39: =OFFSET('Adjustment Factors'!$I$15, MIN(num_TVs, 5), MAX(ROUND(Y39, 0), 1)) -> 0.04846225536 | AC39: 0 | AD39: =MIN(multi_base*VLOOKUP(AL39, 'Adjustment Factors'!$B$4:$D$43, 3,FALSE), 24-X39) -> 0 | AE39: 20.03323029 | AF39: =IF(AD39>0, OFFSET('Adjustment Factors'!$I$7, MIN(num_TVs, 5), MAX(ROUND(AD39, 0), 1)), 0) -> 0 | AG39: 6.34093314 | AH39: =VLOOKUP(MAX(MIN(ROUND(SUM(X39, AC39), 0), 20), 1), 'Adjustment Factors'!$F$8:$G$27, 2, FALSE) -> 0.44 | AI39: 0 | AJ39: 5.90093314 | AK39: 30 | AL39: 2047 | AM39: 0.1483884297 | AN39: 0.1295911537 | AO39: 13.35698237 | AP39: 6.795201443 | AQ39: 1.850373357 | AR39: 0 | AT39: 24 | AU39: 24 | AV39: 24 | AW39: 24
B40: APD Power | D40: W | L40: Sleep - 2 | M40: =IF(C43>0, apd_sleep, sleep) -> 10.43046697 | X40: 17.93631032 | Y40: =MIN(on_base*VLOOKUP(AL40, 'Adjustment Factors'!$B$4:$D$43, 3,FALSE), 24) -> 17.93631032 | Z40: 1.036320152 | AA40: =IF(Y40>0, OFFSET('Adjustment Factors'!$I$7, MIN(num_TVs, 5), MAX(ROUND(Y40, 0), 1)), 0) -> 1.192222222 | AB40: =OFFSET('Adjustment Factors'!$I$15, MIN(num_TVs, 5), MAX(ROUND(Y40, 0), 1)) -> 0.04846225536 | AC40: 0 | AD40: =MIN(multi_base*VLOOKUP(AL40, 'Adjustment Factors'!$B$4:$D$43, 3,FALSE), 24-X40) -> 0 | AE40: 20.3477476 | AF40: =IF(AD40>0, OFFSET('Adjustment Factors'!$I$7, MIN(num_TVs, 5), MAX(ROUND(AD40, 0), 1)), 0) -> 0 | AG40: 6.06368968 | AH40: =VLOOKUP(MAX(MIN(ROUND(SUM(X40, AC40), 0), 20), 1), 'Adjustment Factors'!$F$8:$G$27, 2, FALSE) -> 0.44 | AI40: 0 | AJ40: 5.62368968 | AK40: =AK39+1 -> 31 | AL40: 2048 | AM40: 0.1483884297 | AN40: 0.1210582899 | AO40: 13.55158971 | AP40: 6.898211192 | AQ40: 1.875750394 | AR40: 0 | AT40: 24 | AU40: 24 | AV40: 24 | AW40: 24
B41: 0 | C41: =OFFSET('Model Info'!$D$44, iPC, B41) -> 12.5 | L41: Sleep - 3 | M41: =IF(C44>0, apd_sleep, sleep) -> 14.44046697 | X41: 18.21341844 | Y41: =MIN(on_base*VLOOKUP(AL41, 'Adjustment Factors'!$B$4:$D$43, 3,FALSE), 24) -> 18.21341844 | Z41: 1.052330843 | AA41: =IF(Y41>0, OFFSET('Adjustment Factors'!$I$7, MIN(num_TVs, 5), MAX(ROUND(Y41, 0), 1)), 0) -> 1.192222222 | AB41: =OFFSET('Adjustment Factors'!$I$15, MIN(num_TVs, 5), MAX(ROUND(Y41, 0), 1)) -> 0.04846225536 | AC41: 0 | AD41: =MIN(multi_base*VLOOKUP(AL41, 'Adjustment Factors'!$B$4:$D$43, 3,FALSE), 24-X41) -> 0 | AE41: 20.66211136 | AF41: =IF(AD41>0, OFFSET('Adjustment Factors'!$I$7, MIN(num_TVs, 5), MAX(ROUND(AD41, 0), 1)), 0) -> 0 | AG41: 5.78658156 | AH41: =VLOOKUP(MAX(MIN(ROUND(SUM(X41, AC41), 0), 20), 1), 'Adjustment Factors'!$F$8:$G$27, 2, FALSE) -> 0.44 | AI41: 0 | AJ41: 5.34658156 | AK41: 32 | AL41: 2049 | AM41: 0.1483884297 | AN41: 0.1130872682 | AO41: 13.74610205 | AP41: 7.001170656 | AQ41: 1.901115043 | AR41: 0 | AT41: 24 | AU41: 24 | AV41: 24 | AW41: 24
B42: =B41+1 -> 1 | C42: =OFFSET('Model Info'!$D$44, iPC, B42) -> 0.18 | L42: APD - 0 | M42: =IF(C41>0, apd, 0) -> 4.01 | X42: 18.49039135 | Y42: =MIN(on_base*VLOOKUP(AL42, 'Adjustment Factors'!$B$4:$D$43, 3,FALSE), 24) -> 18.49039135 | Z42: 1.068333723 | AA42: =IF(Y42>0, OFFSET('Adjustment Factors'!$I$7, MIN(num_TVs, 5), MAX(ROUND(Y42, 0), 1)), 0) -> 1.192222222 | AB42: =OFFSET('Adjustment Factors'!$I$15, MIN(num_TVs, 5), MAX(ROUND(Y42, 0), 1)) -> 0.04846225536 | AC42: 0 | AD42: =MIN(multi_base*VLOOKUP(AL42, 'Adjustment Factors'!$B$4:$D$43, 3,FALSE), 24-X42) -> 0 | AE42: 20.97632175 | AF42: =IF(AD42>0, OFFSET('Adjustment Factors'!$I$7, MIN(num_TVs, 5), MAX(ROUND(AD42, 0), 1)), 0) -> 0 | AG42: 5.509608647 | AH42: =VLOOKUP(MAX(MIN(ROUND(SUM(X42, AC42), 0), 20), 1), 'Adjustment Factors'!$F$8:$G$27, 2, FALSE) -> 0.44 | AI42: 0 | AJ42: 5.069608647 | AK42: 33 | AL42: 2050 | AM42: 0.1483884297 | AN42: 0.1056410944 | AO42: 13.94051949 | AP42: 7.104079883 | AQ42: 1.926467317 | AR42: 0 | AT42: 24 | AU42: 24 | AV42: 24 | AW42: 24
B43: =B42+1 -> 2 | C43: =OFFSET('Model Info'!$D$44, iPC, B43) -> 0.18 | L43: APD - 1 | M43: =IF(C42>0, apd, 0) -> 4.01 | AT43: =AVERAGE(AT10:AT42) -> 24 | AU43: =AVERAGE(AU10:AU42) -> 24 | AV43: 24 | AW43: 24
B44: 3 | C44: =OFFSET('Model Info'!$D$44, iPC, B44) -> 0 | L44: APD - 2 | M44: =IF(C43>0, apd, 0) -> 4.01
L45: APD - 3 | M45: =IF(C44>0, apd, 0) -> 0

Sheet Household Sample
B1: Household Sample
B3: ="Export Parameters for " & choice_PC -> Export Parameters for OTT | F3: DBT DVR | M3: DBT without DVR | T3: CBT DVR | AA3: CBT without DVR | AH3: DBT DVR Server | AO3: DBT without DVR Server | AV3: CBT DVR | BC3: CBT without DVR
B4: To LCC & PBP Calcs: | F4: State | G4: Div & Lrg State | H4: STB mean hours/day | I4: DVR mean hours/day | J4: Total TVs | K4: Mean Income | M4: State | N4: Div & Lrg State | O4: STB mean hours/day | P4: DVR mean hours/day | Q4: Total TVs | R4: Mean Income | T4: State | U4: Div & Lrg State | V4: STB mean hours/day | W4: DVR mean hours/day | X4: Total TVs | Y4: Mean Income | AA4: State | AB4: Div & Lrg State | AC4: STB mean hours/day | AD4: DVR mean hours/day | AE4: Total TVs | AF4: Mean Income | AH4: State | AI4: Div & Lrg State | AJ4: STB mean hours/day | AK4: DVR mean hours/day | AL4: Total TVs | AM4: Mean Income | AO4: State | AP4: Div & Lrg State | AQ4: STB mean hours/day | AR4: DVR mean hours/day | AS4: Total TVs | AT4: Mean Income | AV4: State | AW4: Div & Lrg State | AX4: STB mean hours/day | AY4: DVR mean hours/day | AZ4: Total TVs | BA4: Mean Income | BC4: State | BD4: Div & Lrg State | BE4: STB mean hours/day | BF4: DVR mean hours/day | BG4: Total TVs | BH4: Mean Income
B5: On-Mode Usage (non Server) | C5: =MIN(OFFSET($H$4, $C$32, ($D$48-1)*(COUNTA(F4:K4)+1)) * VLOOKUP(INT(StartYear), 'Adjustment Factors'!B4:C43, 2), 24) -> 9.559533025 | D5: hours per day | F5: FLORIDA | G5: 13 | H5: 3.01032167 | I5: 1.941624092 | J5: 4 | K5: 38 | M5: CALIFORNIA | N5: 11 | O5: 2.428795866 | Q5: 2 | R5: 65.72727273 | T5: NEW JERSEY | U5: 2 | V5: 2.486681846 | W5: 2.616951616 | X5: 3 | Y5: 78 | AA5: MICHIGAN | AB5: 3 | AC5: 7.58652091 | AE5: 3 | AF5: 3 | AH5: MAINE | AI5: 1 | AJ5: 0.4248660282 | AK5: 4.398210214 | AL5: 3 | AM5: 80.5 | AO5: NORTH CAROLINA | AP5: 5 | AQ5: 2.349667659 | AS5: 3 | AT5: 33 | AV5: NEW JERSEY | AW5: 2 | AX5: 2.486681846 | AY5: 2.616951616 | AZ5: 3 | BA5: 78 | BC5: MICHIGAN | BD5: 3 | BE5: 7.58652091 | BG5: 3 | BH5: 3
B6: Multifunction Usage (non Server) | C6: =MIN(OFFSET($I$4, $C$32, ($D$48-1)*(COUNTA(F4:K4)+1)) * VLOOKUP(INT(StartYear), 'Adjustment Factors'!B4:C43, 2), 24-on_base) -> 0 | D6: hours per day | F6: MAINE | G6: 1 | H6: 0.4248660282 | I6: 4.398210214 | J6: 3 | K6: 80.5 | M6: FLORIDA | N6: 13 | O6: 8.284161706 | Q6: 2 | R6: 23 | T6: OHIO | U6: 3 | V6: 7.260576213 | W6: 0.0038777388 | X6: 2 | Y6: 33 | AA6: FLORIDA | AB6: 13 | AC6: 9.261473757 | AE6: 2 | AF6: 18 | AH6: MISSOURI | AI6: 4 | AJ6: 3.278499211 | AK6: 2.891090728 | AL6: 3 | AM6: 64.42857143 | AO6: WASHINGTON | AP6: 9 | AQ6: 0.1896515921 | AS6: 3 | AT6: 73 | AV6: MARYLAND | AW6: 5 | AX6: 1.951316772 | AY6: 0.942087077 | AZ6: 3 | BA6: 103 | BC6: MINNESOTA | BD6: 4 | BE6: 1.41567216 | BG6: 3 | BH6: 38
F7: MISSOURI | G7: 4 | H7: 3.278499211 | I7: 2.891090728 | J7: 3 | K7: 64.42857143 | M7: NORTH CAROLINA | N7: 5 | O7: 2.349667659 | Q7: 3 | R7: 33 | T7: ARIZONA | U7: 8 | V7: 3.59983846 | W7: 2.300004765 | X7: 7 | Y7: 57.28571429 | AA7: PENNSYLVANIA | AB7: 2 | AC7: 1.24262257 | AE7: 2 | AF7: 141.1818182 | AH7: CALIFORNIA | AI7: 11 | AJ7: 1.044121319 | AK7: 0.9261416047 | AL7: 3 | AM7: 70 | AO7: MARYLAND | AP7: 5 | AQ7: 3.634913945 | AS7: 3 | AT7: 60.14285714 | AV7: ILLINOIS | AW7: 3 | AX7: 7.794136721 | AY7: 0.004665646683 | AZ7: 3 | BA7: 23 | BC7: MARYLAND | BD7: 5 | BE7: 5.462623237 | BG7: 3 | BH7: 33
B8: On-Mode Usage (Server) | C8: =MIN($C$5*$C$21*$C$22, 24) -> 2.150894931 | D8: hours per day | F8: ARIZONA | G8: 8 | H8: 5.756930235 | I8: 3.20103435 | J8: 1 | K8: 88 | M8: WASHINGTON | N8: 9 | O8: 0.1896515921 | Q8: 3 | R8: 73 | T8: DELAWARE | U8: 5 | V8: 0.3911841995 | W8: 0.003167576433 | X8: 2 | Y8: 73 | AA8: FLORIDA | AB8: 13 | AC8: 7.892446034 | AE8: 5 | AF8: 25 | AH8: TENNESSEE | AI8: 6 | AJ8: 9.332126151 | AK8: 2.567181858 | AL8: 3 | AM8: 59.5 | AO8: OREGON | AP8: 9 | AQ8: 3.438092711 | AS8: 3 | AT8: 18 | AV8: MARYLAND | AW8: 5 | AX8: 3.406663752 | AY8: 1.030407191 | AZ8: 3 | BA8: 58 | BC8: MICHIGAN | BD8: 3 | BE8: 0.4269659735 | BG8: 3 | BH8: 55.5
B9: Multifunction Usage (Server) | C9: =IF(($C$6*$C$23 + $C$5*$C$21*(1-$C$22)) + $C$8 <= 24, ($C$6*$C$23 + $C$5*$C$21*(1-$C$22)), 24-$C$8) -> 13.53629876 | D9: hours per day | F9: CALIFORNIA | G9: 11 | H9: 1.044121319 | I9: 0.9261416047 | J9: 3 | K9: 70 | M9: CALIFORNIA | N9: 11 | O9: 6.268000992 | Q9: 4 | R9: 55.91666667 | T9: WISCONSIN | U9: 3 | V9: 3.259578716 | W9: 0.7017539257 | X9: 5 | Y9: 78 | AA9: MISSOURI | AB9: 4 | AC9: 0.1328788142 | AE9: 2 | AF9: 95.27272727 | AH9: ARIZONA | AI9: 8 | AJ9: 8.17477947 | AK9: 0.3246267734 | AL9: 3 | AM9: 53 | AO9: CALIFORNIA | AP9: 11 | AQ9: 0.2999603175 | AS9: 3 | AT9: 138 | AV9: OHIO | AW9: 3 | AX9: 4.874849764 | AY9: 0.00425592283 | AZ9: 3 | BA9: 68 | BC9: PENNSYLVANIA | BD9: 2 | BE9: 0.2858660104 | BG9: 3 | BH9: 133
F10: CALIFORNIA | G10: 11 | H10: 0.8686090211 | I10: 3.060552138 | J10: 2 | K10: 143.8333333 | M10: IOWA | N10: 4 | O10: 5.699853218 | Q10: 2 | R10: 60.5 | T10: TEXAS | U10: 12 | V10: 17.21610375 | W10: 0.6042636314 | X10: 1 | Y10: 41.33333333 | AA10: ILLINOIS | AB10: 3 | AC10: 0.16240737 | AE10: 4 | AF10: 500 | AH10: PENNSYLVANIA | AI10: 2 | AJ10: 9.471685763 | AK10: 0.5712783876 | AL10: 3 | AM10: 58 | AO10: CALIFORNIA | AP10: 11 | AQ10: 12.4669833 | AS10: 3 | AT10: 32.58333333 | AV10: TEXAS | AW10: 12 | AX10: 0.9107441024 | AY10: 0.09898604583 | AZ10: 3 | BA10: 471 | BC10: PENNSYLVANIA | BD10: 2 | BE10: 5.737540445 | BG10: 3 | BH10: 68
B11: Remaining | C11: =IF($C$19=0, 24-SUM($C$5:$C$6), 24-SUM($C8:$C$9)) -> 14.44046697 | D11: hours per day | F11: TEXAS | G11: 12 | H11: 1.080189092 | I11: 1.19937883 | J11: 2 | K11: 7 | M11: MARYLAND | N11: 5 | O11: 3.634913945 | Q11: 3 | R11: 60.14285714 | T11: OREGON | U11: 9 | V11: 2.570498618 | W11: 0.01104755655 | X11: 1.5 | Y11: 63 | AA11: OREGON | AB11: 9 | AC11: 2.409264316 | AE11: 5 | AF11: 119.6666667 | AH11: NEW JERSEY | AI11: 2 | AJ11: 5.332164821 | AK11: 13.42569617 | AL11: 3 | AM11: 53 | AO11: TEXAS | AP11: 12 | AQ11: 3.564103302 | AS11: 3 | AT11: 83 | AV11: FLORIDA | AW11: 13 | AX11: 1.51300804 | AY11: 1.169817496 | AZ11: 3 | BA11: 67.09090909 | BC11: FLORIDA | BD11: 13 | BE11: 2.450739749 | BG11: 3 | BH11: 33
F12: UTAH | G12: 8 | H12: 1.400398121 | I12: 0.08977629604 | J12: 2 | K12: 98 | M12: CALIFORNIA | N12: 11 | O12: 3.007361098 | Q12: 4 | R12: 500 | T12: CALIFORNIA | U12: 11 | V12: 4.258679729 | W12: 1.239486194 | X12: 4 | Y12: 143 | AA12: MINNESOTA | AB12: 4 | AC12: 1.41567216 | AE12: 3 | AF12: 38 | AH12: TEXAS | AI12: 12 | AJ12: 1.158506944 | AK12: 13.11564291 | AL12: 3 | AM12: 59.25 | AO12: TEXAS | AP12: 12 | AQ12: 8.018075815 | AS12: 3 | AT12: 188 | AV12: CALIFORNIA | AW12: 11 | AX12: 3.762758285 | AY12: 1.801621088 | AZ12: 3 | BA12: 39.25 | BC12: MICHIGAN | BD12: 3 | BE12: 0.5671504518 | BG12: 3 | BH12: 94.5
B13: Sleep Usage | C13: =$C$11*sleep_dist -> 14.44046697 | D13: hours per day | F13: TENNESSEE | G13: 6 | H13: 9.332126151 | I13: 2.567181858 | J13: 3 | K13: 59.5 | M13: MARYLAND | N13: 5 | O13: 3.182116469 | Q13: 2 | R13: 50.5 | T13: OHIO | U13: 3 | V13: 4.823635534 | W13: 0.002252700547 | X13: 6 | Y13: 188 | AA13: ALASKA | AB13: 9 | AC13: 0.2811934039 | AE13: 2 | AF13: 74.66666667 | AH13: NORTH CAROLINA | AI13: 5 | AJ13: 3.198083694 | AK13: 4.965871791 | AL13: 3 | AM13: 113 | AO13: CALIFORNIA | AP13: 11 | AQ13: 1.749099702 | AS13: 3 | AT13: 60.5 | AV13: COLORADO | AW13: 8 | AX13: 1.902579018 | AY13: 0.0697168922 | AZ13: 3 | BA13: 123 | BC13: MASSACHUSETTS | BD13: 1 | BE13: 0.09207697939 | BG13: 3 | BH13: 213
B14: Auto Power Down Breakdown: | F14: GEORGIA | G14: 5 | H14: 3.941040939 | I14: 1.827062741 | J14: 2 | K14: 93 | M14: MARYLAND | N14: 5 | O14: 0.003959878022 | Q14: 2 | R14: 128 | T14: MARYLAND | U14: 5 | V14: 1.951316772 | W14: 0.942087077 | X14: 3 | Y14: 103 | AA14: MARYLAND | AB14: 5 | AC14: 5.462623237 | AE14: 3 | AF14: 33 | AH14: CALIFORNIA | AI14: 11 | AJ14: 13.02169456 | AK14: 2.022094803 | AL14: 3 | AM14: 41.5 | AO14: CALIFORNIA | AP14: 11 | AQ14: 7.269727183 | AS14: 3 | AT14: 33 | AV14: FLORIDA | AW14: 13 | AX14: 5.648465861 | AY14: 3.024131762 | AZ14: 3 | BA14: 23 | BC14: CALIFORNIA | BD14: 11 | BE14: 7.556320636 | BG14: 3 | BH14: 27.375
B15: ="- On-Mode" -> - On-Mode | C15: =IF(sleep_dist=0, $C$11-$C$17, 0) -> 0 | D15: hours per day | F15: GEORGIA | G15: 5 | H15: 2.858283888 | I15: 1.609272527 | J15: 1 | K15: 89.25 | M15: OREGON | N15: 9 | O15: 3.438092711 | Q15: 3 | R15: 18 | T15: TEXAS | U15: 12 | V15: 3.032687294 | W15: 0.2874272115 | X15: 2 | Y15: 81.57142857 | AA15: ILLINOIS | AB15: 3 | AC15: 4.836864197 | AE15: 2 | AF15: 38 | AH15: MARYLAND | AI15: 5 | AJ15: 3.150375996 | AK15: 3.234186911 | AL15: 3 | AM15: 108 | AO15: INDIANA | AP15: 3 | AQ15: 0.3218767733 | AS15: 3 | AT15: 100.5 | AV15: NEW HAMPSHIRE | AW15: 1 | AX15: 5.64712963 | AY15: 5.981729497 | AZ15: 3 | BA15: 38 | BC15: FLORIDA | BD15: 13 | BE15: 0.7444351056 | BG15: 3 | BH15: 94.25
B16: ="- Sleep Mode" -> - Sleep Mode | C16: =($C$13-$C$17)*sleep_dist -> 10.43046697 | D16: hours per day | F16: OREGON | G16: 9 | H16: 0.7749950397 | I16: 3.636184941 | J16: 2 | K16: 34.66666667 | M16: CALIFORNIA | N16: 11 | O16: 0.2999603175 | Q16: 3 | R16: 138 | T16: OHIO | U16: 3 | V16: 1.548616071 | W16: 0.9386904762 | X16: 2 | Y16: 71.75 | AA16: MICHIGAN | AB16: 3 | AC16: 0.4269659735 | AE16: 3 | AF16: 55.5 | AH16: COLORADO | AI16: 8 | AJ16: 6.588657517 | AK16: 5.147288602 | AL16: 3 | AM16: 83.55555556 | AO16: VIRGINIA | AP16: 5 | AQ16: 6.03838459 | AS16: 3 | AT16: 48 | AV16: PENNSYLVANIA | AW16: 2 | AX16: 6.850475198 | AY16: 0.052189862 | AZ16: 3 | BA16: 28 | BC16: MINNESOTA | BD16: 4 | BE16: 0.6500579986 | BG16: 3 | BH16: 198
B17: ="- APD Mode" -> - APD Mode | C17: =IF($C$19=0, VLOOKUP(MAX(MIN(ROUND(SUM($C$5:$C$6), 0), 20), 1), 'Adjustment Factors'!$F$8:$G$27, 2,FALSE), VLOOKUP(MAX(MIN(ROUND(SUM(C8:C9), 0), 20), 1), 'Adjustment Factors'!F8:G27, 2,FALSE)) -> 4.01 | D17: hours per day | F17: ILLINOIS | G17: 3 | H17: 4.725061544 | I17: 0.0328024136 | J17: 2 | K17: 43 | M17: CALIFORNIA | N17: 11 | O17: 0.05927684306 | Q17: 2 | R17: 73 | T17: CALIFORNIA | U17: 11 | V17: 2.612455285 | W17: 0.006007201459 | X17: 2 | Y17: 123 | AA17: PENNSYLVANIA | AB17: 2 | AC17: 1.452644778 | AE17: 2 | AF17: 21.125 | AH17: UTAH | AI17: 8 | AJ17: 0.8472286266 | AK17: 7.084578864 | AL17: 3 | AM17: 133 | AO17: MARYLAND | AP17: 5 | AQ17: 1.780532997 | AS17: 3 | AT17: 57.09090909 | AV17: MICHIGAN | AW17: 3 | AX17: 1.237470982 | AY17: 2.735877824 | AZ17: 3 | BA17: 105.7777778 | BC17: INDIANA | BD17: 3 | BE17: 3.483302734 | BG17: 3 | BH17: 16.18181818
F18: ALABAMA | G18: 6 | H18: 5.453220072 | I18: 4.659441516 | J18: 2 | K18: 83 | M18: CALIFORNIA | N18: 11 | O18: 12.4669833 | Q18: 3 | R18: 32.58333333 | T18: ILLINOIS | U18: 3 | V18: 7.794136721 | W18: 0.004665646683 | X18: 3 | Y18: 23 | AA18: PENNSYLVANIA | AB18: 2 | AC18: 7.382636685 | AE18: 4.5 | AF18: 28 | AH18: CALIFORNIA | AI18: 11 | AJ18: 4.120103072 | AK18: 2.811173355 | AL18: 3 | AM18: 73.45454545 | AO18: FLORIDA | AP18: 13 | AQ18: 4.012874566 | AS18: 3 | AT18: 70.5 | AV18: MASSACHUSETTS | AW18: 1 | AX18: 8.500587663 | AY18: 0.002877790805 | AZ18: 3 | BA18: 24.66666667 | BC18: ILLINOIS | BD18: 3 | BE18: 4.76057705 | BG18: 3 | BH18: 23
B19: Server? | C19: =IF(RIGHT(choice_PC, 6) = "Server", 1, 0) -> 0 | D19: 0=no, 1=yes | F19: NORTH CAROLINA | G19: 5 | H19: 5.003712713 | I19: 4.845816593 | J19: 2 | K19: 173 | M19: CALIFORNIA | N19: 11 | O19: 6.723239921 | Q19: 4 | R19: 38 | T19: MARYLAND | U19: 5 | V19: 3.406663752 | W19: 1.030407191 | X19: 3 | Y19: 58 | AA19: FLORIDA | AB19: 13 | AC19: 7.625443866 | AE19: 1 | AF19: 55.5 | AH19: IDAHO | AI19: 8 | AJ19: 3.841914683 | AK19: 7.302349986 | AL19: 3 | AM19: 18 | AO19: CONNECTICUT | AP19: 1 | AQ19: 3.148459321 | AS19: 3 | AT19: 18 | AV19: CALIFORNIA | AW19: 11 | AX19: 2.219975929 | AY19: 1.759589209 | AZ19: 3 | BA19: 141.8888889 | BC19: NEW JERSEY | BD19: 2 | BE19: 1.294074823 | BG19: 3 | BH19: 113
B20: # of TVs | C20: =OFFSET($J$4, $C$32, ($D$48-1)*(COUNTA(F4:K4)+1)) -> 3 | F20: WASHINGTON | G20: 9 | H20: 2.40489418 | I20: 2.064996407 | J20: 4 | K20: 87.16666667 | M20: CALIFORNIA | N20: 11 | O20: 5.436302988 | Q20: 4 | R20: 128 | T20: OHIO | U20: 3 | V20: 4.874849764 | W20: 0.00425592283 | X20: 3 | Y20: 68 | AA20: FLORIDA | AB20: 13 | AC20: 1.520914338 | AE20: 4 | AF20: 53 | AH20: NEW JERSEY | AI20: 2 | AJ20: 6.045644977 | AK20: 5.971752932 | AL20: 3 | AM20: 20 | AO20: LOUISIANA | AP20: 7 | AQ20: 3.091266656 | AS20: 3 | AT20: 102 | AV20: MARYLAND | AW20: 5 | AX20: 1.834165263 | AY20: 0.01850161275 | AZ20: 3 | BA20: 236.3333333 | BC20: ILLINOIS | BD20: 3 | BE20: 1.427118056 | BG20: 3 | BH20: 52.58333333
B21: On-Mode Factor | C21: =IF($C$5>0, OFFSET('Adjustment Factors'!$I$7, MIN($C$20, 5), MAX(ROUND($C$5, 0), 1)), 0) -> 1.641 | F21: ILLINOIS | G21: 3 | H21: 0.3759314786 | I21: 0.004636779327 | J21: 3.5 | K21: 53 | M21: WASHINGTON | N21: 9 | O21: 5.575119048 | Q21: 1 | R21: 83 | T21: TEXAS | U21: 12 | V21: 3.220421627 | W21: 1.358581349 | X21: 2 | Y21: 66.33333333 | AA21: PENNSYLVANIA | AB21: 2 | AC21: 0.2858660104 | AE21: 3 | AF21: 133 | AH21: TEXAS | AI21: 12 | AJ21: 5.707326982 | AK21: 0.3462349502 | AL21: 3 | AM21: 98 | AO21: CALIFORNIA | AP21: 11 | AQ21: 5.379613526 | AS21: 3 | AT21: 48 | AV21: TEXAS | AW21: 12 | AX21: 2.099729653 | AY21: 1.756090219 | AZ21: 3 | BA21: 48 | BC21: OREGON | BD21: 9 | BE21: 2.655936531 | BG21: 3 | BH21: 155.8571429
B22: On-Mode Percent | C22: =OFFSET('Adjustment Factors'!$I$15, MIN($C$20, 5), MAX(ROUND($C$5, 0), 1)) -> 0.1371115174 | F22: MISSOURI | G22: 4 | H22: 6.601938933 | I22: 2.924136319 | J22: 2 | K22: 98 | M22: TEXAS | N22: 12 | O22: 3.564103302 | Q22: 3 | R22: 83 | T22: CALIFORNIA | U22: 11 | V22: 8.643074786 | W22: 2.970767387 | X22: 6 | Y22: 113 | AA22: PENNSYLVANIA | AB22: 2 | AC22: 5.737540445 | AE22: 3 | AF22: 68 | AH22: ILLINOIS | AI22: 3 | AJ22: 8.78645995 | AK22: 7.553784153 | AL22: 3 | AM22: 34.81818182 | AO22: CALIFORNIA | AP22: 11 | AQ22: 14.21297379 | AS22: 3 | AT22: 54.81818182 | AV22: SOUTH CAROLINA | AW22: 5 | AX22: 1.993457341 | AY22: 2.499813988 | AZ22: 3 | BA22: 35.5 | BC22: ILLINOIS | BD22: 3 | BE22: 0.7196079189 | BG22: 3 | BH22: 100.7272727
B23: DVR Factor | C23: =IF($C$6>0, OFFSET('Adjustment Factors'!$I$7, MIN($C$20, 5), MAX(ROUND($C$6, 0), 1)), 0) -> 0 | F23: NORTH CAROLINA | G23: 5 | H23: 3.752449688 | I23: 0.002843992206 | J23: 2 | K23: 43 | M23: OHIO | N23: 3 | O23: 5.878228306 | Q23: 1 | R23: 23 | T23: GEORGIA | U23: 5 | V23: 6.256226922 | W23: 0.1020007645 | X23: 2 | Y23: 13 | AA23: FLORIDA | AB23: 13 | AC23: 2.450739749 | AE23: 3 | AF23: 33 | AH23: CONNECTICUT | AI23: 1 | AJ23: 3.079810334 | AK23: 0.1016455547 | AL23: 3 | AM23: 53 | AO23: NEW YORK | AP23: 10 | AQ23: 8.972238359 | AS23: 3 | AT23: 78 | AV23: CALIFORNIA | AW23: 11 | AX23: 4.272238796 | AY23: 7.074848716 | AZ23: 3 | BA23: 153 | BC23: FLORIDA | BD23: 13 | BE23: 2.813451087 | BG23: 3 | BH23: 18
F24: WASHINGTON | G24: 9 | H24: 9.795275301 | I24: 0.4569285919 | J24: 4 | K24: 58 | M24: MARYLAND | N24: 5 | O24: 2.5313816 | Q24: 2 | R24: 83 | T24: GEORGIA | U24: 5 | V24: 2.081117725 | W24: 2.531626157 | X24: 4 | Y24: 83.41666667 | AA24: COLORADO | AB24: 8 | AC24: 3.352703981 | AE24: 1 | AF24: 48 | AH24: MISSOURI | AI24: 4 | AJ24: 2.267049254 | AK24: 3.021779243 | AL24: 3 | AM24: 98 | AO24: TEXAS | AP24: 12 | AQ24: 6.503802083 | AS24: 3 | AT24: 88 | AV24: GEORGIA | AW24: 5 | AX24: 4.36443781 | AY24: 0.004550863511 | AZ24: 3 | BA24: 103 | BC24: ILLINOIS | BD24: 3 | BE24: 3.584890017 | BG24: 3 | BH24: 13
B25: To Electricity Prices: | F25: NORTH CAROLINA | G25: 5 | H25: 6.921155754 | I25: 0.6433089903 | J25: 2 | K25: 43 | M25: MISSOURI | N25: 4 | O25: 4.682313693 | Q25: 2 | R25: 26.33333333 | T25: MASSACHUSETTS | U25: 1 | V25: 5.481465949 | W25: 3.995327545 | X25: 2 | Y25: 53.45454545 | AA25: FLORIDA | AB25: 13 | AC25: 3.527293481 | AE25: 1 | AF25: 38 | AH25: MINNESOTA | AI25: 4 | AJ25: 5.108467301 | AK25: 3.071472738 | AL25: 3 | AM25: 28 | AO25: MICHIGAN | AP25: 3 | AQ25: 5.124083995 | AS25: 3 | AT25: 133 | AV25: CALIFORNIA | AW25: 11 | AX25: 5.868502383 | AY25: 0.02185816589 | AZ25: 3 | BA25: 13 | BC25: GEORGIA | BD25: 5 | BE25: 3.12368445 | BG25: 3 | BH25: 18
B26: State | C26: =OFFSET($F$4, $C$32, ($D$48-1)*(COUNTA(F4:K4)+1)) -> MICHIGAN | D26: to select Electricity Price | F26: ARIZONA | G26: 8 | H26: 4.976724324 | I26: 1.979450927 | J26: 2 | K26: 113 | M26: FLORIDA | N26: 13 | O26: 3.474935601 | Q26: 4 | R26: 16 | T26: TEXAS | U26: 12 | V26: 0.9107441024 | W26: 0.09898604583 | X26: 3 | Y26: 471 | AA26: NORTH CAROLINA | AB26: 5 | AC26: 5.449241917 | AE26: 1 | AF26: 13 | AH26: DELAWARE | AI26: 5 | AJ26: 7.329006618 | AK26: 0.6080421395 | AL26: 3 | AM26: 43 | AO26: CALIFORNIA | AP26: 11 | AQ26: 0.03558119714 | AS26: 3 | AT26: 183 | AV26: FLORIDA | AW26: 13 | AX26: 6.885167909 | AY26: 11.66672011 | AZ26: 3 | BA26: 83 | BC26: NEW JERSEY | BD26: 2 | BE26: 1.5484375 | BG26: 3 | BH26: 31.33333333
B27: To Electricity Price Trend: | F27: ILLINOIS | G27: 3 | H27: 2.51204601 | I27: 2.551307567 | J27: 2 | K27: 168 | M27: NEW MEXICO | N27: 8 | O27: 12.68230159 | Q27: 1 | R27: 8 | T27: FLORIDA | U27: 13 | V27: 4.211557256 | W27: 0.7793188498 | X27: 4 | Y27: 53 | AA27: MASSACHUSETTS | AB27: 1 | AC27: 0.5738546035 | AE27: 2 | AF27: 116.3333333 | AH27: PENNSYLVANIA | AI27: 2 | AJ27: 9.591304772 | AK27: 1.333801483 | AL27: 3 | AM27: 35.77777778 | AO27: ARIZONA | AP27: 8 | AQ27: 1.175311768 | AS27: 3 | AT27: 58 | AV27: MARYLAND | AW27: 5 | AX27: 3.993598677 | AY27: 0.005632734596 | AZ27: 3 | BA27: 123 | BC27: NEW JERSEY | BD27: 2 | BE27: 3.628216496 | BG27: 3 | BH27: 83
B28: Div & Lrg State | C28: =OFFSET($G$4, $C$32, ($D$48-1)*(COUNTA(F4:K4)+1)) -> 3 | F28: MICHIGAN | G28: 3 | H28: 10.44540975 | I28: 1.216339156 | J28: 2 | K28: 89 | M28: TEXAS | N28: 12 | O28: 8.018075815 | Q28: 3 | R28: 188 | T28: UTAH | U28: 8 | V28: 4.718082727 | W28: 0.1684946637 | X28: 2 | Y28: 83 | AA28: GEORGIA | AB28: 5 | AC28: 4.809588294 | AE28: 4 | AF28: 48 | AH28: GEORGIA | AI28: 5 | AJ28: 5.161796502 | AK28: 2.06552232 | AL28: 3 | AM28: 147.2857143 | AO28: MICHIGAN | AP28: 3 | AQ28: 2.923501984 | AS28: 3 | AT28: 13 | AV28: OREGON | AW28: 9 | AX28: 2.353478461 | AY28: 4.391144718 | AZ28: 3 | BA28: 39.66666667 | BC28: CALIFORNIA | BD28: 11 | BE28: 3.783552789 | BG28: 3 | BH28: 40.5
B29: Census Division | C29: =IF(C28<10, C28, IF(C28=10, 2, IF(C28=11, 9, IF(C28=12, 7, IF(C28=13, 5))))) -> 3 | D29: to select Price Trend | F29: GEORGIA | G29: 5 | H29: 8.37341894 | I29: 0.1628401703 | J29: 1 | K29: 38 | M29: CALIFORNIA | N29: 11 | O29: 1.749099702 | Q29: 3 | R29: 60.5 | T29: NORTH CAROLINA | U29: 5 | V29: 3.105044589 | W29: 0.002206774801 | X29: 4 | Y29: 83 | AA29: MICHIGAN | AB29: 3 | AC29: 0.5671504518 | AE29: 3 | AF29: 94.5 | AH29: PENNSYLVANIA | AI29: 2 | AJ29: 4.305641912 | AK29: 0.004640402496 | AL29: 3 | AM29: 51 | AO29: MISSOURI | AP29: 4 | AQ29: 4.138769444 | AS29: 3 | AT29: 43 | AV29: DELAWARE | AW29: 5 | AX29: 7.154959844 | AY29: 0.05705556366 | AZ29: 3 | BA29: 23 | BC29: MICHIGAN | BD29: 3 | BE29: 0.4862563098 | BG29: 3 | BH29: 3
F30: ARIZONA | G30: 8 | H30: 8.17477947 | I30: 0.3246267734 | J30: 3 | K30: 53 | M30: ILLINOIS | N30: 3 | O30: 1.640247758 | Q30: 2 | R30: 23 | T30: MARYLAND | U30: 5 | V30: 3.353032429 | W30: 0.003841543039 | X30: 4.5 | Y30: 93 | AA30: MISSOURI | AB30: 4 | AC30: 1.798959829 | AE30: 5.5 | AF30: 213 | AH30: TEXAS | AI30: 12 | AJ30: 9.415081345 | AK30: 4.232075309 | AL30: 3 | AM30: 38 | AO30: NEW HAMPSHIRE | AP30: 1 | AQ30: 5.774347376 | AS30: 3 | AT30: 48 | AV30: NEW YORK | AW30: 10 | AX30: 1.696046472 | AY30: 3.436256419 | AZ30: 3 | BA30: 173 | BC30: WASHINGTON | BD30: 9 | BE30: 0.5820955359 | BG30: 3 | BH30: 63
B31: Distributions | F31: TEXAS | G31: 12 | H31: 7.622751323 | I31: 2.590773532 | J31: 4 | K31: 98 | M31: MISSISSIPPI | N31: 6 | O31: 13.48279123 | Q31: 1 | R31: 33 | T31: OREGON | U31: 9 | V31: 12.6772619 | W31: 0.5402281746 | X31: 1 | Y31: 42.58333333 | AA31: MASSACHUSETTS | AB31: 1 | AC31: 0.09207697939 | AE31: 3 | AF31: 213 | AH31: OREGON | AI31: 9 | AJ31: 6.359495701 | AK31: 0.9548782656 | AL31: 3 | AM31: 23 | AO31: PENNSYLVANIA | AP31: 2 | AQ31: 7.156325988 | AS31: 3 | AT31: 53 | AV31: ILLINOIS | AW31: 3 | AX31: 7.59254431 | AY31: 0.006721423923 | AZ31: 3 | BA31: 63 | BC31: GEORGIA | BD31: 5 | BE31: 1.711879157 | BG31: 3 | BH31: 103
B32: row offset = | C32: =OFFSET(C35, OFFSET(D48, iPC, ), ) -> 1 | F32: LOUISIANA | G32: 7 | H32: 4.5668077 | I32: 0.1192759861 | J32: 2 | K32: 23 | M32: CALIFORNIA | N32: 11 | O32: 7.269727183 | Q32: 3 | R32: 33 | T32: FLORIDA | U32: 13 | V32: 1.51300804 | W32: 1.169817496 | X32: 3 | Y32: 67.09090909 | AA32: OHIO | AB32: 3 | AC32: 13.47212894 | AE32: 2 | AF32: 18 | AH32: CALIFORNIA | AI32: 11 | AJ32: 1.698973214 | AK32: 3.392964388 | AL32: 3 | AM32: 146.75 | AO32: MARYLAND | AP32: 5 | AQ32: 2.941809823 | AS32: 3 | AT32: 93 | AV32: FLORIDA | AW32: 13 | AX32: 7.036547959 | AY32: 0.002534061146 | AZ32: 3 | BA32: 23 | BC32: CALIFORNIA | BD32: 11 | BE32: 3.357673338 | BG32: 3 | BH32: 35.5
F33: ILLINOIS | G33: 3 | H33: 2.997208386 | I33: 11.67668839 | J33: 2 | K33: 33 | M33: SOUTH CAROLINA | N33: 5 | O33: 5.531306627 | Q33: 2 | R33: 78 | T33: NEW HAMPSHIRE | U33: 1 | V33: 5.934513659 | W33: 0.228531024 | X33: 1 | Y33: 108 | AA33: PENNSYLVANIA | AB33: 2 | AC33: 6.834146512 | AE33: 1 | AF33: 53 | AH33: FLORIDA | AI33: 13 | AJ33: 8.641867784 | AK33: 2.875328123 | AL33: 3 | AM33: 53 | AO33: ILLINOIS | AP33: 3 | AQ33: 2.353794533 | AS33: 3 | AT33: 38 | AV33: OHIO | AW33: 3 | AX33: 3.600426444 | AY33: 1.302343545 | AZ33: 3 | BA33: 28 | BC33: MASSACHUSETTS | BD33: 1 | BE33: 1.516816321 | BG33: 3 | BH33: 64.5
F34: PENNSYLVANIA | G34: 2 | H34: 9.471685763 | I34: 0.5712783876 | J34: 3 | K34: 58 | M34: ILLINOIS | N34: 3 | O34: 6.601754044 | Q34: 4 | R34: 253 | T34: PENNSYLVANIA | U34: 2 | V34: 8.549051579 | W34: 0.01024411477 | X34: 1 | Y34: 23 | AA34: WASHINGTON | AB34: 9 | AC34: 2.780509684 | AE34: 1 | AF34: 38 | AH34: NEW YORK | AI34: 10 | AJ34: 6.113982316 | AK34: 2.881071272 | AL34: 3 | AM34: 123 | AO34: ILLINOIS | AP34: 3 | AQ34: 8.706386608 | AS34: 3 | AT34: 10.5 | AV34: FLORIDA | AW34: 13 | AX34: 7.630147771 | AY34: 0.001418640943 | AZ34: 3 | BA34: 43 | BC34: MISSOURI | BD34: 4 | BE34: 1.141638044 | BG34: 3 | BH34: 58
B35: Sample Selection | F35: ALABAMA | G35: 6 | H35: 1.909546952 | I35: 1.457696106 | J35: 2 | K35: 73 | M35: TEXAS | N35: 12 | O35: 2.2400376 | Q35: 4 | R35: 23 | T35: ALASKA | U35: 9 | V35: 1.018140641 | W35: 0.04875917954 | X35: 2 | Y35: 53 | AA35: MINNESOTA | AB35: 4 | AC35: 0.3244369059 | AE35: 2.5 | AF35: 243 | AH35: NEW YORK | AI35: 10 | AJ35: 4.577750172 | AK35: 1.523985008 | AL35: 3 | AM35: 158 | AO35: IOWA | AP35: 4 | AQ35: 2.164134802 | AS35: 3 | AT35: 40.27272727 | AV35: VIRGINIA | AW35: 5 | AX35: 5.632363527 | AY35: 2.0974825 | AZ35: 3 | BA35: 43 | BC35: MICHIGAN | BD35: 3 | BE35: 1.648015952 | BG35: 3 | BH35: 40.22222222
B36: DBT DVR | C36: 1 | D36: 1 | F36: ILLINOIS | G36: 3 | H36: 0.6821322244 | I36: 4.063828115 | J36: 5.5 | K36: 360.5 | M36: INDIANA | N36: 3 | O36: 0.3218767733 | Q36: 3 | R36: 100.5 | T36: CALIFORNIA | U36: 11 | V36: 10.025 | W36: 0.04181547619 | X36: 2 | Y36: 29.66666667 | AA36: NORTH CAROLINA | AB36: 5 | AC36: 3.175198016 | AE36: 2 | AF36: 23 | AH36: INDIANA | AI36: 3 | AJ36: 3.90391935 | AK36: 5.992793951 | AL36: 3 | AM36: 33 | AO36: WEST VIRGINIA | AP36: 5 | AQ36: 3.214766333 | AS36: 3 | AT36: 123 | AV36: MARYLAND | AW36: 5 | AX36: 3.162445678 | AY36: 1.996494135 | AZ36: 3 | BA36: 173.625 | BC36: CALIFORNIA | BD36: 11 | BE36: 6.013349632 | BG36: 3 | BH36: 33
B37: DBT without DVR | C37: 1 | D37: 2 | F37: GEORGIA | G37: 5 | H37: 7.033752919 | I37: 0.02194463989 | J37: 2 | K37: 78 | M37: MICHIGAN | N37: 3 | O37: 0.8528842502 | Q37: 1 | R37: 73 | T37: CALIFORNIA | U37: 11 | V37: 4.821269063 | W37: 0.09054780521 | X37: 2 | Y37: 78.55555556 | AA37: NEW JERSEY | AB37: 2 | AC37: 5.774813978 | AE37: 2 | AF37: 34 | AH37: TEXAS | AI37: 12 | AJ37: 5.098694562 | AK37: 0.5831596754 | AL37: 3 | AM37: 164.875 | AO37: GEORGIA | AP37: 5 | AQ37: 7.107843089 | AS37: 3 | AT37: 78 | AV37: NORTH CAROLINA | AW37: 5 | AX37: 1.71534664 | AY37: 5.354501052 | AZ37: 3 | BA37: 145.7272727 | BC37: CALIFORNIA | BD37: 11 | BE37: 2.343065596 | BG37: 3 | BH37: 58.625
B38: CBT DVR | C38: 1 | D38: 3 | F38: NEW JERSEY | G38: 2 | H38: 5.332164821 | I38: 13.42569617 | J38: 3 | K38: 53 | M38: ARIZONA | N38: 8 | O38: 3.394945437 | Q38: 4 | R38: 75.5 | T38: TEXAS | U38: 12 | V38: 3.328160256 | W38: 3.281388602 | X38: 2 | Y38: 38 | AA38: GEORGIA | AB38: 5 | AC38: 0.3672667163 | AE38: 4 | AF38: 125.8571429 | AH38: CALIFORNIA | AI38: 11 | AJ38: 5.080830846 | AK38: 0.01711816006 | AL38: 3 | AM38: 8 | AO38: ALABAMA | AP38: 6 | AQ38: 3.46386579 | AS38: 3 | AT38: 38.55555556 | AV38: FLORIDA | AW38: 13 | AX38: 2.243578042 | AY38: 0.6336185516 | AZ38: 3 | BA38: 69.25 | BC38: MASSACHUSETTS | BD38: 1 | BE38: 0.2137153966 | BG38: 3 | BH38: 233.5
B39: CBT without DVR | C39: 1 | D39: 4 | F39: TEXAS | G39: 12 | H39: 1.158506944 | I39: 13.11564291 | J39: 3 | K39: 59.25 | M39: UTAH | N39: 8 | O39: 0.6397763348 | Q39: 2 | R39: 88 | T39: FLORIDA | U39: 13 | V39: 11.75746033 | W39: 0.1339609534 | X39: 1 | Y39: 43 | AA39: OHIO | AB39: 3 | AC39: 2.502755993 | AE39: 4 | AF39: 43 | AH39: CALIFORNIA | AI39: 11 | AJ39: 3.788481096 | AK39: 2.62713624 | AL39: 3 | AM39: 73 | AO39: CALIFORNIA | AP39: 11 | AQ39: 0.330382909 | AS39: 3 | AT39: 93 | AV39: FLORIDA | AW39: 13 | AX39: 3.671117637 | AY39: 3.198621087 | AZ39: 3 | BA39: 8 | BC39: FLORIDA | BD39: 13 | BE39: 0.9264764658 | BG39: 3 | BH39: 65.85714286
B40: DBT DVR Server | C40: 1 | D40: 5 | F40: TEXAS | G40: 12 | H40: 5.679175106 | I40: 0.5309367596 | J40: 2 | K40: 33 | M40: CALIFORNIA | N40: 11 | O40: 4.359394841 | Q40: 2 | R40: 65.08333333 | T40: PENNSYLVANIA | U40: 2 | V40: 4.676328094 | W40: 0.005122057386 | X40: 1 | Y40: 93 | AA40: PENNSYLVANIA | AB40: 2 | AC40: 6.237190247 | AE40: 4 | AF40: 38 | AH40: NORTH CAROLINA | AI40: 5 | AJ40: 3.262806151 | AK40: 4.825218209 | AL40: 3 | AM40: 9.666666667 | AO40: OHIO | AP40: 3 | AQ40: 5.089237723 | AS40: 3 | AT40: 38 | AV40: FLORIDA | AW40: 13 | AX40: 21.09658154 | AY40: 0.004179968513 | AZ40: 3 | BA40: 48 | BC40: TENNESSEE | BD40: 6 | BE40: 16.16584325 | BG40: 3 | BH40: 23
B41: DBT Server | C41: 1 | D41: 6 | F41: FLORIDA | G41: 13 | H41: 2.065995794 | I41: 0.4823460684 | J41: 1 | K41: 19.66666667 | M41: UTAH | N41: 8 | O41: 0.4291335007 | Q41: 2 | R41: 75.27272727 | T41: CALIFORNIA | U41: 11 | V41: 3.762758285 | W41: 1.801621088 | X41: 3 | Y41: 39.25 | AA41: VIRGINIA | AB41: 5 | AC41: 1.006238336 | AE41: 2 | AF41: 121.5 | AH41: NORTH CAROLINA | AI41: 5 | AJ41: 2.218242969 | AK41: 0.6041986031 | AL41: 3 | AM41: 53 | AO41: MINNESOTA | AP41: 4 | AQ41: 1.089637897 | AS41: 3 | AT41: 74.25 | AV41: FLORIDA | AW41: 13 | AX41: 7.287926281 | AY41: 0.02414495123 | AZ41: 3 | BA41: 53 | BC41: FLORIDA | BD41: 13 | BE41: 1.722643471 | BG41: 3 | BH41: 103
B42: CBT DVR Server | C42: 1 | D42: 7 | F42: NORTH CAROLINA | G42: 5 | H42: 3.198083694 | I42: 4.965871791 | J42: 3 | K42: 113 | M42: VIRGINIA | N42: 5 | O42: 6.03838459 | Q42: 3 | R42: 48 | T42: COLORADO | U42: 8 | V42: 1.902579018 | W42: 0.0697168922 | X42: 3 | Y42: 123 | AA42: CALIFORNIA | AB42: 11 | AC42: 7.556320636 | AE42: 3 | AF42: 27.375 | AH42: CALIFORNIA | AI42: 11 | AJ42: 4.15490933 | AK42: 1.54245066 | AL42: 3 | AM42: 90 | AO42: COLORADO | AP42: 8 | AQ42: 2.606359438 | AS42: 3 | AT42: 38 | AV42: FLORIDA | AW42: 13 | AX42: 4.927020923 | AY42: 0.09702977121 | AZ42: 3 | BA42: 8 | BC42: VIRGINIA | BD42: 5 | BE42: 2.680216122 | BG42: 3 | BH42: 18
B43: CBT Server | C43: 1 | D43: 8 | F43: CALIFORNIA | G43: 11 | H43: 13.02169456 | I43: 2.022094803 | J43: 3 | K43: 41.5 | M43: MASSACHUSETTS | N43: 1 | O43: 14.21863566 | Q43: 2 | R43: 98 | T43: TEXAS | U43: 12 | V43: 3.404142692 | W43: 0.500369957 | X43: 5 | Y43: 119.25 | AA43: FLORIDA | AB43: 13 | AC43: 0.7444351056 | AE43: 3 | AF43: 94.25 | AH43: VIRGINIA | AI43: 5 | AJ43: 2.83285114 | AK43: 1.182434826 | AL43: 3 | AM43: 88 | AO43: WYOMING | AP43: 8 | AQ43: 0.07351617177 | AS43: 3 | AT43: 228 | AV43: MARYLAND | AW43: 5 | AX43: 5.003282077 | AY43: 1.054491154 | AZ43: 3 | BA43: 85.91666667 | BC43: VIRGINIA | BD43: 5 | BE43: 0.7329797652 | BG43: 3 | BH43: 68
F44: GEORGIA | G44: 5 | H44: 5.335694444 | I44: 0.6933793475 | J44: 2 | K44: 59.25 | M44: INDIANA | N44: 3 | O44: 2.592347315 | Q44: 1 | R44: 23 | T44: PENNSYLVANIA | U44: 2 | V44: 2.424527497 | W44: 0.4161163518 | X44: 2 | Y44: 83 | AA44: PENNSYLVANIA | AB44: 2 | AC44: 0.4576301115 | AE44: 2.5 | AF44: 48 | AH44: WASHINGTON | AI44: 9 | AJ44: 3.702901457 | AK44: 2.676654634 | AL44: 3 | AM44: 121 | AO44: SOUTH CAROLINA | AP44: 5 | AQ44: 0.008429056926 | AS44: 3 | AT44: 63 | AV44: FLORIDA | AW44: 13 | AX44: 3.554607064 | AY44: 3.53685559 | AZ44: 3 | BA44: 208 | BC44: FLORIDA | BD44: 13 | BE44: 8.508048826 | BG44: 3 | BH44: 45.5
B45: Sleep Distribution | C45: 1 | D45: 0 = on, 1 = sleep | F45: WASHINGTON | G45: 9 | H45: 1.83567107 | I45: 3.008384685 | J45: 2 | K45: 53 | M45: GEORGIA | N45: 5 | O45: 0.1372311676 | Q45: 2 | R45: 53 | T45: MINNESOTA | U45: 4 | V45: 7.814886873 | W45: 0.0848165946 | X45: 2 | Y45: 74.25 | AA45: NEW YORK | AB45: 10 | AC45: 0.01524781694 | AE45: 1 | AF45: 78 | AH45: GEORGIA | AI45: 5 | AJ45: 9.849125299 | AK45: 5.418255434 | AL45: 3 | AM45: 73 | AO45: TEXAS | AP45: 12 | AQ45: 2.216401679 | AS45: 3 | AT45: 53 | AV45: NEW YORK | AW45: 10 | AX45: 2.449204454 | AY45: 0.001549706812 | AZ45: 3 | BA45: 85.5 | BC45: OREGON | BD45: 9 | BE45: 3.933920769 | BG45: 3 | BH45: 23
F46: NORTH CAROLINA | G46: 5 | H46: 8.933753863 | I46: 0.00633892976 | J46: 2 | K46: 68 | M46: CALIFORNIA | N46: 11 | O46: 6.399109286 | Q46: 4 | R46: 168.625 | T46: FLORIDA | U46: 13 | V46: 5.648465861 | W46: 3.024131762 | X46: 3 | Y46: 23 | AA46: MINNESOTA | AB46: 4 | AC46: 0.6500579986 | AE46: 3 | AF46: 198 | AH46: GEORGIA | AI46: 5 | AJ46: 2.574392052 | AK46: 0.004046947411 | AL46: 3 | AM46: 80.5 | AO46: FLORIDA | AP46: 13 | AQ46: 4.919335039 | AS46: 3 | AT46: 25.5 | AV46: NEW JERSEY | AW46: 2 | AX46: 4.891885261 | AY46: 0.9140685366 | AZ46: 3 | BA46: 58 | BC46: DISTRICT OF COLUMBIA | BD46: 5 | BE46: 3.916854838 | BG46: 3 | BH46: 63
B47: Definitions | F47: WASHINGTON | G47: 9 | H47: 6.113299624 | I47: 0.6226849029 | J47: 5 | K47: 99.66666667 | M47: MARYLAND | N47: 5 | O47: 1.780532997 | Q47: 3 | R47: 57.09090909 | T47: NEW HAMPSHIRE | U47: 1 | V47: 4.515420822 | W47: 0.394764643 | X47: 6 | Y47: 174.25 | AA47: PENNSYLVANIA | AB47: 2 | AC47: 2.782851405 | AE47: 1 | AF47: 33 | AH47: CALIFORNIA | AI47: 11 | AJ47: 0.4345577149 | AK47: 2.475453612 | AL47: 3 | AM47: 305 | AO47: PENNSYLVANIA | AP47: 2 | AQ47: 4.460185185 | AS47: 3 | AT47: 20.5 | AV47: PENNSYLVANIA | AW47: 2 | AX47: 11.54700263 | AY47: 0.6612746664 | AZ47: 3 | BA47: 66.75 | BC47: PENNSYLVANIA | BD47: 2 | BE47: 3.068402435 | BG47: 3 | BH47: 164.3636364
B48: Product Group Mapping | C48: Current Selection: | D48: =OFFSET(D48, iPC,) -> 4 | F48: MARYLAND | G48: 5 | H48: 3.150375996 | I48: 3.234186911 | J48: 3 | K48: 108 | M48: FLORIDA | N48: 13 | O48: 5.177799205 | Q48: 1 | R48: 33 | T48: CALIFORNIA | U48: 11 | V48: 4.043884881 | W48: 0.07280922251 | X48: 1 | Y48: 75.5 | AA48: MARYLAND | AB48: 5 | AC48: 3.584753124 | AE48: 2 | AF48: 52 | AH48: OREGON | AI48: 9 | AJ48: 1.836025125 | AK48: 3.300326804 | AL48: 3 | AM48: 74.875 | AO48: FLORIDA | AP48: 13 | AQ48: 3.250696954 | AS48: 3 | AT48: 23 | AV48: VIRGINIA | AW48: 5 | AX48: 2.406805556 | AY48: 4.214186508 | AZ48: 3 | BA48: 116.3333333 | BC48: OHIO | BD48: 3 | BE48: 12.58517306 | BG48: 3 | BH48: 28
B49: Cable Base | C49: =INDEX($B$36:$B$43, D49) -> CBT without DVR | D49: 4 | F49: MICHIGAN | G49: 3 | H49: 3.112073413 | I49: 3.732586481 | J49: 4.5 | K49: 38 | M49: ARIZONA | N49: 8 | O49: 1.046004184 | Q49: 4 | R49: 130.2727273 | T49: VIRGINIA | U49: 5 | V49: 3.370954731 | W49: 1.34740236 | X49: 2.5 | Y49: 235.5 | AA49: TEXAS | AB49: 12 | AC49: 14.18253812 | AE49: 4.5 | AF49: 23 | AH49: WASHINGTON | AI49: 9 | AJ49: 13.62098214 | AK49: 5.461369199 | AL49: 3 | AM49: 63 | AO49: NORTH CAROLINA | AP49: 5 | AQ49: 6.111047508 | AS49: 3 | AT49: 35.27272727 | AV49: NEW YORK | AW49: 10 | AX49: 6.119741996 | AY49: 0.001501800365 | AZ49: 3 | BA49: 78 | BC49: PENNSYLVANIA | BD49: 2 | BE49: 2.349037698 | BG49: 3 | BH49: 106.3333333
B50: Cable Video Client | C50: =INDEX($B$36:$B$43, D50) -> CBT without DVR | D50: 4 | F50: FLORIDA | G50: 13 | H50: 6.289285617 | I50: 2.200310297 | J50: 2 | K50: 103 | M50: CALIFORNIA | N50: 11 | O50: 1.572174466 | Q50: 2 | R50: 18 | T50: MICHIGAN | U50: 3 | V50: 3.728540431 | W50: 1.144646435 | X50: 5 | Y50: 103 | AA50: COLORADO | AB50: 8 | AC50: 2.080925845 | AE50: 2 | AF50: 43 | AH50: VIRGINIA | AI50: 5 | AJ50: 0.5650248107 | AK50: 1.381628185 | AL50: 3 | AM50: 103 | AO50: ILLINOIS | AP50: 3 | AQ50: 3.558472222 | AS50: 3 | AT50: 65.91666667 | AV50: MARYLAND | AW50: 5 | AX50: 19.86548292 | AY50: 0.08687309281 | AZ50: 3 | BA50: 28.55555556 | BC50: PENNSYLVANIA | BD50: 2 | BE50: 0.4222073413 | BG50: 3 | BH50: 58.83333333
B51: Cable Video Server | C51: CBT Server | D51: 8 | F51: GEORGIA | G51: 5 | H51: 11.40592382 | I51: 0.3128054221 | J51: 2 | K51: 66.63636364 | M51: FLORIDA | N51: 13 | O51: 4.012874566 | Q51: 3 | R51: 70.5 | T51: PENNSYLVANIA | U51: 2 | V51: 3.308451177 | W51: 1.392542776 | X51: 4 | Y51: 93 | AA51: INDIANA | AB51: 3 | AC51: 3.483302734 | AE51: 3 | AF51: 16.18181818 | AH51: ILLINOIS | AI51: 3 | AJ51: 2.96484127 | AK51: 2.908966273 | AL51: 3 | AM51: 57.58333333 | AO51: FLORIDA | AP51: 13 | AQ51: 1.254508929 | AS51: 3 | AT51: 26.33333333 | AV51: INDIANA | AW51: 3 | AX51: 7.51645172 | AY51: 1.312677745 | AZ51: 3 | BA51: 38.83333333 | BC51: GEORGIA | BD51: 5 | BE51: 6.214323092 | BG51: 3 | BH51: 106.6363636
B52: Cable with DVR | C52: CBT DVR | D52: 3 | F52: OHIO | G52: 3 | H52: 7.274117063 | I52: 5.101483455 | J52: 2 | K52: 84.25 | M52: FLORIDA | N52: 13 | O52: 1.242893374 | Q52: 2 | R52: 43 | T52: MASSACHUSETTS | U52: 1 | V52: 3.019236111 | W52: 1.089583333 | X52: 2 | Y52: 102.1666667 | AA52: MASSACHUSETTS | AB52: 1 | AC52: 0.04096143129 | AE52: 1 | AF52: 88 | AH52: ILLINOIS | AI52: 3 | AJ52: 2.214424603 | AK52: 1.761332806 | AL52: 3 | AM52: 26.33333333 | AO52: TEXAS | AP52: 12 | AQ52: 2.760672983 | AS52: 3 | AT52: 203 | AV52: MARYLAND | AW52: 5 | AX52: 4.097302877 | AY52: 0.001267030573 | AZ52: 3 | BA52: 58 | BC52: FLORIDA | BD52: 13 | BE52: 2.654950614 | BG52: 3 | BH52: 93
B53: Cable with DVR & Video Server | C53: CBT DVR Server | D53: 7 | F53: COLORADO | G53: 8 | H53: 6.588657517 | I53: 5.147288602 | J53: 3 | K53: 83.55555556 | M53: FLORIDA | N53: 13 | O53: 0.913186995 | Q53: 2 | R53: 68 | T53: CALIFORNIA | U53: 11 | V53: 6.960786318 | W53: 0.07192655327 | X53: 1 | Y53: 83 | AA53: NEW YORK | AB53: 10 | AC53: 6.111855159 | AE53: 2 | AF53: 28.83333333 | AH53: PENNSYLVANIA | AI53: 2 | AJ53: 0.05603916567 | AK53: 0.1115005497 | AL53: 3 | AM53: 23 | AO53: OHIO | AP53: 3 | AQ53: 0.1727832269 | AS53: 3 | AT53: 108 | AV53: ALABAMA | AW53: 6 | AX53: 6.84323111 | AY53: 0.02639203028 | AZ53: 3 | BA53: 18 | BC53: KENTUCKY | BD53: 6 | BE53: 4.872708272 | BG53: 3 | BH53: 68
B54: Satellite Base | C54: DBT without DVR | D54: 2 | F54: IOWA | G54: 4 | H54: 2.788224206 | I54: 1.254311433 | J54: 4 | K54: 83.41666667 | M54: CONNECTICUT | N54: 1 | O54: 3.148459321 | Q54: 3 | R54: 18 | T54: NEW JERSEY | U54: 2 | V54: 3.062166676 | W54: 1.398458638 | X54: 5 | Y54: 143 | AA54: ILLINOIS | AB54: 3 | AC54: 8.555732248 | AE54: 1 | AF54: 81.33333333 | AH54: PENNSYLVANIA | AI54: 2 | AJ54: 4.528894349 | AK54: 0.003669222286 | AL54: 3 | AM54: 13 | AO54: WASHINGTON | AP54: 9 | AQ54: 1.223109501 | AS54: 3 | AT54: 73 | AV54: CALIFORNIA | AW54: 11 | AX54: 2.107741438 | AY54: 2.884011176 | AZ54: 3 | BA54: 78 | BC54: INDIANA | BD54: 3 | BE54: 7.548487965 | BG54: 3 | BH54: 98
B55: Satellite Video Client | C55: DBT without DVR | D55: 2 | F55: ARIZONA | G55: 8 | H55: 5.763969928 | I55: 13.47831464 | J55: 2 | K55: 28 | M55: CALIFORNIA | N55: 11 | O55: 2.840353135 | Q55: 4 | R55: 53 | T55: NEW HAMPSHIRE | U55: 1 | V55: 5.64712963 | W55: 5.981729497 | X55: 3 | Y55: 38 | AA55: FLORIDA | AB55: 13 | AC55: 4.687010778 | AE55: 2 | AF55: 15.14285714 | AH55: OHIO | AI55: 3 | AJ55: 5.784195245 | AK55: 12.99430597 | AL55: 3 | AM55: 38 | AO55: WASHINGTON | AP55: 9 | AQ55: 0.003914007342 | AS55: 3 | AT55: 43 | AV55: NEW YORK | AW55: 10 | AX55: 3.08787511 | AY55: 0.04221456473 | AZ55: 3 | BA55: 48 | BC55: MINNESOTA | BD55: 4 | BE55: 8.999317503 | BG55: 3 | BH55: 3
B56: Satellite Video Server | C56: DBT Server | D56: 6 | F56: ARIZONA | G56: 8 | H56: 4.410385777 | I56: 1.935540475 | J56: 2 | K56: 77 | M56: MAINE | N56: 1 | O56: 5.739488789 | Q56: 2 | R56: 103 | T56: TEXAS | U56: 12 | V56: 3.968956981 | W56: 3.288413674 | X56: 2 | Y56: 58 | AA56: ILLINOIS | AB56: 3 | AC56: 4.76057705 | AE56: 3 | AF56: 23 | AH56: OHIO | AI56: 3 | AJ56: 8.284474206 | AK56: 2.855669641 | AL56: 3 | AM56: 125.5 | AO56: CALIFORNIA | AP56: 11 | AQ56: 6.906936177 | AS56: 3 | AT56: 18 | AV56: TEXAS | AW56: 12 | AX56: 6.533403786 | AY56: 0.01525497239 | AZ56: 3 | BA56: 53 | BC56: MICHIGAN | BD56: 3 | BE56: 2.507160703 | BG56: 3 | BH56: 63
B57: Satellite with DVR | C57: DBT DVR | D57: 1 | F57: FLORIDA | G57: 13 | H57: 2.186694944 | I57: 0.0641510012 | J57: 1 | K57: 103 | M57: TEXAS | N57: 12 | O57: 5.291499295 | Q57: 2 | R57: 8 | T57: TEXAS | U57: 12 | V57: 10.2966104 | W57: 0.02764266309 | X57: 2 | Y57: 38 | AA57: GEORGIA | AB57: 5 | AC57: 2.392923322 | AE57: 2 | AF57: 46.75 | AH57: NEW YORK | AI57: 10 | AJ57: 7.809902433 | AK57: 2.455801145 | AL57: 3 | AM57: 33 | AO57: NORTH CAROLINA | AP57: 5 | AQ57: 0.716060228 | AS57: 3 | AT57: 68 | AV57: FLORIDA | AW57: 13 | AX57: 6.38292934 | AY57: 2.922133739 | AZ57: 3 | BA57: 78 | BC57: MASSACHUSETTS | BD57: 1 | BE57: 0.4017979707 | BG57: 3 | BH57: 23
B58: Satellite with DVR & Video Server | C58: DBT DVR Server | D58: 5 | F58: MISSOURI | G58: 4 | H58: 3.511440343 | I58: 4.116206439 | J58: 2 | K58: 23 | M58: LOUISIANA | N58: 7 | O58: 3.091266656 | Q58: 3 | R58: 102 | T58: WASHINGTON | U58: 9 | V58: 6.61473349 | W58: 0.003466905042 | X58: 1 | Y58: 23 | AA58: TEXAS | AB58: 12 | AC58: 2.768157614 | AE58: 2 | AF58: 63 | AH58: NORTH CAROLINA | AI58: 5 | AJ58: 3.32147593 | AK58: 0.1019782303 | AL58: 3 | AM58: 61 | AO58: FLORIDA | AP58: 13 | AQ58: 0.6956338009 | AS58: 3 | AT58: 183 | AV58: TEXAS | AW58: 12 | AX58: 10.15601742 | AY58: 2.88637296 | AZ58: 3 | BA58: 58 | BC58: COLORADO | BD58: 8 | BE58: 1.918911257 | BG58: 3 | BH58: 103
B59: IP Base | C59: CBT without DVR | D59: 4 | F59: MINNESOTA | G59: 4 | H59: 1.813793016 | I59: 1.381900879 | J59: 4 | K59: 100 | M59: FLORIDA | N59: 13 | O59: 2.790393779 | Q59: 4 | R59: 38 | T59: NEW YORK | U59: 10 | V59: 6.089096522 | W59: 0.1939922468 | X59: 2 | Y59: 117.2857143 | AA59: WASHINGTON | AB59: 9 | AC59: 0.12202608 | AE59: 1 | AF59: 53 | AH59: SOUTH CAROLINA | AI59: 5 | AJ59: 4.221394098 | AK59: 2.022889803 | AL59: 3 | AM59: 48 | AO59: CALIFORNIA | AP59: 11 | AQ59: 4.106871016 | AS59: 3 | AT59: 33 | AV59: CALIFORNIA | AW59: 11 | AX59: 4.099554713 | AY59: 0.003023573958 | AZ59: 3 | BA59: 95.5 | BC59: CALIFORNIA | BD59: 11 | BE59: 6.564483732 | BG59: 3 | BH59: 32.44444444
B60: IP Video Client | C60: CBT without DVR | D60: 4 | F60: ALABAMA | G60: 6 | H60: 7.436804087 | I60: 3.485995471 | J60: 2 | K60: 118 | M60: TEXAS | N60: 12 | O60: 2.275221006 | Q60: 4 | R60: 63 | T60: NEW YORK | U60: 10 | V60: 7.852114925 | W60: 0.04308179563 | X60: 2 | Y60: 48 | AA60: NORTH CAROLINA | AB60: 5 | AC60: 5.681386393 | AE60: 4 | AF60: 33 | AH60: OHIO | AI60: 3 | AJ60: 2.271405423 | AK60: 4.485529407 | AL60: 3 | AM60: 28 | AO60: TEXAS | AP60: 12 | AQ60: 0.2242202664 | AS60: 3 | AT60: 18 | AV60: FLORIDA | AW60: 13 | AX60: 2.865187115 | AY60: 1.347114927 | AZ60: 3 | BA60: 68 | BC60: FLORIDA | BD60: 13 | BE60: 2.082188102 | BG60: 3 | BH60: 38
B61: IP Video Server | C61: CBT Server | D61: 8 | F61: UTAH | G61: 8 | H61: 0.8472286266 | I61: 7.084578864 | J61: 3 | K61: 133 | M61: COLORADO | N61: 8 | O61: 13.71809524 | Q61: 1 | R61: 35.08333333 | T61: NEW YORK | U61: 10 | V61: 6.60079575 | W61: 0.1817178441 | X61: 2 | Y61: 33 | AA61: NEW JERSEY | AB61: 2 | AC61: 1.294074823 | AE61: 3 | AF61: 113 | AH61: WASHINGTON | AI61: 9 | AJ61: 5.516894254 | AK61: 0.1740626254 | AL61: 3 | AM61: 43 | AO61: FLORIDA | AP61: 13 | AQ61: 2.028587963 | AS61: 3 | AT61: 10.5 | AV61: SOUTH DAKOTA | AW61: 4 | AX61: 2.849609576 | AY61: 1.14157854 | AZ61: 3 | BA61: 3 | BC61: FLORIDA | BD61: 13 | BE61: 1.535498651 | BG61: 3 | BH61: 103
B62: IP with DVR | C62: CBT DVR | D62: 3 | F62: CALIFORNIA | G62: 11 | H62: 4.120103072 | I62: 2.811173355 | J62: 3 | K62: 73.45454545 | M62: MICHIGAN | N62: 3 | O62: 0.7374007937 | Q62: 2 | R62: 43 | T62: FLORIDA | U62: 13 | V62: 5.113847235 | W62: 0.06738526912 | X62: 1 | Y62: 48 | AA62: MASSACHUSETTS | AB62: 1 | AC62: 3.204615449 | AE62: 4 | AF62: 58 | AH62: PENNSYLVANIA | AI62: 2 | AJ62: 2.528127293 | AK62: 0.9860863274 | AL62: 3 | AM62: 98 | AO62: OHIO | AP62: 3 | AQ62: 0.01767181116 | AS62: 3 | AT62: 83 | AV62: CALIFORNIA | AW62: 11 | AX62: 2.616606735 | AY62: 0.6816793116 | AZ62: 3 | BA62: 48 | BC62: NEW JERSEY | BD62: 2 | BE62: 2.434654028 | BG62: 3 | BH62: 78
B63: IP with DVR & Video Server | C63: CBT DVR Server | D63: 7 | F63: TEXAS | G63: 12 | H63: 2.787289516 | I63: 5.812103695 | J63: 2 | K63: 48 | M63: CALIFORNIA | N63: 11 | O63: 5.379613526 | Q63: 3 | R63: 48 | T63: PENNSYLVANIA | U63: 2 | V63: 6.850475198 | W63: 0.052189862 | X63: 3 | Y63: 28 | AA63: FLORIDA | AB63: 13 | AC63: 16.12578432 | AE63: 1 | AF63: 13 | AH63: CALIFORNIA | AI63: 11 | AJ63: 4.715466342 | AK63: 5.142266322 | AL63: 3 | AM63: 88 | AO63: FLORIDA | AP63: 13 | AQ63: 5.527721561 | AS63: 3 | AT63: 33 | AV63: MICHIGAN | AW63: 3 | AX63: 7.192239859 | AY63: 1.300547013 | AZ63: 3 | BA63: 70.08333333 | BC63: CALIFORNIA | BD63: 11 | BE63: 2.794930844 | BG63: 3 | BH63: 98
B64: OTT | C64: CBT without DVR | D64: 4 | F64: IDAHO | G64: 8 | H64: 3.841914683 | I64: 7.302349986 | J64: 3 | K64: 18 | M64: CALIFORNIA | N64: 11 | O64: 14.21297379 | Q64: 3 | R64: 54.81818182 | T64: MICHIGAN | U64: 3 | V64: 1.237470982 | W64: 2.735877824 | X64: 3 | Y64: 105.7777778 | AA64: ILLINOIS | AB64: 3 | AC64: 1.427118056 | AE64: 3 | AF64: 52.58333333 | AH64: FLORIDA | AI64: 13 | AJ64: 11.20369047 | AK64: 0.4416962437 | AL64: 3 | AM64: 28 | AO64: WASHINGTON | AP64: 9 | AQ64: 3.224605143 | AS64: 3 | AT64: 168 | AV64: OREGON | AW64: 9 | AX64: 3.5080198 | AY64: 0.01478147878 | AZ64: 3 | BA64: 58 | BC64: PENNSYLVANIA | BD64: 2 | BE64: 1.630794813 | BG64: 3 | BH64: 48
B65: Thin-client | C65: CBT without DVR | D65: 4 | F65: WASHINGTON | G65: 9 | H65: 8.2847958 | I65: 3.182193014 | J65: 2 | K65: 68 | M65: GEORGIA | N65: 5 | O65: 0.4015390979 | Q65: 2.5 | R65: 43 | T65: TEXAS | U65: 12 | V65: 8.724417756 | W65: 3.208341227 | X65: 1 | Y65: 141.5714286 | AA65: OREGON | AB65: 9 | AC65: 2.655936531 | AE65: 3 | AF65: 155.8571429 | AH65: FLORIDA | AI65: 13 | AJ65: 6.453371198 | AK65: 1.498265767 | AL65: 3 | AM65: 38 | AO65: NORTH CAROLINA | AP65: 5 | AQ65: 3.335042989 | AS65: 3 | AT65: 44.25 | AV65: PENNSYLVANIA | AW65: 2 | AX65: 3.420605344 | AY65: 0.004594760042 | AZ65: 3 | BA65: 34.25 | BC65: NEW JERSEY | BD65: 2 | BE65: 4.385833189 | BG65: 3 | BH65: 98
F66: FLORIDA | G66: 13 | H66: 2.020193867 | I66: 4.07755359 | J66: 2 | K66: 32.16666667 | M66: CALIFORNIA | N66: 11 | O66: 11.57689437 | Q66: 2 | R66: 23 | T66: MASSACHUSETTS | U66: 1 | V66: 8.500587663 | W66: 0.002877790805 | X66: 3 | Y66: 24.66666667 | AA66: MINNESOTA | AB66: 4 | AC66: 0.03623681457 | AE66: 4 | AF66: 68 | AH66: MICHIGAN | AI66: 3 | AJ66: 0.8264336994 | AK66: 0.2293833489 | AL66: 3 | AM66: 58 | AO66: WASHINGTON | AP66: 9 | AQ66: 0.3231939887 | AS66: 3 | AT66: 48 | AV66: MICHIGAN | AW66: 3 | AX66: 2.447052645 | AY66: 2.419304605 | AZ66: 3 | BA66: 70.85714286 | BC66: COLORADO | BD66: 8 | BE66: 10.50091581 | BG66: 3 | BH66: 8
B67: State Mapping | C67: Reportable Domain | D67: Divison and Large State | F67: ARIZONA | G67: 8 | H67: 1.554994436 | I67: 3.499779904 | J67: 2 | K67: 71.33333333 | M67: OREGON | N67: 9 | O67: 4.093113404 | Q67: 1 | R67: 43 | T67: CALIFORNIA | U67: 11 | V67: 2.219975929 | W67: 1.759589209 | X67: 3 | Y67: 141.8888889 | AA67: PENNSYLVANIA | AB67: 2 | AC67: 4.845578706 | AE67: 4 | AF67: 83 | AH67: TEXAS | AI67: 12 | AJ67: 0.6024783059 | AK67: 1.123175253 | AL67: 3 | AM67: 48 | AO67: PENNSYLVANIA | AP67: 2 | AQ67: 5.456757442 | AS67: 3 | AT67: 23 | AV67: PENNSYLVANIA | AW67: 2 | AX67: 3.343659318 | AY67: 3.527789146 | AZ67: 3 | BA67: 153 | BC67: NEW JERSEY | BD67: 2 | BE67: 0.5326938882 | BG67: 3 | BH67: 63
B68: ALABAMA | C68: 18 | D68: 6 | F68: MARYLAND | G68: 5 | H68: 4.351374008 | I68: 6.132954192 | J68: 4 | K68: 64.66666667 | M68: OREGON | N68: 9 | O68: 5.400618386 | Q68: 2 | R68: 42.16666667 | T68: COLORADO | U68: 8 | V68: 5.081277061 | W68: 0.01642609827 | X68: 1 | Y68: 85.5 | AA68: ILLINOIS | AB68: 3 | AC68: 0.9500468605 | AE68: 2 | AF68: 43 | AH68: COLORADO | AI68: 8 | AJ68: 1.752892572 | AK68: 0.148782376 | AL68: 3 | AM68: 233 | AO68: ARIZONA | AP68: 8 | AQ68: 4.722851983 | AS68: 3 | AT68: 32.375 | AV68: GEORGIA | AW68: 5 | AX68: 9.298583859 | AY68: 0.002917586844 | AZ68: 3 | BA68: 30.5 | BC68: TEXAS | BD68: 12 | BE68: 0.5382616908 | BG68: 3 | BH68: 63
B69: ALASKA | C69: 27 | D69: 9 | F69: CALIFORNIA | G69: 11 | H69: 1.050565476 | I69: 1.985304406 | J69: 1 | K69: 58 | M69: PENNSYLVANIA | N69: 2 | O69: 0.4021203626 | Q69: 2 | R69: 28 | T69: MASSACHUSETTS | U69: 1 | V69: 5.419219593 | W69: 0.3919014271 | X69: 2 | Y69: 41.57142857 | AA69: CALIFORNIA | AB69: 11 | AC69: 16.96099155 | AE69: 2 | AF69: 38 | AH69: OREGON | AI69: 9 | AJ69: 2.964722149 | AK69: 2.241942119 | AL69: 3 | AM69: 128 | AO69: OHIO | AP69: 3 | AQ69: 6.883426171 | AS69: 3 | AT69: 74 | AV69: CONNECTICUT | AW69: 1 | AX69: 4.510649802 | AY69: 3.563368056 | AZ69: 3 | BA69: 54.66666667 | BC69: FLORIDA | BD69: 13 | BE69: 5.281248211 | BG69: 3 | BH69: 78
B70: ARIZONA | C70: 24 | D70: 8 | F70: COLORADO | G70: 8 | H70: 8.164205949 | I70: 0.3421386731 | J70: 2 | K70: 98 | M70: WASHINGTON | N70: 9 | O70: 5.019939356 | Q70: 1 | R70: 23 | T70: NEW HAMPSHIRE | U70: 1 | V70: 5.307703373 | W70: 1.644146825 | X70: 4 | Y70: 83.41666667 | AA70: NEW JERSEY | AB70: 2 | AC70: 3.866717023 | AE70: 4 | AF70: 42.09090909 | AH70: CALIFORNIA | AI70: 11 | AJ70: 4.215774319 | AK70: 0.9223096189 | AL70: 3 | AM70: 58 | AO70: ILLINOIS | AP70: 3 | AQ70: 2.304667899 | AS70: 3 | AT70: 28 | AV70: TEXAS | AW70: 12 | AX70: 2.518737583 | AY70: 0.2617036685 | AZ70: 3 | BA70: 118 | BC70: OREGON | BD70: 9 | BE70: 0.867981457 | BG70: 3 | BH70: 98
B71: ARKANSAS | C71: 20 | D71: 7 | F71: TEXAS | G71: 12 | H71: 9.123070058 | I71: 0.002446148191 | J71: 5 | K71: 263 | M71: LOUISIANA | N71: 7 | O71: 5.989027913 | Q71: 4 | R71: 8 | T71: PENNSYLVANIA | U71: 2 | V71: 11.8616621 | W71: 1.614242066 | X71: 2 | Y71: 35.85714286 | AA71: NEW JERSEY | AB71: 2 | AC71: 2.171967593 | AE71: 4 | AF71: 223.4166667 | AH71: TEXAS | AI71: 12 | AJ71: 4.096200785 | AK71: 2.660035272 | AL71: 3 | AM71: 78 | AO71: MICHIGAN | AP71: 3 | AQ71: 0.6735134605 | AS71: 3 | AT71: 121 | AV71: MARYLAND | AW71: 5 | AX71: 10.4460207 | AY71: 0.002595976822 | AZ71: 3 | BA71: 23 | BC71: MISSOURI | BD71: 4 | BE71: 0.6008491299 | BG71: 3 | BH71: 73
B72: CALIFORNIA | C72: 26 | D72: 11 | F72: ILLINOIS | G72: 3 | H72: 0.8146102974 | I72: 4.643044736 | J72: 2 | K72: 93 | M72: NEW YORK | N72: 10 | O72: 8.972238359 | Q72: 3 | R72: 78 | T72: MARYLAND | U72: 5 | V72: 6.564333649 | W72: 0.346058804 | X72: 5 | Y72: 18 | AA72: MICHIGAN | AB72: 3 | AC72: 0.436857301 | AE72: 4 | AF72: 108 | AH72: TEXAS | AI72: 12 | AJ72: 5.41098074 | AK72: 0.02920247712 | AL72: 3 | AM72: 33 | AO72: ILLINOIS | AP72: 3 | AQ72: 8.173740439 | AS72: 3 | AT72: 28 | AV72: MASSACHUSETTS | AW72: 1 | AX72: 5.352270317 | AY72: 0.3716951088 | AZ72: 3 | BA72: 99.81818182 | BC72: MARYLAND | BD72: 5 | BE72: 7.771907389 | BG72: 3 | BH72: 83
B73: COLORADO | C73: 22 | D73: 8 | F73: PENNSYLVANIA | G73: 2 | H73: 1.986838999 | I73: 3.189453902 | J73: 5 | K73: 53 | M73: ILLINOIS | N73: 3 | O73: 7.456651786 | Q73: 2 | R73: 74.25 | T73: MARYLAND | U73: 5 | V73: 2.209461047 | W73: 0.3859907883 | X73: 1 | Y73: 108 | AA73: MICHIGAN | AB73: 3 | AC73: 3.569163536 | AE73: 4 | AF73: 81.18181818 | AH73: WASHINGTON | AI73: 9 | AJ73: 3.750593556 | AK73: 1.974280084 | AL73: 3 | AM73: 90.14285714 | AO73: CALIFORNIA | AP73: 11 | AQ73: 6.570714954 | AS73: 3 | AT73: 41.63636364 | AV73: NEW YORK | AW73: 10 | AX73: 6.090764357 | AY73: 0.102267835 | AZ73: 3 | BA73: 33 | BC73: INDIANA | BD73: 3 | BE73: 6.874092619 | BG73: 3 | BH73: 23
B74: CONNECTICUT | C74: 1 | D74: 1 | F74: NEW JERSEY | G74: 2 | H74: 6.045644977 | I74: 5.971752932 | J74: 3 | K74: 20 | M74: COLORADO | N74: 8 | O74: 8.239299408 | Q74: 2 | R74: 98 | T74: MARYLAND | U74: 5 | V74: 1.834165263 | W74: 0.01850161275 | X74: 3 | Y74: 236.3333333 | AA74: MASSACHUSETTS | AB74: 1 | AC74: 6.087642504 | AE74: 1 | AF74: 38.83333333 | AH74: MASSACHUSETTS | AI74: 1 | AJ74: 4.968156575 | AK74: 0.4512130401 | AL74: 3 | AM74: 97.28571429 | AO74: ARIZONA | AP74: 8 | AQ74: 0.8727745696 | AS74: 3 | AT74: 53 | AV74: MISSOURI | AW74: 4 | AX74: 5.123304729 | AY74: 0.008243169144 | AZ74: 3 | BA74: 33 | BC74: FLORIDA | BD74: 13 | BE74: 4.655972117 | BG74: 3 | BH74: 43
B75: DELAWARE | C75: 14 | D75: 5 | F75: COLORADO | G75: 8 | H75: 1.143325089 | I75: 2.79150211 | J75: 1 | K75: 43 | M75: GEORGIA | N75: 5 | O75: 0.6797197348 | Q75: 5 | R75: 47 | T75: PENNSYLVANIA | U75: 2 | V75: 13.94260187 | W75: 0.381650685 | X75: 6 | Y75: 34.66666667 | AA75: MINNESOTA | AB75: 4 | AC75: 2.084863312 | AE75: 4 | AF75: 83 | AH75: TEXAS | AI75: 12 | AJ75: 0.4745096333 | AK75: 1.715382248 | AL75: 3 | AM75: 113 | AO75: OREGON | AP75: 9 | AQ75: 8.739752191 | AS75: 3 | AT75: 23 | AV75: VIRGINIA | AW75: 5 | AX75: 3.142891865 | AY75: 1.735143849 | AZ75: 3 | BA75: 191.3333333 | BC75: TENNESSEE | BD75: 6 | BE75: 2.894049827 | BG75: 3 | BH75: 33
B76: DISTRICT OF COLUMBIA | C76: 14 | D76: 5 | F76: TEXAS | G76: 12 | H76: 5.707326982 | I76: 0.3462349502 | J76: 3 | K76: 98 | M76: NEW JERSEY | N76: 2 | O76: 4.017916667 | Q76: 1 | R76: 53 | T76: TEXAS | U76: 12 | V76: 2.099729653 | W76: 1.756090219 | X76: 3 | Y76: 48 | AA76: VIRGINIA | AB76: 5 | AC76: 5.833583738 | AE76: 1 | AF76: 64.42857143 | AH76: GEORGIA | AI76: 5 | AJ76: 2.662467661 | AK76: 2.078951882 | AL76: 3 | AM76: 58 | AO76: LOUISIANA | AP76: 7 | AQ76: 1.680836059 | AS76: 3 | AT76: 69.875 | AV76: PENNSYLVANIA | AW76: 2 | AX76: 7.052554439 | AY76: 0.006065903232 | AZ76: 3 | BA76: 33 | BC76: MISSISSIPPI | BD76: 6 | BE76: 8.451308745 | BG76: 3 | BH76: 53
B77: FLORIDA | C77: 17 | D77: 13 | F77: OKLAHOMA | G77: 7 | H77: 5.56608315 | I77: 2.363587886 | J77: 2 | K77: 73 | M77: MISSISSIPPI | N77: 6 | O77: 4.373980417 | Q77: 4 | R77: 63 | T77: FLORIDA | U77: 13 | V77: 7.990551108 | W77: 0.01267030573 | X77: 1 | Y77: 73 | AA77: NEW JERSEY | AB77: 2 | AC77: 2.871402983 | AE77: 4 | AF77: 108 | AH77: MASSACHUSETTS | AI77: 1 | AJ77: 2.534734145 | AK77: 6.879903968 | AL77: 3 | AM77: 73 | AO77: FLORIDA | AP77: 13 | AQ77: 2.162084257 | AS77: 3 | AT77: 93 | AV77: OHIO | AW77: 3 | AX77: 3.440261459 | AY77: 8.197188089 | AZ77: 3 | BA77: 48.55555556 | BC77: MARYLAND | BD77: 5 | BE77: 2.745103442 | BG77: 3 | BH77: 53
B78: GEORGIA | C78: 15 | D78: 5 | F78: ILLINOIS | G78: 3 | H78: 2.399436916 | I78: 0.3620969999 | J78: 6 | K78: 214 | M78: MAINE | N78: 1 | O78: 6.476659704 | Q78: 2 | R78: 38 | T78: SOUTH CAROLINA | U78: 5 | V78: 1.993457341 | W78: 2.499813988 | X78: 3 | Y78: 35.5 | AA78: FLORIDA | AB78: 13 | AC78: 2.911044471 | AE78: 2 | AF78: 35.72727273 | AH78: CALIFORNIA | AI78: 11 | AJ78: 9.301657776 | AK78: 0.002744227235 | AL78: 3 | AM78: 33 | AO78: TEXAS | AP78: 12 | AQ78: 7.878761645 | AS78: 3 | AT78: 24 | AV78: CALIFORNIA | AW78: 11 | AX78: 4.935049147 | AY78: 0.05434578334 | AZ78: 3 | BA78: 44.66666667 | BC78: MICHIGAN | BD78: 3 | BE78: 3.249087455 | BG78: 3 | BH78: 28
B79: HAWAII | C79: 27 | D79: 9 | F79: VIRGINIA | G79: 5 | H79: 2.134233681 | I79: 4.099747623 | J79: 7 | K79: 73 | M79: TEXAS | N79: 12 | O79: 6.503802083 | Q79: 3 | R79: 88 | T79: GEORGIA | U79: 5 | V79: 5.504426771 | W79: 5.309979201 | X79: 1 | Y79: 48 | AA79: INDIANA | AB79: 3 | AC79: 4.204917328 | AE79: 4 | AF79: 5.916666667 | AH79: CALIFORNIA | AI79: 11 | AJ79: 2.812071386 | AK79: 1.480112972 | AL79: 3 | AM79: 56.33333333 | AO79: MICHIGAN | AP79: 3 | AQ79: 0.5139734115 | AS79: 3 | AT79: 63 | AV79: COLORADO | AW79: 8 | AX79: 1.894704218 | AY79: 1.28721616 | AZ79: 3 | BA79: 130.5 | BC79: MARYLAND | BD79: 5 | BE79: 2.544356446 | BG79: 3 | BH79: 103
B80: IDAHO | C80: 23 | D80: 8 | F80: WASHINGTON | G80: 9 | H80: 2.277344577 | I80: 3.356466827 | J80: 5 | K80: 32.16666667 | M80: MICHIGAN | N80: 3 | O80: 5.124083995 | Q80: 3 | R80: 133 | T80: OHIO | U80: 3 | V80: 8.519948798 | W80: 0.001938245584 | X80: 1 | Y80: 93 | AA80: NEW JERSEY | AB80: 2 | AC80: 2.454843979 | AE80: 4 | AF80: 104.6666667 | AH80: PENNSYLVANIA | AI80: 2 | AJ80: 1.70363406 | AK80: 2.658505098 | AL80: 3 | AM80: 8 | AO80: ALABAMA | AP80: 6 | AQ80: 3.743815438 | AS80: 3 | AT80: 73 | AV80: TENNESSEE | AW80: 6 | AX80: 2.846960876 | AY80: 0.2458222116 | AZ80: 3 | BA80: 78 | BC80: CALIFORNIA | BD80: 11 | BE80: 5.886719403 | BG80: 3 | BH80: 173
B81: ILLINOIS | C81: 6 | D81: 3 | F81: FLORIDA | G81: 13 | H81: 1.581360692 | I81: 5.227668295 | J81: 5 | K81: 88.45454545 | M81: FLORIDA | N81: 13 | O81: 0.09785987138 | Q81: 6 | R81: 93 | T81: NEW YORK | U81: 10 | V81: 4.455336965 | W81: 0.008556787732 | X81: 2 | Y81: 13 | AA81: PENNSYLVANIA | AB81: 2 | AC81: 0.2520041384 | AE81: 2 | AF81: 83 | AH81: MICHIGAN | AI81: 3 | AJ81: 4.505275329 | AK81: 0.09780664263 | AL81: 3 | AM81: 30.5 | AO81: COLORADO | AP81: 8 | AQ81: 5.047291106 | AS81: 3 | AT81: 73 | AV81: CALIFORNIA | AW81: 11 | AX81: 7.258612703 | AY81: 0.005217044373 | AZ81: 3 | BA81: 48 | BC81: CALIFORNIA | BD81: 11 | BE81: 3.710718403 | BG81: 3 | BH81: 49.66666667
B82: INDIANA | C82: 7 | D82: 3 | F82: TEXAS | G82: 12 | H82: 0.9109487519 | I82: 5.927583275 | J82: 1 | K82: 91.18181818 | M82: CALIFORNIA | N82: 11 | O82: 0.03558119714 | Q82: 3 | R82: 183 | T82: WASHINGTON | U82: 9 | V82: 1.280948554 | W82: 0.8681949203 | X82: 1 | Y82: 44.81818182 | AA82: OREGON | AB82: 9 | AC82: 0.5437002423 | AE82: 1 | AF82: 101 | AH82: ILLINOIS | AI82: 3 | AJ82: 6.135124568 | AK82: 0.12842278 | AL82: 3 | AM82: 23 | AO82: MISSISSIPPI | AP82: 6 | AQ82: 8.194646173 | AS82: 3 | AT82: 36.33333333 | AV82: TEXAS | AW82: 12 | AX82: 2.316100311 | AY82: 1.255198101 | AZ82: 3 | BA82: 53 | BC82: MICHIGAN | BD82: 3 | BE82: 0.8197319223 | BG82: 3 | BH82: 43
B83: IOWA | C83: 10 | D83: 4 | F83: CALIFORNIA | G83: 11 | H83: 0.5520305037 | I83: 2.500186638 | J83: 1 | K83: 114 | M83: ARIZONA | N83: 8 | O83: 7.526565538 | Q83: 2 | R83: 15 | T83: INDIANA | U83: 3 | V83: 6.440012352 | W83: 0.01470532414 | X83: 2 | Y83: 41.75 | AA83: ILLINOIS | AB83: 3 | AC83: 0.6683267535 | AE83: 5 | AF83: 78 | AH83: MINNESOTA | AI83: 4 | AJ83: 1.259988447 | AK83: 0.7610069751 | AL83: 3 | AM83: 98 | AO83: NEW HAMPSHIRE | AP83: 1 | AQ83: 2.613938509 | AS83: 3 | AT83: 99.875 | AV83: TEXAS | AW83: 12 | AX83: 5.325534268 | AY83: 6.480334856 | AZ83: 3 | BA83: 65 | BC83: ILLINOIS | BD83: 3 | BE83: 3.82911767 | BG83: 3 | BH83: 38
B84: KANSAS | C84: 11 | D84: 4 | F84: NEW YORK | G84: 10 | H84: 0.07079395139 | I84: 0.02361585024 | J84: 10 | K84: 148 | M84: ARIZONA | N84: 8 | O84: 1.175311768 | Q84: 3 | R84: 58 | T84: TEXAS | U84: 12 | V84: 0.134254507 | W84: 0.00898107449 | X84: 9 | Y84: 73 | AA84: TEXAS | AB84: 12 | AC84: 16.07350202 | AE84: 1 | AF84: 33 | AH84: MARYLAND | AI84: 5 | AJ84: 1.44307705 | AK84: 2.587389059 | AL84: 3 | AM84: 133 | AO84: FLORIDA | AP84: 13 | AQ84: 4.449794833 | AS84: 3 | AT84: 37.375 | AV84: NEW HAMPSHIRE | AW84: 1 | AX84: 8.465297139 | AY84: 0.08543117052 | AZ84: 3 | BA84: 7 | BC84: PENNSYLVANIA | BD84: 2 | BE84: 3.76164922 | BG84: 3 | BH84: 91.5
B85: KENTUCKY | C85: 18 | D85: 6 | F85: ILLINOIS | G85: 3 | H85: 8.78645995 | I85: 7.553784153 | J85: 3 | K85: 34.81818182 | M85: MICHIGAN | N85: 3 | O85: 2.923501984 | Q85: 3 | R85: 13 | T85: WASHINGTON | U85: 9 | V85: 6.176180556 | W85: 2.271056548 | X85: 2 | Y85: 92.16666667 | AA85: ILLINOIS | AB85: 3 | AC85: 2.304826389 | AE85: 2 | AF85: 37.58333333 | AH85: CALIFORNIA | AI85: 11 | AJ85: 1.386537152 | AK85: 0.8035355739 | AL85: 3 | AM85: 93 | AO85: FLORIDA | AP85: 13 | AQ85: 6.078950152 | AS85: 3 | AT85: 93.625 | AV85: ARIZONA | AW85: 8 | AX85: 2.16351026 | AY85: 1.042342366 | AZ85: 3 | BA85: 26.75 | BC85: MINNESOTA | BD85: 4 | BE85: 2.655917659 | BG85: 3 | BH85: 138.4166667
B86: LOUISIANA | C86: 20 | D86: 7 | F86: ARIZONA | G86: 8 | H86: 0.6095869721 | I86: 3.467768595 | J86: 2 | K86: 58 | M86: IOWA | N86: 4 | O86: 1.946964242 | Q86: 4 | R86: 48 | T86: TEXAS | U86: 12 | V86: 16.28429051 | W86: 0.1138036504 | X86: 2 | Y86: 46.5 | AA86: WEST VIRGINIA | AB86: 5 | AC86: 4.467581379 | AE86: 4 | AF86: 103.7142857 | AH86: ILLINOIS | AI86: 3 | AJ86: 4.593683928 | AK86: 5.758261856 | AL86: 3 | AM86: 134.6666667 | AO86: PENNSYLVANIA | AP86: 2 | AQ86: 4.234943345 | AS86: 3 | AT86: 88 | AV86: FLORIDA | AW86: 13 | AX86: 2.646455026 | AY86: 0.1006861772 | AZ86: 3 | BA86: 191.75 | BC86: OHIO | BD86: 3 | BE86: 0.03074678032 | BG86: 3 | BH86: 124.6666667
B87: MAINE | C87: 1 | D87: 1 | F87: ARIZONA | G87: 8 | H87: 1.081317327 | I87: 1.807894744 | J87: 1 | K87: 263 | M87: MINNESOTA | N87: 4 | O87: 5.43652955 | Q87: 1 | R87: 53 | T87: CALIFORNIA | U87: 11 | V87: 4.272238796 | W87: 7.074848716 | X87: 3 | Y87: 153 | AA87: CALIFORNIA | AB87: 11 | AC87: 5.709784272 | AE87: 2 | AF87: 23 | AH87: COLORADO | AI87: 8 | AJ87: 8.170069656 | AK87: 2.732326935 | AL87: 3 | AM87: 28 | AO87: TENNESSEE | AP87: 6 | AQ87: 0.3654421715 | AS87: 3 | AT87: 33 | AV87: MINNESOTA | AW87: 4 | AX87: 4.162741834 | AY87: 0.001358121277 | AZ87: 3 | BA87: 38 | BC87: VIRGINIA | BD87: 5 | BE87: 1.401390028 | BG87: 3 | BH87: 73
B88: MARYLAND | C88: 14 | D88: 5 | F88: OHIO | G88: 3 | H88: 6.860901401 | I88: 1.541732196 | J88: 2 | K88: 101.3333333 | M88: MISSOURI | N88: 4 | O88: 4.138769444 | Q88: 3 | R88: 43 | T88: WASHINGTON | U88: 9 | V88: 4.115091445 | W88: 0.04688267288 | X88: 6.5 | Y88: 58 | AA88: ILLINOIS | AB88: 3 | AC88: 0.7196079189 | AE88: 3 | AF88: 100.7272727 | AH88: INDIANA | AI88: 3 | AJ88: 2.214443462 | AK88: 1.53734216 | AL88: 3 | AM88: 99.66666667 | AO88: ARIZONA | AP88: 8 | AQ88: 3.622659421 | AS88: 3 | AT88: 43 | AV88: MISSOURI | AW88: 4 | AX88: 9.321707231 | AY88: 0.1281397984 | AZ88: 3 | BA88: 53 | BC88: CALIFORNIA | BD88: 11 | BE88: 0.03605704087 | BG88: 3 | BH88: 98
B89: MASSACHUSETTS | C89: 2 | D89: 1 | F89: CALIFORNIA | G89: 11 | H89: 0.6011336857 | I89: 5.770862661 | J89: 1 | K89: 124.5 | M89: OREGON | N89: 9 | O89: 4.686872931 | Q89: 4 | R89: 73 | T89: FLORIDA | U89: 13 | V89: 4.199437272 | W89: 1.206290278 | X89: 2 | Y89: 53 | AA89: FLORIDA | AB89: 13 | AC89: 2.813451087 | AE89: 3 | AF89: 18 | AH89: TEXAS | AI89: 12 | AJ89: 7.784844303 | AK89: 0.1014069197 | AL89: 3 | AM89: 53 | AO89: MINNESOTA | AP89: 4 | AQ89: 0.01432864558 | AS89: 3 | AT89: 27.16666667 | AV89: MICHIGAN | AW89: 3 | AX89: 2.084167703 | AY89: 1.69234332 | AZ89: 3 | BA89: 136.3333333 | BC89: OREGON | BD89: 9 | BE89: 1.524781746 | BG89: 3 | BH89: 53
B90: MICHIGAN | C90: 8 | D90: 3 | F90: NEW YORK | G90: 10 | H90: 1.424567708 | I90: 3.000228879 | J90: 2 | K90: 219.875 | M90: FLORIDA | N90: 13 | O90: 9.864042074 | Q90: 2 | R90: 28 | T90: NEW JERSEY | U90: 2 | V90: 4.819636918 | W90: 0.09942840239 | X90: 6 | Y90: 150 | AA90: ILLINOIS | AB90: 3 | AC90: 3.584890017 | AE90: 3 | AF90: 13 | AH90: CALIFORNIA | AI90: 11 | AJ90: 2.857735615 | AK90: 5.646182497 | AL90: 3 | AM90: 67.16666667 | AO90: FLORIDA | AP90: 13 | AQ90: 2.238524014 | AS90: 3 | AT90: 35.5 | AV90: OREGON | AW90: 9 | AX90: 4.682816959 | AY90: 1.960003761 | AZ90: 3 | BA90: 78 | BC90: ILLINOIS | BD90: 3 | BE90: 0.4327423948 | BG90: 3 | BH90: 43
B91: MINNESOTA | C91: 10 | D91: 4 | F91: CONNECTICUT | G91: 1 | H91: 3.079810334 | I91: 0.1016455547 | J91: 3 | K91: 53 | M91: NEW HAMPSHIRE | N91: 1 | O91: 5.774347376 | Q91: 3 | R91: 48 | T91: GEORGIA | U91: 5 | V91: 4.36443781 | W91: 0.004550863511 | X91: 3 | Y91: 103 | AA91: GEORGIA | AB91: 5 | AC91: 3.12368445 | AE91: 3 | AF91: 18 | AH91: TEXAS | AI91: 12 | AJ91: 0.1127325815 | AK91: 0.4580900983 | AL91: 3 | AM91: 108 | AO91: GEORGIA | AP91: 5 | AQ91: 0.6783978175 | AS91: 3 | AT91: 139.25 | AV91: TEXAS | AW91: 12 | AX91: 9.512448035 | AY91: 0.001315462475 | AZ91: 3 | BA91: 33 | BC91: TEXAS | BD91: 12 | BE91: 3.46960581 | BG91: 3 | BH91: 46.33333333
B92: MISSISSIPPI | C92: 18 | D92: 6 | F92: MICHIGAN | G92: 3 | H92: 2.197638889 | I92: 2.310504808 | J92: 2 | K92: 239.6666667 | M92: PENNSYLVANIA | N92: 2 | O92: 7.156325988 | Q92: 3 | R92: 53 | T92: CALIFORNIA | U92: 11 | V92: 0.5562596335 | W92: 2.752388489 | X92: 1 | Y92: 153 | AA92: NEW JERSEY | AB92: 2 | AC92: 1.5484375 | AE92: 3 | AF92: 31.33333333 | AH92: MICHIGAN | AI92: 3 | AJ92: 2.421369008 | AK92: 0.9427607854 | AL92: 3 | AM92: 38 | AO92: SOUTH CAROLINA | AP92: 5 | AQ92: 1.952316587 | AS92: 3 | AT92: 96.88888889 | AV92: CALIFORNIA | AW92: 11 | AX92: 10.95141274 | AY92: 1.702402375 | AZ92: 3 | BA92: 98 | BC92: FLORIDA | BD92: 13 | BE92: 11.33436449 | BG92: 3 | BH92: 28
B93: MISSOURI | C93: 12 | D93: 4 | F93: MISSOURI | G93: 4 | H93: 17.38515754 | I93: 0.2086164261 | J93: 1 | K93: 158.8333333 | M93: COLORADO | N93: 8 | O93: 16.54835179 | Q93: 1 | R93: 4.428571429 | T93: OHIO | U93: 3 | V93: 7.150747764 | W93: 8.3038453 | X93: 1 | Y93: 163 | AA93: MINNESOTA | AB93: 4 | AC93: 2.86732773 | AE93: 1 | AF93: 44 | AH93: SOUTH CAROLINA | AI93: 5 | AJ93: 17.24563615 | AK93: 2.896578816 | AL93: 3 | AM93: 13 | AO93: CALIFORNIA | AP93: 11 | AQ93: 5.797577194 | AS93: 3 | AT93: 38 | AV93: NEW JERSEY | AW93: 2 | AX93: 4.295545635 | AY93: 0.4514384921 | AZ93: 3 | BA93: 33 | BC93: CALIFORNIA | BD93: 11 | BE93: 1.340309085 | BG93: 3 | BH93: 63
B94: MONTANA | C94: 23 | D94: 8 | F94: CALIFORNIA | G94: 11 | H94: 0.7813566835 | I94: 4.763777378 | J94: 2 | K94: 104.6666667 | M94: OHIO | N94: 3 | O94: 0.4135304068 | Q94: 2 | R94: 35.5 | T94: COLORADO | U94: 8 | V94: 2.083772447 | W94: 1.11133227 | X94: 2 | Y94: 93 | AA94: NEW JERSEY | AB94: 2 | AC94: 3.628216496 | AE94: 3 | AF94: 83 | AH94: CALIFORNIA | AI94: 11 | AJ94: 3.899500661 | AK94: 2.350108198 | AL94: 3 | AM94: 60.5 | AO94: NEW YORK | AP94: 10 | AQ94: 9.399786488 | AS94: 3 | AT94: 133 | AV94: OREGON | AW94: 9 | AX94: 2.780912698 | AY94: 0.6408730159 | AZ94: 3 | BA94: 53 | BC94: CALIFORNIA | BD94: 11 | BE94: 1.604470899 | BG94: 3 | BH94: 43.41666667
B95: NEBRASKA | C95: 11 | D95: 4 | F95: MISSOURI | G95: 4 | H95: 2.267049254 | I95: 3.021779243 | J95: 3 | K95: 98 | M95: MISSOURI | N95: 4 | O95: 5.216445933 | Q95: 4 | R95: 38 | T95: CALIFORNIA | U95: 11 | V95: 5.868502383 | W95: 0.02185816589 | X95: 3 | Y95: 13 | AA95: CALIFORNIA | AB95: 11 | AC95: 3.783552789 | AE95: 3 | AF95: 40.5 | AH95: ILLINOIS | AI95: 3 | AJ95: 2.935446429 | AK95: 1.701845091 | AL95: 3 | AM95: 106.75 | AO95: ARKANSAS | AP95: 7 | AQ95: 4.006381894 | AS95: 3 | AT95: 74.66666667 | AV95: MICHIGAN | AW95: 3 | AX95: 2.965962302 | AY95: 0.9594494048 | AZ95: 3 | BA95: 88 | BC95: MARYLAND | BD95: 5 | BE95: 4.131202183 | BG95: 3 | BH95: 63
B96: NEVADA | C96: 25 | D96: 8 | F96: MINNESOTA | G96: 4 | H96: 5.108467301 | I96: 3.071472738 | J96: 3 | K96: 28 | M96: FLORIDA | N96: 13 | O96: 6.330004565 | Q96: 1 | R96: 63 | T96: FLORIDA | U96: 13 | V96: 6.885167909 | W96: 11.66672011 | X96: 3 | Y96: 83 | AA96: NEW YORK | AB96: 10 | AC96: 0.3567921368 | AE96: 4 | AF96: 31.75 | AH96: GEORGIA | AI96: 5 | AJ96: 9.740655145 | AK96: 5.80029345 | AL96: 3 | AM96: 55.5 | AO96: NEW YORK | AP96: 10 | AQ96: 8.068665675 | AS96: 3 | AT96: 53 | AV96: FLORIDA | AW96: 13 | AX96: 4.175080849 | AY96: 2.323659028 | AZ96: 3 | BA96: 58 | BC96: INDIANA | BD96: 3 | BE96: 0.04524258608 | BG96: 3 | BH96: 40.85714286
B97: NEW HAMPSHIRE | C97: 1 | D97: 1 | F97: NEW MEXICO | G97: 8 | H97: 4.289737838 | I97: 6.491329436 | J97: 2 | K97: 53 | M97: MARYLAND | N97: 5 | O97: 2.941809823 | Q97: 3 | R97: 93 | T97: WEST VIRGINIA | U97: 5 | V97: 3.434907945 | W97: 0.06874332273 | X97: 2 | Y97: 73 | AA97: ARIZONA | AB97: 8 | AC97: 3.70683734 | AE97: 2 | AF97: 43 | AH97: CALIFORNIA | AI97: 11 | AJ97: 2.22843254 | AK97: 0.9071331118 | AL97: 3 | AM97: 61.75 | AO97: IOWA | AP97: 4 | AQ97: 0.1784717778 | AS97: 3 | AT97: 85.5 | AV97: MICHIGAN | AW97: 3 | AX97: 2.408053887 | AY97: 0.4786973016 | AZ97: 3 | BA97: 174.6666667 | BC97: GEORGIA | BD97: 5 | BE97: 9.768802513 | BG97: 3 | BH97: 18
B98: NEW JERSEY | C98: 4 | D98: 2 | F98: CALIFORNIA | G98: 11 | H98: 0.3154265873 | I98: 0.9242819404 | J98: 2 | K98: 81.75 | M98: MINNESOTA | N98: 4 | O98: 2.995036018 | Q98: 2 | R98: 58 | T98: VIRGINIA | U98: 5 | V98: 8.750769605 | W98: 0.004922850927 | X98: 4 | Y98: 70.85714286 | AA98: KANSAS | AB98: 4 | AC98: 3.747694582 | AE98: 2 | AF98: 18 | AH98: PENNSYLVANIA | AI98: 2 | AJ98: 1.930838177 | AK98: 0.01330944755 | AL98: 3 | AM98: 73 | AO98: MICHIGAN | AP98: 3 | AQ98: 11.18220983 | AS98: 3 | AT98: 43 | AV98: GEORGIA | AW98: 5 | AX98: 5.615783487 | AY98: 0.001628236607 | AZ98: 3 | BA98: 29.66666667 | BC98: NEW JERSEY | BD98: 2 | BE98: 0.5119897905 | BG98: 3 | BH98: 88
B99: NEW MEXICO | C99: 25 | D99: 8 | F99: TEXAS | G99: 12 | H99: 1.212084428 | I99: 0.3113935816 | J99: 1 | K99: 98 | M99: COLORADO | N99: 8 | O99: 3.689837249 | Q99: 4 | R99: 28 | T99: CALIFORNIA | U99: 11 | V99: 1.56718635 | W99: 1.427036022 | X99: 5 | Y99: 138 | AA99: MASSACHUSETTS | AB99: 1 | AC99: 0.8421695307 | AE99: 1 | AF99: 198 | AH99: TEXAS | AI99: 12 | AJ99: 1.645793376 | AK99: 0.1249768226 | AL99: 3 | AM99: 38 | AO99: SOUTH CAROLINA | AP99: 5 | AQ99: 5.014560267 | AS99: 3 | AT99: 83 | AV99: MICHIGAN | AW99: 3 | AX99: 1.562004552 | AY99: 1.403623522 | AZ99: 3 | BA99: 88 | BC99: FLORIDA | BD99: 13 | BE99: 3.435555556 | BG99: 3 | BH99: 123
B100: NEW YORK | C100: 3 | D100: 10 | F100: PENNSYLVANIA | G100: 2 | H100: 4.991818278 | I100: 10.62593597 | J100: 2 | K100: 93 | M100: OHIO | N100: 3 | O100: 0.7882528916 | Q100: 4 | R100: 83 | T100: CALIFORNIA | U100: 11 | V100: 2.786172987 | W100: 1.936174743 | X100: 4 | Y100: 53 | AA100: PENNSYLVANIA | AB100: 2 | AC100: 1.881234316 | AE100: 2 | AF100: 63 | AH100: CALIFORNIA | AI100: 11 | AJ100: 13.44645741 | AK100: 0.9319805271 | AL100: 3 | AM100: 99.875 | AO100: GEORGIA | AP100: 5 | AQ100: 10.27437004 | AS100: 3 | AT100: 44.66666667 | AV100: WASHINGTON | AW100: 9 | AX100: 2.237025463 | AY100: 2.392948082 | AZ100: 3 | BA100: 141.75 | BC100: PENNSYLVANIA | BD100: 2 | BE100: 0.8173930529 | BG100: 3 | BH100: 103
B101: NORTH CAROLINA | C101: 16 | D101: 5 | F101: DELAWARE | G101: 5 | H101: 7.329006618 | I101: 0.6080421395 | J101: 3 | K101: 43 | M101: ILLINOIS | N101: 3 | O101: 2.353794533 | Q101: 3 | R101: 38 | T101: PENNSYLVANIA | U101: 2 | V101: 0.4519959354 | W101: 0.08969793704 | X101: 2 | Y101: 93 | AA101: MARYLAND | AB101: 5 | AC101: 7.349238253 | AE101: 1 | AF101: 33 | AH101: FLORIDA | AI101: 13 | AJ101: 0.9459337626 | AK101: 4.060539878 | AL101: 3 | AM101: 111.3333333 | AO101: NEW HAMPSHIRE | AP101: 1 | AQ101: 2.186772846 | AS101: 3 | AT101: 213 | AV101: OHIO | AW101: 3 | AX101: 1.728199405 | AY101: 0.713343254 | AZ101: 3 | BA101: 213.8333333 | BC101: CALIFORNIA | BD101: 11 | BE101: 3.30622584 | BG101: 3 | BH101: 28
B102: NORTH DAKOTA | C102: 10 | D102: 4 | F102: MINNESOTA | G102: 4 | H102: 3.823722299 | I102: 0.9244316115 | J102: 2 | K102: 53 | M102: VIRGINIA | N102: 5 | O102: 1.882366938 | Q102: 4 | R102: 88 | T102: TEXAS | U102: 12 | V102: 2.788063001 | W102: 1.195731996 | X102: 6 | Y102: 223 | AA102: COLORADO | AB102: 8 | AC102: 1.025467863 | AE102: 2 | AF102: 153 | AH102: MARYLAND | AI102: 5 | AJ102: 2.904906943 | AK102: 3.977646482 | AL102: 3 | AM102: 118 | AO102: MARYLAND | AP102: 5 | AQ102: 2.88423135 | AS102: 3 | AT102: 21 | AV102: ARIZONA | AW102: 8 | AX102: 3.49326689 | AY102: 1.624862441 | AZ102: 3 | BA102: 53 | BC102: PENNSYLVANIA | BD102: 2 | BE102: 1.451966145 | BG102: 3 | BH102: 73
B103: OHIO | C103: 7 | D103: 3 | F103: PENNSYLVANIA | G103: 2 | H103: 9.591304772 | I103: 1.333801483 | J103: 3 | K103: 35.77777778 | M103: ARIZONA | N103: 8 | O103: 0.7010560123 | Q103: 2 | R103: 48 | T103: CALIFORNIA | U103: 11 | V103: 1.851409052 | W103: 0.01543355385 | X103: 1 | Y103: 133 | AA103: FLORIDA | AB103: 13 | AC103: 13.06503627 | AE103: 2 | AF103: 23 | AH103: NEW YORK | AI103: 10 | AJ103: 1.43832672 | AK103: 2.709546814 | AL103: 3 | AM103: 143 | AO103: CALIFORNIA | AP103: 11 | AQ103: 1.571945854 | AS103: 3 | AT103: 83 | AV103: OHIO | AW103: 3 | AX103: 6.424175403 | AY103: 0.1335259297 | AZ103: 3 | BA103: 53 | BC103: KENTUCKY | BD103: 6 | BE103: 0.8098065476 | BG103: 3 | BH103: 116.75
B104: OKLAHOMA | C104: 20 | D104: 7 | F104: MASSACHUSETTS | G104: 1 | H104: 1.009787649 | I104: 11.5167422 | J104: 1 | K104: 143 | M104: COLORADO | N104: 8 | O104: 2.007061831 | Q104: 2 | R104: 110.1428571 | T104: FLORIDA | U104: 13 | V104: 1.83363978 | W104: 0.1568447852 | X104: 4 | Y104: 56.33333333 | AA104: ILLINOIS | AB104: 3 | AC104: 1.539258422 | AE104: 2 | AF104: 119.6666667 | AH104: TENNESSEE | AI104: 6 | AJ104: 3.975359564 | AK104: 2.056073195 | AL104: 3 | AM104: 113 | AO104: FLORIDA | AP104: 13 | AQ104: 7.492484922 | AS104: 3 | AT104: 38 | AV104: OHIO | AW104: 3 | AX104: 5.415374884 | AY104: 0.001673696035 | AZ104: 3 | BA104: 30 | BC104: VIRGINIA | BD104: 5 | BE104: 2.342955714 | BG104: 3 | BH104: 88
B105: OREGON | C105: 27 | D105: 9 | F105: CALIFORNIA | G105: 11 | H105: 0.4812017954 | I105: 0.5590180123 | J105: 4 | K105: 131.5714286 | M105: ILLINOIS | N105: 3 | O105: 8.706386608 | Q105: 3 | R105: 10.5 | T105: UTAH | U105: 8 | V105: 0.6692493546 | W105: 0.5391696157 | X105: 2 | Y105: 90.72727273 | AA105: MICHIGAN | AB105: 3 | AC105: 0.4862563098 | AE105: 3 | AF105: 3 | AH105: OKLAHOMA | AI105: 7 | AJ105: 7.169040161 | AK105: 0.2813070419 | AL105: 3 | AM105: 33 | AO105: INDIANA | AP105: 3 | AQ105: 1.269998315 | AS105: 3 | AT105: 183 | AV105: PENNSYLVANIA | AW105: 2 | AX105: 9.225266266 | AY105: 0.001548794231 | AZ105: 3 | BA105: 13 | BC105: INDIANA | BD105: 3 | BE105: 0.2040663348 | BG105: 3 | BH105: 143
B106: PENNSYLVANIA | C106: 5 | D106: 2 | F106: GEORGIA | G106: 5 | H106: 5.161796502 | I106: 2.06552232 | J106: 3 | K106: 147.2857143 | M106: TEXAS | N106: 12 | O106: 0.1230685043 | Q106: 2 | R106: 68 | T106: MARYLAND | U106: 5 | V106: 4.073290344 | W106: 5.33890129 | X106: 4 | Y106: 83 | AA106: FLORIDA | AB106: 13 | AC106: 3.46876721 | AE106: 1 | AF106: 163 | AH106: ILLINOIS | AI106: 3 | AJ106: 0.4885914757 | AK106: 0.1267745976 | AL106: 3 | AM106: 93 | AO106: NEW HAMPSHIRE | AP106: 1 | AQ106: 5.303215849 | AS106: 3 | AT106: 56 | AV106: NEW YORK | AW106: 10 | AX106: 5.023249968 | AY106: 2.769116167 | AZ106: 3 | BA106: 33 | BC106: WASHINGTON | BD106: 9 | BE106: 3.978977519 | BG106: 3 | BH106: 51.75
B107: RHODE ISLAND | C107: 1 | D107: 1 | F107: TENNESSEE | G107: 6 | H107: 14.63645007 | I107: 1.277427665 | J107: 5 | K107: 31.33333333 | M107: IOWA | N107: 4 | O107: 2.164134802 | Q107: 3 | R107: 40.27272727 | T107: MARYLAND | U107: 5 | V107: 2.134987468 | W107: 6.900031908 | X107: 1 | Y107: 78 | AA107: NORTH DAKOTA | AB107: 4 | AC107: 9.949145329 | AE107: 1 | AF107: 28 | AH107: PENNSYLVANIA | AI107: 2 | AJ107: 8.539551611 | AK107: 0.01221923832 | AL107: 3 | AM107: 58 | AO107: TEXAS | AP107: 12 | AQ107: 2.74170739 | AS107: 3 | AT107: 84 | AV107: NEW JERSEY | AW107: 2 | AX107: 7.879689153 | AY107: 0.6514591601 | AZ107: 3 | BA107: 73 | BC107: FLORIDA | BD107: 13 | BE107: 0.6394934218 | BG107: 3 | BH107: 65.5
B108: SOUTH CAROLINA | C108: 16 | D108: 5 | F108: NEW JERSEY | G108: 2 | H108: 11.98383832 | I108: 0.09880240633 | J108: 2 | K108: 38 | M108: TEXAS | N108: 12 | O108: 1.113839286 | Q108: 1 | R108: 67.58333333 | T108: HAWAII | U108: 9 | V108: 4.417373974 | W108: 1.376552922 | X108: 2 | Y108: 243 | AA108: NEW YORK | AB108: 10 | AC108: 0.3303395447 | AE108: 4 | AF108: 158 | AH108: NORTH CAROLINA | AI108: 5 | AJ108: 0.6372454849 | AK108: 0.05834971049 | AL108: 3 | AM108: 115.5 | AO108: GEORGIA | AP108: 5 | AQ108: 0.4985291079 | AS108: 3 | AT108: 103 | AV108: PENNSYLVANIA | AW108: 2 | AX108: 11.67994767 | AY108: 0.5587755938 | AZ108: 3 | BA108: 23 | BC108: PENNSYLVANIA | BD108: 2 | BE108: 0.850898281 | BG108: 3 | BH108: 395.5
B109: SOUTH DAKOTA | C109: 10 | D109: 4 | F109: ARIZONA | G109: 8 | H109: 6.018453754 | I109: 4.444569708 | J109: 2 | K109: 73 | M109: WEST VIRGINIA | N109: 5 | O109: 3.214766333 | Q109: 3 | R109: 123 | T109: DISTRICT OF COLUMBIA | U109: 5 | V109: 4.871422262 | W109: 0.001471955302 | X109: 2 | Y109: 23 | AA109: ILLINOIS | AB109: 3 | AC109: 5.239796515 | AE109: 4 | AF109: 58.71428571 | AH109: PENNSYLVANIA | AI109: 2 | AJ109: 1.130099713 | AK109: 0.8218084259 | AL109: 3 | AM109: 76.125 | AO109: TEXAS | AP109: 12 | AQ109: 7.187928936 | AS109: 3 | AT109: 30.22222222 | AV109: MARYLAND | AW109: 5 | AX109: 14.93509695 | AY109: 0.05386036229 | AZ109: 3 | BA109: 58.71428571 | BC109: FLORIDA | BD109: 13 | BE109: 2.549371253 | BG109: 3 | BH109: 24
B110: TENNESSEE | C110: 19 | D110: 6 | F110: OHIO | G110: 3 | H110: 3.485561211 | I110: 2.920440323 | J110: 2 | K110: 73 | M110: MICHIGAN | N110: 3 | O110: 3.603678117 | Q110: 4 | R110: 63 | T110: CALIFORNIA | U110: 11 | V110: 5.400210017 | W110: 1.527945323 | X110: 1 | Y110: 74.66666667 | AA110: PENNSYLVANIA | AB110: 2 | AC110: 3.409162852 | AE110: 1 | AF110: 73 | AH110: MISSOURI | AI110: 4 | AJ110: 3.113972521 | AK110: 5.082187311 | AL110: 3 | AM110: 63 | AO110: FLORIDA | AP110: 13 | AQ110: 2.661689325 | AS110: 3 | AT110: 33 | AV110: CALIFORNIA | AW110: 11 | AX110: 10.67991725 | AY110: 0.1357842623 | AZ110: 3 | BA110: 34.36363636 | BC110: PENNSYLVANIA | BD110: 2 | BE110: 4.113242662 | BG110: 3 | BH110: 53
B111: TEXAS | C111: 21 | D111: 12 | F111: COLORADO | G111: 8 | H111: 5.41212779 | I111: 2.259387964 | J111: 1 | K111: 33 | M111: GEORGIA | N111: 5 | O111: 7.107843089 | Q111: 3 | R111: 78 | T111: CALIFORNIA | U111: 11 | V111: 5.141559673 | W111: 1.630955196 | X111: 5 | Y111: 103 | AA111: FLORIDA | AB111: 13 | AC111: 3.17055462 | AE111: 2 | AF111: 3 | AH111: TEXAS | AI111: 12 | AJ111: 4.257445974 | AK111: 0.09942408775 | AL111: 3 | AM111: 98 | AO111: ARIZONA | AP111: 8 | AQ111: 0.2987103175 | AS111: 3 | AT111: 64.66666667 | AV111: TENNESSEE | AW111: 6 | AX111: 3.004206349 | AY111: 1.153497024 | AZ111: 3 | BA111: 84.66666667 | BC111: FLORIDA | BD111: 13 | BE111: 2.602342896 | BG111: 3 | BH111: 73
B112: UTAH | C112: 23 | D112: 8 | F112: COLORADO | G112: 8 | H112: 9.945193562 | I112: 0.9116621241 | J112: 1 | K112: 33 | M112: ALABAMA | N112: 6 | O112: 3.46386579 | Q112: 3 | R112: 38.55555556 | T112: NEW YORK | U112: 10 | V112: 3.507893897 | W112: 0.02853067535 | X112: 1 | Y112: 58 | AA112: PENNSYLVANIA | AB112: 2 | AC112: 2.617466931 | AE112: 4 | AF112: 38 | AH112: ILLINOIS | AI112: 3 | AJ112: 6.259493977 | AK112: 0.007711043377 | AL112: 3 | AM112: 53 | AO112: GEORGIA | AP112: 5 | AQ112: 5.19758839 | AS112: 3 | AT112: 18 | AV112: OREGON | AW112: 9 | AX112: 16.38797725 | AY112: 0.1471764357 | AZ112: 3 | BA112: 43 | BC112: CALIFORNIA | BD112: 11 | BE112: 1.310428162 | BG112: 3 | BH112: 173
B113: VERMONT | C113: 1 | D113: 1 | F113: ARIZONA | G113: 8 | H113: 0.6162240888 | I113: 6.696127371 | J113: 2 | K113: 23 | M113: NORTH CAROLINA | N113: 5 | O113: 0.3116873898 | Q113: 2 | R113: 143 | T113: FLORIDA | U113: 13 | V113: 2.519759593 | W113: 0.01759792301 | X113: 4 | Y113: 23 | AA113: COLORADO | AB113: 8 | AC113: 9.829738221 | AE113: 1 | AF113: 13 | AH113: ILLINOIS | AI113: 3 | AJ113: 6.19400463 | AK113: 0.8910904926 | AL113: 3 | AM113: 53 | AO113: COLORADO | AP113: 8 | AQ113: 4.475463276 | AS113: 3 | AT113: 38 | AV113: FLORIDA | AW113: 13 | AX113: 5.572092701 | AY113: 0.2106294995 | AZ113: 3 | BA113: 28 | BC113: WASHINGTON | BD113: 9 | BE113: 1.983895697 | BG113: 3 | BH113: 78
B114: VIRGINIA | C114: 13 | D114: 5 | F114: PENNSYLVANIA | G114: 2 | H114: 4.305641912 | I114: 0.004640402496 | J114: 3 | K114: 51 | M114: WYOMING | N114: 8 | O114: 5.502561397 | Q114: 2 | R114: 78 | T114: MARYLAND | U114: 5 | V114: 5.484525309 | W114: 0.003946387425 | X114: 1 | Y114: 68 | AA114: FLORIDA | AB114: 13 | AC114: 4.008000117 | AE114: 1.5 | AF114: 83 | AH114: ARIZONA | AI114: 8 | AJ114: 6.339988426 | AK114: 3.488947584 | AL114: 3 | AM114: 139.25 | AO114: TEXAS | AP114: 12 | AQ114: 2.572196399 | AS114: 3 | AT114: 93 | AV114: TEXAS | AW114: 12 | AX114: 13.13585813 | AY114: 0.0105406746 | AZ114: 3 | BA114: 35.08333333 | BC114: NORTH CAROLINA | BD114: 5 | BE114: 4.896642384 | BG114: 3 | BH114: 58
B115: WASHINGTON | C115: 27 | D115: 9 | F115: TEXAS | G115: 12 | H115: 9.415081345 | I115: 4.232075309 | J115: 3 | K115: 38 | M115: MICHIGAN | N115: 3 | O115: 4.950737905 | Q115: 2.5 | R115: 93 | T115: VIRGINIA | U115: 5 | V115: 8.330509979 | W115: 0.003816417309 | X115: 2 | Y115: 93 | AA115: WASHINGTON | AB115: 9 | AC115: 0.5820955359 | AE115: 3 | AF115: 63 | AH115: GEORGIA | AI115: 5 | AJ115: 11.41002976 | AK115: 4.179006217 | AL115: 3 | AM115: 18.41666667 | AO115: MINNESOTA | AP115: 4 | AQ115: 3.517876984 | AS115: 3 | AT115: 18 | AV115: NEW YORK | AW115: 10 | AX115: 1.065368717 | AY115: 2.540852348 | AZ115: 3 | BA115: 155.5 | BC115: TENNESSEE | BD115: 6 | BE115: 3.636818548 | BG115: 3 | BH115: 26.75
B116: WEST VIRGINIA | C116: 14 | D116: 5 | F116: PENNSYLVANIA | G116: 2 | H116: 2.690045226 | I116: 2.684769054 | J116: 2 | K116: 91.5 | M116: INDIANA | N116: 3 | O116: 5.137119209 | Q116: 4 | R116: 84.875 | T116: OREGON | U116: 9 | V116: 3.477127377 | W116: 1.477352787 | X116: 4 | Y116: 98 | AA116: OHIO | AB116: 3 | AC116: 3.01215418 | AE116: 2 | AF116: 83 | AH116: TEXAS | AI116: 12 | AJ116: 1.668056372 | AK116: 2.676493812 | AL116: 3 | AM116: 33 | AO116: CALIFORNIA | AP116: 11 | AQ116: 4.143034771 | AS116: 3 | AT116: 43 | AV116: CALIFORNIA | AW116: 11 | AX116: 3.600957341 | AY116: 1.394494048 | AZ116: 3 | BA116: 69.66666667 | BC116: MARYLAND | BD116: 5 | BE116: 3.705617152 | BG116: 3 | BH116: 153
B117: WISCONSIN | C117: 9 | D117: 3 | F117: ILLINOIS | G117: 3 | H117: 6.332419135 | I117: 8.385326145 | J117: 1 | K117: 46.33333333 | M117: NEW MEXICO | N117: 8 | O117: 1.363189484 | Q117: 5 | R117: 140.5 | T117: WASHINGTON | U117: 9 | V117: 5.888500822 | W117: 0.483487323 | X117: 5 | Y117: 13 | AA117: MASSACHUSETTS | AB117: 1 | AC117: 1.436373278 | AE117: 4 | AF117: 170.5 | AH117: ILLINOIS | AI117: 3 | AJ117: 4.685827877 | AK117: 0.1650105224 | AL117: 3 | AM117: 83 | AO117: ARIZONA | AP117: 8 | AQ117: 5.409498713 | AS117: 3 | AT117: 29.42857143 | AV117: CALIFORNIA | AW117: 11 | AX117: 5.193219246 | AY117: 8.756262401 | AZ117: 3 | BA117: 69.66666667 | BC117: PENNSYLVANIA | BD117: 2 | BE117: 0.496197787 | BG117: 3 | BH117: 88
B118: WYOMING | C118: 23 | D118: 8 | F118: OHIO | G118: 3 | H118: 8.080030452 | I118: 1.965159004 | J118: 4 | K118: 98 | M118: OREGON | N118: 9 | O118: 3.617733647 | Q118: 2 | R118: 40.14285714 | T118: FLORIDA | U118: 13 | V118: 4.772213347 | W118: 0.01076672594 | X118: 2 | Y118: 43 | AA118: COLORADO | AB118: 8 | AC118: 7.67024539 | AE118: 1 | AF118: 64 | AH118: FLORIDA | AI118: 13 | AJ118: 1.500450973 | AK118: 4.468676191 | AL118: 3 | AM118: 38 | AO118: VERMONT | AP118: 1 | AQ118: 3.553833291 | AS118: 3 | AT118: 103.4545455 | AV118: CONNECTICUT | AW118: 1 | AX118: 11.69807915 | AY118: 0.08156929816 | AZ118: 3 | BA118: 25.14285714 | BC118: KENTUCKY | BD118: 6 | BE118: 8.747533168 | BG118: 3 | BH118: 68
F119: GEORGIA | G119: 5 | H119: 4.199066024 | I119: 2.16007705 | J119: 4 | K119: 54.5 | M119: OHIO | N119: 3 | O119: 1.233543098 | Q119: 2 | R119: 38 | T119: COLORADO | U119: 8 | V119: 4.017164886 | W119: 0.4091767559 | X119: 1 | Y119: 13 | AA119: VIRGINIA | AB119: 5 | AC119: 1.110437482 | AE119: 2 | AF119: 98 | AH119: FLORIDA | AI119: 13 | AJ119: 3.462129053 | AK119: 0.1122920555 | AL119: 3 | AM119: 33 | AO119: MASSACHUSETTS | AP119: 1 | AQ119: 2.222376885 | AS119: 3 | AT119: 33 | AV119: WASHINGTON | AW119: 9 | AX119: 8.474098876 | AY119: 0.03430886243 | AZ119: 3 | BA119: 45.5 | BC119: PENNSYLVANIA | BD119: 2 | BE119: 2.670357088 | BG119: 3 | BH119: 35.5
B120: Average Hours of Operation | C120: On | D120: Multi | F120: ILLINOIS | G120: 3 | H120: 5.336591303 | I120: 3.203780919 | J120: 2 | K120: 97.375 | M120: CALIFORNIA | N120: 11 | O120: 0.330382909 | Q120: 3 | R120: 93 | T120: VIRGINIA | U120: 5 | V120: 0.8680132171 | W120: 0.01467512573 | X120: 5 | Y120: 83 | AA120: GEORGIA | AB120: 5 | AC120: 1.711879157 | AE120: 3 | AF120: 103 | AH120: CALIFORNIA | AI120: 11 | AJ120: 4.322761182 | AK120: 9.745264014 | AL120: 3 | AM120: 48 | AO120: TEXAS | AP120: 12 | AQ120: 1.344643519 | AS120: 3 | AT120: 58 | AV120: CALIFORNIA | AW120: 11 | AX120: 4.861009933 | AY120: 0.1434488971 | AZ120: 3 | BA120: 90.22222222 | BC120: CALIFORNIA | BD120: 11 | BE120: 0.1886473755 | BG120: 3 | BH120: 158
B121: Cable Base | C121: 3.734596243 | D121: 0 | F121: COLORADO | G121: 8 | H121: 2.989797488 | I121: 1.415261311 | J121: 2 | K121: 25.77777778 | M121: ILLINOIS | N121: 3 | O121: 2.56549758 | Q121: 2 | R121: 77.28571429 | T121: NEW JERSEY | U121: 2 | V121: 9.99987803 | W121: 0.1915898582 | X121: 4 | Y121: 95.85714286 | AA121: MARYLAND | AB121: 5 | AC121: 0.8168801478 | AE121: 2 | AF121: 48 | AH121: OREGON | AI121: 9 | AJ121: 5.671498016 | AK121: 8.283097996 | AL121: 3 | AM121: 76.33333333 | AO121: CALIFORNIA | AP121: 11 | AQ121: 0.09090882202 | AS121: 3 | AT121: 138 | AV121: NEW YORK | AW121: 10 | AX121: 2.073589771 | AY121: 1.792553048 | AZ121: 3 | BA121: 138.9090909 | BC121: MINNESOTA | BD121: 4 | BE121: 1.940721536 | BG121: 3 | BH121: 108
B122: Cable Video Client | C122: 3.734596243 | D122: 0 | F122: OREGON | G122: 9 | H122: 6.359495701 | I122: 0.9548782656 | J122: 3 | K122: 23 | M122: OHIO | N122: 3 | O122: 5.089237723 | Q122: 3 | R122: 38 | T122: CALIFORNIA | U122: 11 | V122: 1.039980159 | W122: 0.2132771164 | X122: 5 | Y122: 126.75 | AA122: MASSACHUSETTS | AB122: 1 | AC122: 0.001963736816 | AE122: 1 | AF122: 33 | AH122: ILLINOIS | AI122: 3 | AJ122: 3.567957886 | AK122: 5.908936363 | AL122: 3 | AM122: 148 | AO122: MASSACHUSETTS | AP122: 1 | AQ122: 0.6369582117 | AS122: 3 | AT122: 90 | AV122: FLORIDA | AW122: 13 | AX122: 4.332937167 | AY122: 10.08199066 | AZ122: 3 | BA122: 73 | BC122: FLORIDA | BD122: 13 | BE122: 5.474019564 | BG122: 3 | BH122: 53
B123: Cable Video Server | C123: 3.215308729 | D123: 0 | F123: CALIFORNIA | G123: 11 | H123: 4.247281746 | I123: 8.206156442 | J123: 1.5 | K123: 55.08333333 | M123: COLORADO | N123: 8 | O123: 2.124545298 | Q123: 4 | R123: 68 | T123: NEW HAMPSHIRE | U123: 1 | V123: 1.054483828 | W123: 0.1715624757 | X123: 2 | Y123: 103 | AA123: CALIFORNIA | AB123: 11 | AC123: 0.3703695865 | AE123: 1.5 | AF123: 93 | AH123: ILLINOIS | AI123: 3 | AJ123: 4.714920023 | AK123: 2.81615004 | AL123: 3 | AM123: 73 | AO123: FLORIDA | AP123: 13 | AQ123: 3.031864022 | AS123: 3 | AT123: 38 | AV123: ILLINOIS | AW123: 3 | AX123: 5.345860549 | AY123: 7.619338503 | AZ123: 3 | BA123: 63 | BC123: MISSOURI | BD123: 4 | BE123: 5.578110716 | BG123: 3 | BH123: 46.33333333
B124: Cable with DVR | C124: 5.383640869 | D124: 1.424976961 | F124: OHIO | G124: 3 | H124: 5.803511437 | I124: 3.004151203 | J124: 5 | K124: 23 | M124: ALABAMA | N124: 6 | O124: 10.82781746 | Q124: 1 | R124: 13 | T124: MARYLAND | U124: 5 | V124: 3.993598677 | W124: 0.005632734596 | X124: 3 | Y124: 123 | AA124: PENNSYLVANIA | AB124: 2 | AC124: 6.71466277 | AE124: 1 | AF124: 39.25 | AH124: MINNESOTA | AI124: 4 | AJ124: 6.070851306 | AK124: 0.9106518479 | AL124: 3 | AM124: 97.28571429 | AO124: NORTH CAROLINA | AP124: 5 | AQ124: 0.8120797374 | AS124: 3 | AT124: 43 | AV124: NORTH CAROLINA | AW124: 5 | AX124: 9.735384874 | AY124: 4.855320579 | AZ124: 3 | BA124: 58 | BC124: MICHIGAN | BD124: 3 | BE124: 1.153901975 | BG124: 3 | BH124: 95.85714286
B125: Cable with DVR & Video Server | C125: 5.228764617 | D125: 1.323721704 | F125: FLORIDA | G125: 13 | H125: 6.127184943 | I125: 0.89895946 | J125: 4 | K125: 28 | M125: MINNESOTA | N125: 4 | O125: 1.089637897 | Q125: 3 | R125: 74.25 | T125: NEW YORK | U125: 10 | V125: 3.318343254 | W125: 3.49985119 | X125: 1 | Y125: 68 | AA125: MICHIGAN | AB125: 3 | AC125: 4.405771996 | AE125: 2 | AF125: 43 | AH125: CALIFORNIA | AI125: 11 | AJ125: 2.342156385 | AK125: 1.046798465 | AL125: 3 | AM125: 207.5833333 | AO125: OHIO | AP125: 3 | AQ125: 1.662188625 | AS125: 3 | AT125: 63 | AV125: TEXAS | AW125: 12 | AX125: 8.215629545 | AY125: 0.05694771602 | AZ125: 3 | BA125: 63 | BC125: LOUISIANA | BD125: 7 | BE125: 6.028624901 | BG125: 3 | BH125: 23
B126: Satellite Base | C126: 4.037494812 | D126: 0 | F126: TEXAS | G126: 12 | H126: 3.531189651 | I126: 2.684703999 | J126: 2 | K126: 34 | M126: PENNSYLVANIA | N126: 2 | O126: 7.043134755 | Q126: 4 | R126: 53 | T126: NEW JERSEY | U126: 2 | V126: 7.651583035 | W126: 0.04787645201 | X126: 6 | Y126: 43 | AA126: TEXAS | AB126: 12 | AC126: 5.257037464 | AE126: 2 | AF126: 63 | AH126: MINNESOTA | AI126: 4 | AJ126: 3.167209333 | AK126: 2.894753699 | AL126: 3 | AM126: 49.66666667 | AO126: PENNSYLVANIA | AP126: 2 | AQ126: 2.253783069 | AS126: 3 | AT126: 184.25 | AV126: FLORIDA | AW126: 13 | AX126: 11.14586562 | AY126: 0.01561074939 | AZ126: 3 | BA126: 53 | BC126: INDIANA | BD126: 3 | BE126: 4.744802401 | BG126: 3 | BH126: 35
B127: Satellite Video Client | C127: 4.037494812 | D127: 0 | F127: CALIFORNIA | G127: 11 | H127: 4.820346356 | I127: 1.109218074 | J127: 2 | K127: 108 | M127: CALIFORNIA | N127: 11 | O127: 6.072445557 | Q127: 2 | R127: 93 | T127: NEW JERSEY | U127: 2 | V127: 0.6734440449 | W127: 0.001989834818 | X127: 1 | Y127: 48 | AA127: PENNSYLVANIA | AB127: 2 | AC127: 2.48776032 | AE127: 2 | AF127: 55.5 | AH127: VIRGINIA | AI127: 5 | AJ127: 3.239455739 | AK127: 0.8160529054 | AL127: 3 | AM127: 73 | AO127: CALIFORNIA | AP127: 11 | AQ127: 7.167865342 | AS127: 3 | AT127: 83 | AV127: CALIFORNIA | AW127: 11 | AX127: 9.199364772 | AY127: 0.2699550076 | AZ127: 3 | BA127: 32 | BC127: GEORGIA | BD127: 5 | BE127: 1.089879107 | BG127: 3 | BH127: 255.7272727
B128: Satellite Video Server | C128: 3.439065153 | D128: 0 | F128: CALIFORNIA | G128: 11 | H128: 1.698973214 | I128: 3.392964388 | J128: 3 | K128: 146.75 | M128: COLORADO | N128: 8 | O128: 2.606359438 | Q128: 3 | R128: 38 | T128: OREGON | U128: 9 | V128: 2.353478461 | W128: 4.391144718 | X128: 3 | Y128: 39.66666667 | AA128: ILLINOIS | AB128: 3 | AC128: 0.1922892535 | AE128: 2 | AF128: 79.42857143 | AH128: MINNESOTA | AI128: 4 | AJ128: 4.803955491 | AK128: 3.522359975 | AL128: 3 | AM128: 108 | AO128: NORTH CAROLINA | AP128: 5 | AQ128: 0.08409076306 | AS128: 3 | AT128: 103 | AV128: FLORIDA | AW128: 13 | AX128: 9.780681639 | AY128: 0.001625633159 | AZ128: 3 | BA128: 53 | BC128: FLORIDA | BD128: 13 | BE128: 0.02289360196 | BG128: 3 | BH128: 38
B129: Satellite with DVR | C129: 4.439104584 | D129: 3.027086261 | F129: COLORADO | G129: 8 | H129: 8.284097222 | I129: 2.753478191 | J129: 4 | K129: 66.33333333 | M129: MISSOURI | N129: 4 | O129: 2.876579448 | Q129: 2 | R129: 38 | T129: DISTRICT OF COLUMBIA | U129: 5 | V129: 4.365709144 | W129: 0.001762380453 | X129: 1 | Y129: 73 | AA129: CALIFORNIA | AB129: 11 | AC129: 2.253951834 | AE129: 2 | AF129: 53 | AH129: FLORIDA | AI129: 13 | AJ129: 3.262439228 | AK129: 1.480480983 | AL129: 3 | AM129: 13 | AO129: COLORADO | AP129: 8 | AQ129: 0.3220734127 | AS129: 3 | AT129: 143.8333333 | AV129: FLORIDA | AW129: 13 | AX129: 3.023958333 | AY129: 0.9101190476 | AZ129: 3 | BA129: 124.6666667 | BC129: MISSOURI | BD129: 4 | BE129: 9.084455128 | BG129: 3 | BH129: 63
B130: Satellite with DVR & Video Server | C130: 4.427691111 | D130: 2.70035776 | F130: TEXAS | G130: 12 | H130: 3.571431669 | I130: 0.3102782693 | J130: 4 | K130: 38 | M130: WYOMING | N130: 8 | O130: 0.07351617177 | Q130: 3 | R130: 228 | T130: PENNSYLVANIA | U130: 2 | V130: 22.77644116 | W130: 0.3139855605 | X130: 2 | Y130: 48 | AA130: TEXAS | AB130: 12 | AC130: 1.063425052 | AE130: 9 | AF130: 88 | AH130: ARIZONA | AI130: 8 | AJ130: 7.101389041 | AK130: 1.341319653 | AL130: 3 | AM130: 53 | AO130: FLORIDA | AP130: 13 | AQ130: 4.11663094 | AS130: 3 | AT130: 88 | AV130: OHIO | AW130: 3 | AX130: 3.444376121 | AY130: 5.562668657 | AZ130: 3 | BA130: 18 | BC130: NEW MEXICO | BD130: 8 | BE130: 1.371754299 | BG130: 3 | BH130: 45.08333333
B131: IP Base | C131: 3.734596243 | D131: 0 | F131: SOUTH CAROLINA | G131: 5 | H131: 3.700279889 | I131: 0.002456470762 | J131: 4 | K131: 83 | M131: TENNESSEE | N131: 6 | O131: 2.606803731 | Q131: 2 | R131: 101.5714286 | T131: TEXAS | U131: 12 | V131: 2.667081921 | W131: 1.100753225 | X131: 1 | Y131: 154.25 | AA131: FLORIDA | AB131: 13 | AC131: 0.8276190476 | AE131: 2 | AF131: 33 | AH131: WASHINGTON | AI131: 9 | AJ131: 2.977866963 | AK131: 0.2020830695 | AL131: 3 | AM131: 38 | AO131: ILLINOIS | AP131: 3 | AQ131: 4.11370516 | AS131: 3 | AT131: 53 | AV131: MARYLAND | AW131: 5 | AX131: 5.437822421 | AY131: 2.420949074 | AZ131: 3 | BA131: 83 | BC131: OHIO | BD131: 3 | BE131: 9.345781276 | BG131: 3 | BH131: 130.5
B132: IP Video Client | C132: 3.734596243 | D132: 0 | F132: FLORIDA | G132: 13 | H132: 8.641867784 | I132: 2.875328123 | J132: 3 | K132: 53 | M132: NEW YORK | N132: 10 | O132: 1.902283135 | Q132: 5 | R132: 58 | T132: DELAWARE | U132: 5 | V132: 7.154959844 | W132: 0.05705556366 | X132: 3 | Y132: 23 | AA132: MARYLAND | AB132: 5 | AC132: 2.851722609 | AE132: 4 | AF132: 41.18181818 | AH132: ARIZONA | AI132: 8 | AJ132: 2.843987658 | AK132: 6.354003929 | AL132: 3 | AM132: 38 | AO132: FLORIDA | AP132: 13 | AQ132: 0.006074030874 | AS132: 3 | AT132: 88 | AV132: FLORIDA | AW132: 13 | AX132: 1.596470384 | AY132: 5.931855333 | AZ132: 3 | BA132: 38 | BC132: PENNSYLVANIA | BD132: 2 | BE132: 7.480956764 | BG132: 3 | BH132: 28
B133: IP Video Server | C133: 3.215308729 | D133: 0 | F133: NEW YORK | G133: 10 | H133: 6.113982316 | I133: 2.881071272 | J133: 3 | K133: 123 | M133: ARIZONA | N133: 8 | O133: 0.3803844882 | Q133: 4 | R133: 45.08333333 | T133: NEW YORK | U133: 10 | V133: 1.696046472 | W133: 3.436256419 | X133: 3 | Y133: 173 | AA133: WASHINGTON | AB133: 9 | AC133: 1.26770092 | AE133: 1 | AF133: 83 | AH133: MASSACHUSETTS | AI133: 1 | AJ133: 9.661200187 | AK133: 0.333899228 | AL133: 3 | AM133: 33 | AO133: MICHIGAN | AP133: 3 | AQ133: 0.2577838353 | AS133: 3 | AT133: 130.1428571 | AV133: LOUISIANA | AW133: 7 | AX133: 9.897996032 | AY133: 0.2938740079 | AZ133: 3 | BA133: 81.33333333 | BC133: FLORIDA | BD133: 13 | BE133: 4.068487208 | BG133: 3 | BH133: 73
B134: IP with DVR | C134: 5.383640869 | D134: 1.424976961 | F134: TENNESSEE | G134: 6 | H134: 2.413860048 | I134: 0.2011511525 | J134: 5 | K134: 88 | M134: PENNSYLVANIA | N134: 2 | O134: 0.8164939657 | Q134: 4 | R134: 180.7272727 | T134: ILLINOIS | U134: 3 | V134: 7.59254431 | W134: 0.006721423923 | X134: 3 | Y134: 63 | AA134: COLORADO | AB134: 8 | AC134: 7.328680705 | AE134: 1 | AF134: 23 | AH134: SOUTH CAROLINA | AI134: 5 | AJ134: 9.06727769 | AK134: 0.4136402987 | AL134: 3 | AM134: 43 | AO134: CALIFORNIA | AP134: 11 | AQ134: 3.850866402 | AS134: 3 | AT134: 58.83333333 | AV134: NEW JERSEY | AW134: 2 | AX134: 4.154063199 | AY134: 0.6313128486 | AZ134: 3 | BA134: 68 | BC134: NORTH CAROLINA | BD134: 5 | BE134: 0.07177418352 | BG134: 3 | BH134: 93
B135: IP with DVR & Video Server | C135: 5.228764617 | D135: 1.323721704 | F135: NEW JERSEY | G135: 2 | H135: 5.84335645 | I135: 0.001372113617 | J135: 4 | K135: 68 | M135: CALIFORNIA | N135: 11 | O135: 5.575693423 | Q135: 1 | R135: 73 | T135: CALIFORNIA | U135: 11 | V135: 3.961654941 | W135: 0.02929320724 | X135: 2 | Y135: 63 | AA135: PENNSYLVANIA | AB135: 2 | AC135: 1.358569707 | AE135: 2 | AF135: 33 | AH135: OREGON | AI135: 9 | AJ135: 2.916639222 | AK135: 0.212974321 | AL135: 3 | AM135: 53 | AO135: ILLINOIS | AP135: 3 | AQ135: 5.487379941 | AS135: 3 | AT135: 109.8181818 | AV135: OHIO | AW135: 3 | AX135: 3.17972887 | AY135: 0.1332655589 | AZ135: 3 | BA135: 138 | BC135: MARYLAND | BD135: 5 | BE135: 1.498328373 | BG135: 3 | BH135: 193
B136: OTT | C136: 3.734596243 | D136: 0 | F136: NEW YORK | G136: 10 | H136: 4.577750172 | I136: 1.523985008 | J136: 3 | K136: 158 | M136: SOUTH CAROLINA | N136: 5 | O136: 0.008429056926 | Q136: 3 | R136: 63 | T136: FLORIDA | U136: 13 | V136: 7.036547959 | W136: 0.002534061146 | X136: 3 | Y136: 23 | AA136: MISSOURI | AB136: 4 | AC136: 0.3068529099 | AE136: 4 | AF136: 63 | AH136: GEORGIA | AI136: 5 | AJ136: 3.674451999 | AK136: 2.64182939 | AL136: 3 | AM136: 73 | AO136: PENNSYLVANIA | AP136: 2 | AQ136: 3.689009821 | AS136: 3 | AT136: 18 | AV136: WASHINGTON | AW136: 9 | AX136: 6.566366646 | AY136: 0.03188567678 | AZ136: 3 | BA136: 54.66666667 | BC136: WASHINGTON | BD136: 9 | BE136: 1.729097906 | BG136: 3 | BH136: 78
B137: Thin-client | C137: 3.734596243 | D137: 0 | F137: MARYLAND | G137: 5 | H137: 1.948915557 | I137: 2.100181767 | J137: 4 | K137: 203 | M137: LOUISIANA | N137: 7 | O137: 14.55851143 | Q137: 1 | R137: 18 | T137: WASHINGTON | U137: 9 | V137: 12.66056633 | W137: 0.07359159995 | X137: 2 | Y137: 33 | AA137: ILLINOIS | AB137: 3 | AC137: 0.585429783 | AE137: 4 | AF137: 43 | AH137: OHIO | AI137: 3 | AJ137: 6.321023094 | AK137: 1.885971331 | AL137: 3 | AM137: 193 | AO137: NORTH CAROLINA | AP137: 5 | AQ137: 5.998578042 | AS137: 3 | AT137: 23 | AV137: MARYLAND | AW137: 5 | AX137: 11.89154391 | AY137: 0.1266197539 | AZ137: 3 | BA137: 83 | BC137: FLORIDA | BD137: 13 | BE137: 1.909032896 | BG137: 3 | BH137: 87
C138: AVERAGE(OFFSET($J$5, , 9*($D65-1)):OFFSET($J$5, COUNTA(OFFSET($J:$J, , 9*($D65-1)))-1, 9*($D65-1))) | D138: IF(SUM(OFFSET($K$5, , 9*($D65-1)):OFFSET($K$5, COUNTA(OFFSET($K:$K, , 9*($D65-1)))-1, 9*($D65-1))) > 0, AVERAGE(OFFSET($K$5, , 9*($D65-1)):OFFSET($K$5, COUNTA(OFFSET($K:$K, , 9*($D65-1)))-1, 9*($D65-1))), 0) | F138: INDIANA | G138: 3 | H138: 3.90391935 | I138: 5.992793951 | J138: 3 | K138: 33 | M138: IOWA | N138: 4 | O138: 4.210201706 | Q138: 1 | R138: 23 | T138: ILLINOIS | U138: 3 | V138: 2.29359124 | W138: 2.211914957 | X138: 2.5 | Y138: 65.5 | AA138: TENNESSEE | AB138: 6 | AC138: 1.569268279 | AE138: 2 | AF138: 143 | AH138: COLORADO | AI138: 8 | AJ138: 3.183224206 | AK138: 3.201932357 | AL138: 3 | AM138: 53.83333333 | AO138: MICHIGAN | AP138: 3 | AQ138: 6.845322257 | AS138: 3 | AT138: 13 | AV138: FLORIDA | AW138: 13 | AX138: 8.275714574 | AY138: 0.001548794231 | AZ138: 3 | BA138: 23 | BC138: MARYLAND | BD138: 5 | BE138: 6.478028056 | BG138: 3 | BH138: 115.2727273
F139: COLORADO | G139: 8 | H139: 1.764787545 | I139: 1.609661175 | J139: 2 | K139: 113 | M139: NORTH CAROLINA | N139: 5 | O139: 2.098175299 | Q139: 4 | R139: 33 | T139: WASHINGTON | U139: 9 | V139: 2.134922948 | W139: 0.04481800213 | X139: 1 | Y139: 108 | AA139: CALIFORNIA | AB139: 11 | AC139: 3.357673338 | AE139: 3 | AF139: 35.5 | AH139: CALIFORNIA | AI139: 11 | AJ139: 0.7304613095 | AK139: 0.01494253513 | AL139: 3 | AM139: 73.41666667 | AO139: MINNESOTA | AP139: 4 | AQ139: 1.938948922 | AS139: 3 | AT139: 21.57142857 | AV139: MINNESOTA | AW139: 4 | AX139: 4.551791083 | AY139: 0.00182505226 | AZ139: 3 | BA139: 31.33333333 | BC139: TENNESSEE | BD139: 6 | BE139: 0.3348412698 | BG139: 3 | BH139: 193
B140: Notes | F140: WEST VIRGINIA | G140: 5 | H140: 0.572734067 | I140: 2.674954313 | J140: 1 | K140: 123 | M140: NORTH CAROLINA | N140: 5 | O140: 1.19783576 | Q140: 2 | R140: 63 | T140: TEXAS | U140: 12 | V140: 1.652911706 | W140: 3.04917328 | X140: 2 | Y140: 58 | AA140: FLORIDA | AB140: 13 | AC140: 0.4411283061 | AE140: 5 | AF140: 106.75 | AH140: ARIZONA | AI140: 8 | AJ140: 1.556272116 | AK140: 1.318606708 | AL140: 3 | AM140: 98 | AO140: LOUISIANA | AP140: 7 | AQ140: 3.399979095 | AS140: 3 | AT140: 53 | AV140: NEW JERSEY | AW140: 2 | AX140: 4.158716991 | AY140: 2.704873138 | AZ140: 3 | BA140: 113 | BC140: CALIFORNIA | BD140: 11 | BE140: 0.7724839231 | BG140: 3 | BH140: 33
B141: Consumer household samples based on metering data from Nielsen for Jan.-Dec. 2011. Metering data are filtered to include when TV is being used to watch live TV and recorded DVR content, and exclude when TV is used to watch DVD or Blu-ray content or used with game consoles. For 2011, the number of participating households varied from 16,705 to 18,259. The Nielsen sample was separated into four subsamples: (1) cable (CBT) STBs without DVR; (2) cable STBs with DVR; (3) satellite (DBT) STBs without DVR; and (4) satellite STBs with DVR. In the LCC calculations, IP, OTT, and thin client product groups use the cable subsamples. For server product groups, DOE assumed that those products were only used in households with three or more TVs. Due to the nature of the Nielsen data being proprietary, DOE can only publically publish 10% of the full household sample used in the LCC analysis. This analytical tool made publically available on DOE’s website is therefore modified from the full version used to complete the LCC analysis and national impact analysis (NIA). The final summary results presented in the "Summary", "LCC Box Plots", "PBP Box Plots", and "Frequency Charts" worksheets are based on the complete Nielsen household sample. Sources: Nielsen, 2011. http://www.nielsen.com/us/en.html mediaprospects@nielsen.com | F141: PENNSYLVANIA | G141: 2 | H141: 1.701481582 | I141: 0.707242457 | J141: 4 | K141: 41.63636364 | M141: TEXAS | N141: 12 | O141: 2.216401679 | Q141: 3 | R141: 53 | T141: CALIFORNIA | U141: 11 | V141: 4.675385477 | W141: 0.7370469201 | X141: 1 | Y141: 83 | AA141: TEXAS | AB141: 12 | AC141: 1.788836205 | AE141: 4 | AF141: 53 | AH141: MICHIGAN | AI141: 3 | AJ141: 5.74790216 | AK141: 0.1856241917 | AL141: 3 | AM141: 28 | AO141: ILLINOIS | AP141: 3 | AQ141: 0.76531141 | AS141: 3 | AT141: 78 | AV141: COLORADO | AW141: 8 | AX141: 4.976156253 | AY141: 0.2375788913 | AZ141: 3 | BA141: 103 | BC141: ILLINOIS | BD141: 3 | BE141: 12.36171822 | BG141: 3 | BH141: 57
F142: CALIFORNIA | G142: 11 | H142: 4.284382678 | I142: 0.2069234727 | J142: 2 | K142: 33 | M142: OREGON | N142: 9 | O142: 0.06395463981 | Q142: 2 | R142: 53 | T142: MARYLAND | U142: 5 | V142: 2.543556597 | W142: 0.04057135996 | X142: 4.5 | Y142: 123 | AA142: MASSACHUSETTS | AB142: 1 | AC142: 1.516816321 | AE142: 3 | AF142: 64.5 | AH142: INDIANA | AI142: 3 | AJ142: 15.944917 | AK142: 3.057203173 | AL142: 3 | AM142: 48 | AO142: OREGON | AP142: 9 | AQ142: 1.978377751 | AS142: 3 | AT142: 118 | AV142: FLORIDA | AW142: 13 | AX142: 4.306785714 | AY142: 1.81780754 | AZ142: 3 | BA142: 78 | BC142: PENNSYLVANIA | BD142: 2 | BE142: 3.090443581 | BG142: 3 | BH142: 48
F143: MICHIGAN | G143: 3 | H143: 1.35243473 | I143: 0.3105578432 | J143: 4 | K143: 88 | M143: NEW YORK | N143: 10 | O143: 5.470571141 | Q143: 2 | R143: 35.14285714 | T143: MICHIGAN | U143: 3 | V143: 4.951992469 | W143: 0.3993925683 | X143: 5 | Y143: 128 | AA143: TEXAS | AB143: 12 | AC143: 0.9814411649 | AE143: 5 | AF143: 93 | AH143: FLORIDA | AI143: 13 | AJ143: 2.556320869 | AK143: 0.2260973803 | AL143: 3 | AM143: 93 | AO143: MISSISSIPPI | AP143: 6 | AQ143: 0.546649087 | AS143: 3 | AT143: 49.36363636 | AV143: WEST VIRGINIA | AW143: 5 | AX143: 7.508973214 | AY143: 8.506039187 | AZ143: 3 | BA143: 19.66666667 | BC143: FLORIDA | BD143: 13 | BE143: 2.436363428 | BG143: 3 | BH143: 33
F144: WASHINGTON | G144: 9 | H144: 5.312045913 | I144: 5.916147889 | J144: 1 | K144: 93 | M144: ILLINOIS | N144: 3 | O144: 0.05315308713 | Q144: 1 | R144: 23 | T144: WASHINGTON | U144: 9 | V144: 8.450663728 | W144: 4.815935705 | X144: 2 | Y144: 50.14285714 | AA144: MISSOURI | AB144: 4 | AC144: 1.141638044 | AE144: 3 | AF144: 58 | AH144: NORTH CAROLINA | AI144: 5 | AJ144: 3.172025328 | AK144: 2.264272637 | AL144: 3 | AM144: 68 | AO144: VIRGINIA | AP144: 5 | AQ144: 3.227846655 | AS144: 3 | AT144: 168 | AV144: ARIZONA | AW144: 8 | AX144: 3.231021825 | AY144: 2.05458416 | AZ144: 3 | BA144: 78 | BC144: COLORADO | BD144: 8 | BE144: 0.1195287698 | BG144: 3 | BH144: 67.16666667
F145: TEXAS | G145: 12 | H145: 5.098694562 | I145: 0.5831596754 | J145: 3 | K145: 164.875 | M145: GEORGIA | N145: 5 | O145: 9.60794316 | Q145: 2 | R145: 38 | T145: CALIFORNIA | U145: 11 | V145: 4.696861877 | W145: 1.472943189 | X145: 1 | Y145: 38 | AA145: MASSACHUSETTS | AB145: 1 | AC145: 4.189714353 | AE145: 1 | AF145: 73 | AH145: PENNSYLVANIA | AI145: 2 | AJ145: 0.8709406425 | AK145: 2.320395073 | AL145: 3 | AM145: 103 | AO145: MARYLAND | AP145: 5 | AQ145: 1.205195681 | AS145: 3 | AT145: 123.5555556 | AV145: NEW YORK | AW145: 10 | AX145: 2.571707901 | AY145: 7.426525274 | AZ145: 3 | BA145: 33 | BC145: FLORIDA | BD145: 13 | BE145: 4.462850342 | BG145: 3 | BH145: 63
F146: COLORADO | G146: 8 | H146: 4.387599206 | I146: 7.855595825 | J146: 1 | K146: 14.25 | M146: PENNSYLVANIA | N146: 2 | O146: 2.398806498 | Q146: 2 | R146: 93.5 | T146: OHIO | U146: 3 | V146: 3.600426444 | W146: 1.302343545 | X146: 3 | Y146: 28 | AA146: FLORIDA | AB146: 13 | AC146: 4.180358547 | AE146: 2 | AF146: 71 | AH146: FLORIDA | AI146: 13 | AJ146: 0.9136976977 | AK146: 0.6566014455 | AL146: 3 | AM146: 73 | AO146: CALIFORNIA | AP146: 11 | AQ146: 2.617126735 | AS146: 3 | AT146: 128 | AV146: FLORIDA | AW146: 13 | AX146: 9.028717062 | AY146: 0.04837141604 | AZ146: 3 | BA146: 63 | BC146: MASSACHUSETTS | BD146: 1 | BE146: 0.1479716747 | BG146: 3 | BH146: 98
F147: CALIFORNIA | G147: 11 | H147: 5.080830846 | I147: 0.01711816006 | J147: 3 | K147: 8 | M147: TEXAS | N147: 12 | O147: 2.058398977 | Q147: 2 | R147: 63 | T147: FLORIDA | U147: 13 | V147: 7.630147771 | W147: 0.001418640943 | X147: 3 | Y147: 43 | AA147: NEW JERSEY | AB147: 2 | AC147: 11.27285714 | AE147: 1 | AF147: 40.91666667 | AH147: PENNSYLVANIA | AI147: 2 | AJ147: 5.628952583 | AK147: 2.250036968 | AL147: 3 | AM147: 128 | AO147: ILLINOIS | AP147: 3 | AQ147: 3.46193287 | AS147: 3 | AT147: 48 | AV147: NORTH CAROLINA | AW147: 5 | AX147: 14.93108951 | AY147: 5.168155902 | AZ147: 3 | BA147: 33 | BC147: GEORGIA | BD147: 5 | BE147: 9.390981843 | BG147: 3 | BH147: 111
F148: CALIFORNIA | G148: 11 | H148: 3.788481096 | I148: 2.62713624 | J148: 3 | K148: 73 | M148: FLORIDA | N148: 13 | O148: 4.919335039 | Q148: 3 | R148: 25.5 | T148: VIRGINIA | U148: 5 | V148: 5.632363527 | W148: 2.0974825 | X148: 3 | Y148: 43 | AA148: PENNSYLVANIA | AB148: 2 | AC148: 11.16650565 | AE148: 1 | AF148: 38 | AH148: RHODE ISLAND | AI148: 1 | AJ148: 1.533645833 | AK148: 4.201917361 | AL148: 3 | AM148: 73.83333333 | AO148: ALABAMA | AP148: 6 | AQ148: 7.411547619 | AS148: 3 | AT148: 73.41666667 | AV148: MARYLAND | AW148: 5 | AX148: 1.579091636 | AY148: 0.9639403401 | AZ148: 3 | BA148: 313 | BC148: CALIFORNIA | BD148: 11 | BE148: 2.120709165 | BG148: 3 | BH148: 203
F149: WASHINGTON | G149: 9 | H149: 0.007588637018 | I149: 0.02902069102 | J149: 1 | K149: 18 | M149: VIRGINIA | N149: 5 | O149: 2.71852384 | Q149: 5 | R149: 253 | T149: MARYLAND | U149: 5 | V149: 3.162445678 | W149: 1.996494135 | X149: 3 | Y149: 173.625 | AA149: OREGON | AB149: 9 | AC149: 1.497053722 | AE149: 1 | AF149: 23 | AH149: NEW YORK | AI149: 10 | AJ149: 10.50317614 | AK149: 2.043270829 | AL149: 3 | AM149: 63 | AO149: CALIFORNIA | AP149: 11 | AQ149: 1.834444444 | AS149: 3 | AT149: 43 | AV149: FLORIDA | AW149: 13 | AX149: 5.795598382 | AY149: 0.0141101132 | AZ149: 3 | BA149: 38 | BC149: CALIFORNIA | BD149: 11 | BE149: 2.606571533 | BG149: 3 | BH149: 88
F150: NORTH CAROLINA | G150: 5 | H150: 3.262806151 | I150: 4.825218209 | J150: 3 | K150: 9.666666667 | M150: PENNSYLVANIA | N150: 2 | O150: 4.460185185 | Q150: 3 | R150: 20.5 | T150: MARYLAND | U150: 5 | V150: 6.240947301 | W150: 4.11965401 | X150: 4 | Y150: 114 | AA150: MICHIGAN | AB150: 3 | AC150: 1.648015952 | AE150: 3 | AF150: 40.22222222 | AH150: TEXAS | AI150: 12 | AJ150: 6.287917258 | AK150: 2.148541821 | AL150: 3 | AM150: 28 | AO150: CALIFORNIA | AP150: 11 | AQ150: 1.08864726 | AS150: 3 | AT150: 78 | AV150: MISSISSIPPI | AW150: 6 | AX150: 6.174240126 | AY150: 0.005421609332 | AZ150: 3 | BA150: 28 | BC150: IOWA | BD150: 4 | BE150: 6.279920397 | BG150: 3 | BH150: 103
F151: MINNESOTA | G151: 4 | H151: 4.147374014 | I151: 8.640904869 | J151: 2 | K151: 68 | M151: FLORIDA | N151: 13 | O151: 3.250696954 | Q151: 3 | R151: 23 | T151: ILLINOIS | U151: 3 | V151: 3.060204793 | W151: 0.001280514346 | X151: 1 | Y151: 88 | AA151: CALIFORNIA | AB151: 11 | AC151: 6.013349632 | AE151: 3 | AF151: 33 | AH151: TEXAS | AI151: 12 | AJ151: 7.739712314 | AK151: 8.535723221 | AL151: 3 | AM151: 103 | AO151: ARIZONA | AP151: 8 | AQ151: 5.01782075 | AS151: 3 | AT151: 303 | AV151: TEXAS | AW151: 12 | AX151: 9.560690472 | AY151: 8.197558829 | AZ151: 3 | BA151: 61 | BC151: TEXAS | BD151: 12 | BE151: 0.281583706 | BG151: 3 | BH151: 148
F152: WISCONSIN | G152: 3 | H152: 5.247468128 | I152: 2.185666794 | J152: 5 | K152: 58 | M152: DISTRICT OF COLUMBIA | N152: 5 | O152: 5.121753469 | Q152: 5 | R152: 124 | T152: NORTH CAROLINA | U152: 5 | V152: 1.71534664 | W152: 5.354501052 | X152: 3 | Y152: 145.7272727 | AA152: MARYLAND | AB152: 5 | AC152: 3.040576461 | AE152: 2 | AF152: 53 | AH152: FLORIDA | AI152: 13 | AJ152: 4.493500281 | AK152: 2.584872943 | AL152: 3 | AM152: 65.5 | AO152: COLORADO | AP152: 8 | AQ152: 0.08686521144 | AS152: 3 | AT152: 238 | AV152: GEORGIA | AW152: 5 | AX152: 7.79040802 | AY152: 0.2097696122 | AZ152: 3 | BA152: 63 | BC152: NEW YORK | BD152: 10 | BE152: 5.888582708 | BG152: 3 | BH152: 73
F153: PENNSYLVANIA | G153: 2 | H153: 0.5668737728 | I153: 0.00604341969 | J153: 5 | K153: 48 | M153: CALIFORNIA | N153: 11 | O153: 8.242852008 | Q153: 1 | R153: 13 | T153: ILLINOIS | U153: 3 | V153: 3.569804365 | W153: 0.005367068312 | X153: 2 | Y153: 68 | AA153: TEXAS | AB153: 12 | AC153: 3.025124008 | AE153: 2 | AF153: 18 | AH153: OHIO | AI153: 3 | AJ153: 2.358666377 | AK153: 2.566967703 | AL153: 3 | AM153: 78 | AO153: NORTH CAROLINA | AP153: 5 | AQ153: 5.919697787 | AS153: 3 | AT153: 73 | AV153: MARYLAND | AW153: 5 | AX153: 13.51640034 | AY153: 0.05546565909 | AZ153: 3 | BA153: 23 | BC153: ILLINOIS | BD153: 3 | BE153: 3.951347681 | BG153: 3 | BH153: 21
F154: CALIFORNIA | G154: 11 | H154: 4.84255462 | I154: 4.035065093 | J154: 4 | K154: 153 | M154: NORTH CAROLINA | N154: 5 | O154: 6.111047508 | Q154: 3 | R154: 35.27272727 | T154: WASHINGTON | U154: 9 | V154: 9.378507029 | W154: 0.006402571732 | X154: 1 | Y154: 33 | AA154: CALIFORNIA | AB154: 11 | AC154: 2.343065596 | AE154: 3 | AF154: 58.625 | AH154: MISSOURI | AI154: 4 | AJ154: 4.678943452 | AK154: 1.894247367 | AL154: 3 | AM154: 40.08333333 | AO154: FLORIDA | AP154: 13 | AQ154: 3.632181811 | AS154: 3 | AT154: 11 | AV154: FLORIDA | AW154: 13 | AX154: 4.040795603 | AY154: 5.051364847 | AZ154: 3 | BA154: 33 | BC154: ILLINOIS | BD154: 3 | BE154: 0.441475695 | BG154: 3 | BH154: 59.11111111
F155: NORTH CAROLINA | G155: 5 | H155: 2.511213371 | I155: 4.307884843 | J155: 3.5 | K155: 78 | M155: ILLINOIS | N155: 3 | O155: 3.558472222 | Q155: 3 | R155: 65.91666667 | T155: COLORADO | U155: 8 | V155: 4.536847405 | W155: 0.00957232115 | X155: 1 | Y155: 13 | AA155: PENNSYLVANIA | AB155: 2 | AC155: 1.770158091 | AE155: 4 | AF155: 34.25 | AH155: NEW YORK | AI155: 10 | AJ155: 1.702031477 | AK155: 2.292340092 | AL155: 3 | AM155: 88 | AO155: TEXAS | AP155: 12 | AQ155: 0.9872170988 | AS155: 3 | AT155: 43 | AV155: CONNECTICUT | AW155: 1 | AX155: 11.55155176 | AY155: 0.02902132306 | AZ155: 3 | BA155: 34.66666667 | BC155: MISSISSIPPI | BD155: 6 | BE155: 2.708276527 | BG155: 3 | BH155: 163
F156: MINNESOTA | G156: 4 | H156: 3.782448534 | I156: 4.797032733 | J156: 2 | K156: 78 | M156: CALIFORNIA | N156: 11 | O156: 10.17509158 | Q156: 1 | R156: 78 | T156: FLORIDA | U156: 13 | V156: 2.243578042 | W156: 0.6336185516 | X156: 3 | Y156: 69.25 | AA156: MASSACHUSETTS | AB156: 1 | AC156: 0.2137153966 | AE156: 3 | AF156: 233.5 | AH156: COLORADO | AI156: 8 | AJ156: 3.086198743 | AK156: 3.185653203 | AL156: 3 | AM156: 143.8333333 | AO156: MICHIGAN | AP156: 3 | AQ156: 4.725889721 | AS156: 3 | AT156: 3 | AV156: FLORIDA | AW156: 13 | AX156: 2.942673275 | AY156: 2.008829085 | AZ156: 3 | BA156: 23 | BC156: ILLINOIS | BD156: 3 | BE156: 0.6713109672 | BG156: 3 | BH156: 99
F157: ARIZONA | G157: 8 | H157: 5.165233135 | I157: 9.259437915 | J157: 2 | K157: 35.5 | M157: FLORIDA | N157: 13 | O157: 1.254508929 | Q157: 3 | R157: 26.33333333 | T157: FLORIDA | U157: 13 | V157: 3.671117637 | W157: 3.198621087 | X157: 3 | Y157: 8 | AA157: WASHINGTON | AB157: 9 | AC157: 1.365257937 | AE157: 4 | AF157: 71.33333333 | AH157: OKLAHOMA | AI157: 7 | AJ157: 1.075119355 | AK157: 0.8861991797 | AL157: 3 | AM157: 53 | AO157: MASSACHUSETTS | AP157: 1 | AQ157: 15.61596274 | AS157: 3 | AT157: 120.5 | AV157: KENTUCKY | AW157: 6 | AX157: 4.687692018 | AY157: 4.971443484 | AZ157: 3 | BA157: 70.22222222 | BC157: FLORIDA | BD157: 13 | BE157: 2.263423691 | BG157: 3 | BH157: 68
F158: CALIFORNIA | G158: 11 | H158: 1.589239433 | I158: 2.601824328 | J158: 7 | K158: 143 | M158: TEXAS | N158: 12 | O158: 2.760672983 | Q158: 3 | R158: 203 | T158: CALIFORNIA | U158: 11 | V158: 7.372165995 | W158: 1.570502279 | X158: 1.5 | Y158: 38 | AA158: FLORIDA | AB158: 13 | AC158: 0.9264764658 | AE158: 3 | AF158: 65.85714286 | AH158: CALIFORNIA | AI158: 11 | AJ158: 9.822113095 | AK158: 2.032161639 | AL158: 3 | AM158: 48 | AO158: FLORIDA | AP158: 13 | AQ158: 3.081970685 | AS158: 3 | AT158: 45.5 | AV158: MICHIGAN | AW158: 3 | AX158: 8.667730443 | AY158: 2.556663303 | AZ158: 3 | BA158: 48 | BC158: CALIFORNIA | BD158: 11 | BE158: 1.286196734 | BG158: 3 | BH158: 113
F159: PENNSYLVANIA | G159: 2 | H159: 6.017312078 | I159: 0.00295292094 | J159: 6 | K159: 38 | M159: COLORADO | N159: 8 | O159: 0.1795874663 | Q159: 2 | R159: 53 | T159: PENNSYLVANIA | U159: 2 | V159: 8.815742476 | W159: 0.04293699574 | X159: 2 | Y159: 52.09090909 | AA159: TENNESSEE | AB159: 6 | AC159: 16.16584325 | AE159: 3 | AF159: 23 | AH159: ARKANSAS | AI159: 7 | AJ159: 1.56094127 | AK159: 1.605515013 | AL159: 3 | AM159: 60.5 | AO159: MINNESOTA | AP159: 4 | AQ159: 3.355702511 | AS159: 3 | AT159: 53 | AV159: ILLINOIS | AW159: 3 | AX159: 0.5852429726 | AY159: 1.563972805 | AZ159: 3 | BA159: 249.25 | BC159: CALIFORNIA | BD159: 11 | BE159: 5.441560759 | BG159: 3 | BH159: 53
F160: ARIZONA | G160: 8 | H160: 2.54726816 | I160: 1.593364277 | J160: 5 | K160: 155.5 | M160: PENNSYLVANIA | N160: 2 | O160: 1.085496032 | Q160: 1 | R160: 54.66666667 | T160: MASSACHUSETTS | U160: 1 | V160: 4.22343839 | W160: 0.02126853742 | X160: 6 | Y160: 38 | AA160: FLORIDA | AB160: 13 | AC160: 1.722643471 | AE160: 3 | AF160: 103 | AH160: TEXAS | AI160: 12 | AJ160: 5.725102862 | AK160: 1.093576491 | AL160: 3 | AM160: 93 | AO160: TEXAS | AP160: 12 | AQ160: 10.95480241 | AS160: 3 | AT160: 18 | AV160: MARYLAND | AW160: 5 | AX160: 2.720797485 | AY160: 2.85242595 | AZ160: 3 | BA160: 131.6363636 | BC160: GEORGIA | BD160: 5 | BE160: 4.321930792 | BG160: 3 | BH160: 73
F161: FLORIDA | G161: 13 | H161: 5.055192162 | I161: 1.446256177 | J161: 5 | K161: 59.66666667 | M161: CALIFORNIA | N161: 11 | O161: 2.272115358 | Q161: 4 | R161: 68 | T161: MASSACHUSETTS | U161: 1 | V161: 7.853997975 | W161: 0.04395399358 | X161: 5 | Y161: 52.16666667 | AA161: MARYLAND | AB161: 5 | AC161: 5.513311337 | AE161: 5 | AF161: 33 | AH161: CALIFORNIA | AI161: 11 | AJ161: 1.287782302 | AK161: 2.665598265 | AL161: 3 | AM161: 63 | AO161: WASHINGTON | AP161: 9 | AQ161: 2.141156852 | AS161: 3 | AT161: 113 | AV161: WASHINGTON | AW161: 9 | AX161: 8.09003815 | AY161: 1.795552516 | AZ161: 3 | BA161: 78 | BC161: VIRGINIA | BD161: 5 | BE161: 6.374704689 | BG161: 3 | BH161: 31.18181818
F162: NORTH CAROLINA | G162: 5 | H162: 5.414776786 | I162: 1.297955652 | J162: 6 | K162: 63.83333333 | M162: VIRGINIA | N162: 5 | O162: 2.092908572 | Q162: 2 | R162: 28 | T162: PENNSYLVANIA | U162: 2 | V162: 6.199261543 | W162: 0.2496416273 | X162: 4 | Y162: 93 | AA162: VIRGINIA | AB162: 5 | AC162: 2.680216122 | AE162: 3 | AF162: 18 | AH162: WASHINGTON | AI162: 9 | AJ162: 4.876191943 | AK162: 3.885253318 | AL162: 3 | AM162: 108.9090909 | AO162: CALIFORNIA | AP162: 11 | AQ162: 3.175661445 | AS162: 3 | AT162: 38 | AV162: FLORIDA | AW162: 13 | AX162: 3.799260775 | AY162: 0.003097588461 | AZ162: 3 | BA162: 8 | BC162: INDIANA | BD162: 3 | BE162: 5.530795733 | BG162: 3 | BH162: 43
F163: MICHIGAN | G163: 3 | H163: 16.36299552 | I163: 2.550122948 | J163: 2 | K163: 53 | M163: OHIO | N163: 3 | O163: 0.1727832269 | Q163: 3 | R163: 108 | T163: MARYLAND | U163: 5 | V163: 2.935303482 | W163: 0.4003622036 | X163: 2 | Y163: 88 | AA163: CALIFORNIA | AB163: 11 | AC163: 1.072691236 | AE163: 2 | AF163: 138 | AH163: MARYLAND | AI163: 5 | AJ163: 2.348975028 | AK163: 0.394070436 | AL163: 3 | AM163: 38 | AO163: COLORADO | AP163: 8 | AQ163: 1.23819316 | AS163: 3 | AT163: 73 | AV163: GEORGIA | AW163: 5 | AX163: 11.53099697 | AY163: 0.0490982964 | AZ163: 3 | BA163: 43 | BC163: NEW HAMPSHIRE | BD163: 1 | BE163: 2.141979167 | BG163: 3 | BH163: 152.5833333
F164: GEORGIA | G164: 5 | H164: 2.250222253 | I164: 0.2101926792 | J164: 7 | K164: 188 | M164: WASHINGTON | N164: 9 | O164: 1.223109501 | Q164: 3 | R164: 73 | T164: FLORIDA | U164: 13 | V164: 21.09658154 | W164: 0.004179968513 | X164: 3 | Y164: 48 | AA164: MICHIGAN | AB164: 3 | AC164: 3.642632213 | AE164: 4 | AF164: 133 | AH164: WASHINGTON | AI164: 9 | AJ164: 1.198498857 | AK164: 1.393600498 | AL164: 3 | AM164: 53 | AO164: MICHIGAN | AP164: 3 | AQ164: 2.950462691 | AS164: 3 | AT164: 83 | AV164: MARYLAND | AW164: 5 | AX164: 8.013793566 | AY164: 0.0452983715 | AZ164: 3 | BA164: 13 | BC164: MICHIGAN | BD164: 3 | BE164: 10.95134176 | BG164: 3 | BH164: 8
F165: PENNSYLVANIA | G165: 2 | H165: 7.054672627 | I165: 0.007591119529 | J165: 5 | K165: 63 | M165: WASHINGTON | N165: 9 | O165: 0.003914007342 | Q165: 3 | R165: 43 | T165: CALIFORNIA | U165: 11 | V165: 3.825425225 | W165: 0.4102771948 | X165: 2 | Y165: 25.85714286 | AA165: VIRGINIA | AB165: 5 | AC165: 0.7329797652 | AE165: 3 | AF165: 68 | AH165: FLORIDA | AI165: 13 | AJ165: 10.92783047 | AK165: 3.137575001 | AL165: 3 | AM165: 38 | AO165: MISSOURI | AP165: 4 | AQ165: 6.150383598 | AS165: 3 | AT165: 33.83333333 | AV165: LOUISIANA | AW165: 7 | AX165: 13.89378407 | AY165: 0.007616394484 | AZ165: 3 | BA165: 51 | BC165: GEORGIA | BD165: 5 | BE165: 1.381676977 | BG165: 3 | BH165: 93
F166: CALIFORNIA | G166: 11 | H166: 1.481551738 | I166: 0.004984913657 | J166: 4 | K166: 38 | M166: MICHIGAN | N166: 3 | O166: 0.3630572176 | Q166: 5 | R166: 68 | T166: FLORIDA | U166: 13 | V166: 7.287926281 | W166: 0.02414495123 | X166: 3 | Y166: 53 | AA166: FLORIDA | AB166: 13 | AC166: 8.508048826 | AE166: 3 | AF166: 45.5 | AH166: WISCONSIN | AI166: 3 | AJ166: 2.27030449 | AK166: 11.17755503 | AL166: 3 | AM166: 43 | AO166: UTAH | AP166: 8 | AQ166: 4.394276178 | AS166: 3 | AT166: 23 | AV166: MASSACHUSETTS | AW166: 1 | AX166: 2.732349832 | AY166: 1.063857252 | AZ166: 3 | BA166: 53 | BC166: MASSACHUSETTS | BD166: 1 | BE166: 0.9373678422 | BG166: 3 | BH166: 33
F167: NORTH CAROLINA | G167: 5 | H167: 2.218242969 | I167: 0.6041986031 | J167: 3 | K167: 53 | M167: ILLINOIS | N167: 3 | O167: 11.63071429 | Q167: 2 | R167: 12.16666667 | T167: NORTH CAROLINA | U167: 5 | V167: 9.435212467 | W167: 0.5119357639 | X167: 4 | Y167: 111.3333333 | AA167: WASHINGTON | AB167: 9 | AC167: 7.298467391 | AE167: 1 | AF167: 18 | AH167: ILLINOIS | AI167: 3 | AJ167: 0.3759314786 | AK167: 0.004636779327 | AL167: 3.5 | AM167: 53 | AO167: CALIFORNIA | AP167: 11 | AQ167: 1.608544974 | AS167: 3 | AT167: 68 | AV167: NORTH CAROLINA | AW167: 5 | AX167: 4.264006282 | AY167: 0.7330228977 | AZ167: 3 | BA167: 28 | BC167: FLORIDA | BD167: 13 | BE167: 1.822424571 | BG167: 3 | BH167: 38
F168: CALIFORNIA | G168: 11 | H168: 6.761351907 | I168: 0.0109604854 | J168: 2 | K168: 53 | M168: CALIFORNIA | N168: 11 | O168: 6.906936177 | Q168: 3 | R168: 18 | T168: GEORGIA | U168: 5 | V168: 3.865284699 | W168: 1.198313478 | X168: 5 | Y168: 118 | AA168: PENNSYLVANIA | AB168: 2 | AC168: 1.182803104 | AE168: 2 | AF168: 52.54545455 | AH168: NORTH CAROLINA | AI168: 5 | AJ168: 2.511213371 | AK168: 4.307884843 | AL168: 3.5 | AM168: 78 | AO168: OREGON | AP168: 9 | AQ168: 5.788723849 | AS168: 3 | AT168: 23 | AV168: WISCONSIN | AW168: 3 | AX168: 4.248407512 | AY168: 2.366751637 | AZ168: 3 | BA168: 73 | BC168: OKLAHOMA | BD168: 7 | BE168: 3.810170353 | BG168: 3 | BH168: 29.66666667
F169: MAINE | G169: 1 | H169: 5.717912598 | I169: 0.01548172994 | J169: 1 | K169: 66.33333333 | M169: NORTH CAROLINA | N169: 5 | O169: 0.716060228 | Q169: 3 | R169: 68 | T169: CALIFORNIA | U169: 11 | V169: 1.811818333 | W169: 0.100121197 | X169: 1 | Y169: 158 | AA169: OREGON | AB169: 9 | AC169: 3.933920769 | AE169: 3 | AF169: 23 | AH169: CALIFORNIA | AI169: 11 | AJ169: 4.629213441 | AK169: 1.850951152 | AL169: 3.5 | AM169: 13 | AO169: CALIFORNIA | AP169: 11 | AQ169: 6.315358712 | AS169: 3 | AT169: 25.5 | AV169: FLORIDA | AW169: 13 | AX169: 0.677835421 | AY169: 4.147170568 | AZ169: 3 | BA169: 103 | BC169: OHIO | BD169: 3 | BE169: 4.423270273 | BG169: 3 | BH169: 23
F170: CALIFORNIA | G170: 11 | H170: 4.376437856 | I170: 0.008699506236 | J170: 1 | K170: 208 | M170: CALIFORNIA | N170: 11 | O170: 0.3033504539 | Q170: 2 | R170: 26.75 | T170: FLORIDA | U170: 13 | V170: 4.927020923 | W170: 0.09702977121 | X170: 3 | Y170: 8 | AA170: DISTRICT OF COLUMBIA | AB170: 5 | AC170: 3.916854838 | AE170: 3 | AF170: 63 | AH170: VIRGINIA | AI170: 5 | AJ170: 10.64067555 | AK170: 0.1266269328 | AL170: 3.5 | AM170: 33 | AO170: CALIFORNIA | AP170: 11 | AQ170: 9.458765846 | AS170: 3 | AT170: 33 | AV170: MICHIGAN | AW170: 3 | AX170: 3.692392526 | AY170: 5.387169312 | AZ170: 3 | BA170: 48 | BC170: PENNSYLVANIA | BD170: 2 | BE170: 9.892197913 | BG170: 3 | BH170: 53
F171: CALIFORNIA | G171: 11 | H171: 4.629213441 | I171: 1.850951152 | J171: 3.5 | K171: 13 | M171: FLORIDA | N171: 13 | O171: 0.6956338009 | Q171: 3 | R171: 183 | T171: FLORIDA | U171: 13 | V171: 2.199955357 | W171: 3.513148975 | X171: 2 | Y171: 75.08333333 | AA171: PENNSYLVANIA | AB171: 2 | AC171: 3.068402435 | AE171: 3 | AF171: 164.3636364 | AH171: ILLINOIS | AI171: 3 | AJ171: 7.023730159 | AK171: 0.7666655188 | AL171: 3.5 | AM171: 41.33333333 | AO171: FLORIDA | AP171: 13 | AQ171: 0.9422867063 | AS171: 3 | AT171: 89.25 | AV171: CALIFORNIA | AW171: 11 | AX171: 0.1039832322 | AY171: 1.05542328 | AZ171: 3 | BA171: 56.33333333 | BC171: MASSACHUSETTS | BD171: 1 | BE171: 5.271196335 | BG171: 3 | BH171: 53
F172: CALIFORNIA | G172: 11 | H172: 15.27725569 | I172: 15.10343695 | J172: 1 | K172: 43 | M172: CALIFORNIA | N172: 11 | O172: 4.106871016 | Q172: 3 | R172: 33 | T172: GEORGIA | U172: 5 | V172: 2.11179709 | W172: 0.001150458909 | X172: 2 | Y172: 163 | AA172: OHIO | AB172: 3 | AC172: 12.58517306 | AE172: 3 | AF172: 28 | AH172: TEXAS | AI172: 12 | AJ172: 5.9640546 | AK172: 3.987111379 | AL172: 3.5 | AM172: 122.5833333 | AO172: CALIFORNIA | AP172: 11 | AQ172: 3.985986238 | AS172: 3 | AT172: 53 | AV172: WASHINGTON | AW172: 9 | AX172: 3.692529211 | AY172: 0.2438077739 | AZ172: 3 | BA172: 73 | BC172: ILLINOIS | BD172: 3 | BE172: 1.78775959 | BG172: 3 | BH172: 93.83333333
F173: OREGON | G173: 9 | H173: 6.084310329 | I173: 5.486233538 | J173: 5 | K173: 68 | M173: TEXAS | N173: 12 | O173: 0.2242202664 | Q173: 3 | R173: 18 | T173: COLORADO | U173: 8 | V173: 15.83230993 | W173: 0.1314897353 | X173: 2 | Y173: 25.85714286 | AA173: PENNSYLVANIA | AB173: 2 | AC173: 3.789985119 | AE173: 2 | AF173: 15.5 | AH173: CALIFORNIA | AI173: 11 | AJ173: 4.237768072 | AK173: 2.412852676 | AL173: 3.5 | AM173: 123 | AO173: MISSOURI | AP173: 4 | AQ173: 1.489110331 | AS173: 3 | AT173: 23 | AV173: MISSOURI | AW173: 4 | AX173: 4.992912197 | AY173: 1.358226047 | AZ173: 3 | BA173: 78 | BC173: TEXAS | BD173: 12 | BE173: 2.327267604 | BG173: 3 | BH173: 48
F174: MICHIGAN | G174: 3 | H174: 0.2614129898 | I174: 0.5305734701 | J174: 5 | K174: 99.11111111 | M174: FLORIDA | N174: 13 | O174: 2.028587963 | Q174: 3 | R174: 10.5 | T174: TEXAS | U174: 12 | V174: 3.53479526 | W174: 1.339544811 | X174: 5 | Y174: 183.625 | AA174: PENNSYLVANIA | AB174: 2 | AC174: 2.349037698 | AE174: 3 | AF174: 106.3333333 | AH174: FLORIDA | AI174: 13 | AJ174: 3.01032167 | AK174: 1.941624092 | AL174: 4 | AM174: 38 | AO174: CALIFORNIA | AP174: 11 | AQ174: 3.038050864 | AS174: 3 | AT174: 83 | AV174: CALIFORNIA | AW174: 11 | AX174: 4.385118473 | AY174: 0.5240381297 | AZ174: 3 | BA174: 55.5 | BC174: MICHIGAN | BD174: 3 | BE174: 3.336130183 | BG174: 3 | BH174: 176.3333333
F175: WASHINGTON | G175: 9 | H175: 7.214863638 | I175: 4.724454716 | J175: 2 | K175: 98 | M175: ARKANSAS | N175: 7 | O175: 6.305119691 | Q175: 2 | R175: 13 | T175: FLORIDA | U175: 13 | V175: 3.458790622 | W175: 0.00389193794 | X175: 2 | Y175: 105.5 | AA175: PENNSYLVANIA | AB175: 2 | AC175: 0.4222073413 | AE175: 3 | AF175: 58.83333333 | AH175: WASHINGTON | AI175: 9 | AJ175: 2.40489418 | AK175: 2.064996407 | AL175: 4 | AM175: 87.16666667 | AO175: MARYLAND | AP175: 5 | AQ175: 0.1502563584 | AS175: 3 | AT175: 58 | AV175: ILLINOIS | AW175: 3 | AX175: 3.719142388 | AY175: 0.1307456347 | AZ175: 3 | BA175: 10.72727273 | BC175: MARYLAND | BD175: 5 | BE175: 6.756504756 | BG175: 3 | BH175: 25
F176: CALIFORNIA | G176: 11 | H176: 4.15490933 | I176: 1.54245066 | J176: 3 | K176: 90 | M176: PENNSYLVANIA | N176: 2 | O176: 3.133244336 | Q176: 4 | R176: 50.77777778 | T176: MISSOURI | U176: 4 | V176: 5.722962884 | W176: 19.95566841 | X176: 1 | Y176: 13 | AA176: MICHIGAN | AB176: 3 | AC176: 0.8622430363 | AE176: 1 | AF176: 3 | AH176: WASHINGTON | AI176: 9 | AJ176: 9.795275301 | AK176: 0.4569285919 | AL176: 4 | AM176: 58 | AO176: NORTH CAROLINA | AP176: 5 | AQ176: 5.523407798 | AS176: 3 | AT176: 43 | AV176: MISSOURI | AW176: 4 | AX176: 3.294030848 | AY176: 1.67191744 | AZ176: 3 | BA176: 53.71428571 | BC176: TEXAS | BD176: 12 | BE176: 0.8144862883 | BG176: 3 | BH176: 153
F177: ALABAMA | G177: 6 | H177: 9.777440084 | I177: 0.4991973541 | J177: 2 | K177: 43 | M177: OHIO | N177: 3 | O177: 0.01767181116 | Q177: 3 | R177: 83 | T177: VIRGINIA | U177: 5 | V177: 1.992829717 | W177: 1.735908012 | X177: 2 | Y177: 85.22222222 | AA177: WEST VIRGINIA | AB177: 5 | AC177: 1.160526613 | AE177: 1 | AF177: 8 | AH177: TEXAS | AI177: 12 | AJ177: 7.622751323 | AK177: 2.590773532 | AL177: 4 | AM177: 98 | AO177: MICHIGAN | AP177: 3 | AQ177: 0.00190686835 | AS177: 3 | AT177: 58 | AV177: FLORIDA | AW177: 13 | AX177: 7.255307469 | AY177: 0.0486342151 | AZ177: 3 | BA177: 70.5 | BC177: PENNSYLVANIA | BD177: 2 | BE177: 7.433904466 | BG177: 3 | BH177: 98
F178: OHIO | G178: 3 | H178: 8.745893252 | I178: 0.9463397703 | J178: 1 | K178: 37.28571429 | M178: CALIFORNIA | N178: 11 | O178: 1.549715173 | Q178: 4 | R178: 123 | T178: MARYLAND | U178: 5 | V178: 5.003282077 | W178: 1.054491154 | X178: 3 | Y178: 85.91666667 | AA178: WISCONSIN | AB178: 3 | AC178: 7.201544682 | AE178: 2 | AF178: 8 | AH178: IOWA | AI178: 4 | AJ178: 2.788224206 | AK178: 1.254311433 | AL178: 4 | AM178: 83.41666667 | AO178: NORTH CAROLINA | AP178: 5 | AQ178: 0.8112010885 | AS178: 3 | AT178: 78 | AV178: MICHIGAN | AW178: 3 | AX178: 3.839619874 | AY178: 2.005641546 | AZ178: 3 | BA178: 78 | BC178: CALIFORNIA | BD178: 11 | BE178: 1.605779146 | BG178: 3 | BH178: 148.7142857
F179: VIRGINIA | G179: 5 | H179: 2.83285114 | I179: 1.182434826 | J179: 3 | K179: 88 | M179: ILLINOIS | N179: 3 | O179: 14.08237187 | Q179: 4 | R179: 8 | T179: NEW JERSEY | U179: 2 | V179: 7.023589258 | W179: 0.0875183648 | X179: 2 | Y179: 23 | AA179: GEORGIA | AB179: 5 | AC179: 6.214323092 | AE179: 3 | AF179: 106.6363636 | AH179: MINNESOTA | AI179: 4 | AJ179: 1.813793016 | AK179: 1.381900879 | AL179: 4 | AM179: 100 | AO179: TEXAS | AP179: 12 | AQ179: 2.410302579 | AS179: 3 | AT179: 60.91666667 | AV179: KANSAS | AW179: 4 | AX179: 4.045342262 | AY179: 2.525830853 | AZ179: 3 | BA179: 89.66666667 | BC179: OHIO | BD179: 3 | BE179: 6.123408046 | BG179: 3 | BH179: 33
F180: CALIFORNIA | G180: 11 | H180: 6.128773148 | I180: 3.455509018 | J180: 2 | K180: 131.75 | M180: FLORIDA | N180: 13 | O180: 5.527721561 | Q180: 3 | R180: 33 | T180: FLORIDA | U180: 13 | V180: 3.554607064 | W180: 3.53685559 | X180: 3 | Y180: 208 | AA180: ILLINOIS | AB180: 3 | AC180: 0.1367198158 | AE180: 5 | AF180: 50.5 | AH180: MARYLAND | AI180: 5 | AJ180: 4.351374008 | AK180: 6.132954192 | AL180: 4 | AM180: 64.66666667 | AO180: ARIZONA | AP180: 8 | AQ180: 1.561598995 | AS180: 3 | AT180: 43 | AV180: MINNESOTA | AW180: 4 | AX180: 4.15517142 | AY180: 0.00811313231 | AZ180: 3 | BA180: 58 | BC180: DELAWARE | BD180: 5 | BE180: 0.06097465434 | BG180: 3 | BH180: 81.33333333
F181: TEXAS | G181: 12 | H181: 6.355675286 | I181: 0.1534055926 | J181: 1 | K181: 58 | M181: WASHINGTON | N181: 9 | O181: 3.224605143 | Q181: 3 | R181: 168 | T181: PENNSYLVANIA | U181: 2 | V181: 15.59571997 | W181: 0.05766009516 | X181: 2 | Y181: 21 | AA181: COLORADO | AB181: 8 | AC181: 2.319804595 | AE181: 3.5 | AF181: 53 | AH181: CALIFORNIA | AI181: 11 | AJ181: 0.4812017954 | AK181: 0.5590180123 | AL181: 4 | AM181: 131.5714286 | AO181: CALIFORNIA | AP181: 11 | AQ181: 0.2126895129 | AS181: 3 | AT181: 53 | AV181: MISSOURI | AW181: 4 | AX181: 6.649031819 | AY181: 3.299515306 | AZ181: 3 | BA181: 40.14285714 | BC181: ILLINOIS | BD181: 3 | BE181: 0.03718267406 | BG181: 3 | BH181: 49
F182: ARIZONA | G182: 8 | H182: 0.7451128026 | I182: 2.081032204 | J182: 2 | K182: 63.45454545 | M182: MICHIGAN | N182: 3 | O182: 7.787070011 | Q182: 2 | R182: 29.66666667 | T182: PENNSYLVANIA | U182: 2 | V182: 1.73416062 | W182: 0.7357622016 | X182: 4 | Y182: 133 | AA182: ARIZONA | AB182: 8 | AC182: 2.527233191 | AE182: 2 | AF182: 103 | AH182: OHIO | AI182: 3 | AJ182: 8.080030452 | AK182: 1.965159004 | AL182: 4 | AM182: 98 | AO182: TEXAS | AP182: 12 | AQ182: 2.142082478 | AS182: 3 | AT182: 119.6666667 | AV182: OREGON | AW182: 9 | AX182: 9.197707746 | AY182: 0.03352203495 | AZ182: 3 | BA182: 29 | BC182: SOUTH CAROLINA | BD182: 5 | BE182: 3.547771822 | BG182: 3 | BH182: 28
F183: FLORIDA | G183: 13 | H183: 2.399597811 | I183: 0.006975675323 | J183: 2 | K183: 43 | M183: CALIFORNIA | N183: 11 | O183: 0.08137655254 | Q183: 2 | R183: 43 | T183: COLORADO | U183: 8 | V183: 3.464563492 | W183: 0.1899305556 | X183: 2 | Y183: 139.6666667 | AA183: TEXAS | AB183: 12 | AC183: 2.200059141 | AE183: 6 | AF183: 81.57142857 | AH183: GEORGIA | AI183: 5 | AJ183: 4.199066024 | AK183: 2.16007705 | AL183: 4 | AM183: 54.5 | AO183: MINNESOTA | AP183: 4 | AQ183: 0.2245358342 | AS183: 3 | AT183: 68 | AV183: NEW YORK | AW183: 10 | AX183: 0.6911957503 | AY183: 0.6494633291 | AZ183: 3 | BA183: 123.4545455 | BC183: GEORGIA | BD183: 5 | BE183: 5.474719085 | BG183: 3 | BH183: 33
F184: ILLINOIS | G184: 3 | H184: 0.9047867063 | I184: 1.9861204 | J184: 4 | K184: 105.5 | M184: NORTH CAROLINA | N184: 5 | O184: 9.06955132 | Q184: 2 | R184: 58 | T184: NEW YORK | U184: 10 | V184: 3.976184202 | W184: 0.3882860605 | X184: 1 | Y184: 218 | AA184: FLORIDA | AB184: 13 | AC184: 4.375952552 | AE184: 2 | AF184: 58 | AH184: FLORIDA | AI184: 13 | AJ184: 6.127184943 | AK184: 0.89895946 | AL184: 4 | AM184: 28 | AO184: NEVADA | AP184: 8 | AQ184: 2.401345966 | AS184: 3 | AT184: 68 | AV184: NEW JERSEY | AW184: 2 | AX184: 2.401929897 | AY184: 0.001311207106 | AZ184: 3 | BA184: 103 | BC184: CALIFORNIA | BD184: 11 | BE184: 0.166425591 | BG184: 3 | BH184: 68
F185: CALIFORNIA | G185: 11 | H185: 6.094433909 | I185: 1.63131954 | J185: 2 | K185: 53 | M185: PENNSYLVANIA | N185: 2 | O185: 5.665672392 | Q185: 2 | R185: 113 | T185: SOUTH CAROLINA | U185: 5 | V185: 4.470687962 | W185: 1.352867281 | X185: 1 | Y185: 78 | AA185: FLORIDA | AB185: 13 | AC185: 2.654950614 | AE185: 3 | AF185: 93 | AH185: COLORADO | AI185: 8 | AJ185: 8.284097222 | AK185: 2.753478191 | AL185: 4 | AM185: 66.33333333 | AO185: FLORIDA | AP185: 13 | AQ185: 2.033507971 | AS185: 3 | AT185: 48 | AV185: NEW YORK | AW185: 10 | AX185: 1.185170424 | AY185: 2.901793244 | AZ185: 3 | BA185: 318 | BC185: COLORADO | BD185: 8 | BE185: 1.458144841 | BG185: 3 | BH185: 42.16666667
F186: WEST VIRGINIA | G186: 5 | H186: 4.729808404 | I186: 1.714573699 | J186: 1 | K186: 108 | M186: OREGON | N186: 9 | O186: 0.04523305676 | Q186: 2 | R186: 33 | T186: NEW YORK | U186: 10 | V186: 2.449204454 | W186: 0.001549706812 | X186: 3 | Y186: 85.5 | AA186: KENTUCKY | AB186: 6 | AC186: 4.872708272 | AE186: 3 | AF186: 68 | AH186: TEXAS | AI186: 12 | AJ186: 3.571431669 | AK186: 0.3102782693 | AL186: 4 | AM186: 38 | AO186: NEW YORK | AP186: 10 | AQ186: 5.635015516 | AS186: 3 | AT186: 353 | AV186: NORTH CAROLINA | AW186: 5 | AX186: 3.608769504 | AY186: 1.825574995 | AZ186: 3 | BA186: 59.42857143 | BC186: MISSOURI | BD186: 4 | BE186: 1.39271352 | BG186: 3 | BH186: 33
F187: COLORADO | G187: 8 | H187: 8.137298504 | I187: 1.65222903 | J187: 2 | K187: 33.5 | M187: NEW YORK | N187: 10 | O187: 3.536161871 | Q187: 2 | R187: 50.5 | T187: FLORIDA | U187: 13 | V187: 7.189831625 | W187: 0.3733953939 | X187: 4 | Y187: 108 | AA187: GEORGIA | AB187: 5 | AC187: 7.124607166 | AE187: 2 | AF187: 98 | AH187: SOUTH CAROLINA | AI187: 5 | AJ187: 3.700279889 | AK187: 0.002456470762 | AL187: 4 | AM187: 83 | AO187: ARKANSAS | AP187: 7 | AQ187: 0.4079858419 | AS187: 3 | AT187: 119.4285714 | AV187: MICHIGAN | AW187: 3 | AX187: 6.959197771 | AY187: 1.52906392 | AZ187: 3 | BA187: 43 | BC187: MICHIGAN | BD187: 3 | BE187: 0.2928851504 | BG187: 3 | BH187: 103
F188: NORTH CAROLINA | G188: 5 | H188: 7.087718254 | I188: 6.001933114 | J188: 1 | K188: 108 | M188: ALABAMA | N188: 6 | O188: 0.3769661198 | Q188: 5 | R188: 88 | T188: NEW HAMPSHIRE | U188: 1 | V188: 2.2084131 | W188: 0.01134912755 | X188: 1 | Y188: 18 | AA188: CALIFORNIA | AB188: 11 | AC188: 1.27002941 | AE188: 2 | AF188: 49 | AH188: NEW JERSEY | AI188: 2 | AJ188: 5.84335645 | AK188: 0.001372113617 | AL188: 4 | AM188: 68 | AO188: CALIFORNIA | AP188: 11 | AQ188: 6.44362111 | AS188: 3 | AT188: 13 | AV188: VIRGINIA | AW188: 5 | AX188: 4.926492646 | AY188: 0.09226009017 | AZ188: 3 | BA188: 32 | BC188: MINNESOTA | BD188: 4 | BE188: 5.594739921 | BG188: 3 | BH188: 83
F189: PENNSYLVANIA | G189: 2 | H189: 5.782682423 | I189: 2.359841735 | J189: 2 | K189: 13 | M189: ARIZONA | N189: 8 | O189: 0.300356131 | Q189: 4 | R189: 68 | T189: NEW JERSEY | U189: 2 | V189: 9.100715192 | W189: 0.001427436538 | X189: 3.5 | Y189: 30.5 | AA189: TEXAS | AB189: 12 | AC189: 10.98656037 | AE189: 1 | AF189: 38 | AH189: MARYLAND | AI189: 5 | AJ189: 1.948915557 | AK189: 2.100181767 | AL189: 4 | AM189: 203 | AO189: ILLINOIS | AP189: 3 | AQ189: 0.6111949353 | AS189: 3 | AT189: 83 | AV189: CALIFORNIA | AW189: 11 | AX189: 5.041228625 | AY189: 1.389834419 | AZ189: 3 | BA189: 225.7272727 | BC189: MAINE | BD189: 1 | BE189: 7.810108605 | BG189: 3 | BH189: 33
F190: OREGON | G190: 9 | H190: 3.161592545 | I190: 3.89003517 | J190: 2 | K190: 43 | M190: NORTH CAROLINA | N190: 5 | O190: 15.35373954 | Q190: 2 | R190: 18 | T190: NEW JERSEY | U190: 2 | V190: 5.693339566 | W190: 0.00969559477 | X190: 2 | Y190: 68 | AA190: OHIO | AB190: 3 | AC190: 4.687729377 | AE190: 6 | AF190: 188 | AH190: PENNSYLVANIA | AI190: 2 | AJ190: 1.701481582 | AK190: 0.707242457 | AL190: 4 | AM190: 41.63636364 | AO190: NORTH CAROLINA | AP190: 5 | AQ190: 5.25187092 | AS190: 3 | AT190: 113 | AV190: CALIFORNIA | AW190: 11 | AX190: 2.424297288 | AY190: 0.432791832 | AZ190: 3 | BA190: 41.33333333 | BC190: GEORGIA | BD190: 5 | BE190: 7.933321556 | BG190: 3 | BH190: 58
F191: WASHINGTON | G191: 9 | H191: 3.462558621 | I191: 0.02323840781 | J191: 2 | K191: 53 | M191: COLORADO | N191: 8 | O191: 8.475477626 | Q191: 2.5 | R191: 18 | T191: NEW JERSEY | U191: 2 | V191: 4.891885261 | W191: 0.9140685366 | X191: 3 | Y191: 58 | AA191: MICHIGAN | AB191: 3 | AC191: 4.52754812 | AE191: 1 | AF191: 23 | AH191: MICHIGAN | AI191: 3 | AJ191: 1.35243473 | AK191: 0.3105578432 | AL191: 4 | AM191: 88 | AO191: NORTH CAROLINA | AP191: 5 | AQ191: 2.757659995 | AS191: 3 | AT191: 16 | AV191: TEXAS | AW191: 12 | AX191: 3.944861111 | AY191: 5.453224206 | AZ191: 3 | BA191: 157.1666667 | BC191: FLORIDA | BD191: 13 | BE191: 2.155961572 | BG191: 3 | BH191: 18.45454545
F192: MISSOURI | G192: 4 | H192: 2.789345493 | I192: 5.925461938 | J192: 4 | K192: 33 | M192: FLORIDA | N192: 13 | O192: 0.1415448088 | Q192: 2 | R192: 38 | T192: GEORGIA | U192: 5 | V192: 14.56983633 | W192: 0.1768289294 | X192: 2 | Y192: 43 | AA192: INDIANA | AB192: 3 | AC192: 7.548487965 | AE192: 3 | AF192: 98 | AH192: CALIFORNIA | AI192: 11 | AJ192: 4.84255462 | AK192: 4.035065093 | AL192: 4 | AM192: 153 | AO192: MICHIGAN | AP192: 3 | AQ192: 1.057256944 | AS192: 3 | AT192: 79.66666667 | AV192: ILLINOIS | AW192: 3 | AX192: 2.017381251 | AY192: 1.752942861 | AZ192: 3 | BA192: 78 | BC192: MISSISSIPPI | BD192: 6 | BE192: 0.05402491008 | BG192: 3 | BH192: 73
F193: MARYLAND | G193: 5 | H193: 3.701274802 | I193: 3.269634388 | J193: 4 | K193: 65.5 | M193: MICHIGAN | N193: 3 | O193: 16.59420491 | Q193: 1 | R193: 31.125 | T193: PENNSYLVANIA | U193: 2 | V193: 11.54700263 | W193: 0.6612746664 | X193: 3 | Y193: 66.75 | AA193: VIRGINIA | AB193: 5 | AC193: 2.428390905 | AE193: 1 | AF193: 104.6666667 | AH193: CALIFORNIA | AI193: 11 | AJ193: 1.481551738 | AK193: 0.004984913657 | AL193: 4 | AM193: 38 | AO193: ARIZONA | AP193: 8 | AQ193: 0.253784228 | AS193: 3 | AT193: 53 | AV193: VIRGINIA | AW193: 5 | AX193: 1.498885582 | AY193: 2.118377976 | AZ193: 3 | BA193: 194.6666667 | BC193: CALIFORNIA | BD193: 11 | BE193: 0.4729291479 | BG193: 3 | BH193: 133
F194: WASHINGTON | G194: 9 | H194: 3.702901457 | I194: 2.676654634 | J194: 3 | K194: 121 | M194: MASSACHUSETTS | N194: 1 | O194: 5.867142516 | Q194: 2 | R194: 41.75 | T194: CALIFORNIA | U194: 11 | V194: 5.440157026 | W194: 0.1738368895 | X194: 5 | Y194: 71.63636364 | AA194: WASHINGTON | AB194: 9 | AC194: 0.6649219702 | AE194: 2 | AF194: 23 | AH194: ILLINOIS | AI194: 3 | AJ194: 0.9047867063 | AK194: 1.9861204 | AL194: 4 | AM194: 105.5 | AO194: CALIFORNIA | AP194: 11 | AQ194: 1.397688816 | AS194: 3 | AT194: 113 | AV194: OHIO | AW194: 3 | AX194: 5.965446429 | AY194: 0.5726190476 | AZ194: 3 | BA194: 102.1666667 | BC194: MARYLAND | BD194: 5 | BE194: 1.570534815 | BG194: 3 | BH194: 38
F195: GEORGIA | G195: 5 | H195: 9.849125299 | I195: 5.418255434 | J195: 3 | K195: 73 | M195: MICHIGAN | N195: 3 | O195: 6.379532754 | Q195: 2 | R195: 83 | T195: VIRGINIA | U195: 5 | V195: 2.406805556 | W195: 4.214186508 | X195: 3 | Y195: 116.3333333 | AA195: NEW YORK | AB195: 10 | AC195: 1.583301455 | AE195: 6 | AF195: 83 | AH195: MISSOURI | AI195: 4 | AJ195: 2.789345493 | AK195: 5.925461938 | AL195: 4 | AM195: 33 | AO195: FLORIDA | AP195: 13 | AQ195: 12.53028751 | AS195: 3 | AT195: 28 | AV195: NEW YORK | AW195: 10 | AX195: 6.493931457 | AY195: 0.01576510179 | AZ195: 3 | BA195: 128 | BC195: CALIFORNIA | BD195: 11 | BE195: 1.190521202 | BG195: 3 | BH195: 95.22222222
F196: GEORGIA | G196: 5 | H196: 2.574392052 | I196: 0.004046947411 | J196: 3 | K196: 80.5 | M196: CALIFORNIA | N196: 11 | O196: 4.889017857 | Q196: 2 | R196: 17.16666667 | T196: LOUISIANA | U196: 7 | V196: 2.138350338 | W196: 4.79448676 | X196: 2 | Y196: 68 | AA196: NORTH CAROLINA | AB196: 5 | AC196: 9.841306911 | AE196: 2 | AF196: 43 | AH196: MARYLAND | AI196: 5 | AJ196: 3.701274802 | AK196: 3.269634388 | AL196: 4 | AM196: 65.5 | AO196: FLORIDA | AP196: 13 | AQ196: 2.54052272 | AS196: 3 | AT196: 35.5 | AV196: MARYLAND | AW196: 5 | AX196: 0.977946756 | AY196: 1.002198337 | AZ196: 3 | BA196: 138 | BC196: MASSACHUSETTS | BD196: 1 | BE196: 3.393412122 | BG196: 3 | BH196: 94.875
F197: ILLINOIS | G197: 3 | H197: 3.62765601 | I197: 2.728695316 | J197: 2 | K197: 81.5 | M197: PENNSYLVANIA | N197: 2 | O197: 0.230436817 | Q197: 2 | R197: 223 | T197: TEXAS | U197: 12 | V197: 5.730837603 | W197: 2.733494234 | X197: 6 | Y197: 162.5454545 | AA197: MICHIGAN | AB197: 3 | AC197: 2.585891865 | AE197: 5 | AF197: 39.66666667 | AH197: CALIFORNIA | AI197: 11 | AJ197: 13.43218034 | AK197: 0.02986191816 | AL197: 4 | AM197: 118 | AO197: OHIO | AP197: 3 | AQ197: 0.2898384379 | AS197: 3 | AT197: 68 | AV197: LOUISIANA | AW197: 7 | AX197: 3.846941375 | AY197: 4.311023131 | AZ197: 3 | BA197: 123 | BC197: DELAWARE | BD197: 5 | BE197: 4.008869048 | BG197: 3 | BH197: 23
F198: OHIO | G198: 3 | H198: 3.39327784 | I198: 1.549357413 | J198: 7 | K198: 60.5 | M198: GEORGIA | N198: 5 | O198: 3.851948446 | Q198: 4 | R198: 51.125 | T198: NEW YORK | U198: 10 | V198: 6.119741996 | W198: 0.001501800365 | X198: 3 | Y198: 78 | AA198: OREGON | AB198: 9 | AC198: 3.119728884 | AE198: 1 | AF198: 78 | AH198: ARIZONA | AI198: 8 | AJ198: 8.146455751 | AK198: 1.586816496 | AL198: 4 | AM198: 173 | AO198: CALIFORNIA | AP198: 11 | AQ198: 3.289316028 | AS198: 3 | AT198: 48 | AV198: NEW YORK | AW198: 10 | AX198: 12.45205347 | AY198: 0.5790294899 | AZ198: 3 | BA198: 28 | BC198: FLORIDA | BD198: 13 | BE198: 1.523618558 | BG198: 3 | BH198: 23
F199: CALIFORNIA | G199: 11 | H199: 13.43218034 | I199: 0.02986191816 | J199: 4 | K199: 118 | M199: MARYLAND | N199: 5 | O199: 4.7684879 | Q199: 2 | R199: 43 | T199: FLORIDA | U199: 13 | V199: 2.652930613 | W199: 0.3894797303 | X199: 2 | Y199: 70.22222222 | AA199: MICHIGAN | AB199: 3 | AC199: 12.68941091 | AE199: 2 | AF199: 12.16666667 | AH199: SOUTH CAROLINA | AI199: 5 | AJ199: 2.115864844 | AK199: 2.762878205 | AL199: 4 | AM199: 3 | AO199: TEXAS | AP199: 12 | AQ199: 7.00604707 | AS199: 3 | AT199: 18 | AV199: NORTH CAROLINA | AW199: 5 | AX199: 2.522895864 | AY199: 1.767181047 | AZ199: 3 | BA199: 48 | BC199: CALIFORNIA | BD199: 11 | BE199: 1.425553497 | BG199: 3 | BH199: 104.875
F200: FLORIDA | G200: 13 | H200: 5.637007104 | I200: 2.763932897 | J200: 1 | K200: 28 | M200: CALIFORNIA | N200: 11 | O200: 0.1603174603 | Q200: 2 | R200: 72.16666667 | T200: TEXAS | U200: 12 | V200: 0.8860746106 | W200: 0.9984650468 | X200: 1 | Y200: 23 | AA200: ILLINOIS | AB200: 3 | AC200: 1.656747685 | AE200: 5 | AF200: 147.1666667 | AH200: GEORGIA | AI200: 5 | AJ200: 5.303935241 | AK200: 0.03136353686 | AL200: 4 | AM200: 100.5 | AO200: TEXAS | AP200: 12 | AQ200: 0.5261263631 | AS200: 3 | AT200: 74 | AV200: OHIO | AW200: 3 | AX200: 5.089755693 | AY200: 1.552231192 | AZ200: 3 | BA200: 28 | BC200: PENNSYLVANIA | BD200: 2 | BE200: 11.61856998 | BG200: 3 | BH200: 8
F201: CALIFORNIA | G201: 11 | H201: 0.4345577149 | I201: 2.475453612 | J201: 3 | K201: 305 | M201: TEXAS | N201: 12 | O201: 4.664527561 | Q201: 2 | R201: 41 | T201: FLORIDA | U201: 13 | V201: 6.502079716 | W201: 0.1287876121 | X201: 2 | Y201: 63 | AA201: CALIFORNIA | AB201: 11 | AC201: 1.062489898 | AE201: 2 | AF201: 13 | AH201: CALIFORNIA | AI201: 11 | AJ201: 17.52169563 | AK201: 0.3860707791 | AL201: 4 | AM201: 58 | AO201: MARYLAND | AP201: 5 | AQ201: 10.89806016 | AS201: 3 | AT201: 58 | AV201: MASSACHUSETTS | AW201: 1 | AX201: 2.3871392 | AY201: 0.1681579229 | AZ201: 3 | BA201: 88 | BC201: NORTH CAROLINA | BD201: 5 | BE201: 0.1409533487 | BG201: 3 | BH201: 33
... 1555 more rows

Sheet Adjustment Factors
B1: Adjustment Factors
B3: Usage Factors | D3: Normalized | F3: Auto Powerdown Usage | I3: Server Adjustment Factors
B4: 2011 | C4: 1 | D4: =C4/VLOOKUP(INT(StartYear), $B$4:$C$43, 2) -> 0.793607898 | F4: TV Viewing | G4: Average Powerdown | I4: Hours Watched per TV along columns
B5: 2012 | C5: 1.037266111 | D5: 0.8231825776 | F5: Per Day | G5: Mode Per Day | I5: Number of TVs along rows
B6: 2013 | C6: 1.074445878 | D6: 0.852688735 | G6: (Continuous Operation) | I6: Adjustment factors
B7: 2014 | C7: 1.111607181 | D7: 0.8821802382 | F7: (hrs/day) | G7: (hrs/day) | J7: 1 | K7: 2 | L7: 3 | M7: 4 | N7: 5 | O7: 6 | P7: 7 | Q7: 8 | R7: 9 | S7: 10 | T7: 11 | U7: 12 | V7: 13 | W7: 14 | X7: 15 | Y7: 16 | Z7: 17 | AA7: 18 | AB7: 19 | AC7: 20 | AD7: 21 | AE7: 22 | AF7: 23 | AG7: 24
B8: 2015 | C8: 1.148750037 | D8: 0.9116571018 | F8: 1 | G8: 19.01 | I8: 1 | J8: 1 | K8: 1 | L8: 1 | M8: 1 | N8: 1 | O8: 1 | P8: 1 | Q8: 1 | R8: 1 | S8: 1 | T8: 1 | U8: 1 | V8: 1 | W8: 1 | X8: 1 | Y8: 1 | Z8: 1 | AA8: 1 | AB8: 1 | AC8: 1 | AD8: 1 | AE8: 1 | AF8: 1 | AG8: 1
B9: 2016 | C9: 1.185874464 | D9: 0.9411193403 | F9: 2 | G9: 15.35 | I9: 2 | J9: 1.94 | K9: 1.86 | L9: 1.793333333 | M9: 1.735 | N9: 1.674 | O9: 1.616666667 | P9: 1.562857143 | Q9: 1.51125 | R9: 1.464444444 | S9: 1.416 | T9: 1.374545455 | U9: 1.335833333 | V9: 1.293846154 | W9: 1.256428571 | X9: 1.224 | Y9: 1.191875 | Z9: 1.162941176 | AA9: 1.134444444 | AB9: 1.111052632 | AC9: 1.09 | AD9: 1.070952381 | AE9: 1.053181818 | AF9: 1.031304348 | AG9: 1
B10: 2017 | C10: 1.22298048 | D10: 0.9705669682 | F10: 3 | G10: 12.6 | I10: 3 | J10: 2.79 | K10: 2.605 | L10: 2.436666667 | M10: 2.285 | N10: 2.148 | O10: 2.025 | P10: 1.914285714 | Q10: 1.815 | R10: 1.723333333 | S10: 1.641 | T10: 1.562727273 | U10: 1.495 | V10: 1.432307692 | W10: 1.372857143 | X10: 1.321333333 | Y10: 1.273125 | Z10: 1.230588235 | AA10: 1.192222222 | AB10: 1.158421053 | AC10: 1.1285 | AD10: 1.10047619 | AE10: 1.072272727 | AF10: 1.04 | AG10: 1
B11: 2018 | C11: 1.260068105 | D11: 1 | F11: 4 | G11: 10.52 | I11: 4 | J11: 3.61 | K11: 3.26 | L11: 2.973333333 | M11: 2.7125 | N11: 2.502 | O11: 2.315 | P11: 2.154285714 | Q11: 2.00875 | R11: 1.882222222 | S11: 1.773 | T11: 1.676363636 | U11: 1.5875 | V11: 1.508461538 | W11: 1.437857143 | X11: 1.377333333 | Y11: 1.319375 | Z11: 1.269411765 | AA11: 1.225555556 | AB11: 1.184736842 | AC11: 1.15 | AD11: 1.115714286 | AE11: 1.080909091 | AF11: 1.042173913 | AG11: 1
B12: 2019 | C12: 1.297137356 | D12: 1.02941845 | F12: 5 | G12: 8.87 | I12: 5 | J12: 4.35 | K12: 3.825 | L12: 3.403333333 | M12: 3.05 | N12: 2.764 | O12: 2.526666667 | P12: 2.318571429 | Q12: 2.14625 | R12: 1.995555556 | S12: 1.864 | T12: 1.750909091 | U12: 1.649166667 | V12: 1.561538462 | W12: 1.483571429 | X12: 1.411333333 | Y12: 1.351875 | Z12: 1.296470588 | AA12: 1.247777778 | AB12: 1.204736842 | AC12: 1.164 | AD12: 1.125238095 | AE12: 1.085909091 | AF12: 1.043043478 | AG12: 1
B13: 2020 | C13: 1.334188251 | D13: 1.058822333 | F13: 6 | G13: 7.54
B14: 2021 | C14: 1.371220808 | D14: 1.088211663 | F14: 7 | G14: 6.44 | I14: Percentage On
B15: 2022 | C15: 1.408235047 | D15: 1.117586455 | F15: 8 | G15: 5.5 | J15: 1 | K15: 2 | L15: 3 | M15: 4 | N15: 5 | O15: 6 | P15: 7 | Q15: 8 | R15: 9 | S15: 10 | T15: 11 | U15: 12 | V15: 13 | W15: 14 | X15: 15 | Y15: 16 | Z15: 17 | AA15: 18 | AB15: 19 | AC15: 20 | AD15: 21 | AE15: 22 | AF15: 23 | AG15: 24
B16: 2023 | C16: 1.445230984 | D16: 1.146946723 | F16: 9 | G16: 4.7 | I16: 1 | J16: 1 | K16: 1 | L16: 1 | M16: 1 | N16: 1 | O16: 1 | P16: 1 | Q16: 1 | R16: 1 | S16: 1 | T16: 1 | U16: 1 | V16: 1 | W16: 1 | X16: 1 | Y16: 1 | Z16: 1 | AA16: 1 | AB16: 1 | AC16: 1 | AD16: 1 | AE16: 1 | AF16: 1 | AG16: 1
B17: 2024 | C17: 1.482208638 | D17: 1.176292481 | F17: 10 | G17: 4.01 | I17: 2 | J17: 0.4845360825 | K17: 0.4623655914 | L17: 0.4423791822 | M17: 0.4236311239 | N17: 0.4026284349 | O17: 0.381443299 | P17: 0.3601462523 | Q17: 0.3382961125 | R17: 0.3171471927 | S17: 0.2937853107 | T17: 0.2724867725 | U17: 0.2514036182 | V17: 0.2271105826 | W17: 0.2040932348 | X17: 0.1830065359 | Y17: 0.1609858416 | Z17: 0.1401112797 | AA17: 0.1185112635 | AB17: 0.09995262909 | AC17: 0.08256880734 | AD17: 0.06625166741 | AE17: 0.05049633146 | AF17: 0.03035413153 | AG17: 0
B18: 2025 | C18: 1.519168026 | D18: 1.205623744 | F18: 11 | G18: 3.48 | I18: 3 | J18: 0.3046594982 | K18: 0.2859884837 | L18: 0.2640218878 | M18: 0.2407002188 | N18: 0.2206703911 | O18: 0.2016460905 | P18: 0.1835820896 | Q18: 0.1673553719 | R18: 0.1502256609 | S18: 0.1371115174 | T18: 0.1204188482 | U18: 0.1064659978 | V18: 0.09667024705 | W18: 0.0848074922 | X18: 0.0736629667 | Y18: 0.06381934217 | Z18: 0.05497131931 | AA18: 0.04846225536 | AB18: 0.04089050432 | AC18: 0.0341160833 | AD18: 0.02682821289 | AE18: 0.0178041543 | AF18: 0.008361204013 | AG18: 0
B19: 2026 | C19: 1.556109168 | D19: 1.234940526 | F19: 12 | G19: 2.88 | I19: 4 | J19: 0.2271468144 | K19: 0.2009202454 | L19: 0.1804932735 | M19: 0.1576036866 | N19: 0.1414868106 | O19: 0.1252699784 | P19: 0.1114058355 | Q19: 0.09645301805 | R19: 0.08441558442 | S19: 0.0744500846 | T19: 0.06778741866 | U19: 0.05826771654 | V19: 0.05048444671 | W19: 0.04520615996 | X19: 0.04065827686 | Y19: 0.03505447655 | Z19: 0.03058387396 | AA19: 0.02719854941 | AB19: 0.02221235007 | AC19: 0.01869565217 | AD19: 0.0136577038 | AE19: 0.007989907485 | AF19: 0.002085940759 | AG19: 0
B20: 2027 | C20: 1.593032081 | D20: 1.264242841 | F20: 13 | G20: 2.46 | I20: 5 | J20: 0.1701149425 | K20: 0.1477124183 | L20: 0.1263467189 | M20: 0.1106557377 | N20: 0.09479015919 | O20: 0.08377308707 | P20: 0.07085643869 | Q20: 0.06406523005 | R20: 0.05679287305 | S20: 0.04881974249 | T20: 0.04257528557 | U20: 0.03739262254 | V20: 0.03399014778 | W20: 0.03081367357 | X20: 0.02409069438 | Y20: 0.02404068423 | Z20: 0.02087114338 | AA20: 0.017809439 | AB20: 0.01660113587 | AC20: 0.01202749141 | AD20: 0.008463817182 | AE20: 0.004604437003 | AF20: 0.0008336807003 | AG20: 0
B21: 2028 | C21: 1.629936783 | D21: 1.293530704 | F21: 14 | G21: 2.01
B22: 2029 | C22: 1.666823291 | D22: 1.322804128 | F22: 15 | G22: 1.58 | I22: Percentage MF
B23: 2030 | C23: 1.703691625 | D23: 1.352063129 | F23: 16 | G23: 1.18 | J23: 1 | K23: 2 | L23: 3 | M23: 4 | N23: 5 | O23: 6 | P23: 7 | Q23: 8 | R23: 9 | S23: 10 | T23: 11 | U23: 12 | V23: 13 | W23: 14 | X23: 15 | Y23: 16 | Z23: 17 | AA23: 18 | AB23: 19 | AC23: 20 | AD23: 21 | AE23: 22 | AF23: 23 | AG23: 24
B24: 2031 | C24: 1.740541801 | D24: 1.38130772 | F24: 17 | G24: 0.77 | I24: 1 | J24: 0 | K24: 0 | L24: 0 | M24: 0 | N24: 0 | O24: 0 | P24: 0 | Q24: 0 | R24: 0 | S24: 0 | T24: 0 | U24: 0 | V24: 0 | W24: 0 | X24: 0 | Y24: 0 | Z24: 0 | AA24: 0 | AB24: 0 | AC24: 0 | AD24: 0 | AE24: 0 | AF24: 0 | AG24: 0
B25: 2032 | C25: 1.777373838 | D25: 1.410537915 | F25: 18 | G25: 0.44 | I25: 2 | J25: 0.5154639175 | K25: 0.5376344086 | L25: 0.5576208178 | M25: 0.5763688761 | N25: 0.5973715651 | O25: 0.618556701 | P25: 0.6398537477 | Q25: 0.6617038875 | R25: 0.6828528073 | S25: 0.7062146893 | T25: 0.7275132275 | U25: 0.7485963818 | V25: 0.7728894174 | W25: 0.7959067652 | X25: 0.8169934641 | Y25: 0.8390141584 | Z25: 0.8598887203 | AA25: 0.8814887365 | AB25: 0.9000473709 | AC25: 0.9174311927 | AD25: 0.9337483326 | AE25: 0.9495036685 | AF25: 0.9696458685 | AG25: 1
B26: 2033 | C26: 1.814187753 | D26: 1.439753729 | F26: 19 | G26: 0.17 | I26: 3 | J26: 0.6953405018 | K26: 0.7140115163 | L26: 0.7359781122 | M26: 0.7592997812 | N26: 0.7793296089 | O26: 0.7983539095 | P26: 0.8164179104 | Q26: 0.8326446281 | R26: 0.8497743391 | S26: 0.8628884826 | T26: 0.8795811518 | U26: 0.8935340022 | V26: 0.903329753 | W26: 0.9151925078 | X26: 0.9263370333 | Y26: 0.9361806578 | Z26: 0.9450286807 | AA26: 0.9515377446 | AB26: 0.9591094957 | AC26: 0.9658839167 | AD26: 0.9731717871 | AE26: 0.9821958457 | AF26: 0.991638796 | AG26: 1
B27: 2034 | C27: 1.850983564 | D27: 1.468955176 | F27: 20 | G27: 0 | I27: 4 | J27: 0.7728531856 | K27: 0.7990797546 | L27: 0.8195067265 | M27: 0.8423963134 | N27: 0.8585131894 | O27: 0.8747300216 | P27: 0.8885941645 | Q27: 0.903546982 | R27: 0.9155844156 | S27: 0.9255499154 | T27: 0.9322125813 | U27: 0.9417322835 | V27: 0.9495155533 | W27: 0.95479384 | X27: 0.9593417231 | Y27: 0.9649455234 | Z27: 0.969416126 | AA27: 0.9728014506 | AB27: 0.9777876499 | AC27: 0.9813043478 | AD27: 0.9863422962 | AE27: 0.9920100925 | AF27: 0.9979140592 | AG27: 1
B28: 2035 | C28: 1.88776129 | D28: 1.498142269 | F28: Time to power down: 4 hours. | I28: 5 | J28: 0.8298850575 | K28: 0.8522875817 | L28: 0.8736532811 | M28: 0.8893442623 | N28: 0.9052098408 | O28: 0.9162269129 | P28: 0.9291435613 | Q28: 0.9359347699 | R28: 0.9432071269 | S28: 0.9511802575 | T28: 0.9574247144 | U28: 0.9626073775 | V28: 0.9660098522 | W28: 0.9691863264 | X28: 0.9759093056 | Y28: 0.9759593158 | Z28: 0.9791288566 | AA28: 0.982190561 | AB28: 0.9833988641 | AC28: 0.9879725086 | AD28: 0.9915361828 | AE28: 0.995395563 | AF28: 0.9991663193 | AG28: 1
B29: 2036 | C29: 1.924520947 | D29: 1.527315023
B30: 2037 | C30: 1.961262554 | D30: 1.556473453
B31: 2038 | C31: 1.997986128 | D31: 1.585617572
B32: 2039 | C32: 2.034691688 | D32: 1.614747393
B33: 2040 | C33: 2.07137925 | D33: 1.643862932 | F33: Notes
B34: 2041 | C34: 2.108048832 | D34: 1.672964202 | F34: Usage Factors: Metered data from Nielsen indicate that average TV usage has been steadily increasing in recent years. DOE assumed that this increase in usage would continue in the future, but would eventually slow down as there are a limited number of hours in a day. As a result, DOE projected increasing usage using a logarithmic function, and applied a multiplicative factor to annual usage when calculating annual energy consumption per unit in future years. These adjustment factors are used in the LCC simulation to adjust the total TV and DVR viewing hours obtained from a household sample in future years. Auto Powerdown Usage: For STBs with APD, DOE performed a separate Monte Carlo simulation to estimate the number of hours per day a STB would spend in a power-down mode as a function of average household TV viewing, assuming APD was triggered after 4 hours inactivity. The simulation uses the probability distribution of TV watching during the day from the The American Time of Use Survey from the Bureau of Labor Statistics. When not in on or lower power mode triggered by APD, DOE assumed that 60% of STBs were manually put into a sleep mode, according to a recent durvey (Urban et al., 2011). Thus, for households with STBs with APD, once the total TV and DVR viewing was determined, the number of hours spent in APD was obtained from this table. Server Adjustement Factors: Server STBs can control multiple TVs in a household using a single STB unit. The usage of server STBs is therefore greater than simply the average usage of a single TV. Multiple TVs in a household can also be viewed simultaneously. To properly account for server STB usage, DOE performed a separete Monte Carlo simulation to determine the amount of usage overlap for multiple TVs in a household, as well as the fraction of time spent in on mode versus multi-function mode. The simulation uses the probability distribution of TV watching during the day from the The American Time of Use Survey from the Bureau of Labor Statistics. Thus, for households with server STBs, once the total TV and DVR viewing was determined, the total number of hours spent in on and multi-function mode was obtained from this table (depending on number of TVs in a given household). Sources: Nielsen, 2011. American Time of Use Survey, Bureau of Labor Statistics. http://www.bls.gov/tus/ Urban, B., V. Tiefenbeck, and K. Roth. Energy Consumption of Consumer Electronics in U.S. Homes in 2010. December, 2011. Fraunhofer Center for Sustainable Energy Systems. Final report to the Consumer Electronics Association.
B35: 2042 | C35: 2.144700452 | D35: 1.702051218
B36: 2043 | C36: 2.181334128 | D36: 1.731123992
B37: 2044 | C37: 2.217949877 | D37: 1.760182539
B38: 2045 | C38: 2.254547716 | D38: 1.789226874
B39: 2046 | C39: 2.291127664 | D39: 1.818257009
B40: 2047 | C40: 2.327689737 | D40: 1.847272959
B41: 2048 | C41: 2.364233953 | D41: 1.876274738
B42: 2049 | C42: 2.40076033 | D42: 1.905262359
B43: 2050 | C43: 2.437268884 | D43: 1.934235836

Sheet Equipment Price
B1: Equipment Price
B3: Import Parameters | E3: All Prices 2011$ | H3: Sales Tax Rates | K3: Breakdown by Sample
B4: State | C4: =State -> MICHIGAN | E4: Level | F4: Price | I4: Sales Tax (2011) | M4: DBT DVR | N4: DBT without DVR | O4: CBT DVR | P4: CBT without DVR | Q4: DBT DVR Server | R4: DBT without DVR Server | S4: CBT DVR Server | T4: CBT without DVR Server
E5: 0 | F5: =OFFSET('Model Info'!$K$4, iPC, E5) -> 77.2778 | H5: Alabama | I5: 0.0825 | K5: ALABAMA | L5: 0.0825 | M5: 0.009175669676 | N5: 0.01132667938 | O5: 0.003994977742 | P5: 0.004315982213 | Q5: 0.007507037848 | R5: 0.009548818334 | S5: 0.004002501563 | T5: 0.00436383472
B6: ="Export Parameters for: " & choice_PC -> Export Parameters for: OTT | E6: 1 | F6: =IF(OFFSET('Model Info'!$K$4, iPC, E6) <> "", OFFSET('Model Info'!$K$4, iPC, E6) + $F$5, 0) -> 66.0352 | H6: Alaska | I6: 0.0145 | K6: ALASKA | L6: 0.0145 | M6: 0.000739973361 | N6: 0.0007850173825 | O6: 0.001141422212 | P6: 0.0009809050484 | Q6: 0.0003127932437 | R6: 0.0004774409167 | S6: 0.0003752345216 | T6: 0.000409109505
B7: Sales Tax: | C7: =VLOOKUP(C4, $H$5:$I$58, 2, FALSE) -> 0.06 | E7: 2 | F7: =IF(OFFSET('Model Info'!$K$4, iPC, E7) <> "", OFFSET('Model Info'!$K$4, iPC, E7) + $F$5, 0) -> 70.1624 | H7: Arizona | I7: 0.0815 | K7: ARIZONA | L7: 0.0815 | M7: 0.04587834838 | N7: 0.04070875855 | O7: 0.02037438649 | P7: 0.01445200105 | Q7: 0.04003753519 | R7: 0.03604678921 | S7: 0.01938711695 | T7: 0.01268239465
E8: 3 | F8: =IF(OFFSET('Model Info'!$K$4, iPC, E8) <> "", OFFSET('Model Info'!$K$4, iPC, E8) + $F$5, 0) -> 0 | H8: Arkansas | I8: 0.084 | K8: ARKANSAS | L8: 0.084 | M8: 0.006215776232 | N8: 0.005943703039 | O8: 0.001597991097 | P8: 0.001831022757 | Q8: 0.005630278386 | R8: 0.005251850084 | S8: 0.001375859912 | T8: 0.001227328515
B9: Retail Price: | E9: 4 | F9: =IF(OFFSET('Model Info'!$K$4, iPC, E9)<>"", OFFSET('Model Info'!$K$4, iPC, E9)+$F$5, 0) -> 0 | H9: California | I9: 0.082 | K9: CALIFORNIA | L9: 0.082 | M9: 0.1583542992 | N9: 0.1384994953 | O9: 0.12024883 | P9: 0.1061339262 | Q9: 0.1423209259 | R9: 0.1351157794 | S9: 0.09631019387 | T9: 0.09286785763
B10: Level | C10: =choice_PC -> OTT | E10: 5 | F10: =IF(OFFSET('Model Info'!$K$4, iPC, E10)<>"", OFFSET('Model Info'!$K$4, iPC, E10)+$F$5, 0) -> 0 | H10: Colorado | I10: 0.064 | K10: COLORADO | L10: 0.064 | M10: 0.04129051354 | N10: 0.03745654368 | O10: 0.02494007533 | P10: 0.02641904264 | Q10: 0.03659680951 | R10: 0.03556934829 | S10: 0.02126328956 | T10: 0.02236465294
B11: 0 | C11: =F5 * (1+C$7) -> 81.914468 | E11: 6 | F11: =IF(OFFSET('Model Info'!$K$4, iPC, E11)<>"", OFFSET('Model Info'!$K$4, iPC, E11)+$F$5, 0) -> 0 | H11: Connecticut | I11: 0.0635 | K11: CONNECTICUT | L11: 0.0635 | M11: 0.003551872133 | N11: 0.00325221487 | O11: 0.007818742153 | P11: 0.008566570756 | Q11: 0.003127932437 | R11: 0.0028646455 | S11: 0.008130081301 | T11: 0.009409518614
B12: =B11+1 -> 1 | C12: 69.997312 | E12: 7 | F12: =IF(OFFSET('Model Info'!$K$4, iPC, E12)<>"", OFFSET('Model Info'!$K$4, iPC, E12)+$F$5, 0) -> 0 | H12: Delaware | I12: 0 | K12: DELAWARE | L12: 0 | M12: 0.001183957378 | N12: 0.001794325446 | O12: 0.005935395503 | P12: 0.006800941669 | Q12: 0.001563966218 | R12: 0.002625925042 | S12: 0.007004377736 | T12: 0.008045820265
B13: =B12+1 -> 2 | C13: 74.372144 | E13: 8 | F13: =IF(OFFSET('Model Info'!$K$4, iPC, E13)<>"", OFFSET('Model Info'!$K$4, iPC, E13)+$F$5, 0) -> 0 | H13: District of Columbia | I13: 0.06 | K13: DISTRICT OF COLUMBIA | L13: 0.06 | M13: 0.001627941394 | N13: 0.002018616126 | O13: 0.003709622189 | P13: 0.004054407533 | Q13: 0.001876759462 | R13: 0.002625925042 | S13: 0.003377110694 | T13: 0.00381835538
B14: 3 | C14: 0 | E14: 9 | F14: =IF(OFFSET('Model Info'!$K$4, iPC, E14)<>"", OFFSET('Model Info'!$K$4, iPC, E14)+$F$5, 0) -> 0 | H14: Florida | I14: 0.0665 | K14: FLORIDA | L14: 0.0665 | M14: 0.06852153322 | N14: 0.07861388359 | O14: 0.1120876612 | P14: 0.107964949 | Q14: 0.07944948389 | R14: 0.08474576271 | S14: 0.1207004378 | T14: 0.1086867585
B15: 4 | C15: 0 | E15: 10 | F15: =IF(OFFSET('Model Info'!$K$4, iPC, E15)<>"", OFFSET('Model Info'!$K$4, iPC, E15)+$F$5, 0) -> 0 | H15: Georgia | I15: 0.0695 | K15: GEORGIA | L15: 0.0695 | M15: 0.04069853485 | N15: 0.04384882808 | O15: 0.0307042575 | P15: 0.03459325137 | Q15: 0.04535502033 | R15: 0.04344712342 | S15: 0.03577235772 | T15: 0.04077458066
B16: 5 | C16: 0 | E16: 11 | F16: =IF(OFFSET('Model Info'!$K$4, iPC, E16)<>"", OFFSET('Model Info'!$K$4, iPC, E16)+$F$5, 0) -> 0 | H16: Guam | I16: 0.04 | K16: HAWAII | L16: 0.0435 | M16: 0.0005919786888 | N16: 0.0005607267018 | O16: 0.001540919986 | P16: 0.0001307873398 | Q16: 0.0006255864873 | R16: 0.000716161375 | S16: 0.001000625391 | T16: 0.000136369835
B17: 6 | C17: 0 | E17: 12 | F17: =IF(OFFSET('Model Info'!$K$4, iPC, E17)<>"", OFFSET('Model Info'!$K$4, iPC, E17)+$F$5, 0) -> 0 | H17: Hawaii | I17: 0.0435 | K17: IDAHO | L17: 0.0605 | M17: 0.002959893444 | N17: 0.002355052148 | O17: 0.0002282844424 | P17: 0.0001961810097 | Q17: 0.002189552706 | R17: 0.002148484125 | S17: 0.0003752345216 | T17: 0.000409109505
B18: 7 | C18: 0 | E18: 13 | F18: =IF(OFFSET('Model Info'!$K$4, iPC, E18)<>"", OFFSET('Model Info'!$K$4, iPC, E18)+$F$5, 0) -> 0 | H18: Idaho | I18: 0.0605 | K18: ILLINOIS | L18: 0.081 | M18: 0.05564599674 | N18: 0.05091398452 | O18: 0.0478826618 | P18: 0.047345017 | Q18: 0.06412261495 | R18: 0.06182859871 | S18: 0.05490931832 | T18: 0.05482067367
B19: 8 | C19: 0 | E19: 14 | F19: =IF(OFFSET('Model Info'!$K$4, iPC, E19)<>"", OFFSET('Model Info'!$K$4, iPC, E19)+$F$5, 0) -> 0 | H19: Illinois | I19: 0.081 | K19: INDIANA | L19: 0.07 | M19: 0.01257954714 | N19: 0.01267242346 | O19: 0.01010158658 | P19: 0.0102014125 | Q19: 0.01282452299 | R19: 0.01336834567 | S19: 0.01000625391 | T19: 0.009818628119
B20: 9 | C20: 0 | E20: 15 | F20: =IF(OFFSET('Model Info'!$K$4, iPC, E20)<>"", OFFSET('Model Info'!$K$4, iPC, E20)+$F$5, 0) -> 0 | H20: Indiana | I20: 0.07 | K20: IOWA | L20: 0.0685 | M20: 0.004587834838 | N20: 0.005046540316 | O20: 0.002739413309 | P20: 0.003008108815 | Q20: 0.004691898655 | R20: 0.005251850084 | S20: 0.003126954346 | T20: 0.003136506205
B21: 10 | C21: 0 | E21: 16 | F21: =IF(OFFSET('Model Info'!$K$4, iPC, E21)<>"", OFFSET('Model Info'!$K$4, iPC, E21)+$F$5, 0) -> 0 | H21: Iowa | I21: 0.0685 | K21: KANSAS | L21: 0.0805 | M21: 0.004587834838 | N21: 0.003476505551 | O21: 0.003424266636 | P21: 0.002942715145 | Q21: 0.003753518924 | R21: 0.0028646455 | S21: 0.004252657911 | T21: 0.00327287604
B22: 11 | C22: 0 | E22: 17 | F22: =IF(OFFSET('Model Info'!$K$4, iPC, E22)<>"", OFFSET('Model Info'!$K$4, iPC, E22)+$F$5, 0) -> 0 | H22: Kansas | I22: 0.0805 | K22: KENTUCKY | L22: 0.06 | M22: 0.006511765576 | N22: 0.006055848379 | O22: 0.005764182171 | P22: 0.005754642951 | Q22: 0.006568658117 | R22: 0.005251850084 | S22: 0.006504065041 | T22: 0.00681849175
B23: 12 | C23: 0 | E23: 18 | F23: =IF(OFFSET('Model Info'!$K$4, iPC, E23)<>"", OFFSET('Model Info'!$K$4, iPC, E23)+$F$5, 0) -> 0 | H23: Kentucky | I23: 0.06 | K23: LOUISIANA | L23: 0.0875 | M23: 0.007695722954 | N23: 0.008298755187 | O23: 0.003481337747 | P23: 0.003008108815 | Q23: 0.007507037848 | R23: 0.007877775125 | S23: 0.003377110694 | T23: 0.00327287604
B24: 13 | C24: 0 | E24: 19 | F24: =IF(OFFSET('Model Info'!$K$4, iPC, E24)<>"", OFFSET('Model Info'!$K$4, iPC, E24)+$F$5, 0) -> 0 | H24: Louisiana | I24: 0.0875 | K24: MAINE | L24: 0.05 | M24: 0.00133195205 | N24: 0.001906470786 | O24: 0.001712133318 | P24: 0.001438660738 | Q24: 0.0006255864873 | R24: 0.00143232275 | S24: 0.00162601626 | T24: 0.001500068185
B25: 14 | C25: 0 | E25: 20 | F25: =IF(OFFSET('Model Info'!$K$4, iPC, E25)<>"", OFFSET('Model Info'!$K$4, iPC, E25)+$F$5, 0) -> 0 | H25: Maine | I25: 0.05 | K25: MARYLAND | L25: 0.06 | M25: 0.0303389078 | N25: 0.03398003813 | O25: 0.05199178176 | P25: 0.06029296364 | Q25: 0.03628401627 | R25: 0.03843399379 | S25: 0.06153846154 | T25: 0.0709123142
B26: 15 | C26: 0 | H26: Maryland | I26: 0.06 | K26: MASSACHUSETTS | L26: 0.0625 | M26: 0.00947165902 | N26: 0.01121453404 | O26: 0.03652551079 | P26: 0.04041328799 | Q26: 0.01094776353 | R26: 0.01050370017 | S26: 0.0296435272 | T26: 0.03286513023
B27: 16 | C27: 0 | H27: Massachusetts | I27: 0.0625 | K27: MICHIGAN | L27: 0.06 | M27: 0.03107888116 | N27: 0.0302792419 | O27: 0.04131948408 | P27: 0.04414072718 | Q27: 0.03159211761 | R27: 0.03127238004 | S27: 0.04565353346 | T27: 0.04813855175
B28: 17 | C28: 0 | H28: Michigan | I28: 0.06 | K28: MINNESOTA | L28: 0.072 | M28: 0.02945093977 | N28: 0.03072782326 | O28: 0.02277137313 | P28: 0.02622286163 | Q28: 0.03065373788 | R28: 0.03031749821 | S28: 0.02388993121 | T28: 0.02659211782
B29: 18 | C29: 0 | H29: Minnesota | I29: 0.072 | K29: MISSISSIPPI | L29: 0.07 | M29: 0.005475802871 | N29: 0.006616575081 | O29: 0.001198493323 | P29: 0.001373267068 | Q29: 0.004691898655 | R29: 0.005490570542 | S29: 0.001375859912 | T29: 0.00163643802
B30: 19 | C30: 0 | H30: Mississippi | I30: 0.07 | K30: MISSOURI | L30: 0.0755 | M30: 0.03551872133 | N30: 0.03431647415 | O30: 0.01911882205 | P30: 0.01811404656 | Q30: 0.03597122302 | R30: 0.03533062783 | S30: 0.02276422764 | T30: 0.0222282831
B31: 20 | C31: 0 | H31: Missouri | I31: 0.0755 | K31: MONTANA | L31: 0 | M31: 0.00133195205 | N31: 0.001457889425 | O31: 0.0006848533272 | P31: 0.0005231493591 | Q31: 0.0006255864873 | R31: 0.0004774409167 | S31: 0.0002501563477 | T31: 0.000409109505
H32: Montana | I32: 0 | K32: NEBRASKA | L32: 0.06 | M32: 0.002515909427 | N32: 0.002803633509 | O32: 0.00188334665 | P32: 0.001438660738 | Q32: 0.002815139193 | R32: 0.001909763667 | S32: 0.001751094434 | T32: 0.001227328515
H33: Nebraska | I33: 0.06 | K33: NEVADA | L33: 0.0785 | M33: 0.004291845494 | N33: 0.003812941572 | O33: 0.002339915535 | P33: 0.001373267068 | Q33: 0.004066312168 | R33: 0.00429696825 | S33: 0.003126954346 | T33: 0.001772807855
B34: Notes | H34: Nevada | I34: 0.0785 | K34: NEW HAMPSHIRE | L34: 0 | M34: 0.004291845494 | N34: 0.005158685657 | O34: 0.006277822166 | P34: 0.007062516348 | Q34: 0.003127932437 | R34: 0.003819527333 | S34: 0.006253908693 | T34: 0.006954861585
B35: This sheet adjusts the input equipment price to account for regionally varying sales taxes. | H35: New Hampshire | I35: 0 | K35: NEW JERSEY | L35: 0.0695 | M35: 0.009915643037 | N35: 0.01289671414 | O35: 0.03772400411 | P35: 0.04577556892 | Q35: 0.01470128245 | R35: 0.01527810933 | S35: 0.0435272045 | T35: 0.05086594845
H36: New Jersey | I36: 0.0695 | K36: NEW MEXICO | L36: 0.066 | M36: 0.00473582951 | N36: 0.004485813614 | O36: 0.001255564433 | P36: 0.001700235417 | Q36: 0.003127932437 | R36: 0.003819527333 | S36: 0.001000625391 | T36: 0.00109095868
H37: New Mexico | I37: 0.066 | K37: NEW YORK | L37: 0.0845 | M37: 0.01672339796 | N37: 0.02119546933 | O37: 0.05107864399 | P37: 0.0499607638 | Q37: 0.01751642165 | R37: 0.02196228217 | S37: 0.04552845528 | T37: 0.04595663439
H38: New York | I38: 0.0845 | K38: NORTH CAROLINA | L38: 0.0685 | M38: 0.04129051354 | N38: 0.04440955478 | O38: 0.02648099532 | P38: 0.02079518703 | Q38: 0.0394119487 | R38: 0.04225352113 | S38: 0.0306441526 | T38: 0.02250102277
H39: North Carolina | I39: 0.0685 | K39: NORTH DAKOTA | L39: 0.059 | M39: 0.0005919786888 | N39: 0.0005607267018 | O39: 0.0007989955485 | P39: 0.0007847240387 | Q39: 0.0003127932437 | R39: 0.0002387204583 | S39: 0.0007504690432 | T39: 0.00054547934
H40: North Dakota | I40: 0.059 | K40: OHIO | L40: 0.068 | M40: 0.03374278526 | N40: 0.03521363687 | O40: 0.03863714188 | P40: 0.0297541198 | Q40: 0.03284329058 | R40: 0.03342086417 | S40: 0.04627892433 | T40: 0.0331378699
H41: Ohio | I41: 0.068 | K41: OKLAHOMA | L41: 0.082 | M41: 0.007103744265 | N41: 0.00616799372 | O41: 0.003652551079 | P41: 0.002811927805 | Q41: 0.00594307163 | R41: 0.005968011459 | S41: 0.003752345216 | T41: 0.00327287604
H42: Oklahoma | I42: 0.082 | K42: OREGON | L42: 0 | M42: 0.02811898772 | N42: 0.0261298643 | O42: 0.02499714644 | P42: 0.02504577557 | Q42: 0.02126994057 | R42: 0.02029123896 | S42: 0.01901188243 | T42: 0.01990999591
H43: Oregon | I43: 0 | K43: PENNSYLVANIA | L43: 0.064 | M43: 0.04143850821 | N43: 0.05012896714 | O43: 0.06974089716 | P43: 0.08128433168 | Q43: 0.04785736628 | R43: 0.05108617809 | S43: 0.07467166979 | T43: 0.08304922951
H44: Pennsylvania | I44: 0.064 | K44: RHODE ISLAND | L44: 0.07 | M44: 0.001035962705 | N44: 0.0007850173825 | O44: 0.001655062208 | P44: 0.001438660738 | Q44: 0.001563966218 | R44: 0.001193602292 | S44: 0.001375859912 | T44: 0.001227328515
H45: Puerto Rico | I45: 0.055 | K45: SOUTH CAROLINA | L45: 0.0715 | M45: 0.01376350451 | N45: 0.01469103959 | O45: 0.006106608835 | P45: 0.007324091028 | Q45: 0.01345010948 | R45: 0.01456194796 | S45: 0.007629768605 | T45: 0.008045820265
H46: Rhode Island | I46: 0.07 | K46: SOUTH DAKOTA | L46: 0.055 | M46: 0.001627941394 | N46: 0.001794325446 | O46: 0.001198493323 | P46: 0.001242479728 | Q46: 0.001563966218 | R46: 0.001671043208 | S46: 0.001250781739 | T46: 0.0009545888449
H47: South Carolina | I47: 0.0715 | K47: TENNESSEE | L47: 0.0945 | M47: 0.009175669676 | N47: 0.0116631154 | O47: 0.0075333866 | P47: 0.008631964426 | Q47: 0.008758210823 | R47: 0.008355216042 | S47: 0.006754221388 | T47: 0.00763671076
H48: South Dakota | I48: 0.055 | K48: TEXAS | L48: 0.08 | M48: 0.08864880864 | N48: 0.08018391836 | O48: 0.0575847506 | P48: 0.05296887261 | Q48: 0.09540193932 | R48: 0.09142993555 | S48: 0.05590994371 | T48: 0.05386608482
H49: Tennessee | I49: 0.0945 | K49: UTAH | L49: 0.067 | M49: 0.005919786888 | N49: 0.004710104295 | O49: 0.001826275539 | P49: 0.001896416427 | Q49: 0.00344072568 | R49: 0.003819527333 | S49: 0.001375859912 | T49: 0.001772807855
H50: Texas | I50: 0.08 | K50: VERMONT | L50: 0.0605 | M50: 0.001479946722 | N50: 0.001233598744 | O50: 0.0004565688848 | P50: 0.0005231493591 | Q50: 0.000938379731 | R50: 0.0009548818334 | S50: 0.0001250781739 | T50: 0.000136369835
H51: Utah | I51: 0.067 | K51: VIRGINIA | L51: 0.05 | M51: 0.01731537665 | N51: 0.01884041718 | O51: 0.02254308869 | P51: 0.0243264452 | Q51: 0.01970597435 | R51: 0.02124612079 | S51: 0.02301438399 | T51: 0.02577389881
H52: Vermont | I52: 0.0605 | K52: WASHINGTON | L52: 0.088 | M52: 0.03315080657 | N52: 0.02926993383 | O52: 0.04109119963 | P52: 0.04087104368 | Q52: 0.02596183922 | R52: 0.02220100263 | S52: 0.02701688555 | T52: 0.02904677485
H53: Virginia | I53: 0.05 | K53: WEST VIRGINIA | L53: 0.0605 | M53: 0.00606778156 | N53: 0.006392284401 | O53: 0.003880835521 | P53: 0.004839131572 | Q53: 0.005630278386 | R53: 0.005490570542 | S53: 0.003752345216 | T53: 0.003954725215
H54: Virgin Islands | I54: 0.04 | K54: WISCONSIN | L54: 0.0545 | M54: 0.009175669676 | N54: 0.01099024336 | O54: 0.007133888825 | P54: 0.00588543029 | Q54: 0.01126055677 | R54: 0.01169730246 | S54: 0.006754221388 | T54: 0.00600027274
H55: Washington | I55: 0.088 | K55: WYOMING | L55: 0.0515 | M55: 0.001479946722 | N55: 0.002355052148 | O55: 0.001084351101 | P55: 0.001046298718 | Q55: 0.001876759462 | R55: 0.002148484125 | S55: 0.0007504690432 | T55: 0.000681849175
H56: West Virginia | I56: 0.0605 | M56: 1 | N56: 1 | O56: 1 | P56: 1 | Q56: 1 | R56: 1 | S56: 1 | T56: 1
H57: Wisconsin | I57: 0.0545 | L57: Weighted Averages | M57: 0.0708473435 | N57: 0.07030178311 | O57: 0.06889707225 | P57: 0.06832176955 | Q57: 0.07100781983 | R57: 0.07066137503 | S57: 0.06862776735 | T57: 0.06818069003
H58: Wyoming | I58: 0.0515
H59: Source:
H60: Sales Tax Clearinghouse, Inc. State sales tax rates along with combined average city and county rates. (Last accessed July 10, 2012.)

Sheet Model Info
B1: Model Info
B3: CSL Designations | I3: Baseline and Incremental MSP (2011$)
D4: 0 | E4: =D4+1 -> 1 | F4: =E4+1 -> 2 | G4: =F4+1 -> 3 | J4: Level | K4: 0 | L4: =K4+1 -> 1 | M4: =L4+1 -> 2 | N4: =M4+1 -> 3
B5: 1 | C5: =INDEX(list_PC, B25) -> Cable Base | D5: Baseline | E5: More Efficient Model | F5: Improved PSU | G5: Power Management + Max Tech PSU | I5: 1 | J5: =INDEX(list_PC, I5) -> Cable Base | K5: =OFFSET('Engineering Data'!E$8, 12*($I5-1),) -> 106.2352 | L5: =OFFSET('Engineering Data'!F$9, 12*($I5-1),) -> 5.226 | M5: =OFFSET('Engineering Data'!G$9, 12*($I5-1),) -> 6.2846 | N5: =OFFSET('Engineering Data'!H$9, 12*($I5-1),) -> 10.0178467
B6: 2 | C6: Cable Video Client | D6: Baseline | E6: Scaled from Cable Base | F6: Improved PSU + Moca 2.0 | G6: Power Management + Max Tech PSU | I6: 2 | J6: Cable Video Client | K6: =OFFSET('Engineering Data'!E$8, 12*($I6-1),) -> 114.0072 | L6: =OFFSET('Engineering Data'!F$9, 12*($I6-1),) -> 5.226 | M6: =OFFSET('Engineering Data'!G$9, 12*($I6-1),) -> 11.9126 | N6: =OFFSET('Engineering Data'!H$9, 12*($I6-1),) -> 13.24997208
B7: 3 | C7: Cable Video Server | D7: Baseline | E7: More efficient PSU + Full-band Tuner | F7: MocA 2.0 + More efficient processor | G7: Power Management + Max Tech PSU | I7: 3 | J7: Cable Video Server | K7: =OFFSET('Engineering Data'!E$8, 12*($I7-1),) -> 213.1538 | L7: =OFFSET('Engineering Data'!F$9, 12*($I7-1),) -> 7.3298 | M7: =OFFSET('Engineering Data'!G$9, 12*($I7-1),) -> 20.3144 | N7: =OFFSET('Engineering Data'!H$9, 12*($I7-1),) -> 22.4550886
B8: 4 | C8: Cable with DVR | D8: Baseline | E8: Mid Range HDD + Improved PSU | F8: High efficient HDD + More efficient processor | G8: Power Management + Max Tech PSU | I8: 4 | J8: Cable with DVR | K8: =OFFSET('Engineering Data'!E$8, 12*($I8-1),) -> 159.9692 | L8: =OFFSET('Engineering Data'!F$9, 12*($I8-1),) -> 13.3598 | M8: =OFFSET('Engineering Data'!G$9, 12*($I8-1),) -> 36.783 | N8: =OFFSET('Engineering Data'!H$9, 12*($I8-1),) -> 39.08918059
B9: 5 | C9: Cable with DVR & Video Server | D9: Baseline | E9: Mid Range HDD + MoCA 2.0 + PSU + Full Band | F9: High efficient HDD + More efficient processor | G9: Power Management + Max Tech PSU | I9: 5 | J9: Cable with DVR & Video Server | K9: =OFFSET('Engineering Data'!E$8, 12*($I9-1),) -> 279.4838 | L9: =OFFSET('Engineering Data'!F$9, 12*($I9-1),) -> 18.9878 | M9: =OFFSET('Engineering Data'!G$9, 12*($I9-1),) -> 42.411 | N9: =OFFSET('Engineering Data'!H$9, 12*($I9-1),) -> 44.63859134
B10: 6 | C10: Satellite Base | D10: Baseline | E10: Improved Media Processor | F10: Best in Market + PSU | G10: Power Management + Max Tech PSU | I10: 6 | J10: Satellite Base | K10: =OFFSET('Engineering Data'!E$8, 12*($I10-1),) -> 65.0168 | L10: =OFFSET('Engineering Data'!F$9, 12*($I10-1),) -> 5.159 | M10: =OFFSET('Engineering Data'!G$9, 12*($I10-1),) -> 9.0048 | N10: =OFFSET('Engineering Data'!H$9, 12*($I10-1),) -> 10.25233566
B11: 7 | C11: Satellite Video Client | D11: Baseline | E11: Media Processor + PSU | F11: MoCA 2.0 | G11: Power Management + Max Tech PSU | I11: 7 | J11: Satellite Video Client | K11: =OFFSET('Engineering Data'!E$8, 12*($I11-1),) -> 72.7888 | L11: =OFFSET('Engineering Data'!F$9, 12*($I11-1),) -> 5.159 | M11: =OFFSET('Engineering Data'!G$9, 12*($I11-1),) -> 10.787 | N11: =OFFSET('Engineering Data'!H$9, 12*($I11-1),) -> 11.51379836
B12: 8 | C12: Satellite Video Server | D12: Baseline | E12: Full Band Tuner | F12: Media Processor + MoCA 2.0 + PSU | G12: Power Management + Max Tech PSU | I12: 8 | J12: Satellite Video Server | K12: =OFFSET('Engineering Data'!E$8, 12*($I12-1),) -> 119.3136 | L12: =OFFSET('Engineering Data'!F$9, 12*($I12-1),) -> 5.2126 | M12: =OFFSET('Engineering Data'!G$9, 12*($I12-1),) -> 17.0582 | N12: =OFFSET('Engineering Data'!H$9, 12*($I12-1),) -> 18.90450142
B13: 9 | C13: Satellite with DVR | D13: Baseline | E13: Full Band Tuner + Mid Range HDD + PSU | F13: Media Processor + High End HDD | G13: Power Management + Max Tech PSU | I13: 9 | J13: Satellite with DVR | K13: =OFFSET('Engineering Data'!E$8, 12*($I13-1),) -> 131.3468 | L13: =OFFSET('Engineering Data'!F$9, 12*($I13-1),) -> 13.3598 | M13: =OFFSET('Engineering Data'!G$9, 12*($I13-1),) -> 33.5268 | N13: =OFFSET('Engineering Data'!H$9, 12*($I13-1),) -> 35.41218339
B14: 10 | C14: Satellite with DVR & Video Server | D14: Baseline | E14: Full Band Tuner + Mid Range HDD + MoCA + PSU | F14: High End HDD + Media Processor | G14: Power Management + Max Tech PSU | I14: 10 | J14: Satellite with DVR & Video Server | K14: =OFFSET('Engineering Data'!E$8, 12*($I14-1),) -> 185.6436 | L14: =OFFSET('Engineering Data'!F$9, 12*($I14-1),) -> 18.9878 | M14: =OFFSET('Engineering Data'!G$9, 12*($I14-1),) -> 39.1548 | N14: =OFFSET('Engineering Data'!H$9, 12*($I14-1),) -> 41.01921191
B15: 11 | C15: IP Base | D15: Baseline | E15: PSU | F15: Media Processor | G15: Power Management + Max Tech PSU | I15: 11 | J15: IP Base | K15: =OFFSET('Engineering Data'!E$8, 12*($I15-1),) -> 62.377 | L15: =OFFSET('Engineering Data'!F$9, 12*($I15-1),) -> 1.0586 | M15: =OFFSET('Engineering Data'!G$9, 12*($I15-1),) -> 5.7486 | N15: =OFFSET('Engineering Data'!H$9, 12*($I15-1),) -> 8.051724644
B16: 12 | C16: IP Video Client | D16: Baseline | E16: PSU | F16: Media Processing | G16: Power Management + Max Tech PSU | I16: 12 | J16: IP Video Client | K16: =OFFSET('Engineering Data'!E$8, 12*($I16-1),) -> 69.412 | L16: =OFFSET('Engineering Data'!F$9, 12*($I16-1),) -> 1.0586 | M16: =OFFSET('Engineering Data'!G$9, 12*($I16-1),) -> 5.7486 | N16: =OFFSET('Engineering Data'!H$9, 12*($I16-1),) -> 7.687254032
B17: 13 | C17: IP Video Server | D17: Baseline | E17: PSU | F17: Media Processor | G17: Power Management + Max Tech PSU | I17: 13 | J17: IP Video Server | K17: =OFFSET('Engineering Data'!E$8, 12*($I17-1),) -> 69.412 | L17: =OFFSET('Engineering Data'!F$9, 12*($I17-1),) -> 1.0586 | M17: =OFFSET('Engineering Data'!G$9, 12*($I17-1),) -> 5.7486 | N17: =OFFSET('Engineering Data'!H$9, 12*($I17-1),) -> 7.697341792
B18: 14 | C18: IP with DVR | D18: Baseline | E18: Mid-Range HDD + PSU | F18: High End HDD + Media Processor | G18: Power Management + Max Tech PSU | I18: 14 | J18: IP with DVR | K18: =OFFSET('Engineering Data'!E$8, 12*($I18-1),) -> 107.5752 | L18: =OFFSET('Engineering Data'!F$9, 12*($I18-1),) -> 8.1472 | M18: =OFFSET('Engineering Data'!G$9, 12*($I18-1),) -> 28.9038 | N18: =OFFSET('Engineering Data'!H$9, 12*($I18-1),) -> 32.27948096
B19: 15 | C19: IP with DVR & Video Server | D19: Baseline | E19: Mid-Range HDD + PSU | F19: Media Processor + High End HDD | G19: Power Management + Max Tech PSU | I19: 15 | J19: IP with DVR & Video Server | K19: =OFFSET('Engineering Data'!E$8, 12*($I19-1),) -> 128.6936 | L19: =OFFSET('Engineering Data'!F$9, 12*($I19-1),) -> 8.1472 | M19: =OFFSET('Engineering Data'!G$9, 12*($I19-1),) -> 28.9038 | N19: =OFFSET('Engineering Data'!H$9, 12*($I19-1),) -> 33.18771803
B20: 16 | C20: OTT | D20: Baseline | E20: Mid-Range OTT Box | F20: Max Tech | I20: 16 | J20: OTT | K20: =OFFSET('Engineering Data'!E$8, 12*($I20-1),) -> 77.2778 | L20: =OFFSET('Engineering Data'!F$9, 12*($I20-1),) -> -11.2426 | M20: =OFFSET('Engineering Data'!G$9, 12*($I20-1),) -> -7.1154
B21: 17 | C21: Thin-client | D21: Baseline | E21: Incremental Design Improvements | F21: Best-in-Market | G21: Max Tech | I21: 17 | J21: Thin-client | K21: =OFFSET('Engineering Data'!E$8, 12*($I21-1),) -> 54.1896 | L21: =OFFSET('Engineering Data'!F$9, 12*($I21-1),) -> 6.6866 | M21: =OFFSET('Engineering Data'!G$9, 12*($I21-1),) -> 9.8356 | N21: =OFFSET('Engineering Data'!H$9, 12*($I21-1),) -> 10.4252
B23: On-Mode Power (W) | I23: Sleep Power (W)
C24: Level | D24: 0 | E24: =D24+1 -> 1 | F24: =E24+1 -> 2 | G24: =F24+1 -> 3 | J24: Level | K24: 0 | L24: =K24+1 -> 1 | M24: =L24+1 -> 2 | N24: =M24+1 -> 3
B25: 1 | C25: =INDEX(list_PC, B25) -> Cable Base | D25: =OFFSET('Engineering Data'!E$10, 12*($B25-1),) -> 19.71 | E25: =OFFSET('Engineering Data'!F$10, 12*($B25-1),) -> 12.5 | F25: =OFFSET('Engineering Data'!G$10, 12*($B25-1),) -> 11.12412178 | G25: =OFFSET('Engineering Data'!H$10, 12*($B25-1),) -> 10.85714286 | I25: 1 | J25: =INDEX(list_PC, I25) -> Cable Base | K25: =OFFSET('Engineering Data'!E$11, 12*($I25-1),) -> 18.71 | L25: =OFFSET('Engineering Data'!F$11, 12*($I25-1),) -> 12.11 | M25: =OFFSET('Engineering Data'!G$11, 12*($I25-1),) -> 10.77704918 | N25: =OFFSET('Engineering Data'!H$11, 12*($I25-1),) -> 7.561387024
B26: 2 | C26: Cable Video Client | D26: =OFFSET('Engineering Data'!E$10, 12*($B26-1),) -> 22.34 | E26: =OFFSET('Engineering Data'!F$10, 12*($B26-1),) -> 15.13157895 | F26: =OFFSET('Engineering Data'!G$10, 12*($B26-1),) -> 11.70960187 | G26: =OFFSET('Engineering Data'!H$10, 12*($B26-1),) -> 11.42857143 | I26: 2 | J26: Cable Video Client | K26: =OFFSET('Engineering Data'!E$11, 12*($I26-1),) -> 21.33 | L26: =OFFSET('Engineering Data'!F$11, 12*($I26-1),) -> 14.74157895 | M26: =OFFSET('Engineering Data'!G$11, 12*($I26-1),) -> 11.36252927 | N26: =OFFSET('Engineering Data'!H$11, 12*($I26-1),) -> 8.132815596
B27: 3 | C27: Cable Video Server | D27: =OFFSET('Engineering Data'!E$10, 12*($B27-1),) -> 24.83117647 | E27: =OFFSET('Engineering Data'!F$10, 12*($B27-1),) -> 20.87102273 | F27: =OFFSET('Engineering Data'!G$10, 12*($B27-1),) -> 16.97329545 | G27: =OFFSET('Engineering Data'!H$10, 12*($B27-1),) -> 16.41373626 | I27: 3 | J27: Cable Video Server | K27: =OFFSET('Engineering Data'!E$11, 12*($I27-1),) -> 24.44117647 | L27: =OFFSET('Engineering Data'!F$11, 12*($I27-1),) -> 20.49431818 | M27: =OFFSET('Engineering Data'!G$11, 12*($I27-1),) -> 16.59659091 | N27: =OFFSET('Engineering Data'!H$11, 12*($I27-1),) -> 10.65158958
B28: 4 | C28: Cable with DVR | D28: =OFFSET('Engineering Data'!E$10, 12*($B28-1),) -> 27.71 | E28: =OFFSET('Engineering Data'!F$10, 12*($B28-1),) -> 20.75397727 | F28: =OFFSET('Engineering Data'!G$10, 12*($B28-1),) -> 16.45852273 | G28: =OFFSET('Engineering Data'!H$10, 12*($B28-1),) -> 15.91593407 | I28: 4 | J28: Cable with DVR | K28: =OFFSET('Engineering Data'!E$11, 12*($I28-1),) -> 27.71 | L28: =OFFSET('Engineering Data'!F$11, 12*($I28-1),) -> 20.75397727 | M28: =OFFSET('Engineering Data'!G$11, 12*($I28-1),) -> 16.45852273 | N28: =OFFSET('Engineering Data'!H$11, 12*($I28-1),) -> 10.35597862
B29: 5 | C29: Cable with DVR & Video Server | D29: =OFFSET('Engineering Data'!E$10, 12*($B29-1),) -> 31.89 | E29: =OFFSET('Engineering Data'!F$10, 12*($B29-1),) -> 23.08693182 | F29: =OFFSET('Engineering Data'!G$10, 12*($B29-1),) -> 18.79147727 | G29: =OFFSET('Engineering Data'!H$10, 12*($B29-1),) -> 18.17197802 | I29: 5 | J29: Cable with DVR & Video Server | K29: =OFFSET('Engineering Data'!E$11, 12*($I29-1),) -> 31.5 | L29: =OFFSET('Engineering Data'!F$11, 12*($I29-1),) -> 22.71022727 | M29: =OFFSET('Engineering Data'!G$11, 12*($I29-1),) -> 18.41477273 | N29: =OFFSET('Engineering Data'!H$11, 12*($I29-1),) -> 10.8713698
B30: 6 | C30: Satellite Base | D30: =OFFSET('Engineering Data'!E$10, 12*($B30-1),) -> 14.5 | E30: =OFFSET('Engineering Data'!F$10, 12*($B30-1),) -> 10.97189696 | F30: =OFFSET('Engineering Data'!G$10, 12*($B30-1),) -> 7.4 | G30: =OFFSET('Engineering Data'!H$10, 12*($B30-1),) -> 7.2224 | I30: 6 | J30: Satellite Base | K30: =OFFSET('Engineering Data'!E$11, 12*($I30-1),) -> 13.5 | L30: =OFFSET('Engineering Data'!F$11, 12*($I30-1),) -> 10.08196721 | M30: =OFFSET('Engineering Data'!G$11, 12*($I30-1),) -> 7 | N30: =OFFSET('Engineering Data'!H$11, 12*($I30-1),) -> 4.639443117
B31: 7 | C31: Satellite Video Client | D31: =OFFSET('Engineering Data'!E$10, 12*($B31-1),) -> 15.6 | E31: =OFFSET('Engineering Data'!F$10, 12*($B31-1),) -> 11.95081967 | F31: =OFFSET('Engineering Data'!G$10, 12*($B31-1),) -> 10.19437939 | G31: =OFFSET('Engineering Data'!H$10, 12*($B31-1),) -> 9.949714286 | I31: 7 | J31: Satellite Video Client | K31: =OFFSET('Engineering Data'!E$11, 12*($I31-1),) -> 13.8 | L31: =OFFSET('Engineering Data'!F$11, 12*($I31-1),) -> 10.34894614 | M31: =OFFSET('Engineering Data'!G$11, 12*($I31-1),) -> 8.592505855 | N31: =OFFSET('Engineering Data'!H$11, 12*($I31-1),) -> 5.858722008
B32: 8 | C32: Satellite Video Server | D32: =OFFSET('Engineering Data'!E$10, 12*($B32-1),) -> 21.64117647 | E32: =OFFSET('Engineering Data'!F$10, 12*($B32-1),) -> 18.41764706 | F32: =OFFSET('Engineering Data'!G$10, 12*($B32-1),) -> 14.21022727 | G32: =OFFSET('Engineering Data'!H$10, 12*($B32-1),) -> 13.74175824 | I32: 8 | J32: Satellite Video Server | K32: =OFFSET('Engineering Data'!E$11, 12*($I32-1),) -> 20.74117647 | L32: =OFFSET('Engineering Data'!F$11, 12*($I32-1),) -> 17.51764706 | M32: =OFFSET('Engineering Data'!G$11, 12*($I32-1),) -> 13.34090909 | N32: =OFFSET('Engineering Data'!H$11, 12*($I32-1),) -> 8.264362578
B33: 9 | C33: Satellite with DVR | D33: =OFFSET('Engineering Data'!E$10, 12*($B33-1),) -> 25.2 | E33: =OFFSET('Engineering Data'!F$10, 12*($B33-1),) -> 18.32954545 | F33: =OFFSET('Engineering Data'!G$10, 12*($B33-1),) -> 14.35227273 | G33: =OFFSET('Engineering Data'!H$10, 12*($B33-1),) -> 13.87912088 | I33: 9 | J33: Satellite with DVR | K33: =OFFSET('Engineering Data'!E$11, 12*($I33-1),) -> 24.3 | L33: =OFFSET('Engineering Data'!F$11, 12*($I33-1),) -> 17.46022727 | M33: =OFFSET('Engineering Data'!G$11, 12*($I33-1),) -> 13.48295455 | N33: =OFFSET('Engineering Data'!H$11, 12*($I33-1),) -> 8.166798983
B34: 10 | C34: Satellite with DVR & Video Server | D34: =OFFSET('Engineering Data'!E$10, 12*($B34-1),) -> 28.7 | E34: =OFFSET('Engineering Data'!F$10, 12*($B34-1),) -> 20.00568182 | F34: =OFFSET('Engineering Data'!G$10, 12*($B34-1),) -> 16.02840909 | G34: =OFFSET('Engineering Data'!H$10, 12*($B34-1),) -> 15.5 | I34: 10 | J34: Satellite with DVR & Video Server | K34: =OFFSET('Engineering Data'!E$11, 12*($I34-1),) -> 27.8 | L34: =OFFSET('Engineering Data'!F$11, 12*($I34-1),) -> 19.13636364 | M34: =OFFSET('Engineering Data'!G$11, 12*($I34-1),) -> 15.15909091 | N34: =OFFSET('Engineering Data'!H$11, 12*($I34-1),) -> 8.486329938
B35: 11 | C35: IP Base | D35: =OFFSET('Engineering Data'!E$10, 12*($B35-1),) -> 12.42 | E35: =OFFSET('Engineering Data'!F$10, 12*($B35-1),) -> 11.0529274 | F35: =OFFSET('Engineering Data'!G$10, 12*($B35-1),) -> 8.371428571 | G35: =OFFSET('Engineering Data'!H$10, 12*($B35-1),) -> 8.170514286 | I35: 11 | J35: IP Base | K35: =OFFSET('Engineering Data'!E$11, 12*($I35-1),) -> 11.95 | L35: =OFFSET('Engineering Data'!F$11, 12*($I35-1),) -> 10.63466042 | M35: =OFFSET('Engineering Data'!G$11, 12*($I35-1),) -> 7.953161593 | N35: =OFFSET('Engineering Data'!H$11, 12*($I35-1),) -> 6.332365224
B36: 12 | C36: IP Video Client | D36: =OFFSET('Engineering Data'!E$10, 12*($B36-1),) -> 13.32 | E36: =OFFSET('Engineering Data'!F$10, 12*($B36-1),) -> 11.85386417 | F36: =OFFSET('Engineering Data'!G$10, 12*($B36-1),) -> 9.17236534 | G36: =OFFSET('Engineering Data'!H$10, 12*($B36-1),) -> 8.952228571 | I36: 12 | J36: IP Video Client | K36: =OFFSET('Engineering Data'!E$11, 12*($I36-1),) -> 12.85 | L36: =OFFSET('Engineering Data'!F$11, 12*($I36-1),) -> 11.43559719 | M36: =OFFSET('Engineering Data'!G$11, 12*($I36-1),) -> 8.754098361 | N36: =OFFSET('Engineering Data'!H$11, 12*($I36-1),) -> 6.704646944
B37: 13 | C37: IP Video Server | D37: =OFFSET('Engineering Data'!E$10, 12*($B37-1),) -> 13.69 | E37: =OFFSET('Engineering Data'!F$10, 12*($B37-1),) -> 12.18313817 | F37: =OFFSET('Engineering Data'!G$10, 12*($B37-1),) -> 9.501639344 | G37: =OFFSET('Engineering Data'!H$10, 12*($B37-1),) -> 9.2736 | I37: 13 | J37: IP Video Server | K37: =OFFSET('Engineering Data'!E$11, 12*($I37-1),) -> 12.49 | L37: =OFFSET('Engineering Data'!F$11, 12*($I37-1),) -> 11.11522248 | M37: =OFFSET('Engineering Data'!G$11, 12*($I37-1),) -> 8.433723653 | N37: =OFFSET('Engineering Data'!H$11, 12*($I37-1),) -> 6.39341699
B38: 14 | C38: IP with DVR | D38: =OFFSET('Engineering Data'!E$10, 12*($B38-1),) -> 18.73 | E38: =OFFSET('Engineering Data'!F$10, 12*($B38-1),) -> 15.19375 | F38: =OFFSET('Engineering Data'!G$10, 12*($B38-1),) -> 10.48920455 | G38: =OFFSET('Engineering Data'!H$10, 12*($B38-1),) -> 10.14340659 | I38: 14 | J38: IP with DVR | K38: =OFFSET('Engineering Data'!E$11, 12*($I38-1),) -> 13.7 | L38: =OFFSET('Engineering Data'!F$11, 12*($I38-1),) -> 12.93409091 | M38: =OFFSET('Engineering Data'!G$11, 12*($I38-1),) -> 9.755681818 | N38: =OFFSET('Engineering Data'!H$11, 12*($I38-1),) -> 7.666856996
B39: 15 | C39: IP with DVR & Video Server | D39: =OFFSET('Engineering Data'!E$10, 12*($B39-1),) -> 19.34 | E39: =OFFSET('Engineering Data'!F$10, 12*($B39-1),) -> 15.78295455 | F39: =OFFSET('Engineering Data'!G$10, 12*($B39-1),) -> 11.07840909 | G39: =OFFSET('Engineering Data'!H$10, 12*($B39-1),) -> 10.71318681 | I39: 15 | J39: IP with DVR & Video Server | K39: =OFFSET('Engineering Data'!E$11, 12*($I39-1),) -> 14.31 | L39: =OFFSET('Engineering Data'!F$11, 12*($I39-1),) -> 13.52329545 | M39: =OFFSET('Engineering Data'!G$11, 12*($I39-1),) -> 10.34488636 | N39: =OFFSET('Engineering Data'!H$11, 12*($I39-1),) -> 8.236637216
B40: 16 | C40: OTT | D40: =OFFSET('Engineering Data'!E$10, 12*($B40-1),) -> 13.48 | E40: =OFFSET('Engineering Data'!F$10, 12*($B40-1),) -> 7.04 | F40: =OFFSET('Engineering Data'!G$10, 12*($B40-1),) -> 1.87 | I40: 16 | J40: OTT | K40: =OFFSET('Engineering Data'!E$11, 12*($I40-1),) -> 0.52 | L40: =OFFSET('Engineering Data'!F$11, 12*($I40-1),) -> 0.18 | M40: =OFFSET('Engineering Data'!G$11, 12*($I40-1),) -> 0.18
B41: 17 | C41: Thin-client | D41: =OFFSET('Engineering Data'!E$10, 12*($B41-1),) -> 9.12 | E41: =OFFSET('Engineering Data'!F$10, 12*($B41-1),) -> 10.45807963 | F41: =OFFSET('Engineering Data'!G$10, 12*($B41-1),) -> 5.9 | G41: =OFFSET('Engineering Data'!H$10, 12*($B41-1),) -> 5.7584 | I41: 17 | J41: Thin-client | K41: =OFFSET('Engineering Data'!E$11, 12*($I41-1),) -> 9.12 | L41: =OFFSET('Engineering Data'!F$11, 12*($I41-1),) -> 6.35971897 | M41: =OFFSET('Engineering Data'!G$11, 12*($I41-1),) -> 5.18 | N41: =OFFSET('Engineering Data'!H$11, 12*($I41-1),) -> 4.583194819
B43: APD Power (W) | I43: Multifunction Power (W)
C44: Level | D44: 0 | E44: =D44+1 -> 1 | F44: =E44+1 -> 2 | G44: =F44+1 -> 3 | J44: Level | K44: 0 | L44: =K44+1 -> 1 | M44: =L44+1 -> 2 | N44: =M44+1 -> 3
B45: 1 | C45: =INDEX(list_PC, B45) -> Cable Base | D45: =IF(OFFSET('Engineering Data'!E$12, 12*($B45-1),) = "N/A", 0, OFFSET('Engineering Data'!E$12, 12*($B45-1),)) -> 0 | E45: =IF(OFFSET('Engineering Data'!F$12, 12*($B45-1),) = "N/A", 0, OFFSET('Engineering Data'!F$12, 12*($B45-1),)) -> 12.11 | F45: =IF(OFFSET('Engineering Data'!G$12, 12*($B45-1),) = "N/A", 0, OFFSET('Engineering Data'!G$12, 12*($B45-1),)) -> 10.77704918 | G45: =IF(OFFSET('Engineering Data'!H$12, 12*($B45-1),) = "N/A", 0, OFFSET('Engineering Data'!H$12, 12*($B45-1),)) -> 7.561387024 | I45: 1 | J45: =INDEX(list_PC, I45) -> Cable Base | K45: =IF(OFFSET('Engineering Data'!E$13, 12*($I45-1),) = "N/A", 0, OFFSET('Engineering Data'!E$13, 12*($I45-1),)) -> 0 | L45: =IF(OFFSET('Engineering Data'!F$13, 12*($I45-1),) = "N/A", 0, OFFSET('Engineering Data'!F$13, 12*($I45-1),)) -> 0 | M45: =IF(OFFSET('Engineering Data'!G$13, 12*($I45-1),) = "N/A", 0, OFFSET('Engineering Data'!G$13, 12*($I45-1),)) -> 0 | N45: =IF(OFFSET('Engineering Data'!H$13, 12*($I45-1),) = "N/A", 0, OFFSET('Engineering Data'!H$13, 12*($I45-1),)) -> 0
B46: 2 | C46: Cable Video Client | D46: =IF(OFFSET('Engineering Data'!E$12, 12*($B46-1),) = "N/A", 0, OFFSET('Engineering Data'!E$12, 12*($B46-1),)) -> 0 | E46: =IF(OFFSET('Engineering Data'!F$12, 12*($B46-1),) = "N/A", 0, OFFSET('Engineering Data'!F$12, 12*($B46-1),)) -> 14.74157895 | F46: =IF(OFFSET('Engineering Data'!G$12, 12*($B46-1),) = "N/A", 0, OFFSET('Engineering Data'!G$12, 12*($B46-1),)) -> 11.36252927 | G46: =IF(OFFSET('Engineering Data'!H$12, 12*($B46-1),) = "N/A", 0, OFFSET('Engineering Data'!H$12, 12*($B46-1),)) -> 8.132815596 | I46: 2 | J46: Cable Video Client | K46: =IF(OFFSET('Engineering Data'!E$13, 12*($I46-1),) = "N/A", 0, OFFSET('Engineering Data'!E$13, 12*($I46-1),)) -> 0 | L46: =IF(OFFSET('Engineering Data'!F$13, 12*($I46-1),) = "N/A", 0, OFFSET('Engineering Data'!F$13, 12*($I46-1),)) -> 0 | M46: =IF(OFFSET('Engineering Data'!G$13, 12*($I46-1),) = "N/A", 0, OFFSET('Engineering Data'!G$13, 12*($I46-1),)) -> 0 | N46: =IF(OFFSET('Engineering Data'!H$13, 12*($I46-1),) = "N/A", 0, OFFSET('Engineering Data'!H$13, 12*($I46-1),)) -> 0
B47: 3 | C47: Cable Video Server | D47: =IF(OFFSET('Engineering Data'!E$12, 12*($B47-1),) = "N/A", 0, OFFSET('Engineering Data'!E$12, 12*($B47-1),)) -> 0 | E47: =IF(OFFSET('Engineering Data'!F$12, 12*($B47-1),) = "N/A", 0, OFFSET('Engineering Data'!F$12, 12*($B47-1),)) -> 20.49431818 | F47: =IF(OFFSET('Engineering Data'!G$12, 12*($B47-1),) = "N/A", 0, OFFSET('Engineering Data'!G$12, 12*($B47-1),)) -> 16.59659091 | G47: =IF(OFFSET('Engineering Data'!H$12, 12*($B47-1),) = "N/A", 0, OFFSET('Engineering Data'!H$12, 12*($B47-1),)) -> 10.65158958 | I47: 3 | J47: Cable Video Server | K47: =IF(OFFSET('Engineering Data'!E$13, 12*($I47-1),) = "N/A", 0, OFFSET('Engineering Data'!E$13, 12*($I47-1),)) -> 24.83117647 | L47: =IF(OFFSET('Engineering Data'!F$13, 12*($I47-1),) = "N/A", 0, OFFSET('Engineering Data'!F$13, 12*($I47-1),)) -> 20.87102273 | M47: =IF(OFFSET('Engineering Data'!G$13, 12*($I47-1),) = "N/A", 0, OFFSET('Engineering Data'!G$13, 12*($I47-1),)) -> 20.95056818 | N47: =IF(OFFSET('Engineering Data'!H$13, 12*($I47-1),) = "N/A", 0, OFFSET('Engineering Data'!H$13, 12*($I47-1),)) -> 20.25989011
B48: 4 | C48: Cable with DVR | D48: =IF(OFFSET('Engineering Data'!E$12, 12*($B48-1),) = "N/A", 0, OFFSET('Engineering Data'!E$12, 12*($B48-1),)) -> 0 | E48: =IF(OFFSET('Engineering Data'!F$12, 12*($B48-1),) = "N/A", 0, OFFSET('Engineering Data'!F$12, 12*($B48-1),)) -> 20.75397727 | F48: =IF(OFFSET('Engineering Data'!G$12, 12*($B48-1),) = "N/A", 0, OFFSET('Engineering Data'!G$12, 12*($B48-1),)) -> 16.45852273 | G48: =IF(OFFSET('Engineering Data'!H$12, 12*($B48-1),) = "N/A", 0, OFFSET('Engineering Data'!H$12, 12*($B48-1),)) -> 10.35597862 | I48: 4 | J48: Cable with DVR | K48: =IF(OFFSET('Engineering Data'!E$13, 12*($I48-1),) = "N/A", 0, OFFSET('Engineering Data'!E$13, 12*($I48-1),)) -> 27.71 | L48: =IF(OFFSET('Engineering Data'!F$13, 12*($I48-1),) = "N/A", 0, OFFSET('Engineering Data'!F$13, 12*($I48-1),)) -> 20.75397727 | M48: =IF(OFFSET('Engineering Data'!G$13, 12*($I48-1),) = "N/A", 0, OFFSET('Engineering Data'!G$13, 12*($I48-1),)) -> 16.45852273 | N48: =IF(OFFSET('Engineering Data'!H$13, 12*($I48-1),) = "N/A", 0, OFFSET('Engineering Data'!H$13, 12*($I48-1),)) -> 15.91593407
B49: 5 | C49: Cable with DVR & Video Server | D49: =IF(OFFSET('Engineering Data'!E$12, 12*($B49-1),) = "N/A", 0, OFFSET('Engineering Data'!E$12, 12*($B49-1),)) -> 0 | E49: =IF(OFFSET('Engineering Data'!F$12, 12*($B49-1),) = "N/A", 0, OFFSET('Engineering Data'!F$12, 12*($B49-1),)) -> 22.71022727 | F49: =IF(OFFSET('Engineering Data'!G$12, 12*($B49-1),) = "N/A", 0, OFFSET('Engineering Data'!G$12, 12*($B49-1),)) -> 18.41477273 | G49: =IF(OFFSET('Engineering Data'!H$12, 12*($B49-1),) = "N/A", 0, OFFSET('Engineering Data'!H$12, 12*($B49-1),)) -> 10.8713698 | I49: 5 | J49: Cable with DVR & Video Server | K49: =IF(OFFSET('Engineering Data'!E$13, 12*($I49-1),) = "N/A", 0, OFFSET('Engineering Data'!E$13, 12*($I49-1),)) -> 31.89 | L49: =IF(OFFSET('Engineering Data'!F$13, 12*($I49-1),) = "N/A", 0, OFFSET('Engineering Data'!F$13, 12*($I49-1),)) -> 27.06420455 | M49: =IF(OFFSET('Engineering Data'!G$13, 12*($I49-1),) = "N/A", 0, OFFSET('Engineering Data'!G$13, 12*($I49-1),)) -> 22.76875 | N49: =IF(OFFSET('Engineering Data'!H$13, 12*($I49-1),) = "N/A", 0, OFFSET('Engineering Data'!H$13, 12*($I49-1),)) -> 22.01813187
B50: 6 | C50: Satellite Base | D50: =IF(OFFSET('Engineering Data'!E$12, 12*($B50-1),) = "N/A", 0, OFFSET('Engineering Data'!E$12, 12*($B50-1),)) -> 0 | E50: =IF(OFFSET('Engineering Data'!F$12, 12*($B50-1),) = "N/A", 0, OFFSET('Engineering Data'!F$12, 12*($B50-1),)) -> 10.08196721 | F50: =IF(OFFSET('Engineering Data'!G$12, 12*($B50-1),) = "N/A", 0, OFFSET('Engineering Data'!G$12, 12*($B50-1),)) -> 7 | G50: =IF(OFFSET('Engineering Data'!H$12, 12*($B50-1),) = "N/A", 0, OFFSET('Engineering Data'!H$12, 12*($B50-1),)) -> 4.639443117 | I50: 6 | J50: Satellite Base | K50: =IF(OFFSET('Engineering Data'!E$13, 12*($I50-1),) = "N/A", 0, OFFSET('Engineering Data'!E$13, 12*($I50-1),)) -> 0 | L50: =IF(OFFSET('Engineering Data'!F$13, 12*($I50-1),) = "N/A", 0, OFFSET('Engineering Data'!F$13, 12*($I50-1),)) -> 0 | M50: =IF(OFFSET('Engineering Data'!G$13, 12*($I50-1),) = "N/A", 0, OFFSET('Engineering Data'!G$13, 12*($I50-1),)) -> 0 | N50: =IF(OFFSET('Engineering Data'!H$13, 12*($I50-1),) = "N/A", 0, OFFSET('Engineering Data'!H$13, 12*($I50-1),)) -> 0
B51: 7 | C51: Satellite Video Client | D51: =IF(OFFSET('Engineering Data'!E$12, 12*($B51-1),) = "N/A", 0, OFFSET('Engineering Data'!E$12, 12*($B51-1),)) -> 0 | E51: =IF(OFFSET('Engineering Data'!F$12, 12*($B51-1),) = "N/A", 0, OFFSET('Engineering Data'!F$12, 12*($B51-1),)) -> 10.34894614 | F51: =IF(OFFSET('Engineering Data'!G$12, 12*($B51-1),) = "N/A", 0, OFFSET('Engineering Data'!G$12, 12*($B51-1),)) -> 8.592505855 | G51: =IF(OFFSET('Engineering Data'!H$12, 12*($B51-1),) = "N/A", 0, OFFSET('Engineering Data'!H$12, 12*($B51-1),)) -> 5.858722008 | I51: 7 | J51: Satellite Video Client | K51: =IF(OFFSET('Engineering Data'!E$13, 12*($I51-1),) = "N/A", 0, OFFSET('Engineering Data'!E$13, 12*($I51-1),)) -> 0 | L51: =IF(OFFSET('Engineering Data'!F$13, 12*($I51-1),) = "N/A", 0, OFFSET('Engineering Data'!F$13, 12*($I51-1),)) -> 0 | M51: =IF(OFFSET('Engineering Data'!G$13, 12*($I51-1),) = "N/A", 0, OFFSET('Engineering Data'!G$13, 12*($I51-1),)) -> 0 | N51: =IF(OFFSET('Engineering Data'!H$13, 12*($I51-1),) = "N/A", 0, OFFSET('Engineering Data'!H$13, 12*($I51-1),)) -> 0
B52: 8 | C52: Satellite Video Server | D52: =IF(OFFSET('Engineering Data'!E$12, 12*($B52-1),) = "N/A", 0, OFFSET('Engineering Data'!E$12, 12*($B52-1),)) -> 0 | E52: =IF(OFFSET('Engineering Data'!F$12, 12*($B52-1),) = "N/A", 0, OFFSET('Engineering Data'!F$12, 12*($B52-1),)) -> 17.51764706 | F52: =IF(OFFSET('Engineering Data'!G$12, 12*($B52-1),) = "N/A", 0, OFFSET('Engineering Data'!G$12, 12*($B52-1),)) -> 13.34090909 | G52: =IF(OFFSET('Engineering Data'!H$12, 12*($B52-1),) = "N/A", 0, OFFSET('Engineering Data'!H$12, 12*($B52-1),)) -> 8.264362578 | I52: 8 | J52: Satellite Video Server | K52: =IF(OFFSET('Engineering Data'!E$13, 12*($I52-1),) = "N/A", 0, OFFSET('Engineering Data'!E$13, 12*($I52-1),)) -> 21.64117647 | L52: =IF(OFFSET('Engineering Data'!F$13, 12*($I52-1),) = "N/A", 0, OFFSET('Engineering Data'!F$13, 12*($I52-1),)) -> 18.41764706 | M52: =IF(OFFSET('Engineering Data'!G$13, 12*($I52-1),) = "N/A", 0, OFFSET('Engineering Data'!G$13, 12*($I52-1),)) -> 18.1875 | N52: =IF(OFFSET('Engineering Data'!H$13, 12*($I52-1),) = "N/A", 0, OFFSET('Engineering Data'!H$13, 12*($I52-1),)) -> 17.58791209
B53: 9 | C53: Satellite with DVR | D53: =IF(OFFSET('Engineering Data'!E$12, 12*($B53-1),) = "N/A", 0, OFFSET('Engineering Data'!E$12, 12*($B53-1),)) -> 0 | E53: =IF(OFFSET('Engineering Data'!F$12, 12*($B53-1),) = "N/A", 0, OFFSET('Engineering Data'!F$12, 12*($B53-1),)) -> 17.46022727 | F53: =IF(OFFSET('Engineering Data'!G$12, 12*($B53-1),) = "N/A", 0, OFFSET('Engineering Data'!G$12, 12*($B53-1),)) -> 13.48295455 | G53: =IF(OFFSET('Engineering Data'!H$12, 12*($B53-1),) = "N/A", 0, OFFSET('Engineering Data'!H$12, 12*($B53-1),)) -> 8.166798983 | I53: 9 | J53: Satellite with DVR | K53: =IF(OFFSET('Engineering Data'!E$13, 12*($I53-1),) = "N/A", 0, OFFSET('Engineering Data'!E$13, 12*($I53-1),)) -> 25.2 | L53: =IF(OFFSET('Engineering Data'!F$13, 12*($I53-1),) = "N/A", 0, OFFSET('Engineering Data'!F$13, 12*($I53-1),)) -> 18.32954545 | M53: =IF(OFFSET('Engineering Data'!G$13, 12*($I53-1),) = "N/A", 0, OFFSET('Engineering Data'!G$13, 12*($I53-1),)) -> 14.35227273 | N53: =IF(OFFSET('Engineering Data'!H$13, 12*($I53-1),) = "N/A", 0, OFFSET('Engineering Data'!H$13, 12*($I53-1),)) -> 13.87912088
B54: 10 | C54: Satellite with DVR & Video Server | D54: =IF(OFFSET('Engineering Data'!E$12, 12*($B54-1),) = "N/A", 0, OFFSET('Engineering Data'!E$12, 12*($B54-1),)) -> 0 | E54: =IF(OFFSET('Engineering Data'!F$12, 12*($B54-1),) = "N/A", 0, OFFSET('Engineering Data'!F$12, 12*($B54-1),)) -> 19.13636364 | F54: =IF(OFFSET('Engineering Data'!G$12, 12*($B54-1),) = "N/A", 0, OFFSET('Engineering Data'!G$12, 12*($B54-1),)) -> 15.15909091 | G54: =IF(OFFSET('Engineering Data'!H$12, 12*($B54-1),) = "N/A", 0, OFFSET('Engineering Data'!H$12, 12*($B54-1),)) -> 8.486329938 | I54: 10 | J54: Satellite with DVR & Video Server | K54: =IF(OFFSET('Engineering Data'!E$13, 12*($I54-1),) = "N/A", 0, OFFSET('Engineering Data'!E$13, 12*($I54-1),)) -> 28.7 | L54: =IF(OFFSET('Engineering Data'!F$13, 12*($I54-1),) = "N/A", 0, OFFSET('Engineering Data'!F$13, 12*($I54-1),)) -> 23.98295455 | M54: =IF(OFFSET('Engineering Data'!G$13, 12*($I54-1),) = "N/A", 0, OFFSET('Engineering Data'!G$13, 12*($I54-1),)) -> 20.00568182 | N54: =IF(OFFSET('Engineering Data'!H$13, 12*($I54-1),) = "N/A", 0, OFFSET('Engineering Data'!H$13, 12*($I54-1),)) -> 19.34615385
B55: 11 | C55: IP Base | D55: =IF(OFFSET('Engineering Data'!E$12, 12*($B55-1),) = "N/A", 0, OFFSET('Engineering Data'!E$12, 12*($B55-1),)) -> 0 | E55: =IF(OFFSET('Engineering Data'!F$12, 12*($B55-1),) = "N/A", 0, OFFSET('Engineering Data'!F$12, 12*($B55-1),)) -> 10.63466042 | F55: =IF(OFFSET('Engineering Data'!G$12, 12*($B55-1),) = "N/A", 0, OFFSET('Engineering Data'!G$12, 12*($B55-1),)) -> 7.953161593 | G55: =IF(OFFSET('Engineering Data'!H$12, 12*($B55-1),) = "N/A", 0, OFFSET('Engineering Data'!H$12, 12*($B55-1),)) -> 6.332365224 | I55: 11 | J55: IP Base | K55: =IF(OFFSET('Engineering Data'!E$13, 12*($I55-1),) = "N/A", 0, OFFSET('Engineering Data'!E$13, 12*($I55-1),)) -> 0 | L55: =IF(OFFSET('Engineering Data'!F$13, 12*($I55-1),) = "N/A", 0, OFFSET('Engineering Data'!F$13, 12*($I55-1),)) -> 0 | M55: =IF(OFFSET('Engineering Data'!G$13, 12*($I55-1),) = "N/A", 0, OFFSET('Engineering Data'!G$13, 12*($I55-1),)) -> 0 | N55: =IF(OFFSET('Engineering Data'!H$13, 12*($I55-1),) = "N/A", 0, OFFSET('Engineering Data'!H$13, 12*($I55-1),)) -> 0
B56: 12 | C56: IP Video Client | D56: =IF(OFFSET('Engineering Data'!E$12, 12*($B56-1),) = "N/A", 0, OFFSET('Engineering Data'!E$12, 12*($B56-1),)) -> 0 | E56: =IF(OFFSET('Engineering Data'!F$12, 12*($B56-1),) = "N/A", 0, OFFSET('Engineering Data'!F$12, 12*($B56-1),)) -> 11.43559719 | F56: =IF(OFFSET('Engineering Data'!G$12, 12*($B56-1),) = "N/A", 0, OFFSET('Engineering Data'!G$12, 12*($B56-1),)) -> 8.754098361 | G56: =IF(OFFSET('Engineering Data'!H$12, 12*($B56-1),) = "N/A", 0, OFFSET('Engineering Data'!H$12, 12*($B56-1),)) -> 6.704646944 | I56: 12 | J56: IP Video Client | K56: =IF(OFFSET('Engineering Data'!E$13, 12*($I56-1),) = "N/A", 0, OFFSET('Engineering Data'!E$13, 12*($I56-1),)) -> 0 | L56: =IF(OFFSET('Engineering Data'!F$13, 12*($I56-1),) = "N/A", 0, OFFSET('Engineering Data'!F$13, 12*($I56-1),)) -> 0 | M56: =IF(OFFSET('Engineering Data'!G$13, 12*($I56-1),) = "N/A", 0, OFFSET('Engineering Data'!G$13, 12*($I56-1),)) -> 0 | N56: =IF(OFFSET('Engineering Data'!H$13, 12*($I56-1),) = "N/A", 0, OFFSET('Engineering Data'!H$13, 12*($I56-1),)) -> 0
B57: 13 | C57: IP Video Server | D57: =IF(OFFSET('Engineering Data'!E$12, 12*($B57-1),) = "N/A", 0, OFFSET('Engineering Data'!E$12, 12*($B57-1),)) -> 0 | E57: =IF(OFFSET('Engineering Data'!F$12, 12*($B57-1),) = "N/A", 0, OFFSET('Engineering Data'!F$12, 12*($B57-1),)) -> 11.11522248 | F57: =IF(OFFSET('Engineering Data'!G$12, 12*($B57-1),) = "N/A", 0, OFFSET('Engineering Data'!G$12, 12*($B57-1),)) -> 8.433723653 | G57: =IF(OFFSET('Engineering Data'!H$12, 12*($B57-1),) = "N/A", 0, OFFSET('Engineering Data'!H$12, 12*($B57-1),)) -> 6.39341699 | I57: 13 | J57: IP Video Server | K57: =IF(OFFSET('Engineering Data'!E$13, 12*($I57-1),) = "N/A", 0, OFFSET('Engineering Data'!E$13, 12*($I57-1),)) -> 13.69 | L57: =IF(OFFSET('Engineering Data'!F$13, 12*($I57-1),) = "N/A", 0, OFFSET('Engineering Data'!F$13, 12*($I57-1),)) -> 12.18313817 | M57: =IF(OFFSET('Engineering Data'!G$13, 12*($I57-1),) = "N/A", 0, OFFSET('Engineering Data'!G$13, 12*($I57-1),)) -> 9.501639344 | N57: =IF(OFFSET('Engineering Data'!H$13, 12*($I57-1),) = "N/A", 0, OFFSET('Engineering Data'!H$13, 12*($I57-1),)) -> 9.2736
B58: 14 | C58: IP with DVR | D58: =IF(OFFSET('Engineering Data'!E$12, 12*($B58-1),) = "N/A", 0, OFFSET('Engineering Data'!E$12, 12*($B58-1),)) -> 0 | E58: =IF(OFFSET('Engineering Data'!F$12, 12*($B58-1),) = "N/A", 0, OFFSET('Engineering Data'!F$12, 12*($B58-1),)) -> 12.93409091 | F58: =IF(OFFSET('Engineering Data'!G$12, 12*($B58-1),) = "N/A", 0, OFFSET('Engineering Data'!G$12, 12*($B58-1),)) -> 9.755681818 | G58: =IF(OFFSET('Engineering Data'!H$12, 12*($B58-1),) = "N/A", 0, OFFSET('Engineering Data'!H$12, 12*($B58-1),)) -> 7.666856996 | I58: 14 | J58: IP with DVR | K58: =IF(OFFSET('Engineering Data'!E$13, 12*($I58-1),) = "N/A", 0, OFFSET('Engineering Data'!E$13, 12*($I58-1),)) -> 18.73 | L58: =IF(OFFSET('Engineering Data'!F$13, 12*($I58-1),) = "N/A", 0, OFFSET('Engineering Data'!F$13, 12*($I58-1),)) -> 15.19375 | M58: =IF(OFFSET('Engineering Data'!G$13, 12*($I58-1),) = "N/A", 0, OFFSET('Engineering Data'!G$13, 12*($I58-1),)) -> 10.48920455 | N58: =IF(OFFSET('Engineering Data'!H$13, 12*($I58-1),) = "N/A", 0, OFFSET('Engineering Data'!H$13, 12*($I58-1),)) -> 10.14340659
B59: 15 | C59: IP with DVR & Video Server | D59: =IF(OFFSET('Engineering Data'!E$12, 12*($B59-1),) = "N/A", 0, OFFSET('Engineering Data'!E$12, 12*($B59-1),)) -> 0 | E59: =IF(OFFSET('Engineering Data'!F$12, 12*($B59-1),) = "N/A", 0, OFFSET('Engineering Data'!F$12, 12*($B59-1),)) -> 13.52329545 | F59: =IF(OFFSET('Engineering Data'!G$12, 12*($B59-1),) = "N/A", 0, OFFSET('Engineering Data'!G$12, 12*($B59-1),)) -> 10.34488636 | G59: =IF(OFFSET('Engineering Data'!H$12, 12*($B59-1),) = "N/A", 0, OFFSET('Engineering Data'!H$12, 12*($B59-1),)) -> 8.236637216 | I59: 15 | J59: IP with DVR & Video Server | K59: =IF(OFFSET('Engineering Data'!E$13, 12*($I59-1),) = "N/A", 0, OFFSET('Engineering Data'!E$13, 12*($I59-1),)) -> 19.34 | L59: =IF(OFFSET('Engineering Data'!F$13, 12*($I59-1),) = "N/A", 0, OFFSET('Engineering Data'!F$13, 12*($I59-1),)) -> 15.78295455 | M59: =IF(OFFSET('Engineering Data'!G$13, 12*($I59-1),) = "N/A", 0, OFFSET('Engineering Data'!G$13, 12*($I59-1),)) -> 11.07840909 | N59: =IF(OFFSET('Engineering Data'!H$13, 12*($I59-1),) = "N/A", 0, OFFSET('Engineering Data'!H$13, 12*($I59-1),)) -> 10.71318681
